{"text_format":"3","workbook":"xlsx","n_sheets":2,"sheets":["Bill No. 1","Bill No. 2 to Bill No. 22"],"not_rendered":{"defined_names":3},"read":"whole","date_system":"1900"}

{"sheet":"Bill No. 1","index":0,"n_rows":635,"n_cols":6,"rows_kept":635,"merged":[[0,0,0,4],[285,1,286,1],[579,0,579,5],[581,0,581,5],[582,0,582,1],[582,4,582,5],[631,0,631,1],[632,0,632,5],[633,0,633,5],[634,0,634,1]]}
["Ngwelezane Hospital: Construction of New Orthotics and Prosthetics Centre with Parking Area (Completion Contract) "]
[null,"BILL NO. 1  "]
[null,"C2 .2 PRELIMINARY AND GENERAL"]
[null,"NOTES  ","UNIT","QUANTITY","RATE","AMOUNT"]
[]
["i)","The agreement is to be the General Conditions of Contract for Works of Civil Engineering Construction (2010) (Second Edition) , published by the S. A. Institution Of Civil Engineering."]
[]
["ii)","The Preliminaries are to be the Construction and management requirements for works contracts - Part 1: General engineering and construction works (SANS 1921-1: 2004 Edition 1) prepared by Standards South Africa and shall be deemed  to be incorporated herein."]
[]
["iii)","Tenderers are referred to the abovementioned  documents for the full intent and meaning of each  clause thereof (hereinafter referred to by heading and  clause number only) for which such allowance must be  made as may be considered necessary."]
[]
[]
["iv)","Where standard clauses or alternatives are not  entirely applicable to this contract such modifications,  corrections or supplements as will apply are given  under each relevant clause heading."]
[]
["v) ","Where any item is not relevant to this specific  contract such item is marked N/A (signifying \"not  applicable\")."]
[]
["vi)","Adjustment of the preliminaries:  each item priced, is to be allocated to one or more of  the three categories, where \"F\" denotes a fixed amount  (amount not to be varied), \"V\" denotes an amount  variable in proportion to value and \"T\" denotes an  amount in proportion to time."]
[]
["vii)","Time (T) related Preliminaries will only be adjusted for omissions or additions, issued by the Employer, or delays caused by the Employer, for which variation and extension of time has been granted. See Contract Data."]
[]
[null,"SECTION A:  GENERAL CONDITIONS OF CONTRACT"]
[]
["A1","General (clause 1) "]
[null,"F:............................. V:............................ T:............................ ","Item",1,null,{"$f":"D24*E24","v":{"v":0,"d":"0.00"}}]
[]
["A2","Basis of Contract (clause 2) "]
[null,"F:............................. V:............................ T:............................ ","Item",1,null,{"$f":"D27*E27","v":{"v":0,"d":"0.00"}}]
[]
["A3","Engineer (clause 3) "]
[null,"F:............................. V:............................ T:............................ ","Item",1,null,{"$f":"D30*E30","v":{"v":0,"d":"0.00"}}]
[]
["A4","Contractor's General Obligation (clause 4) "]
[null,"F:............................. V:............................ T:............................ ","Item",1,null,{"$f":"D33*E33","v":{"v":0,"d":"0.00"}}]
[null," "]
["A5","Time and Related Matters (clause 5) - As referred to in the Contract Data under Special Condition of Contract. The Contract Period shall be deemed to include all Non – Working Days, Special Non – Working Days and the year-end Builders Annual Industry Holiday Periods. "]
[null,"\nF:............................. V:............................ T:............................ \n","Item",1,null,{"$f":"D36*E36","v":{"v":0,"d":"0.00"}}]
[null,"Carried forward to collection",null,null,"R",{"$f":"SUM(F17:F36)","v":{"v":0,"d":"0.00"}}]
[]
[null,null,"UNIT","QUANTITY","RATE","AMOUNT"]
["A6","Payment and Related Matters (clause 6) "]
[null,"F:............................. V:............................ T:............................ ","Item",1,null,{"$f":"D41*E41","v":{"v":0,"d":"0.00"}}]
[null," "]
["A7","Quality and Related Matters (clause 7) "]
[null,"F:............................. V:............................ T:............................ ","Item",1,null,{"$f":"D44*E44","v":{"v":0,"d":"0.00"}}]
[]
["A8","Risk and Related Matters (clause 8) "]
[null,"F:............................. V:............................ T:............................ ","Item",1,null,{"$f":"D47*E47","v":{"v":0,"d":"0.00"}}]
[null," "]
["A9","Termination of Contract (clause 9) "]
[null,"F:............................. V:............................ T:............................ ","Item",1,null,{"$f":"D50*E50","v":{"v":0,"d":"0.00"}}]
[null," "]
["A10","Claims and Disputes (clause 10) "]
[null,"F:............................. V:............................ T:............................ ","Item",1,null,{"$f":"D53*E53","v":{"v":0,"d":"0.00"}}]
[null," "]
[]
[null,"SECTION B:   SANS 1921-1:2004 (Edition 1):  CONSTRUCTION AND MANAGEMENT REQUIREMENTS FOR WORKS CONTRACTS:  PART 1"," "]
[null,"Refer to  the  SCOPE OF WORK for detail requirements:"]
[]
["B1","Scope"," "]
[null,"F:............................. V:............................ T:............................ ","Item",1,null,{"$f":"D60*E60","v":{"v":0,"d":"0.00"}}]
[]
["B2","Normative references"," "]
[null,"F:............................. V:............................ T:............................ ","Item",1,null,{"$f":"D63*E63","v":{"v":0,"d":"0.00"}}]
[]
["B3","Definitions"," "]
[null,"F:............................. V:............................ T:............................ ","Item",1,null,{"$f":"D66*E66","v":{"v":0,"d":"0.00"}}]
[null," "]
["B4","Requirements for construction and management"," "]
[null,"F:............................. V:............................ T:............................","Item",1,null,{"$f":"D69*E69","v":{"v":0,"d":"0.00"}}]
[]
["B4.1","General"," "]
[null,"F:............................. V:............................ T:............................ ","Item",1,null,{"$f":"D72*E72","v":{"v":0,"d":"0.00"}}]
[]
["B4.2","Responsibilities for design and construction"]
[null,"F:............................. V:............................ T:............................ ","Item",1,null,{"$f":"D75*E75","v":{"v":0,"d":"0.00"}}]
[]
["B4.3","Planning, programme and method statements"]
[null,"F:............................. V:............................ T:............................ ","Item",1,null,{"$f":"D78*E78","v":{"v":0,"d":"0.00"}}]
[null,null," "]
[null,"Carried forward to collection",null,null,"R",{"$f":"SUM(F41:F79)","v":{"v":0,"d":"0.00"}}]
[]
[null,null,"UNIT","QUANTITY","RATE","AMOUNT"]
[" "," "]
["B4.4","Quality assurance"]
[null,"F:............................. V:............................ T:............................ ","Item",1,null,{"$f":"D85*E85","v":{"v":0,"d":"0.00"}}]
[null," "]
["B4.5","Setting out"]
[null,"F:............................. V:............................ T:............................ ","Item",1,null,{"$f":"D88*E88","v":{"v":0,"d":"0.00"}}]
[null," "]
["B4.6","Management and disposal of water"]
[null,"F:............................. V:............................ T:............................ ","Item",1,null,{"$f":"D91*E91","v":{"v":0,"d":"0.00"}}]
[null," "]
["B4.7","Blasting"]
[null,"F:............................. V:............................ T:............................ ","Item",1,null,{"$f":"D94*E94","v":{"v":0,"d":"0.00"}}]
[null," "]
["B4.8","Works adjacent to services and structures"]
[null,"F:............................. V:............................ T:............................ ","Item",1,null,{"$f":"D97*E97","v":{"v":0,"d":"0.00"}}]
[null," "]
["B4.9","Management of the Works and site"]
[null,"F:............................. V:............................ T:............................ ","Item",1,null,{"$f":"D100*E100","v":{"v":0,"d":"0.00"}}]
[null," "]
["B4.10","Earthworks"]
[null,"F:............................. V:............................ T:............................ ","Item",1,null,{"$f":"D103*E103","v":{"v":0,"d":"0.00"}}]
[]
["B4.11","Testing"]
[null,"F:............................. V:............................ T:............................ ","Item",1,null,{"$f":"D106*E106","v":{"v":0,"d":"0.00"}}]
[]
["B4.12","Materials, samples and fabrication drawings"]
[null,"F:............................. V:............................ T:............................ ","Item",1,null,{"$f":"D109*E109","v":{"v":0,"d":"0.00"}}]
[]
["B4.13","Equipment"]
[null,"F:............................. V:............................ T:............................ ","Item",1,null,{"$f":"D112*E112","v":{"v":0,"d":"0.00"}}]
[]
["B4.14","Site establishment"]
[null,"F:............................. V:............................ T:............................ ","Item",1,null,{"$f":"D115*E115","v":{"v":0,"d":"0.00"}}]
[]
["B4.15","Survey control"]
[null,"F:............................. V:............................ T:............................ ","Item",1,null,{"$f":"D118*E118","v":{"v":0,"d":"0.00"}}]
["B4.16","Temporary works"]
[null,"F:............................. V:............................ T:............................ ","Item",1,null,{"$f":"D120*E120","v":{"v":0,"d":"0.00"}}]
[]
[null,"Carried forward to collection",null,null,"R",{"$f":"SUM(F85:F121)","v":{"v":0,"d":"0.00"}}]
[]
[null,null,"UNIT","QUANTITY","RATE","AMOUNT"]
[]
["B4.17","Existing services"]
[null,"F:............................. V:............................ T:............................ ","Item",1,null,{"$f":"D127*E127","v":{"v":0,"d":"0.00"}}]
[]
["B4.18","Health and safety"]
[null,"F:............................. V:............................ T:............................ ","Item",1,null,{"$f":"D130*E130","v":{"v":0,"d":"0.00"}}]
[]
["B4.19","Environmental requirements"]
[null,"F:............................. V:............................ T:............................ ","Item",1,null,{"$f":"D133*E133","v":{"v":0,"d":"0.00"}}]
[null," "]
["B4.20","Alterations, additions, extensions and modifications to existing works"]
[null,"F:............................. V:............................ T:............................ ","Item",1,null,{"$f":"D136*E136","v":{"v":0,"d":"0.00"}}]
[]
["B4.21","Inspection of adjoining structures, services, buildings and property"]
[null,"F:............................. V:............................ T:............................ ","Item",1,null,{"$f":"D139*E139","v":{"v":0,"d":"0.00"}}]
[null," "]
["B4.22","Attendance on nominated and selected subcontractors"]
[null,"F:............................. V:............................ T:............................ ","Item",1,null,{"$f":"D142*E142","v":{"v":0,"d":"0.00"}}]
[null," "]
[null,"SECTION C: SCOPE OF WORK in accordance with SANS 10403"]
[null,"(The reference to Clauses refer to Table B.1 of SANS 1921-1:2004)"]
["C1","Certification by recognised bodies - CLAUSE 4.4"]
[null,"F:............................. V:............................ T:............................ ","Item",1,null,{"$f":"D147*E147","v":{"v":0,"d":"0.00"}}]
[null," "]
["C2","Agreement certificates - CLAUSE 4.5"]
[null,"F:............................. V:............................ T:............................ ","N/A"]
["C3","Other services and facilities - CLAUSE 4.8"]
[null,"F:............................. V:............................ T:............................ ","Item",1,null,{"$f":"D152*E152","v":{"v":0,"d":"0.00"}}]
["C4","Recording of weather - CLAUSE 5.2"]
[null,"F:............................. V:............................ T:............................ ","Item",1,null,{"$f":"D154*E154","v":{"v":0,"d":"0.00"}}]
[]
["C5","Management meetings - CLAUSE 5.3"]
[null,"F:............................. V:............................ T:............................ ","Item",1,null,{"$f":"D157*E157","v":{"v":0,"d":"0.00"}}]
["C6","Daily records CLAUSE 5.6"]
[null,"F:............................. V:............................ T:............................ ","Item",1,null,{"$f":"D159*E159","v":{"v":0,"d":"0.00"}}]
["C7","Bond and guarantees - CLAUSE 5.7"]
[null,"F:............................. V:............................ T:............................ ","Item",1,null,{"$f":"D161*E161","v":{"v":0,"d":"0.00"}}]
[]
[null,"Carried forward to collection",null,null,"R",{"$f":"SUM(F127:F162)","v":{"v":0,"d":"0.00"}}]
[]
[null,null,"UNIT","QUANTITY","RATE","AMOUNT"]
[]
["C8","Permits - CLAUSE 5.9"]
[null,"F:............................. V:............................ T:............................ ","Item",1,null,{"$f":"D168*E168","v":{"v":0,"d":"0.00"}}]
[]
["C9","Proof of compliance with the law - CLAUSE 5.10"]
[null,"F:............................. V:............................ T:............................ ","Item",1,null,{"$f":"D171*E171","v":{"v":0,"d":"0.00"}}]
[]
[null," SECTION D: SPECIFICATION DATA ASSOCIATED WITH SANS 1921-1:2004 (Table A.1)"]
[]
["D1","Requirements for drawings, information and calculations for which the contractor is responsible CLAUSE 4.1.7"]
[null,"F:............................. V:............................ T:............................ ","Item",1,null,{"$f":"D176*E176","v":{"v":0,"d":"0.00"}}]
[]
["D2","The responsibility strategy assigned to the contractor for the works  CLAUSE 4.2.1"]
[null,"F:............................. V:............................ T:............................ ","Item",1,null,{"$f":"D179*E179","v":{"v":0,"d":"0.00"}}]
[]
["D3","The planning, programme and method statements - CLAUSE 4.3"]
[null,"F:............................. V:............................ T:............................ ","Item",1,null,{"$f":"D182*E182","v":{"v":0,"d":"0.00"}}]
[]
["D4","Samples of materials, workmanship and finishes - CLAUSE 4.12.1"]
[null,"F:............................. V:............................ T:............................ ","Item",1,null,{"$f":"D185*E185","v":{"v":0,"d":"0.00"}}]
["D5","Fabrication drawings that the contractor is to provide and deliver to the employer  - CLAUSE 4.12.2"]
[null,"F:............................. V:............................ T:............................ ","Item",1,null,{"$f":"D187*E187","v":{"v":0,"d":"0.00"}}]
[]
["D6","Office for the foreman CLAUSE 4.14.3"]
[null,"F:............................. V:............................ T:............................ ","Item",1,null,{"$f":"D190*E190","v":{"v":0,"d":"0.00"}}]
[]
["D7","Telephone -  CLAUSE 4.14.3"]
[null,"F:............................. V:............................ T:............................ ","Item",1,null,{"$f":"D193*E193","v":{"v":0,"d":"0.00"}}]
[]
["D8","Office for inspector of works  -  CLAUSE 4.14.3"]
[null,"F:............................. V:............................ T:............................ ","Item",1,null,{"$f":"D196*E196","v":{"v":0,"d":"0.00"}}]
["D9","Telephone in office for inspector of works  -  CLAUSE 4.14.3"]
[null,"F:............................. V:............................ T:............................ ","Item",1,null,{"$f":"D198*E198","v":{"v":0,"d":"0.00"}}]
[]
["D10","Sheds  -  CLAUSE 4.14.3"]
[null,"F:............................. V:............................ T:............................ ","Item",1,null,{"$f":"D201*E201","v":{"v":0,"d":"0.00"}}]
[]
[null,"Carried forward to collection",null,null,"R",{"$f":"SUM(F168:F202)","v":{"v":0,"d":"0.00"}}]
[]
[null,null,"UNIT","QUANTITY","RATE","AMOUNT"]
[]
["D11","Provision and erection of signboards - CLAUSE 4.14.6"]
[null,"F:............................. V:............................ T:............................ ","Item",1,null,{"$f":"D208*E208","v":{"v":0,"d":"0.00"}}]
[]
["D12","Termination, diversion or maintenance of existing services - CLAUSE4.17.1"]
[null,"F:............................. V:............................ T:............................ ","Item",1,null,{"$f":"D211*E211","v":{"v":0,"d":"0.00"}}]
[]
["D13","Services which are known to exist - CLAUSE 4.17.3"]
[null,"F:............................. V:............................ T:............................ ","Item",1,null,{"$f":"D214*E214","v":{"v":0,"d":"0.00"}}]
[]
["D14","Detection apparatus - CLAUSE 4.17.4"]
[null,"F:............................. V:............................ T:............................ ","Item",1,null,{"$f":"D217*E217","v":{"v":0,"d":"0.00"}}]
[]
["D15","Additional health and safety requirements - CLAUSE 4.18"]
[null,"\nF:............................. V:............................ T:............................ ","Item",1,null,{"$f":"D220*E220","v":{"v":0,"d":"0.00"}}]
[]
[null,"SECTION E: SPECIFIC PRELIMINARIES"]
[null,"Section E contains Specific Preliminary items which apply to this contract except where \"N/A\" (Not Applicable) appears against the item."]
["E1","PROPRIETARY BRANDED PRODUCTS "]
[]
[null,"The contractor shall take delivery of, handle, store, use apply and/or fix all proprietary branded products in strict accordance with the manufacturers' instruction after consultation with the manufacturer's authorised representative."]
[null,"F:............................. V:............................ T:............................ ","Item",1,null,{"$f":"D227*E227","v":{"v":0,"d":"0.00"}}]
[null," "]
["E2","OVERTIME "]
[]
[null,"Should overtime be required to be worked for any reason whatsoever, the costs of such overtime are to be borne by the Contractor unless the Engineer/Principal Agent has specifically authorised in writing, prior to the execution thereof, that costs for such overtime are to be borne by the Employer."]
[null,"F:............................. V:............................ T:............................ ","Item",1,null,{"$f":"D232*E232","v":{"v":0,"d":"0.00"}}]
[null," "]
["E3","AS BUILT DRAWINGS "]
[]
[null,"The position of construction breaks and the extent of individual concrete pours are to be recorded by the Contractor on the Structural Engineer's drawings and are to be submitted to the Engineer/Principal Agent and the Structural Engineer for their records. "]
[null,"F:............................. V:............................ T:............................ ","Item",1,null,{"$f":"D237*E237","v":{"v":0,"d":"0.00"}}]
[null,"Carried forward to collection",null,null,"R",{"$f":"SUM(F208:F237)","v":{"v":0,"d":"0.00"}}]
[null,"SECTION  E: SPECIFIC PRELIMINARIES"]
[null,null,"UNIT","QUANTITY","RATE","AMOUNT"]
["E4","SITE INSTRUCTIONS "]
[]
[null,"Site Instructions issued on site are to be recorded in triplicate in a Site Instruction book which is to be maintained on site by the Contractor."]
[null,"F:............................. V:............................ T:............................ ","Item",1,null,{"$f":"D244*E244","v":{"v":0,"d":"0.00"}}]
[]
["E5","LABOUR RECORD "]
[]
[null,"At the end of each week the Contractor shall provide the Engineer/Principal Agent with a written record, in schedule form, reflecting the number and description of tradesmen and labourers employed by him and all sub-contractors on the works each day."]
[null,"F:............................. V:............................ T:............................ ","Item",1,null,{"$f":"D249*E249","v":{"v":0,"d":"0.00"}}]
[null,"Note: In the event that the contractor fails to satisfy the requirements of this specification, the Employer (Head: Public Works) may apply any of the sanctions provided in the contract. Sanctions may include the application of a financial penalty of .04% of the Contract Sum per calendar day of which the required report has not been submitted."]
["E6","PLANT RECORD "]
[null,"At the end of each week the Contractor shall provide the Engineer/Principal Agent with a written record, in schedule form, reflecting the number, type and capacity of all plant, excluding hand tools,  currently used on the works."]
[null,"F:............................. V:............................ T:............................ ","Item",1,null,{"$f":"D253*E253","v":{"v":0,"d":"0.00"}}]
[]
["E7","NON CESSION OF MONIES "]
[]
[null,"The Contractor shall not cede nor assign his rights or claims to any monies due or to become due under this contract."]
[null,"F:............................. V:............................ T:............................ ","Item",1,null,{"$f":"D258*E258","v":{"v":0,"d":"0.00"}}]
[]
["E8","SECTIONAL COMPLETION "]
[]
[null,"When it is required that the contract be executed in sections or portions, the tenderer shall allow for all costs in this regard as no claim for additional costs will be entertained."]
[null,"F:............................. V:............................ T:............................ ","Item",1,null,{"$f":"D263*E263","v":{"v":0,"d":"0.00"}}]
[]
["E9","LOCAL LABOUR"]
[]
[null,"It is a general requirement of this contract that persons normally resident in the locality of the works (Local Labour) be given preference for employment on the contract. Provided, however, that should adequate and appropriate Labour not be available within the locality, others may be employed subject to satisfactory proof being provided that every reasonable endeavour has been made to employ Local Labour. The Contractor shall identify the local community leaders with the purpose of negotiating with them regarding the utilization of Local Labour in the construction process. In this regard, the Contractor shall furthermore give preference, wherever possible to the employment of single heads of households, women and youth. The Contractor shall, in general, maximize the involvement of the local community."]
[null,"F:............................. V:............................ T:............................ ","Item",1,null,{"$f":"D268*E268","v":{"v":0,"d":"0.00"}}]
[null,"Carried forward to collection",null,null,"R",{"$f":"SUM(F244:F268)","v":{"v":0,"d":"0.00"}}]
[]
[null,null,"UNIT","QUANTITY","RATE","AMOUNT"]
["E10","IMPORT PERMITS AND DUTIES"]
[null,"The responsibility for obtaining the necessary import permits shall rest with the successful Tenderer.  No foreign exchange will be arranged or provided by the Administration."]
[null,"Tenderers are to allow in their tenders and pay the ordinary levy imposed on imported items in terms of item 196.10 of Part 8 of Schedule No. 1 of the Customs and Excise Act, 1964 with effect from 1 October 1989."]
[null,"F:............................. V:............................ T:............................ ","Item",1,null,{"$f":"D275*E275","v":{"v":0,"d":"0.00"}}]
[]
["E11","CONTRACT PRICE ADJUSTMENT PROVISIONS (CPAP)"]
[]
[null,"Notwithstanding anything to the contrary contained in the  GCC for Construction Works 2010 2nd Edition, this Contract shall only when the Construction Period exceeds 6 months and the Contract sum exceeds R1,000,000,00  be subject to the Contract Price Adjustment Provisions Indices Application Manual for use with P0151 indices (CPAP) (Revised 1 January 2013) as published by Statistics South Africa. Tenderers are advised that with reference to Clause 3.4.6 of the Contract Price Adjustment Provisions (CPAP) Indices Applications Manual, the Head: Public Works will not accept the submission by Tenderers of lists of  additional items."]
[null,"Where this contract is a Lump Sum contract, the contract will be subject to Contract Price Adjustment Provisions (CPAP) only where the contract period equals or exceeds 6 calendar months. The applicable work group shall be WG 180 for domestic buildings or WG 181 for commercial and industrial buildings."]
[null,"F:............................. V:............................ T:............................ ","Item",1,null,{"$f":"D281*E281","v":{"v":0,"d":"0.00"}}]
[]
["E12"," EPWP CONDITIONS AND SPECIFICATIONS"]
[null,"12.1 EMPLOYMENT TARGETS"]
[null,"E12.1 a Employment Targets"]
[null,"The contractor needs to provide a realistic estimate on the number of jobs that the project has the potential to create throughout the project duration as the project will be implemented using labour intensive construction methods on elements where it is economical and feasible for this construction method."]
[]
[]
[null,"No of jobs to be created = ………. [Contractor to fill in an estimated number]"]
[]
[null,"F:............................. V:............................ T:............................ ","Item",1,null,{"$f":"D291*E291","v":{"v":0,"d":"0.00"}}]
[]
[null,"E12.1 b Employment requirements"]
[null,"Tenderers are advised that this contract will be subject to the Expanded Public Works Program (EPWP) aimed at alleviating and reducing unemployment."]
[null,"Tenderers must allow for any costs for the employment of unskilled labour as per the requirements of the EPWP program;"]
[]
[null,"1. 55% of unskilled labour to be women"]
[null,"2. 55% of unskilled labour to be youth aged between 18 and 35 years"]
[null,"3. 2% of unskilled labour to be people living with disability "]
[null,"4. 100%  Unskilled labour utilised must reside within the boundaries of the Municipality Ward where this contract is executed, with preference to the local community closest or at the walking distance to the contract site. Wherever possible local skilled tradesmen are to be employed on this contract with the view to maximize utilization of local resources. "]
[]
[null,"F:............................. V:............................ T:............................ ","Item",1,null,{"$f":"D302*E302","v":{"v":0,"d":"0.00"}}]
[null,"Carried forward to collection",null,null,"R",{"$f":"SUM(F274:F302)","v":{"v":0,"d":"0.00"}}]
[]
[null,null,"UNIT","QUANTITY","RATE","AMOUNT"]
[]
[null,"E12.1 c Labour rate and payment intervals"]
[null,"The contractor should ensure that labour rate paid to unskilled local labour is commensurate to the daily task. When determining the rate, consideration should be given to that EPWP beneficiaries are mostly bread winners in their families, as the program intends alleviating poverty. There should also be consideration that the labour rate promotes creation of expanded number of jobs created and person days of work."]
[null,"Contractors should make endeavours to ensure that labourers, particularly unskilled are remunerated on fortnight basis and prior notification be made should there be a shortfall on their wages."]
[null,"The labour rate for local unskilled shall also be determined in consideration of the location of the project, i.e. for projects implemented in urbanized municipalities will not be the same as that for rural municipalities."]
[]
[null,"F:............................. V:............................ T:............................ ","Item",1,null,{"$f":"D312*E312","v":{"v":0,"d":"0.00"}}]
[]
[null,"12.2 LABOUR INTENSIVE CONSTRUCTION METHOD"]
[null,"E12.2 a Labour Intensive Construction (LIC) method"]
[null,"On site there must a person(s) having competency in managing and implementing LIC methods."]
[null," *Foreman @ NQF Level 4 the Unit Standard on Implementing LIC methods on site."]
[null,"*Site Agent/ Managers @ NQF level  5 the Unit Standard on Manage Labour-Intensive Skills Programme both must be CETA accredited"]
[]
[null,"F:............................. V:............................ T:............................ ","Item",1,null,{"$f":"D320*E320","v":{"v":0,"d":"0.00"}}]
[]
[null,"E12.2 b Labour Intensive Construction Method"]
[null,"Those parts of the contract to be constructed using Labour Intensive methods will be marked in the BoQ with letter LI (indicating Labour Intensive) against every item so designated. Such works will only be constructed using method so indicated. "]
[]
[null,"Reference to be made to Guidelines for the implementation of Labour Intensive Infrastructure projects under EPWP. \"Scope of Work in Respect of Work Relating to the Expanded Public Works Programme (EPWP)\""]
[null,"F:............................. V:............................ T:............................ ","Item",1,null,{"$f":"D326*E326","v":{"v":0,"d":"0.00"}}]
[]
[null,"E12.3 RECORD KEEPING"]
[null,"12.3.1 Every employer must keep in the project site office the following  minutes of site progress minutes; contractors’ monthly site progress reports; accurately recorded attendance register; proof of payment as means to verify authenticity of data in the EPWP Beneficiary form submitted with payment certificates. Copies of submitted EPWP beneficiary data forms should also be kept in the site office."]
[null,"F:............................. V:............................ T:............................ ","Item",1,null,{"$f":"D330*E330","v":{"v":0,"d":"0.00"}}]
[]
[null,"12.3.2 The employer must keep this record for a period of at least three (3) years after the completion of the project in his/her office as the project site office would have been relocated."]
[null,"This should be safely kept for job creation data verifications and periodical audits on projects conducted by National and Provincial  Department of Public Works  after one (1) or two (2) quarters of submitting captured EPWP Data to the National EPWP coordinating Department.  "]
[null,"F:............................. V:............................ T:............................ ","Item",1,null,{"$f":"D334*E334","v":{"v":0,"d":"0.00"}}]
[]
[null,"Carried forward to collection",null,null,"R",{"$f":"SUM(F309:F335)","v":{"v":0,"d":"0.00"}}]
[]
[null,null,"UNIT","QUANTITY","RATE","AMOUNT"]
[null,"E12.4 EPWP REPORTING as per EPWP DATA FORM"]
[null,"At the end of each month as part of site progress report and to be attached to every contractors’ progress payment certificate; the contractor shall provide the principal agent & Public Works with a written records, as per EPWP data form; which will be reflecting, beneficiaries full name & surname; ID No and job description of labour employed by main contractor and sub-contractors on site. At the end of each month the contractor must submit the following documents to be attached to the Progress payment certificate:\n1. EPWP monthly data collection form \n2. Worker monthly payment upload\n3. Worker monthly proof of payment  i.e. \n3.1 Acknowledgement of receipt of payment or\n3.2 Payslips \n3.3 Bank statement highlighted the workers paid \n4. Worker monthly training form \n5. Monthly attendance register\n6. Certified copies of ID’s (once off)\n7. ID size photos (once off)\n8. Proof of UIF \n9. Proof of COIDA"]
[null,"F:............................. V:............................ T:............................ ","Item",1,null,{"$f":"D341*E341","v":{"v":0,"d":"0.00"}}]
[]
[null,"E12.5 EPWP PROMOTION"]
[null,"12.5.1 EPWP signage board"]
[null,"EPWP Program at the project level shall always be promoted through have the projects signage board that embrace EPWP logo at the bottom, correct measurement for this signage board will be provided by the project leader during the site handing over meeting. the standard \"HELVETIVA MEDUIM \" letters are to be used . Professional title to be 10 mm above line . Line thickness to be 8 mm thick . Space between bottom of the line and bottom of the lettering below the line has to be 100 mm. Letter sizes are as follows : Helvetica medium 100 mm black upper case to be for project name and owner . Helvetica medium 75mm black upper case only to be used for professional titles. Project name and owner shall be black lettering on white background.board sizes are as follows : Board to be minomum 2000mm from ground level and to be constructed from reinforced formed chromadek panels minimum 0,6mm thick chromadek. The contractor is responsible for ensuring that the project board remains neatly and safely erected for the full duration including maintenance period,after which the project board and post are to be dismantled and handed to the client in good order.       "]
[null,"F:............................. V:............................ T:............................ ","Item",1,null,{"$f":"D346*E346","v":{"v":0,"d":"0.00"}}]
[]
[null,"12.5.2 Branding of labour apparel"]
[null,"Contractor & Sub-contractors’ labourers shall be provided with EPWP branded Personal Protective Equipment (PPE), reflector vest with EPWP wording at the back is an ideal and cost effective means of promoting program on site."]
[null,"The contractor is then advised to price for both item 17.5.1 and 17.5.2"]
[null,"F:............................. V:............................ T:............................ ","Item",1,null,{"$f":"D351*E351","v":{"v":0,"d":"0.00"}}]
[]
[null,"E12.6 COMMUNITY LIAISON OFFICER (CLO)"]
[null,"UTILISATION OF A COMMUNITY LIAISON OFFICER "]
[null,"In addition to the requirements of Clause E9, contained in this document; "]
[null,"The Contractor shall allow for and pay any and all costs necessary for the engagement of the services of a Community Liaison Officer (CLO) for the full duration of this contract"]
[null,"In the interest of providing a sound service to both the community and the Contractor, a CLO may only manage one project at a given time."]
[null,"A CLO will be identified by the local structures of the ward areas and appointed following fair and transparent interviewing process, to be conducted in the presence of local structures and the contractor representative, in order to assist the Contractor in the procurement of any local labour, etc. required for this project. The Contractor is to liaise with the CLO and afford him any assistance needed in ensuring sound working relations with the local community."]
[null,"Key Responsibilities of the CLO are envisaged to include and not necessary be limited to:"]
[null,"1. Assisting local leadership in conducting skills and resources audit which facilitates sourcing labour from within the ward or targeted areas for employment, as required by contractor."]
[null,"2. Assisting in sourcing labour-only domestic sub-contractors and the procurement of materials from local resources, as required by the contractor."]
[null,"3. Assisting the contractor by identifying areas of potential conflict and or threats to the project or to stakeholders in the project and recommend appropriate action to the contractor."]
[null,"4. Assisting contractor and stakeholders in the project in the resolution of any conflict which may arise."]
[null,"5. Establishing and ensuring that sufficient and open communication channels between the contractor and the work force are maintained."]
[null,"6. Establish and ensuring that efficient and open communication channels between the contractor and the community are maintained"]
[null,"7. Identifying and reporting to the Contractor regarding issues where communication between stakeholder is necessary, recommend courses of action and facilitate such communications"]
[null,"Carried forward to collection",null,null,"R",{"$f":"SUM(F340:F366)","v":{"v":0,"d":"0.00"}}]
[]
[null,null,"UNIT","QUANTITY","RATE","AMOUNT"]
[null,"8. Assisting the Contractor and the work force in the establishment of grievance procedures and necessary recommenda-tion to the Contractor regarding the grievances and solution thereto."]
[null,"9. Attending to site meetings and project implementation meetings as required by the Contractor and prepare periodic reports as may be required by the Contractor from time to time."]
[null,"10. Attending to such other duties which are consistent with the functions of a CLO, as may be required by the Contractor from time to time."]
[null,"Tenderers are to price twice the rate of unskilled local labour rate against this item for any and all costs arising out of compliance with the foregoing and in the event of a Tenderer failing to price against this item or making inadequate financial provision against this item for compliance as aforesaid, then no claim for costs or additional cost incurred will be entertained by the Head: Works"]
[null,"F:............................. V:............................ T:............................ ","Item",1,null,{"$f":"D374*E374","v":{"v":0,"d":"0.00"}}]
[null," "]
[null,"E12.7 SKILLS DEVELOPMENT ON SITE"]
[null,"Contractor in conforming to the object of EPWP that its beneficiaries need to be capacitated with skills that will render them employable in the future. It is then the responsibility of the Contractor that mandatory life skills are provided to 100% of workforce on site and on the job training to labourers from whom the potential for further development has been identified. The latter is not mandatory to all as it covers technical skills."]
[null," "]
[null,"Contractor should also make provision for the possibility that there might be local youth that will need to be placed on the project with an intention to be provided support towards improving their level of competency and productivity."]
[null,"Contractor shall also provide all necessary on-the-job training to targeted labour to enable such labour to master and advance on techniques required to undertake the work in accordance with requirements of the contract in a manner that does not compromise workers health and safety."]
[null,"F:............................. V:............................ T:............................ ","Item",1,null,{"$f":"D381*E381","v":{"v":0,"d":"0.00"}}]
[]
[null,"E12.8 LABOUR ONLY Sub Contracting for local emerging enterprises"]
[null,"Tenderer’s are advised that this contract is subject to the Expanded Public Works Programme (EPWP) and the following criteria will apply:"]
[]
[null,"African Equity Ownership"]
[null,"a)     The Tenderer is to allow for  5% of the total value of works to be undertaken by a Priority Population Group.  This percentage excludes the costs of employing local unskilled labour. The allocation of this percentage from the Project, the screening of people, the selection of skills, will be for the Contractor to adjudicate."]
[null,"b)      The Priority Population Group consists of women, youth and disabled people."]
[null,"c)      The Contractor is to give first option for prospective PPG’s from the surrounding areas of the Project. Should there be insufficient suitable people fitting the criteria of PPG’s, the Contractor may hire people from further afield. This is to be done only after consultation with the Department of Works EPWP Co-ordinator and the Community Liaison Officer (CLO)."]
[null,"d)      A Mentor is to be employed by the Contractor, in consultation with the Department of Works for the purposes of quality control and liaison between the Contractor and the selected PPG’s on site. The mentor will be responsible for ensuring an acceptable level of quality workmanship and that such work carried out by the PPG's is executed within the time frames stipulated."]
[null," "]
[null,"In so far as possible, the Contractor is encouraged to expand the PPG’s skills, knowledge and performance levels."]
[]
[null,"F:............................. V:............................ T:............................ ","Item",1,null,{"$f":"D394*E394","v":{"v":0,"d":"0.00"}}]
[null,"Carried forward to collection",null,null,"R",{"$f":"SUM(F371:F394)","v":{"v":0,"d":"0.00"}}]
[]
[null,null,"UNIT","QUANTITY","RATE","AMOUNT"]
[null," "]
[null,"TENDERER’S TO NOTE CONDITIONS"]
[null,"a) The contract to be entered into between the Contractor and the PPG’s will be a LABOUR ONLY sub-contract."]
[null,"b) The Contractor will be responsible for ensuring that all materials for use by the PPG’s in the works are to be on site timeously. The Contractor shall liaise with The Mentor and PPG to determine the nature and extent of materials required and the lead time necessary."]
[null,"c) The Contractor shall be responsible for the overall programming of the Works and he is to allow for monitoring the PPG’s programme and progress."]
[null,"d) In conjunction with the Mentor, he is to allow for the supervision and mentoring (where necessary) of the PPG to ensure quality and adherence to standard building practice"]
[null,"e) The Contractor is to allow for extra storage facilities on site for the PPG’s tools and equipment."]
[null,"f) Basic tools shall be provided by the PPG’s and where these are not available; the Contractor will supply him with the necessary tools and equipment and deduct the costs thereof from the interim claims made by the PPG."]
[null,"g) Work requiring specialized tools will be provided free of chargeby the Contractor with the provision that these be returned upon completion of the Work."]
[]
[null,"CO-ORDINATION"]
[null,"The Contractor is to co-ordinate the work of all the PPG’s, Sub-Contractors and Nominated Sub- Contractors appointed direct by the Employer in such a manner and at all times as will suit the building programme and he is to allow adequate access, for the PPG’s, where required, to carry out their work in an efficient manner as no claims for extras in this connection will be entertained."]
[null,"F:............................. V:............................ T:............................ ","Item",1,null,{"$f":"D410*E410","v":{"v":0,"d":"0.00"}}]
[]
[null,"ATTENDANCE"]
[null,"The Contractor may allow for attendance upon the PPG’s concerned to execute the work. The Contractor is to allow the PPG’s the use of any scaffolding belonging to him while it remains so erected on the site."]
[null," "]
[null,"Where scaffolding is necessary for the use by any PPG and the Contractor has not erected any for his own use or has removed same after his own use, the Contractor shall supply sufficient scaffolding to the PPG to be erected and dismantled by the PPG and returned to the Contractor."]
[]
[null,"This attendance upon PPG’s to execute the work is to include for the scaffolding provisions as aforesaid and, in addition, is to include for co-operating to the fullest extent with all the parties, attending on off-loading materials, providing suitable storage for tools and materials used by the PPG’s, use of general facilities such as latrines, etc., supply and cost of power, lighting, water and the like."]
[null,"F:............................. V:............................ T:............................ ","Item",1,null,{"$f":"D418*E418","v":{"v":0,"d":"0.00"}}]
[null," "]
[null,"E12.9 EPWP CONTRACT FOR LABOUR"]
[null,"It is compulsory that shortly after the contractor and or sub contractor has appointed local labour, the employment contract should be signed by both parties, prior to commencement with works on site. The employment contract forms part of the Ministerial Determination or from the regional EPWP officials. Each contract will lapse at the end of each financial year therefore requiring the Contractor  to do a renewal of each contract should the need of employment still exist for that particular labourer."]
[null,"F:............................. V:............................ T:....................................."]
[null," "]
[null,"Carried forward to collection",null,null,"R",{"$f":"SUM(F401:F423)","v":{"v":0,"d":"0.00"}}]
[]
[null,null,"UNIT","QUANTITY","RATE","AMOUNT"]
[null,"E12.10 EPWP SCOPE of WORK"]
[null,"Note: "]
[null,"Contractors are to price any item on the Bill of Quantities having below, bearing in mind that they are regarded as  main sources of job creation, whether sub contracted or undertaken by the main contractor."]
[null," "]
[null,"Elements on the scope of work where application of Labour Intensive Construction methods as  will indicated with letters (LI) are regarded feasible are as follows;"]
[null,"i)       Excavating trenches for foundations and any other civil works with the  depth not more than 1.5 m "]
[null,"ii)      All masonry works which include concrete mixing on site; brickwork; plastering; screed works; jointing; etc."]
[null,"iii)     Painting, Plumbing, Ironmongery; roof cladding; glazing; tilling; carpentry; flooring; waterproofing; etc."]
[null,"F:............................. V:............................ T:............................ ","Item",1,null,{"$f":"D435*E435","v":{"v":0,"d":"0.00"}}]
[]
[null,"Note:"]
[null,"It is a general requirement of this contract that persons normally resident in the ward of the works (local labour) be given preference for employment on the contract. Provided, however, that should adequate and appropriate labour not be available within the ward, others may be employed subject to satisfactory proof being provided that every reasonable endeavour has been made to employ local labour (Local Sub-contractor(s); Skilled; Semi-Skilled and Unskilled). The contractor shall in consultation with the local community leaders with the purpose of negotiating with them regarding the utilization of local resources in the construction process. In this regard, the contractor shall furthermore give preference, wherever possible to the employment of single heads of households, women and youth as well as families declared as most indigent by War on Poverty/ Sukuma Sakhe program profiling process. The contractor should aim, in general, to maximise the involvement of the local community, however workers from other communities should not exceed 20% of all persons working on the project, where local employees possess skills at level of competency that meet contractors requirements. "]
[]
[null,"Payment for the labour-intensive component of the works "]
[null,"Payment for works identified in the Scope of Work as being labour-intensive shall only be made in accordance with the provisions of the Contract if the works are constructed strictly in accordance with the provisions of the Scope of Work. Any non-payment for such works shall not relieve the Contractor in any way from his obligations either in contract or in delict."]
[]
[null,"Linkage of payment for labour-intensive component of works to submission of project data"]
[]
[null,"The Contractor’s payment invoices shall be accompanied by labour information for the corresponding period in a format specified by the employer. If the contractor chooses to delay submitting payment invoices, labour returns shall still be submitted as per frequency and timeframe stipulated by the Employer. The contractor’s invoices shall not be paid until all pending labour information has been submitted."]
[]
[null,"Applicable labour laws"]
[]
[null,"The current Ministerial Determination (also downloadable at www.epwp.gov.za)  Expanded Public Works Programmes, issued in terms of the Basic Conditions of Employment Act of 1997 by the Minister of Labour in Government Notice , shall apply to works described in the scope of work as being labour-intensive and which are undertaken by unskilled or semi-skilled workers."]
[]
[null,"F:............................. V:............................ T:............................ ","Item",1,null,{"$f":"D451*E451","v":{"v":0,"d":"0.00"}}]
[null,"Carried forward to collection",null,null,"R",{"$f":"SUM(F429:F451)","v":{"v":0,"d":"0.00"}}]
[]
[null,null,"UNIT","QUANTITY","RATE","AMOUNT"]
[]
["E13","HIV/AIDS AWARENESS"]
[null,"Tenderers are to price against the following items for compliance with the SPECIFICATION FOR HIV/AIDS AWARENESS  bound into this document (The clauses referred to are those of the Specification for HIV/AIDS)"]
[]
["E13.1","Provide and maintain a condom dispenser in terms of Clause 5.1a) "]
[null,"F:............................. V:............................ T:............................ ","Item",1,null,{"$f":"D460*E460","v":{"v":0,"d":"0.00"}}]
["E13.2","Provide and maintain HIV/AIDS awareness posters  terms of Clause 5.1b)"]
[null,"F:............................. V:............................ T:............................ ","Item",1,null,{"$f":"D462*E462","v":{"v":0,"d":"0.00"}}]
["E13.3","HIV /Aids Awareness Programme on Site for not less than 90% of workers inclusive of all direct and indirect costs; "]
[]
[null,"Engage a qualified service provider as described in the scope of works to conduct an HIV Awareness Programme  in terms of Clause 5.2.1a) "]
[null,"F:............................. V:............................ T:............................ ","Item",1,null,{"$f":"D466*E466","v":{"v":0,"d":"0.00"}}]
[]
["E13.4","Arrange for workers to attend the HIV Awareness Programme in terms of Clause 5.2.1b) "]
[null,"F:............................. V:............................ T:............................ ","Item",1,null,{"$f":"D469*E469","v":{"v":0,"d":"0.00"}}]
["E13.5","Reporting"]
[]
[null,"Prepare and attach to claims for payment a brief report in terms of Clause 5.3 (see also HIV/STI Compliance Report included with this document)."]
[null,"F:............................. V:............................ T:............................ ","Item",1,null,{"$f":"D473*E473","v":{"v":0,"d":"0.00"}}]
[null,"Note: In the event that the contractor fails to satisfy the requirements of this specification, the employer (Head: Public Works) may apply any of the sanctions provided for in the contract. Sanctions may include the application of a financial penalty of .04% of the Contract Sum per calendar day of which the required reports has not been submitted."]
[]
["E14","OCCUPATIONAL HEALTH AND SAFETY ACT NO. 85 OF 1993"]
[null,"Tenderers are to allow for costs in providing  a project specific ' Construction Phase Safety, Health and Environmental Plan' in accordance with  \"Section 2 - Specification Data associated with SANS 1921-1:2004\" clause C4.18 in \"Part C3 - Scope of Work\" (Amount brought forward from \"Health and Safety Implementation Costing\" Bill of Quantities - refer to annexure 6)"]
[null,"F:............................. V:............................ T:............................ ","Item",1,null,{"$f":"D478*E478","v":{"v":0,"d":"0.00"}}]
[]
["E15","NOTICE BOARD, SITE OFFICE, ETC."]
[null,"Tenderers are to allow for the provision and removal of a project notice board and a site office in accordance with the Principal Agent's requirements."]
[null,"F:............................. V:............................ T:............................ ","Item",1,null,{"$f":"D482*E482","v":{"v":0,"d":"0.00"}}]
[]
["E16","IMPORTED MATERIALS AND EQUIPMENT"]
[null,"Where imported items are listed in the tender documents, the tenderer shall provide all information called for, failing which the price of any such item, material or equipment shall be excluded from currency fluctuations. (Refer to T2.14 - Schedule of Imported Materials and Equipment."]
[null,"F:............................. V:............................ T:............................ ","Item",1,null,{"$f":"D486*E486","v":{"v":0,"d":"0.00"}}]
[]
["E17","CONTRACT DOCUMENTS"]
[null,"The drawings issues with these Tender documents do not comprise the complete set but serves as a guide only for tendering purposes and for indicating the scope of works to enable the Tenderer to acquaint him with the nature and extent of the works and the manner in which they are to be executed."]
[null,"Should any part of the drawings not be clearly legible to the Tenderer he shall, before submitting his Tender, obtain clarification in writing from the principal agent. "]
[null,"F:............................. V:............................ T:............................ ","Item",1,null,{"$f":"D491*E491","v":{"v":0,"d":"0.00"}}]
[null,"Carried forward to collection",null,null,"R",{"$f":"SUM(F457:F491)","v":{"v":0,"d":"0.00"}}]
[]
[null,null,"UNIT","QUANTITY","RATE","AMOUNT"]
[]
["E18","GENERAL PREAMBLES"]
[null,"The Document Preambles will be the “ASAQS Model Preambles for Trades – 2008” and is obtainable from the various Regional Office’s of the Department of Public Works and shall be read in conjunction with the Bills of Quantities and be referred to for the full descriptions of work to be done and materials to be used."]
[null,"F:............................. V:............................ T:............................ ","Item",1,null,{"$f":"D498*E498","v":{"v":0,"d":"0.00"}}]
[]
["E19","TRADE NAMES"]
[null,"Wherever a Trade Name for any product has been described in the Bills of Quantities the Tenderer's attention is drawn to the fact that any other product of equal quality may be used subject to the written approval of the Principal Agent being obtained prior to the closing date for submission of Tenders."]
[null,"F:............................. V:............................ T:............................ ","Item",1,null,{"$f":"D502*E502","v":{"v":0,"d":"0.00"}}]
[]
[]
["E20","EXISTING PREMISES OCCUPIED"]
[null,"Refer to Scope of Works  Part C3 of this Tender Document for information on the occupation of existing buildings."]
[null,"F:............................. V:............................ T:............................ ","Item",1,null,{"$f":"D507*E507","v":{"v":0,"d":"0.00"}}]
[]
["E21","INACCURATE AND DEFECTIVE WORK EXECUTED UNDER PREVIOUS CONTRACT"]
[null,"The contractor shall, after taking possession of the site and before commencing the work, check all levels, liners, profiles and the like and satisfy himself as to the dimensional accuracy of all work executed under the previous contract which may affect his work."]
[null,"Should any inaccurate or defective work be found, the contractor shall immediately notify the principal agent in writing requesting his instructions with regard thereto and afford every facility to those rectifying such inaccurate or defective work."]
[null,"F:............................. V:............................ T:............................ ","Item",1,null,{"$f":"D512*E512","v":{"v":0,"d":"0.00"}}]
[]
["E22","VIEWING THE SITE IN SECURITY AREAS"]
[null,"If the site is situated in a security area and the Tenderer must arrange with the Authorities to obtain permission to enter the site for Tendering purposes."]
[null,"F:............................. V:............................ T:............................ ","Item",1,null,{"$f":"D516*E516","v":{"v":0,"d":"0.00"}}]
[]
["E23","COMMENCEMENT OF WORKS IN SECURITY AREAS"]
[null,"If the works falls within a security area, the contractor must arrange with the Authorities and give the necessary notices before commencement of the works. Should the contractor fail to make such arrangements, admission to the site may be refused and any additional costs will be for the contractor's account."]
[null,"F:............................. V:............................ T:............................ ","Item",1,null,{"$f":"D520*E520","v":{"v":0,"d":"0.00"}}]
[]
["E24","ENTRANCE PERMITS TO SECURITY AREAS"]
[null,"If the works fall within a security area, the contractor shall obtain entrance permits for his personnel and workmen entering the area and shall comply with all regulations and instructions which may be issued from time to time regarding the protection of persons and property under control of the Authority."]
[null,"F:............................. V:............................ T:............................ ","Item",1,null,{"$f":"D524*E524","v":{"v":0,"d":"0.00"}}]
[null,"Carried forward to collection",null,null,"R",{"$f":"SUM(F497:F524)","v":{"v":0,"d":"0.00"}}]
[]
[null,null,"UNIT","QUANTITY","RATE","AMOUNT"]
[]
["E25","SECURITY CHECK OF PERSONNEL"]
[null,"The principal agent may require the contractor to have his personnel and workmen, or a certain number of them, security classified."]
[null,"In the event of the principal agent requesting the removal of a person or persons from the works for security reasons, the contractor shall do so forthwith and shall thereafter ensure that such person or persons are denied access to the works and the site and/or to any document or information relating to the works."]
[null,"F:............................. V:............................ T:............................ ","Item",1,null,{"$f":"D532*E532","v":{"v":0,"d":"0.00"}}]
[]
["E26","PROHIBITION ON TAKING PHOTOGRAPHS"]
[null,"In terms of article 119 of the Defence Act, 44 of 1957, it is prohibited to sketch or to take photographs of any military site or installation or any building or civil works thereon or to be in possession of a camera or other apparatus used for taking photographs, except when authorised thereto by or on behalf of the Minister."]
[null,"The same prohibition is also applicable to all Correctional Institutions in terms of article 44.1(e) of the Correctional Services Act 8 of 1959."]
[null,"F:............................. V:............................ T:............................ ","Item",1,null,{"$f":"D537*E537","v":{"v":0,"d":"0.00"}}]
[]
["E27","Management of Water                                                                            Water for Construction purposes must be obtained from alternative water sources (i.e. supply other than water that is produced and distributed by a regulated water service authority from a licenced water treatment works for human consumption), e.g. dams, rivers, boreholes, springs, rainwater harvesting, recycled sewerage water, etc. The alternative water source shall not be of an inferior quality / standard than that required for construction purposes. The client reserves the right through his agents to test such supplies or request certificates confirming the grade and nature of the water supply. Relevant knowledge of the respective area will be an advantage. "]
[]
[]
["E28","DEVELOPMENT OF SKILLS THROUGH INFRASTRUCTURE CONTRACTS"]
[null,"The contractor shall achieve in the execution of this contract the Contract Participation Goals (CPG) relating to the engagement of targeted enterprises as established in the CIDB Standard for Indirect Targeting for Enterprise Development through Construction works Contracts Published in  Government Gazette No 48491)"]
[null,"F:............................. V:............................ T:............................ ","Item",1,null,{"$f":"D544*E544","v":{"v":0,"d":"0.00"}}]
[null,"Carried forward to collection",null,null,"R",{"$f":"SUM(F531:F544)","v":{"v":0,"d":"0.00"}}]
{"$rows_empty":30}
[null,"Carried forward to collection",null,null,"R"]
[]
[]
[]
["SECTION 1"]
[]
["SUMMARY – PRELIMINARY & GENERAL"]
["Collection",null,null,"Page No.","Amount"]
[]
[{"$nulls":3},1,"R",{"$f":"F37","v":{"v":0,"d":"0.00"}}]
[]
[{"$nulls":3},2,"R",{"$f":"F80","v":{"v":0,"d":"0.00"}}]
[]
[{"$nulls":3},3,"R",{"$f":"F122","v":{"v":0,"d":"0.00"}}]
[]
[{"$nulls":3},4,"R",{"$f":"F163","v":{"v":0,"d":"0.00"}}]
[]
[{"$nulls":3},5,"R",{"$f":"F203","v":{"v":0,"d":"0.00"}}]
[]
[{"$nulls":3},6,"R",{"$f":"F238","v":{"v":0,"d":"0.00"}}]
[]
[{"$nulls":3},7,"R",{"$f":"F269","v":{"v":0,"d":"0.00"}}]
[]
[{"$nulls":3},8,"R",{"$f":"F303","v":{"v":0,"d":"0.00"}}]
[]
[{"$nulls":3},9,"R",{"$f":"F336","v":{"v":0,"d":"0.00"}}]
[]
[{"$nulls":3},11,"R",{"$f":"F367","v":{"v":0,"d":"0.00"}}]
[]
[{"$nulls":3},12,"R",{"$f":"F395","v":{"v":0,"d":"0.00"}}]
[]
[{"$nulls":3},13,"R",{"$f":"F424","v":{"v":0,"d":"0.00"}}]
[]
[{"$nulls":3},14,"R",{"$f":"F452","v":{"v":0,"d":"0.00"}}]
[]
[{"$nulls":3},15,"R",{"$f":"F492","v":{"v":0,"d":"0.00"}}]
[]
[{"$nulls":3},16,"R",{"$f":"F525","v":{"v":0,"d":"0.00"}}]
[]
[{"$nulls":3},17,"R",{"$f":"F545","v":{"v":0,"d":"0.00"}}]
{"$rows_empty":13}
[{"$nulls":3}," "," "]
[]
[]
["Carried forward to Final Summary",{"$nulls":3},"R",{"$f":"SUM(F585:F629)","v":{"v":0,"d":"0.00"}}]
["Section No. 1"]
["Preliminary & General"]
["Summary"]

{"sheet":"Bill No. 2 to Bill No. 22","index":1,"n_rows":5264,"n_cols":7,"rows_kept":5264}
["Ngwelezane Hospital OPC - Completion Contract Revised"]
["BILL","ITEM NO","DESCRIPTION","UNIT","QUANTITY","RATE","AMOUNT"]
[]
[2,null,"BILL NO. 2","H1"]
[]
[2,null,"EARTHWORKS","H1"]
[]
[2,null,"(CPAP WORK GROUP NO. 104 UNLESS OTHERWISE STATED)","H2"]
[]
[2,null,"PREAMBLES","H2"]
[]
[2,null,"The descriptions given in the various items below are not necessarily full and complete and reference must be made to the \"Standard Preambles To All Trades (Rev. 3) DOH 2009\", \"Supplementary Preambles\" and \"Supplementary Specifications\" to this contract for the full requirements of each scheduled item"]
[]
[2,null,"Nature of ground","H3"]
[]
[2,null,"Tenderers must acquaint themselves with the nature of the material to be excavated and also refer to the attached geotechnical investigation report annexed to these Bills of Quantities."]
[]
[2,null,"Carting away of excavated material","H3"]
[]
[2,null,"Descriptions of carting away of excavated material shall be deemed to include loading excavated material onto trucks directly from the excavations or, alternatively, from stock piles situated on the building site"]
[]
[2,null,"Excavation for working space in rock","H3"]
[]
[2,null,"Notwithstanding clause 11 page 8 of the Standard System of Measuring Building Work, excavation for working space in rock will be measured in cubic metres to the extent executed and given as \"extra over\" bulk excavation or trench and hole excavation as the case may be"]
[]
[2,null,"Filling","H3"]
[]
[2,null,"Notwithstanding the reference to prescribed multiple handling in clause 1 page 6 of the Standard System of Measuring Building Work, prices for filling and backfilling shall include for all selection and any necessary multiple handling of material."]
[]
[2,null,"Testing","H3"]
[]
[2,null,"Prices for filling are to include for all necessary density tests in accordance with SABS 1200D"]
[]
[2,null,"EXCAVATION, FILLING, ETC. OTHER THAN BULK","H2"]
[]
[2,null,"Excavation in earth not exceeding 2m deep","H3"]
[]
[2,1,"Reduced levels under floors ","m3",218,null,{"$f":"E38*F38","v":{"v":0,"d":"0.00"}}]
[]
[2,2,"Ground beams (LI)","m3",171,null,{"$f":"E40*F40","v":{"v":0,"d":"0.00"}}]
[]
[2,3,"Pile caps (LI)","m3",54,null,{"$f":"E42*F42","v":{"v":0,"d":"0.00"}}]
[]
[2,4,"Holes (LI)","m3",36,null,{"$f":"E44*F44","v":{"v":0,"d":"0.00"}}]
[]
[2,null,"Back excavation of vertical sides of excavations in earth for working space including backfilling compacted to 98% Mod. AASHTO density","H3"]
[]
[2,5,"Not exceeding 500m deep for placing and removing formwork to walls 300mm away from excavated face (LI)","m2",802,null,{"$f":"E48*F48","v":{"v":0,"d":"0.00"}}]
[]
[2,6,"Exceeding 500mm and not exceeding 1500mm deep for placing and removing formwork to walls 300mm away from excavated face (LI)","m2",212,null,{"$f":"E50*F50","v":{"v":0,"d":"0.00"}}]
[]
[2,null,"Extra over trench and hole excavations in earth for excavation in","H3"]
[]
[2,7,"Intermediate material (LI)","m3",48,null,{"$f":"E54*F54","v":{"v":0,"d":"0.00"}}]
[]
[2,8,"Hard material","m3",24,null,{"$f":"E56*F56","v":{"v":0,"d":"0.00"}}]
[]
[2,null,"Extra over all excavations for carting away","H3"]
[]
[2,9,"Surplus material from excavations and/or stock piles on site, to a dumping site to be located by the contractor","m3",429,null,{"$f":"E60*F60","v":{"v":0,"d":"0.00"}}]
[]
[2,null,"Risk of collapse of excavations","H3"]
[]
[2,10,"Sides of trench and hole excavations not exceeding 1,5m deep","m2",1014,null,{"$f":"E64*F64","v":{"v":0,"d":"0.00"}}]
[]
[2,null,"Keeping excavations free of water","H3"]
[]
[2,11,"Keeping excavations free of all water other than subterranean water","Item",1,null,{"$f":"E68*F68","v":{"v":0,"d":"0.00"}}]
[]
[2,null,"Earth filling obtained from the excavations and/or prescribed stock piles on site, compacted to 95% Mod AASHTO density.","H3"]
[]
[2,12,"Backfilling to trenches, holes, etc. ","m3",50,null,{"$f":"E72*F72","v":{"v":0,"d":"0.00"}}]
[]
[2,null,"Earth filling supplied by the contractor, compacted to 95% Mod. AASHTO density","H3"]
[]
[2,13,"Under floors of G5 material in accordance with SABS 1200 DM and compacted to 95% Mod. AASHTO density (LI)","m3",218,null,{"$f":"E76*F76","v":{"v":0,"d":"0.00"}}]
[]
[2,null,"Compaction of surfaces","H3"]
[]
[2,14,"Compaction of ground surface under bases, etc. including grading, levelling and scarifying for a depth of 150mm, breaking down oversize material, adding suitable material where necessary and compacting to 98% Mod. AASHTO density","m2",15,null,{"$f":"E80*F80","v":{"v":0,"d":"0.00"}}]
[]
[2,15,"Compaction of ground surface under ground beams, etc. including grading, levelling and scarifying for a depth of 150mm, breaking down oversize material, adding suitable material where necessary and compacting to 98% Mod. AASHTO density","m2",259,null,{"$f":"E82*F82","v":{"v":0,"d":"0.00"}}]
[]
[2,16,"Compaction of ground surface under floors, etc. including grading, levelling and scarifying for a depth of 150mm, breaking down oversize material, adding suitable material where necessary and compacting to 98% Mod. AASHTO density","m2",1457,null,{"$f":"E84*F84","v":{"v":0,"d":"0.00"}}]
[]
[2,null,"Prescribed density tests on filling","H3"]
[]
[2,17,"Modified AASHTO Density tests","No",45,null,{"$f":"E88*F88","v":{"v":0,"d":"0.00"}}]
[]
[2,null,"SOIL POISONING","H2"]
[]
[2,null,"Approved brand of anti-termite soil poison applied by a registered Pest Control company and guaranteed against termite infestation for ten years","H3"]
[]
[2,18,"Under floors, etc. including forming and poisoning shallow furrows against foundation walls, etc. filling in furrows and ramming (LI)","m2",1457,null,{"$f":"E94*F94","v":{"v":0,"d":"0.00"}}]
[]
[2,19,"To bottoms and sides of trenches, etc. (LI)","m2",1288,null,{"$f":"E96*F96","v":{"v":0,"d":"0.00"}}]
[]
["Bill No. 2",null,"Carried to Final Summary",{"$nulls":3},{"$f":"SUM(G24:G97)","v":{"v":0,"d":"0.00"}}]
[]
[3,null,"BILL NO. 3","H1"]
[]
[3,null,"PILING","H1"]
[]
[3,null,"(CPAP WORK GROUP NO. 106 UNLESS OTHERWISE STATED)","H2"]
[]
[3,null,"PREAMBLES","H2"]
[]
[3,null,"The descriptions given in the various items below are not necessarily full and complete and reference must be made to the \"Standard Preambles To All Trades (Rev. 3) DOH 2009\", \"Supplementary Preambles\" and \"Supplementary Specifications\" to this contract for the full requirements of each scheduled item"]
[]
[3,null,"SUPPLEMENTARY PREAMBLES","H2"]
[]
[3,null,"The contractor shall take full responsibility for piling work and shall guarantee that piling work will support the calculated loads laid down by the engineer without injurious settlement.   The actual lengths of piles shall be determined on site by the contractor in consultation with the project engineer who will give all assistance possible.                                                                                                                                             This does not in any way relieve the contractor of his responsibility or obligation to provide the specified guarantee from his own independent piling engineer. The contractor shall indemnify the employer against any injury to or death of any person and all loss or damage to all structures resulting from the failure of any pile.                                                                                      In the event of the failure of a pile, the contractor shall make good such pile and all consequent damage at his own expense.                                                                                             The contractor shall insure by means of a policy, by the principal agent, against risks arising out of the responsibilities, guarantee and indemnities specified. A copy of the construction engineers professional indemnity cover must be attached to the bid submission The contractor shall pay all premiums in respect of this insurance policy. The guarantee shall be for the amount and effective period as stated hereafter in this bill.The contractor shall insure by means of a policy  by  the principal agent , against risks arising out of the responsibilities, guarantee and indemnities specified.    "]
[]
[3,null,"THE FOLLOWING IN PILING ","H2"]
[]
[3,null,"CONCRETE SUNDRIES","H2"]
[]
[3,null,"Stripping back heads of concrete piles for a height not exceeding 1000mm to expose reinforcement including trimming to defined levels and bending reinforcement as necessary for casting into pile caps","H3"]
[]
[3,1,"Piles of varying diameters ranging from 300mm diameter to 750mm diameter (Provisional)","No",55,null,{"$f":"E120*F120","v":{"v":0,"d":"0.00"}}]
[]
[3,null,"FORMWORK (CPAP Work Group No. 111)","H2"]
[]
[3,null,"Rough formwork to sides (Class 1)","H3"]
[]
[3,2,"Formwork to 350mm diameter pile within the trenches, etc. (Provisional) ","m",90,null,{"$f":"E126*F126","v":{"v":0,"d":"0.00"}}]
[]
["Bill No. 3",null,"Carried to Final Summary",{"$nulls":3},{"$f":"SUM(G104:G127)","v":{"v":0,"d":"0.00"}}]
[]
[4,null,"BILL NO. 4","H1"]
[]
[4,null,"CONCRETE, FORMWORK AND REINFORCEMENT","H1"]
[]
[4,null,"(CPAP WORK GROUP NO. 110 UNLESS OTHERWISE STATED)","H2"]
[]
[4,null,"PREAMBLES","H2"]
[]
[4,null,"The descriptions given in the various items below are not necessarily full and complete and reference must be made to the \"Standard Preambles To All Trades (Rev. 3) DOH 2009\", \"Supplementary Preambles\" and \"Supplementary Specifications\" to this contract for the full requirements of each scheduled item"]
[]
[4,null,"SUPPLEMENTARY PREAMBLES","H2"]
[]
[4,null,"Cost of tests","H3"]
[]
[4,null,"The costs of making, storing and testing of concrete test cubes as required under clause 7 \"Tests\" of SABS 1200 G shall include the cost of providing cube moulds necessary for the purpose, for testing costs and for submitting reports on the tests to the Engineer.  The testing shall be undertaken by an independent firm or institution nominated by the contractor to the approval of the Engineer. (Test cubes are measured separately)"]
[]
[4,null,"Formwork","H3"]
[]
[4,null,"Description of formwork shall be deemed to include use and waste only (except where described as \"left in\" or \"permanent\"), for fitting together in the required forms, wedging, plumbing and fixing to true angles and surfaces as necessary to ensure easy release during stripping and for reconditioning as necessary before re-use"]
[]
[4,null,"The vertical strutting shall be carried down to such construction as is sufficiently strong to afford the required support without damage and shall remain in position until the newly constructed work is able to support itself."]
[]
[4,null,"Formwork to sides of bases, pile caps, ground beams, etc. will only be measured where it is prescribed by the engineer for design reasons. Formwork necessitated by irregularity or collapse of excavated faces will not be measured and the cost thereof shall be deemed to be included in the allowance for taking the risk of collapse of the sides of the excavations, provision for which is made in \"Earthworks\""]
[]
[4,null,"Formwork to soffits of solid, etc. shall be deemed to be slabs not exceeding 250mm thick unless otherwise described and propping not exceeding 3,5m high unless otherwise stated. Formwork to walls and columns is not exceeding 3,5m high above bearing level unless otherwise stated."]
[]
[4,null,"Polished Concrete","H3"]
[]
[4,null,"It must be noted that where polished concrete finishes are required, the pouring and polishing of such concrete should be done by the same specialist contractor.  The Contractor is to allow for sufficient and adequate protection of all concrete surfaces which are to have a polished finish surface.  To achieve the optimum aesthetic finish to the floors, the casting and finishing of such concrete in connection with the laying process is of extreme importance, requiring a high degree of accuracy in placing. When grinding, the top surface of the concrete is exposed and any defects such as cracks, pores and 'gumboot marks' that originated during casting will become evident and will not be accepted and it will be required that such defects are corrected to the complete satisfaction of the Architect.  Place concrete to a FM2 tolerance using a bull float. Separation of aggregate from walking in the green concrete is to be prevented and avoided.  Saw cutting where required is to be done in squares to minimise the risk of shrinkage cracks and shall be done timeously within 12 hours of placing the concrete.  During the grinding and polishing process all depressions and imperfections must be corrected and repaired to the satisfaction of the Architect.  During grinding and polishing the required silicate densifiers and  stain resistant products shall be applied in accordance with the manufacturer's specifications.  A sample panel of the polished finish is to be provided for the Architect's approval prior to any work commencing."]
[]
[4,null,"UNREINFORCED CONCRETE CAST AGAINST EXCAVATED SURFACES","H2"]
[]
[4,null,"10MPa/19mm concrete","H3"]
[]
[4,1,"Surface blinding under footings and bases (LI)","m3",18,null,{"$f":"E164*F164","v":{"v":0,"d":"0.00"}}]
[]
[4,null,"REINFORCED CONCRETE CAST AGAINST ON/IN FORMWORK","H2"]
[]
[4,null,"25MPa/19mm concrete","H3"]
[]
[4,2,"Bases (LI)","m3",8,null,{"$f":"E170*F170","v":{"v":0,"d":"0.00"}}]
[]
[4,3,"Pile caps (LI)","m3",54,null,{"$f":"E172*F172","v":{"v":0,"d":"0.00"}}]
[]
[4,null,"30MPa/19mm concrete","H3"]
[]
[4,4,"Ground beams (LI)","m3",171,null,{"$f":"E176*F176","v":{"v":0,"d":"0.00"}}]
[]
[4,5,"Surface ground slab on waterproofing (LI)","m3",364,null,{"$f":"E178*F178","v":{"v":0,"d":"0.00"}}]
[]
[4,6,"Ring beams (LI)","m3",34,null,{"$f":"E180*F180","v":{"v":0,"d":"0.00"}}]
[]
[4,7,"Isolated beams (LI)","m3",8,null,{"$f":"E182*F182","v":{"v":0,"d":"0.00"}}]
[]
[4,8,"Inverted beams (LI)","m3",4,null,{"$f":"E184*F184","v":{"v":0,"d":"0.00"}}]
[]
[4,9,"Slabs (LI)","m3",48,null,{"$f":"E186*F186","v":{"v":0,"d":"0.00"}}]
[]
[4,10,"Concrete infill in cavity walls (LI)","m3",6,null,{"$f":"E188*F188","v":{"v":0,"d":"0.00"}}]
[]
[4,null,"40MPa/19mm concrete","H3"]
[]
[4,11,"Columns in foundations (Provisional) (LI)","m3",1,null,{"$f":"E192*F192","v":{"v":0,"d":"0.00"}}]
[]
[4,12,"Columns (LI)","m3",36,null,{"$f":"E194*F194","v":{"v":0,"d":"0.00"}}]
[]
[4,null,"TEST CUBES","H2"]
[]
[4,13,"Making and testing set of three 150 x 150 x 150mm concrete strength test cube (Provisional)","No",122,null,{"$f":"E198*F198","v":{"v":0,"d":"0.00"}}]
[]
[4,null,"CONCRETE SUNDRIES","H2"]
[]
[4,null,"Finishing top surfaces of concrete smooth with a wood float","H3"]
[]
[4,14,"Surface beds, slabs, etc. (LI)","m2",1667,null,{"$f":"E204*F204","v":{"v":0,"d":"0.00"}}]
[]
[4,null,"40Mpa Non-shrink grout","H3"]
[]
[4,15,"Bedding approximately 25mm thick under base plate including chamfered edges all round","m2",1,null,{"$f":"E208*F208","v":{"v":0,"d":"0.00"}}]
[]
[4,null,"Finishing top surfaces of concrete to a polished surface, including all preparatory work, the necessary grinding and sealing as required. Work to be carried out by specialist Sub-Contractor.","H3"]
[]
[4,16,"Surface beds, slabs, etc. (LI)","m2",529,null,{"$f":"E212*F212","v":{"v":0,"d":"0.00"}}]
[]
[4,null,"FORMWORK (CPAP Work Group No. 111)","H2"]
[]
[4,null,"ROUGH FORMWORK (DEGREE OF ACCURACY III)","H2"]
[]
[4,null,"Rough formwork to sides","H3"]
[]
[4,17,"Bases (Provisional) (LI)","m2",27,null,{"$f":"E220*F220","v":{"v":0,"d":"0.00"}}]
[]
[4,18,"Pile caps (Provisional) (LI)","m2",290,null,{"$f":"E222*F222","v":{"v":0,"d":"0.00"}}]
[]
[4,19,"Ground beams (LI)","m2",760,null,{"$f":"E224*F224","v":{"v":0,"d":"0.00"}}]
[]
[4,20,"Edges, risers, ends and reveals not exceeding 300mm high or wide (LI)","m",283,null,{"$f":"E226*F226","v":{"v":0,"d":"0.00"}}]
[]
[4,null,"SMOOTH FORMWORK (DEGREE OF ACCURACY II)","H2"]
[]
[4,null,"Smooth formwork to sides","H3"]
[]
[4,21,"Columns propped up not exceeding 3.5m high (LI)","m2",164,null,{"$f":"E232*F232","v":{"v":0,"d":"0.00"}}]
[]
[4,22,"Columns propped up exceeding 3.5m and not exceeding 5m high (LI)","m2",122,null,{"$f":"E234*F234","v":{"v":0,"d":"0.00"}}]
[]
[4,23,"350mm Diameter columns propped up exceeding 3.5m and not exceeding 5m high (LI)","No",4,null,{"$f":"E236*F236","v":{"v":0,"d":"0.00"}}]
[]
[4,24,"350mm Diameter columns propped up exceeding 5m and not exceeding 6.5m high (LI)","No",2,null,{"$f":"E238*F238","v":{"v":0,"d":"0.00"}}]
[]
[4,25,"Inverted beams (LI)","m2",27,null,{"$f":"E240*F240","v":{"v":0,"d":"0.00"}}]
[]
[4,26,"Edges, risers, ends and reveals not exceeding 300mm high or wide (LI)","m",110,null,{"$f":"E242*F242","v":{"v":0,"d":"0.00"}}]
[]
[4,null,"Smooth formwork to sides and soffits","H3"]
[]
[4,27,"Ring beams (LI)","m2",293,null,{"$f":"E246*F246","v":{"v":0,"d":"0.00"}}]
[]
[4,28,"Isolated beams (LI)","m2",86,null,{"$f":"E248*F248","v":{"v":0,"d":"0.00"}}]
[]
[4,null,"Smooth formwork to soffits","H3"]
[]
[4,29,"Slabs, propped up not exceeding 3.5m and not exceeding 250mm thick (LI)","m2",73,null,{"$f":"E252*F252","v":{"v":0,"d":"0.00"}}]
[]
[4,30,"Slabs not exceeding 3.5m high and exceeding 250mm and not exceeding 500mm thick (LI)","m2",137,null,{"$f":"E254*F254","v":{"v":0,"d":"0.00"}}]
[]
[4,null,"Boxing in smooth formwork to form","H3"]
[]
[4,31,"25 x 25mm High horizontal chamfer to sides along top edges (LI)","m",149,null,{"$f":"E258*F258","v":{"v":0,"d":"0.00"}}]
[]
[4,32,"25 x 25mm High horizontal chamfer to sides along bottom edges (LI)","m",764,null,{"$f":"E260*F260","v":{"v":0,"d":"0.00"}}]
[]
[4,33,"25 x 25mm High vertical chamfer to sides (LI)","m",805,null,{"$f":"E262*F262","v":{"v":0,"d":"0.00"}}]
[]
[4,null,"Boxing out smooth formwork to form","H3"]
[]
[4,34,"100 x 255mm High projecting along bottom edges","m",14,null,{"$f":"E266*F266","v":{"v":0,"d":"0.00"}}]
[]
[4,null,"MOVEMENT JOINTS, ETC.","H2"]
[]
[4,null,"Two sheets of tempered hardboard (smooth sides together) to form slip joint between abutting horizontal concrete and brickwork surfaces","H3"]
[]
[4,35,"Not exceeding 300mm wide (LI)","m",381,null,{"$f":"E272*F272","v":{"v":0,"d":"0.00"}}]
[]
[4,null,"Expansion joints with 12mm bitumen impregnated softboard between vertical concrete surfaces, including necessary formwork","H3"]
[]
[4,36,"12mm Joints not exceeding 300mm high (LI)","m",159,null,{"$f":"E276*F276","v":{"v":0,"d":"0.00"}}]
[]
[4,null,"Saw cut joints","H3"]
[]
[4,37,"3 x 30mm Saw cut joints in top of concrete","m",981,null,{"$f":"E280*F280","v":{"v":0,"d":"0.00"}}]
[]
[4,null,"REINFORCEMENT (PROVISIONAL) (CPAP WORK Group No. 114)","H2"]
[]
[4,null,"Mild steel reinforcement to structural concrete work","H3"]
[]
[4,38,"Bars of various diameters (LI)","t",66.2,null,{"$f":"E286*F286","v":{"v":0,"d":"0.00"}}]
[]
[4,null,"High tensile steel reinforcement to structural concrete work","H3"]
[]
[4,39,"Bars of various diameters (LI)","t",16.55,null,{"$f":"E290*F290","v":{"v":0,"d":"0.00"}}]
[]
[4,null,"Reinforcement ","H3"]
[]
[4,40,"Ref 193 fabric reinforcement in surface beds (LI)","m2",12,null,{"$f":"E294*F294","v":{"v":0,"d":"0.00"}}]
[]
["Bill No. 4",null,"Carried to Final Summary",{"$nulls":3},{"$f":"SUM(G161:G295)","v":{"v":0,"d":"0.00"}}]
[]
[5,null,"BILL NO. 5","H1"]
[]
[5,null,"MASONRY","H1"]
[]
[5,null,"(CPAP WORK GROUP NO. 116 UNLESS OTHERWISE STATED)","H2"]
[]
[5,null,"PREAMBLES","H2"]
[]
[5,null,"The descriptions given in the various items below are not necessarily full and complete and reference must be made to the \"Standard Preambles To All Trades (Rev. 3) DOH 2009\", \"Supplementary Preambles\" and \"Supplementary Specifications\" to this contract for the full requirements of each scheduled item"]
[]
[5,null,"SUPPLEMENTARY PREAMBLES","H2"]
[]
[5,null,"SAMPLES","H3"]
[]
[5,null,"Samples of masonry building units to be provided before construction commences"]
[]
[5,null,"SIZES IN DESCRIPTIONS","H3"]
[]
[5,null,"Where sizes in descriptions are given in brick units, \"one brick\" shall represent the length and \"half brick\" the width of a brick"]
[]
[5,null,"HOLLOW WALLS","H3"]
[]
[5,null,"Descriptions of hollow walls shall be deemed to include every fifth perpend of the bottom course of the external skin open as a weep hole"]
[]
[5,null,"BAGGED AND SEALED WALLS","H3"]
[]
[5,null,"User Note: The following preamble generally applies for works in hot and humid coastal areas.  Walls in two skins described as \"bagged and sealed\" shall be deemed to include having the outer face of the inner skin bagged with 1:6 cement and sand mixture and sealed with two coats bitumen emulsion waterproofing coating."]
[]
[5,null,"FACE BRICKS","H3"]
[]
[5,null,"Bricks shall be ordered timeously to obtain uniformity in size and colour. All face brick work is to be protected from other finishing trades during the construction period.All interior face brickwork is to receive two coats water based silicone sealant at completion including preparatory work as per manufacturer`s instructions."]
[]
[5,null,"POINTING","H3"]
[]
[5,null,"Descriptions of recessed pointing to fair face brickwork and face brickwork shall be deemed to include square recessed, hollow recessed, weathered pointing, etc."]
[]
[5,null,"FOUNDATIONS (PROVISIONAL)","H2"]
[]
[5,null,"Brickwork of NFX bricks in class II mortar","H3"]
[]
[5,1,"Half brick walls lining to concrete (LI)","m2",141,null,{"$f":"E338*F338","v":{"v":0,"d":"0.00"}}]
[]
[5,null,"SUPERSTRUCTURE","H2"]
[]
[5,null,"Brickwork of NFP bricks in class II mortar","H3"]
[]
[5,2,"Half brick walls (LI)","m2",198,null,{"$f":"E344*F344","v":{"v":0,"d":"0.00"}}]
[]
[5,3,"Half brick walls in beamfilling (LI)","m2",35,null,{"$f":"E346*F346","v":{"v":0,"d":"0.00"}}]
[]
[5,4,"One brick walls (LI)","m2",1967,null,{"$f":"E348*F348","v":{"v":0,"d":"0.00"}}]
[]
[5,5,"330mm Hollow walls formed of two half brick skins including wire ties and concrete infill (Concrete infill elsewhere measured) (LI)","m2",124,null,{"$f":"E350*F350","v":{"v":0,"d":"0.00"}}]
[]
[5,null,"BRICKWORK SUNDRIES","H2"]
[]
[5,null,"2.5mm Galvanised brickwork reinforcement","H3"]
[]
[5,6,"75mm Wide reinforcement built in horizontally (LI)","m",1466,null,{"$f":"E356*F356","v":{"v":0,"d":"0.00"}}]
[]
[5,7,"155mm Wide reinforcement built in horizontally (LI)","m",8683,null,{"$f":"E358*F358","v":{"v":0,"d":"0.00"}}]
[]
[5,null,"Bagging of 1:3 cement and sand mixture","H3"]
[]
[5,8,"On brick walls, piers, etc. (LI)","m2",1330,null,{"$f":"E362*F362","v":{"v":0,"d":"0.00"}}]
[]
[5,null,"Joint forming material in movement joints","H3"]
[]
[5,9,"12mm Bitumen impregnated fibre board built in vertically between brick skins (LI)","m2",92,null,{"$f":"E366*F366","v":{"v":0,"d":"0.00"}}]
[]
[5,null,"Prestressed fabricated concrete lintels including necessary temporary supports","H3"]
[]
[5,10,"75 x 110mm Lintels in lengths not exceeding 3m (LI)","m",397,null,{"$f":"E370*F370","v":{"v":0,"d":"0.00"}}]
[]
[5,11,"75 x 110mm Lintels in lengths exceeding 3m and not exceeding 4.5m (LI)","m",16,null,{"$f":"E372*F372","v":{"v":0,"d":"0.00"}}]
[]
[5,12,"75 x 110mm Lintels in lengths exceeding 4.5m and not exceeding 6m (LI)","m",20,null,{"$f":"E374*F374","v":{"v":0,"d":"0.00"}}]
[]
[5,null,"Galvanised hoop iron cramps, ties, etc. ","H3"]
[]
[5,13,"30 x 1,6mm Cramp 500mm long with one end shot pinned to concrete and other end built into brickwork (LI)","No",3153,null,{"$f":"E378*F378","v":{"v":0,"d":"0.00"}}]
[]
[5,null,"FACE BRICKWORK","H2"]
[]
[5,null,"\"Corobrick Firelight Satin FBX\" or other equally approved face bricks pointed with tinted recessed horizontal and vertical joints ","H3"]
[]
[5,14,"Extra over brickwork for face brickwork in foundations (LI)","m2",141,null,{"$f":"E384*F384","v":{"v":0,"d":"0.00"}}]
[]
[5,15,"Extra over brickwork for face brickwork (LI)","m2",793,null,{"$f":"E386*F386","v":{"v":0,"d":"0.00"}}]
[]
[5,16,"Extra over brickwork for brick-on-edge header course bands one course high (LI)","m",135,null,{"$f":"E388*F388","v":{"v":0,"d":"0.00"}}]
[]
[5,null,"CILLS","H2"]
[]
[5,null,"\"Nutec\" or other equally approved High density window cills in single lengths with width not exceeding 300mm with galvanised fixing lugs embedded in epoxy cement mortar.","H3"]
[]
[5,17,"15 x 150mm Wide bullnosed edge sill set flat and projecting internally (LI)","m",125,null,{"$f":"E394*F394","v":{"v":0,"d":"0.00"}}]
[]
[5,null,"'LG Green' or other equally approved precast concrete window cills","H3"]
[]
[5,18,"Precast cills size 165 x 110mm high (Code: C15) laid on 10mm mortar bed above wall (LI)","m",125,null,{"$f":"E398*F398","v":{"v":0,"d":"0.00"}}]
[]
[5,null,"GRANITE","H2"]
[]
[5,null,"\"Eezi Quartz Slate\" or other equally approved countertop with polished finish, bedded in cement mortar (fixed with adhesive, screed elsewhere measured)","H3"]
[]
[5,19,"600mm wide x 30mm thick rustenberg granite top and front edge on 50 x 50mm galvanised steel brackets bolted to wall ","m",29,null,{"$f":"E404*F404","v":{"v":0,"d":"0.00"}}]
[]
["Bill No. 5",null,"Carried to Final Summary",{"$nulls":3},{"$f":"SUM(G331:G405)","v":{"v":0,"d":"0.00"}}]
[]
[6,null,"BILL NO. 6","H1"]
[]
[6,null,"WATERPROOFING","H1"]
[]
[6,null,"(CPAP WORK GROUP NO. 120 UNLESS OTHERWISE STATED)","H2"]
[]
[6,null,"PREAMBLES","H2"]
[]
[6,null,"The descriptions given in the various items below are not necessarily full and complete and reference must be made to the \"Standard Preambles To All Trades (Rev. 3) DOH 2009\", \"Supplementary Preambles\" and \"Supplementary Specifications\" to this contract for the full requirements of each scheduled item"]
[]
[6,null,"SUPPLEMENTARY PREAMBLES","H2"]
[]
[6,null,"Waterproofing to SABS 021","H3"]
[]
[6,null,"Waterproofing  shall be laid under a 10 year written guarantee for site workmanship and water tightness and to be laid to even falls to outlets, etc. Descriptions of sheet or membrane waterproofing shall be deemed to include for additional labour to turn-ups and turn downs"]
[]
[6,null,"DAMP-PROOFING OF WALLS AND FLOORS","H2"]
[]
[6,null,"One layer of 375 micron \"Consol Plastics Brikgrip DPC\" or other equally approved embossed damp proof course","H3"]
[]
[6,1,"In walls (LI)","m2",122,null,{"$f":"E428*F428","v":{"v":0,"d":"0.00"}}]
[]
[6,2,"Under cills (LI)","m2",25,null,{"$f":"E430*F430","v":{"v":0,"d":"0.00"}}]
[]
[6,null,"One layer of 375 micron \"Consol Plastics\" or other equally approved waterproof sheeting sealed at laps","H3"]
[]
[6,3,"Under surface beds, sides of ground beams, etc. (LI)","m2",2383,null,{"$f":"E434*F434","v":{"v":0,"d":"0.00"}}]
[]
[6,null,"Two coats \"Brixeal\" or other equally approved emulsion bitumen emulsion waterproof coating","H3"]
[]
[6,4,"On bagged brick walls (LI)","m2",1330,null,{"$f":"E438*F438","v":{"v":0,"d":"0.00"}}]
[]
[6,null,"Waterproofing slurry, with and including membrane applied as per manufacturer`s instructions","H3"]
[]
[6,5,"On shower floors","m2",8,null,{"$f":"E442*F442","v":{"v":0,"d":"0.00"}}]
[]
[6,6,"On shower walls","m2",46,null,{"$f":"E444*F444","v":{"v":0,"d":"0.00"}}]
[]
[6,null,"WATERPROOFING TO SLABS","H2"]
[]
[6,null,"One Layer SP4 waterproofing membrane sealed to solvent based bitumen primed surface by means of torch fusion with minimum 100mm side laps and minimum 150mm end laps","H3"]
[]
[6,7,"On slabs including turn-ups and turn-down, etc. ","m2",187,null,{"$f":"E450*F450","v":{"v":0,"d":"0.00"}}]
[]
[6,8,"On turn-up, turn-down not exceeding 300mm girth","m2",11,null,{"$f":"E452*F452","v":{"v":0,"d":"0.00"}}]
[]
[6,9,"Counter flashing","m",64,null,{"$f":"E454*F454","v":{"v":0,"d":"0.00"}}]
[]
[6,null,"\"Blackseal Silvercoat ZL4082\" waterproofing coating, applied as per manufacturer`s instructions","H3"]
[]
[6,10,"On slabs including turn-ups and turn-down, etc. ","m2",198,null,{"$f":"E458*F458","v":{"v":0,"d":"0.00"}}]
[]
[6,null,"JOINT SEALANTS, ETC.","H2"]
[]
[6,null," silicone acrylic sealer","H3"]
[]
[6,11,"Around window and window frame at junction with brickwork, plaster or concrete","m",440,null,{"$f":"E464*F464","v":{"v":0,"d":"0.00"}}]
[]
[6,null,"Two-part grey polysulphide sealing compound including backing cord, bond breaker, primer, etc.","H3"]
[]
[6,12,"3 x 10mm In expansion joints in saw cut joints, etc.","m",981,null,{"$f":"E468*F468","v":{"v":0,"d":"0.00"}}]
[]
[6,13,"12 x 12mm In vertical expansion joints including raking out expansion joint filler as necessary","m",497,null,{"$f":"E470*F470","v":{"v":0,"d":"0.00"}}]
[]
[6,14,"12 x 12mm In horizontal expansion joints including raking out expansion joint filler as necessary","m",381,null,{"$f":"E472*F472","v":{"v":0,"d":"0.00"}}]
[]
[6,null,"Silicone sealing compound including backing cord, bond breaker, primer, etc.","H3"]
[]
[6,15,"To bathroom fittings","m",44,null,{"$f":"E476*F476","v":{"v":0,"d":"0.00"}}]
[]
["Bill No. 6",null,"Carried to Final Summary",{"$nulls":3},{"$f":"SUM(G425:G477)","v":{"v":0,"d":"0.00"}}]
[]
[7,null,"BILL NO. 7","H1"]
[]
[7,null,"ROOF COVERINGS, ETC.","H1"]
[]
[7,null,"(CPAP WORK GROUP NO. 124 UNLESS OTHERWISE STATED)","H2"]
[]
[7,null,"PREAMBLES","H2"]
[]
[7,null,"The descriptions given in the various items below are not necessarily full and complete and reference must be made to the \"Standard Preambles To All Trades (Rev. 3) DOH 2009\", \"Supplementary Preambles\" and \"Supplementary Specifications\" to this contract for the full requirements of each scheduled item"]
[]
[7,null,"SUPPLEMENTARY PREAMBLES","H2"]
[]
[7,null,"SHEETINGRoof pitch to be 15 degrees & 3 degrees. 0,8mm aluminium roof sheeting with pre-painted G4 colortech finish on both sides complete with fixings, ridge flashing and mastic sealant to all side laps supplied by roof manufacture. determine direction of wind before laying sheets. sheets to project a minimum of 50mm beyond purlins at eaves. sheets to be fixed to 76 x 50mm timber purlins at max. of 1250mm centers on prefabricated trusses by engineer at max. of 1250mm centers to be strapped to 114 x 38mm wall plate with 30 x 1.6 x 1600mm long galvanised hoop iron straps built into coursing. Sisalation \"RF405\" underlay over trusses and under purlins on straining wires. prefabricated cleated roof trusses 114 x 38mm rafters and ties, 114 x 38mm intermediate members as per details hurricane clips be used externally to secure purlins to trusses at eaves overhangs. double wound 2.5mm diameter galvanised wire to secure purlins internally. all exposed roof timber to be painted with 2 coats of ABE provonite, before fixing of roof sheets, fascias and barge boardsSAFETYThe contractor shall exercise special care when handling long length sheeting, particularly in windy conditions. Should work be interrupted for any reason, all loose sheeting and incomplete sections must be adequately secured against possible movement by wind and gravity.INSTALLATIONEvery precaution shall be taken to prevent damage to roof sheets during all stages of construction. Duck boards should be used when necessary to protect the sheeting from damage. Sheeting which has become deformed or damaged in any way, should be replaced. Care shall be taken to ensure that no sheeting or flashing will be cut with abrasive disc on roof surfaces in order to prevent steel particles from penetrating coated surfaces.HANDLING AND STORAGEThe contractor shall ensure that all materials used on site for roofing/cladding, be transported, handled and stored in accordance with the manufacturer’s recommendations. Material damaged shall be rejected and replaced with undamaged material at the contractor's expense. Repair of damaged material will not generally be permitted. Rates are to include for preventing damage and protecting sheets through all stages of construction.INSPECTION PRIOR TO INSTALLATIONBefore commencing installation, the contractor shall verify that the following items have been checked and accepted:a.The entire structure or the portion thereof to be sheeted has been correctly aligned, levelled and grouted. b. Purlins and girths are at the correct spacing and are within the specified tolerances. c. The corners of the roof are square and the wall framework is perpendicular or as specified. d. No protrusions such as bolt heads, splice plates, cleats, etc. appear on the face of the framework. e."]
[]
[7,null,"PROFILED METAL SHEETING AND ACCESSORIES","H2"]
[]
[7,null,"\"Global Kliptite\" or other equally approved double interlocking concealed fix, 0.8mm spelter galvanised sheet steel and accessories, fixed to timber purlins","H3"]
[]
[7,1,"Roof covering with pitches not exceeding 25 degrees","m2",1765,null,{"$f":"E498*F498","v":{"v":0,"d":"0.00"}}]
[]
[7,null,"Sundries","H3"]
[]
[7,2,"Valley flashings 550mm girth","m",84,null,{"$f":"E502*F502","v":{"v":0,"d":"0.00"}}]
[]
[7,3,"Head wall flashings 550mm girth","m",56,null,{"$f":"E504*F504","v":{"v":0,"d":"0.00"}}]
[]
[7,4,"Counter flashing 700mm girth","m",56,null,{"$f":"E506*F506","v":{"v":0,"d":"0.00"}}]
[]
[7,5,"Side flashing 550mm girth","m",198,null,{"$f":"E508*F508","v":{"v":0,"d":"0.00"}}]
[]
[7,null,"0,6mm Craft Lock or other approved Zincalume sheet with colour to one side:","H3"]
[]
[7,6,"Gutter Flashing","m",84,null,{"$f":"E512*F512","v":{"v":0,"d":"0.00"}}]
[]
[7,null,"ROOF AND WALL INSULATION","H2"]
[]
[7,null,"\"Isoover\" or other equally approved 50mm thick Factorylite non-combustible flexible lightweight industrial roof insulation with metallized foil facing, nominal density 12kg/m3, fixed to underside of roof sheeting and purlins (Roof sheeting and purlins elsewhere measured). All in accordance with the Manufacturer`s recommendations","H3"]
[]
[7,7,"Lightweight industrial roof insulation laid over purlins and fixed concurrent with roof covering, including holes through boards, etc. as per manufacturer's instruction. ","m2",1655,null,{"$f":"E518*F518","v":{"v":0,"d":"0.00"}}]
[]
["Bill No. 7",null,"Carried to Final Summary",{"$nulls":3},{"$f":"SUM(G494:G519)","v":{"v":0,"d":"0.00"}}]
[]
[8,null,"BILL NO. 8","H1"]
[]
[8,null,"CARPENTRY AND JOINERY","H1"]
[]
[8,null,"(CPAP WORK GROUP NO. 126 UNLESS OTHERWISE STATED)","H2"]
[]
[8,null,"PREAMBLES","H2"]
[]
[8,null,"The descriptions given in the various items below are not necessarily full and complete and reference must be made to the \"Standard Preambles To All Trades (Rev. 3) DOH 2009\", \"Supplementary Preambles\" and \"Supplementary Specifications\" to this contract for the full requirements of each scheduled item"]
[]
[8,null,"SUPPLEMENTARY PREAMBLES","H2"]
[]
[8,null,"Dimensions in descriptions of trusses are nominal and actual measurements are to be obtained from the Architect and/or taken on site before design or fabrication commences"]
[]
[8,null,"PRE-TREATMENT OF TIMBER","H3"]
[]
[8,null,"This service falls within the areas defined in the National Building Regulations for treatment of timber against insect infestation / insect pest affecting softwood fixed permanently in all buildings.  The regulations require that the timber be treated in terms of SABS 05 and to comply with SABS 457, 753, 754 or 1288 as relevant. Tenderer`s are to make allowance in there rates."]
[]
[8,null,"CUPBOARDS TO KITCHENS, BEDROOMS, ETC.","H2"]
[]
[8,null,"Kitchen fittings shall be constructed of 16mm melamine faced chipboard V 313 boards bottoms, sides, divisions and shelves, waterproof plinths and spray painted backs. Tops are to be 32mm composition board post formed on leading edge with 1.2mm thick \"Astral Graphite Crystal\" Formica.  Doors shall be hung on rustproof concealed self-closing hinges and shall be fitted with magnetic catches and anodised aluminium bow handles.  Drawers to be hung to epoxy coated mild steel runners and guiders.  Prices shall include for the assembling and fixing complete in position, including all necessary cleats, cover fillets, drilling, screwing and nailing, etc. and painting of exposed fillets to match.  "]
[]
[8,null,"Prefabricated factory finished kitchen cupboards","H3"]
[]
[8,1,"Kitchen sink unit cupboard 3600 x 600mm deep x 900mm high with four equal leaved doors and two equal cupboard and drawer units all in accordance with the Architects Drawing annexed to these Bills of Quantities","No",1,null,{"$f":"E546*F546","v":{"v":0,"d":"0.00"}}]
[]
[8,null,"Prefabricated factory finished reception desk and counter","H3"]
[]
[8,2,"Reception L-shaped desk overall size 5170 x 910 x 750mm high formed of laminated 22mm thick laminated Saligna. The outer component of the Shape with continuous lengths of 5170 x 750mm high including four drawers formed of 32mm thick laminated saligna top 910mm wide. Tenderers are referred to Architects drawings annexed to these Bills of Quantities.","No",1,null,{"$f":"E550*F550","v":{"v":0,"d":"0.00"}}]
[]
[8,null,"THE FOLLOWING IN SHELVING","H2"]
[]
[8,null,"Laminated pine fixed to metal brackets (Metal brackets elsewhere measured)","H3"]
[]
[8,3,"22 x 380mm Shelving fixed to brackets (Brackets elsewhere measured), all as detailed on Architects drawing No. 070638 DOH - A - 5050 - 0 annexured to these Bills of Quantities Drawing number  for the full description of the shelving.","m",75,null,{"$f":"E556*F556","v":{"v":0,"d":"0.00"}}]
[]
[8,null,"TIMBER BENCHES","H2"]
[]
[8,null,"The following in saligna timber benches fixed to steel angle supports (Steel angle supports elsewhere measured)","H3"]
[]
[8,4,"70 x 22mm Thick laminated salgna seat screwed to steel frame (steel frame elsewhere measured)","m",61,null,{"$f":"E562*F562","v":{"v":0,"d":"0.00"}}]
[]
[8,null,"SKIRTINGS","H2"]
[]
[8,null,"Wrot meranti","H3"]
[]
[8,5,"22 x 75mm Meranti skirting with 19mm meranti quarter round nailed to skirting rounded and ploughed at back skirting board plugged and screwed to walls with and including 19mm quadrant bead planted on. All nails to be punched, filled and neatly sand down.","m",351,null,{"$f":"E568*F568","v":{"v":0,"d":"0.00"}}]
[]
[8,null,"EAVES, VERGES ETC","H2"]
[]
[8,null,"\"Everite Nutec\" or other equally approved medium density pressed fibre-cement","H3"]
[]
[8,6,"15 x 255mm Fascias, including galvanised steel H-profile joiners","m",268,null,{"$f":"E574*F574","v":{"v":0,"d":"0.00"}}]
[]
[8,7,"80 x 275mm Angle section barge board, including galvanised steel H-profile joiners","m",89,null,{"$f":"E576*F576","v":{"v":0,"d":"0.00"}}]
[]
[8,null,"FLUSH DOORS","H2"]
[]
[8,null,"Approved solid flush doors with Sapele veneer covering on both sides and hard wood edging strips on vertical sides.","H3"]
[]
[8,8,"44mm Single door 810 x 2032mm high hung to steel frame with viewing panel. (D14) Tenderers are referred to Architects drawings annexed to these Bills of Quantities Drawing number 070638 DOH-A-8050-0 for the full description of the door.","No",2,null,{"$f":"E582*F582","v":{"v":0,"d":"0.00"}}]
[]
[8,9,"44mm Single door 1000 x 2032mm high hung to steel frame. (D4) Tenderers are referred to Architects drawings annexed to these Bills of Quantities Drawing number 070638 DOH-A-8050-0 for the full description of the door.","No",6,null,{"$f":"E584*F584","v":{"v":0,"d":"0.00"}}]
[]
[8,10,"44mm Single door 1000 x 2032mm high hung to steel frame. (D5) Tenderers are referred to Architects drawings annexed to these Bills of Quantities Drawing number 070638 DOH-A-8050-0 for the full description of the door.","No",9,null,{"$f":"E586*F586","v":{"v":0,"d":"0.00"}}]
[]
[8,11,"44mm Double door 1613 x 2032mm high hung to steel frame. (D3) Tenderers are referred to Architects drawings annexed to these Bills of Quantities Drawing number 070638 DOH-A-8050-0 for the full description of the door.","No",3,null,{"$f":"E588*F588","v":{"v":0,"d":"0.00"}}]
[]
[8,12,"44mm Double door 1613 x 2032mm high hung to steel frame. (D13) Tenderers are referred to Architects drawings annexed to these Bills of Quantities Drawing number 070638 DOH-A-8050-0 for the full description of the door.","No",1,null,{"$f":"E590*F590","v":{"v":0,"d":"0.00"}}]
[]
[8,13,"44mm Double door 1613 x 2032mm high hung to steel frame with viewing panel. (D15) Tenderers are referred to Architects drawings annexed to these Bills of Quantities Drawing number 070638 DOH-A-8050-0 for the full description of the door.","No",2,null,{"$f":"E592*F592","v":{"v":0,"d":"0.00"}}]
[]
[8,14,"44mm Double door 1613 x 2032mm high hung to aluminium frame. (D16) Tenderers are referred to Architects drawings annexed to these Bills of Quantities Drawing number 070638 DOH-A-8050-0 for the full description of the door.","No",3,null,{"$f":"E594*F594","v":{"v":0,"d":"0.00"}}]
[]
[8,15,"44mm Double door 1613 x 2550mm high hung to aluminium frame. (D2) Tenderers are referred to Architects drawings annexed to these Bills of Quantities Drawing number 070638 DOH-A-8050-0 for the full description of the door.","No",4,null,{"$f":"E596*F596","v":{"v":0,"d":"0.00"}}]
[]
[8,16,"44mm Double door 1613 x 2550mm high hung to aluminium frame. (D20) Tenderers are referred to Architects drawings annexed to these Bills of Quantities Drawing number 070638 DOH-A-8051-0 for the full description of the door.","No",1,null,{"$f":"E598*F598","v":{"v":0,"d":"0.00"}}]
[]
[8,null,"Approved semi-solid flush doors with Sapele veneer covering on both sides and hard wood edging strips on vertical sides.","H3"]
[]
[8,17,"44mm Single door 813 x 2032mm high hung to steel frame. (D18) Tenderers are referred to Architects drawings annexed to these Bills of Quantities Drawing number 070638 DOH-A-8051-0 for the full description of the door.","No",1,null,{"$f":"E602*F602","v":{"v":0,"d":"0.00"}}]
[]
[8,18,"44mm Single door 813 x 2032mm high hung to steel frame. (D19) Tenderers are referred to Architects drawings annexed to these Bills of Quantities Drawing number 070638 DOH-A-8051-0 for the full description of the door.","No",2,null,{"$f":"E604*F604","v":{"v":0,"d":"0.00"}}]
[]
[8,null,"'Pelican' or other equally approved Wrought meranti doors hung to steel frames","H3"]
[]
[8,19,"44mm 'Jumbo' solid core flush single door 813 x 2032mm high with veneer suitable for painting on both sides and hardwood edge strips all round (D12). Tenderers are referred to Architects drawings annexed to these Bills of Quantities Drawing number 070638 DOH-A-8050-0 for the full description of the door.","No",4,null,{"$f":"E608*F608","v":{"v":0,"d":"0.00"}}]
[]
[8,null,"FIRE DOORS","H2"]
[]
[8,null,"\"Bitcon\" or other equally approved 2hr rated fire door hung to steel frames including hinges, locks, etc.","H3"]
[]
[8,20,"Class B double door 1613 x 2032mm high hung to steel frames with galvanised mild steel face on both sides (D7). Tenderers are referred to Architect`s drawings annexed to these Bills of Quantities Drawing number 070638 DOH-A-8050-0 for the full description of the door.","No",4,null,{"$f":"E614*F614","v":{"v":0,"d":"0.00"}}]
[]
[8,21,"Class B double door 1810 x 2032mm high hung to steel frames with galvanised mild steel face on both sides (D9). Tenderers are referred to Architect`s drawings annexed to these Bills of Quantities Drawing number 070638 DOH-A-8050-0 for the full description of the door.","No",1,null,{"$f":"E616*F616","v":{"v":0,"d":"0.00"}}]
[]
[8,null,"SPECIALISED HOSPITAL CABINETS","H2"]
[]
[8,null,"Fire-proof cabinet with swinging door, with a fire-resistance rating of 90 minutes for storing flammable liquid and solid hazardous materials in working rooms in accordance with applicable regulations. ","H3"]
[]
[8,22,"1970mm x 200 x 650mm Chemical/Safety storage cabinet with extraction system of storage cabinet to be linked to laminating Room, manufactured with plastic coated refined steel sheets. Doors to remain open when opened but should close automatically when on fire and must have solid handles, lockable with a profile half cylinder lock. The inner surfaces must have a highly chemically resistant, impact resistant and scratch resistant plastic coating. Cabinet to include a 30L bottom drip pan and perforated plate insert for bottom drip pan. Shelves as storage levels,height adjustable, spacing 32 mm and load capacity 75 kg – (3 pcs)  ","No",4,null,{"$f":"E622*F622","v":{"v":0,"d":"0.00"}}]
[]
["Bill No. 8",null,"Carried to Final Summary",{"$nulls":3},{"$f":"SUM(G543:G623)","v":{"v":0,"d":"0.00"}}]
[]
[9,null,"BILL NO. 9","H1"]
[]
[9,null,"CEILINGS, PARTITIONS & ACCESS FLOORING","H1"]
[]
[9,null,"(CPAP WORK GROUP NO. 129 UNLESS OTHERWISE STATED)","H2"]
[]
[9,null,"PREAMBLES","H2"]
[]
[9,null,"The descriptions given in the various items below are not necessarily full and complete and reference must be made to the \"Standard Preambles To All Trades (Rev. 3) DOH 2009\", \"Supplementary Preambles\" and \"Supplementary Specifications\" to this contract for the full requirements of each scheduled item"]
[]
[9,null,"SUPPLEMENTARY PREAMBLES","H2"]
[]
[9,null,"Openings in ceilings for light fittings, etc. are to include for additional suspension as required"]
[]
[9,null,"Fixings","H3"]
[]
[9,null,"Items described as \"nailed\" shall be deemed to be fixed with hardened steel nails or shot pinned to blockwork or concrete."]
[]
[9,null,"Items described as \"plugged\" shall be deemed to include screwing to fibre, plastic or metal plugs at not exceeding 500mm centres, and where described as \"bolted\", the bolts have been given elsewhere"]
[]
[9,null,"Ceilings","H3"]
[]
[9,null,"Unless otherwise described ceilings shall be deemed to be horizontal"]
[]
[9,null,"Bulkheads","H3"]
[]
[9,null,"Bulkheads are defined as those portions of ceilings which are stepped down from the general ceiling level in a particular room or area and which generally occur along the perimeter. Their purpose is either to conceal services or to create architectural features.  Bulkheads have only been described as such where they conform to the above definition and where the horizontal or vertical dimensions do not exceed 900mm such portions of ceilings have been included in the appropriate general items of ceilings.  Unless otherwise described bulkheads shall be deemed to be horizontal along the length.  Circular bulkheads shall be given separately."]
[]
[9,null,"Steel components","H3"]
[]
[9,null,"All steel components for ceilings, partitions, etc. are to be galvanised in accordance with SANS 121"]
[]
[9,null,"SUSPENDED CEILINGS","H2"]
[]
[9,null,"\"OWA\" or other approved 12.5mm Vinyl Faced Gypsum Ceiling Panels, face covered with white embossed vinyl, size 1200 x 600mm, laid on fire rated Clip system S3 exposed demountable suspension system including galvanised main tees, cross tees, etc., all suspended with galvanised hangers at centres not exceeding 1200mm.","H3"]
[]
[9,1,"Ceilings suspended not exceeding 1m below structural steel","m2",419,null,{"$f":"E662*F662","v":{"v":0,"d":"0.00"}}]
[]
[9,null,"\"OWA\" or other approved 12.5mm Absorbable mineral wool ceiling tiles, face covered with white embossed vinyl, size 1200 x 600mm, laid on fire rated Clip system S3 exposed demountable suspension system including galvanised main tees, cross tees, etc., all suspended with galvanised hangers at centres not exceeding 1200mm.","H3"]
[]
[9,2,"Ceilings suspended not exceeding 1m below structural steel","m2",470,null,{"$f":"E666*F666","v":{"v":0,"d":"0.00"}}]
[]
[9,null,"6mm Thick \"Everite\" or other equally approved  pressed fibre cement ceiling boards installed on 3600mm Jumbo main tees at 1200mm centres in one direction and 1200mm Jumbo cross tees at 400mm centres perpendicular to main tees. Main tees to be suspended at 1200mm centres by means of 25 x 25 x 0.6mm galvanised steel angle, hangers fixed to bulb of main tee with wafer tek screws/steel pop rivets and to structural steel trusses with 6 x 30mm express nails and washers. Fit 6mm fibre cement ceiling boards to the underside of grid system with tapered edge of board facing down with 25mm drywall screws at 150mm centres. Apply 50mm JUMBO tape to all joints and finish the entire ceiling with 3-5mm JUMBO Skimming Plaster. Installed all in accordance to manufacturer's instructions ","H3"]
[]
[9,3,"Ceilings suspended not exceeding 1m below structural steel","m2",13,null,{"$f":"E670*F670","v":{"v":0,"d":"0.00"}}]
[]
[9,null,"Cornices, etc. to suspended ceilings","H3"]
[]
[9,4,"\"OWAconstruct\" or other approved shadowline W trim plugged and screwed at 200mm centres.","m",703,null,{"$f":"E674*F674","v":{"v":0,"d":"0.00"}}]
[]
[9,null,"''Lafarge'' or other approved Coved cornices fixed with galvanised nails at 400mm centres to wall and ceiling surface","H3"]
[]
[9,5,"75mm Coved cornices","m",24,null,{"$f":"E678*F678","v":{"v":0,"d":"0.00"}}]
[]
[9,null,"INSULATION ","H2"]
[]
[9,null,"75mm thick \"Lambda Board\" or equivalent and approved laminated polyisocynurate core insulation board, with a minimum core density of 34kg/m3. Upper facing to be natural matt and lower exposed facing to be white matt, fixed in accordance with the manufacturers recommendations","H3"]
[]
[9,6,"Insulation supplied in widths of 1220mm to be fixed above 175 x 50mm lipped channel steel purlins in conjunction with roof covering ","m2",341,null,{"$f":"E684*F684","v":{"v":0,"d":"0.00"}}]
[]
[9,null,"Sisalation 430 aluminium foil wrap insulation","H3"]
[]
[9,7,"100mm Thick, nominal density 12kg/m³, non-combustible roof insulation with reinforced foil facing, fixed under roof sheeting over 75x50mm purlins and galvanized wire at 300mm cc. Overlapping foil edges to be stapled together as per manufacturers recommendation","m2",843,null,{"$f":"E688*F688","v":{"v":0,"d":"0.00"}}]
[]
[9,null,"FIXED PARTITIONS","H2"]
[]
[9,null,"\"Gypwall Classic 51/F30S39\" or other equally approved drywall partitioning consisting of  1 layer Gyproc Rhinoboard 12.5mm fixed to both sides of the framework using Gyproc Rhinoboard sharp point screws 3.5mm diameter x 25mm at maximum 220mm centres and all joints skimmed to a smooth finish, with and including 0.5mm galvanized steel sheet to inner both sides of boards, Partitioning board to be fixed to brickworks, concrete, precast concrete, steel frame, aluminium, etc. ","H3"]
[]
[9,8,"Partitions 2.9m high with bottom and top tracks plugged","m",34,null,{"$f":"E694*F694","v":{"v":0,"d":"0.00"}}]
[]
[9,9,"Extra over partition for aluminium skirting","m",62,null,{"$f":"E696*F696","v":{"v":0,"d":"0.00"}}]
[]
[9,null,"DOORS","H2"]
[]
[9,10,"Extra over partition for 40mm semi solid timber panel door size 813mm x 2032mm high hung to & including aluminium frame size 949mm x 2496mm high including fanlight size 949mm x 535mm high door hung on 3 no. aluminium sinkless hinges. (B.D3). Tenderers are referred to Architect`s drawings annexured to these Bills of Quantities Drawing number S7.201 Rev 01 for the full description of the door.","No",4,null,{"$f":"E700*F700","v":{"v":0,"d":"0.00"}}]
[]
["Bill No. 9",null,"Carried to Final Summary",{"$nulls":3},{"$f":"SUM(G660:G701)","v":{"v":0,"d":"0.00"}}]
[]
[10,null,"BILL NO. 10","H1"]
[]
[10,null,"FLOOR COVERINGS, WALL LININGS, ETC.","H1"]
[]
[10,null,"(CPAP WORK GROUP NO. 130 UNLESS OTHERWISE STATED)","H2"]
[]
[10,null,"PREAMBLES","H2"]
[]
[10,null,"The descriptions given in the various items below are not necessarily full and complete and reference must be made to the \"Standard Preambles To All Trades (Rev. 3) DOH 2009\", \"Supplementary Preambles\" and \"Supplementary Specifications\" to this contract for the full requirements of each scheduled item"]
[]
[10,null,"SUPPLEMENTARY PREAMBLES","H2"]
[]
[10,null,"Screed deviations are not to exceed 5mm over 3000mm"]
[]
[10,null,"Thoroughly clean down with SABS 5825 compliant diluted natural detergent and thoroughly rinse, allow to dry and apply 3 coats water based floor dressing compliant with SABS 1042. "]
[]
[10,null,"Remove all contaminates, clean down and apply TAL screed master, prime with TAL Floor Primer using pump method all by TAL contractor in accordance with the manufacturer's instructions"]
[]
[10,null,"2,5mm \"Marley Superflex\" or other equally approved, 2m wide vinyl sheeting fitted in strict accordance to manufacturers instructions, using Qualichem QAR 298 adhesive to floors and BAN 523 to coves. Coves to include butterfly corners","H3"]
[]
[10,1,"On floors","m2",450,null,{"$f":"E724*F724","v":{"v":0,"d":"0.00"}}]
[]
[10,2,"On walls with turn-ups over coves and up against walls up to a height of 400mm","m",93,null,{"$f":"E726*F726","v":{"v":0,"d":"0.00"}}]
[]
[10,null,"Skirting, nosing, etc.","H3"]
[]
[10,null,"\"Polyflor\" or other equally approved","H3"]
[]
[10,3,"Fully Flexible MC17C Set in Coving (150 x 70mm) to ensure a tight radius to prevent dirt collecting in corners and to be such a radius to prevent cleaning machines striking the curve on the sheeting up the wall","m",93,null,{"$f":"E732*F732","v":{"v":0,"d":"0.00"}}]
[]
[10,4,"Extra over for MC17C door piece","No",6,null,{"$f":"E734*F734","v":{"v":0,"d":"0.00"}}]
[]
[10,null,"Polish, Sealers, etc.","H3"]
[]
[10,5,"Prepare, strip with and approved vinyl wax stripper, and apply three coats heavy duty commercial vinyl floor, turn-ups, etc. sealant and mechanically buff up to high gloss finish","m2",487,null,{"$f":"E738*F738","v":{"v":0,"d":"0.00"}}]
[]
["Bill No. 10",null,"Carried to Final Summary",{"$nulls":3},{"$f":"SUM(G721:G739)","v":{"v":0,"d":"0.00"}}]
[]
[11,null,"BILL NO. 11","H1"]
[]
[11,null,"IRONMONGERY","H1"]
[]
[11,null,"(CPAP WORK GROUP NO. 132 UNLESS OTHERWISE STATED)","H2"]
[]
[11,null,"PREAMBLES","H2"]
[]
[11,null,"The descriptions given in the various items below are not necessarily full and complete and reference must be made to the \"Standard Preambles To All Trades (Rev. 3) DOH 2009\", \"Supplementary Preambles\" and \"Supplementary Specifications\" to this contract for the full requirements of each scheduled item"]
[]
[11,null,"SUPPLEMENTARY PREAMBLES","H2"]
[]
[11,null,"Proprietary items","H3"]
[]
[11,null,"Where applicable the manufacturers' names or product catalogue titles are given in sub-headings preceding the items.  Prices are to be based on the specific products/articles specified. If tenderers wish to offer alternative products/articles for certain items, these items are to be clearly marked and the alternative specification given with supporting brochures, etc. clarifying the features of the products/articles offered.  On request returnable samples are to be provided to the principal agent for consideration."]
[]
[11,null,"The following locks are to be suitable for master key operation. "]
[]
[11,null,"Finishes to ironmongery","H3"]
[]
[11,null,"Where applicable finishes to ironmongery are indicated by suffixes in accordance with the following list: BS Satin bronze lacquered: CH Chromium plated: SC Satin chromium plated: SE Silver enamelled: GE Grey enamelled: AS Anodised silver: AB Anodised bronze: AG Anodised gold: ABL Anodised black: PB Polished brass: PL Polished and lacquered: PT Epoxy coated"]
[]
[11,null,"HINGES, BOLTS, ETC.","H2"]
[]
[11,null,"Manufactured by \"Union\" or other equally approved","H3"]
[]
[11,1,"JH-BB-STD-2-SS/2BB Butt hinge EN1935GRD13","Pairs",61,null,{"$f":"E768*F768","v":{"v":0,"d":"0.00"}}]
[]
[11,2,"SS2016SS Bathroom deadbolt","No",4,null,{"$f":"E770*F770","v":{"v":0,"d":"0.00"}}]
[]
[11,3,"AL8208-180AS/MD Flush bolt","No",6,null,{"$f":"E772*F772","v":{"v":0,"d":"0.00"}}]
[]
[11,4,"37651AS Paraplegic indicator bolt","No",8,null,{"$f":"E774*F774","v":{"v":0,"d":"0.00"}}]
[]
[11,5,"QR25X85MM-SS Roller latch and deadbolt lock","No",6,null,{"$f":"E776*F776","v":{"v":0,"d":"0.00"}}]
[]
[11,6,"8052-150SC Flush bolt","No",6,null,{"$f":"E778*F778","v":{"v":0,"d":"0.00"}}]
[]
[11,null,"Manufactured by \"Assa Abloy\" or other equally approved","H3"]
[]
[11,7,"DCA120-40 Mounting plate","No",9,null,{"$f":"E782*F782","v":{"v":0,"d":"0.00"}}]
[]
[11,null,"LOCKSETS, ETC.","H2"]
[]
[11,null,"Manufactured by \"Union\" or other equally approved","H3"]
[]
[11,8,"SS5004-73SS Escutcheon on rose bathroom indicator","Pairs",4,null,{"$f":"E788*F788","v":{"v":0,"d":"0.00"}}]
[]
[11,9,"SS5305-05SS Escutcheon on rose profile","Pairs",13,null,{"$f":"E790*F790","v":{"v":0,"d":"0.00"}}]
[]
[11,10,"PZ-05SS Escutcheon on rose profile","Pairs",6,null,{"$f":"E792*F792","v":{"v":0,"d":"0.00"}}]
[]
[11,11,"L-2115-78SS Euro-profile cylinder deadlock","No",15,null,{"$f":"E794*F794","v":{"v":0,"d":"0.00"}}]
[]
[11,12,"2X18SC Double Cylinder profile KD SC","No",17,null,{"$f":"E796*F796","v":{"v":0,"d":"0.00"}}]
[]
[11,13,"2X19SC Knob cylinder profile","No",11,null,{"$f":"E798*F798","v":{"v":0,"d":"0.00"}}]
[]
[11,14,"2X20SC Single cylinder profile","No",5,null,{"$f":"E800*F800","v":{"v":0,"d":"0.00"}}]
[]
[11,15,"ARC1182SS Roller catch","No",18,null,{"$f":"E802*F802","v":{"v":0,"d":"0.00"}}]
[]
[11,16,"CY2X19-60SNKD Gemini Euro profile thumbturn cylinder ","No",14,null,{"$f":"E804*F804","v":{"v":0,"d":"0.00"}}]
[]
[11,17,"CY2X18-65SNKD Gemini Euro profile double cylinder ","No",4,null,{"$f":"E806*F806","v":{"v":0,"d":"0.00"}}]
[]
[11,18,"2915SC High security mortice double lock","No",5,null,{"$f":"E808*F808","v":{"v":0,"d":"0.00"}}]
[]
[11,null,"HANDLES","H2"]
[]
[11,null,"Manufactured by \"Union\" or other equally approved","H3"]
[]
[11,19,"PHD-BB-150-22SS Back to back pull handle","Pairs",4,null,{"$f":"E814*F814","v":{"v":0,"d":"0.00"}}]
[]
[11,20,"PHD-BT-150-22SS Pull handle","No",5,null,{"$f":"E816*F816","v":{"v":0,"d":"0.00"}}]
[]
[11,21,"PHD-CF-300-22SS Handle with flange","No",16,null,{"$f":"E818*F818","v":{"v":0,"d":"0.00"}}]
[]
[11,22,"PHD-BB-225-22SS Back to back pull handle","Pairs",6,null,{"$f":"E820*F820","v":{"v":0,"d":"0.00"}}]
[]
[11,23,"5206BBSS 400mm pull handle back to back","Pairs",2,null,{"$f":"E822*F822","v":{"v":0,"d":"0.00"}}]
[]
[11,24,"5210BBSS 350mm BTB pull handle","Pairs",5,null,{"$f":"E824*F824","v":{"v":0,"d":"0.00"}}]
[]
[11,25,"SS5D66L-05SS Dove pull handle on back plate LH profile","No",14,null,{"$f":"E826*F826","v":{"v":0,"d":"0.00"}}]
[]
[11,26,"SS5D66R-05SS Dove pull handle on back plate RH profile","No",14,null,{"$f":"E828*F828","v":{"v":0,"d":"0.00"}}]
[]
[11,27,"SS5D66-06SS Dove pull handle on back plate blank","No",22,null,{"$f":"E830*F830","v":{"v":0,"d":"0.00"}}]
[]
[11,28,"FFP65X50SS Flush finger pull","No",7,null,{"$f":"E832*F832","v":{"v":0,"d":"0.00"}}]
[]
[11,null,"Manufactured by \"Assa Abloy\" or other equally approved","H3"]
[]
[11,29,"J-882-SIL Single Panic bolt push bar 900mm","No",8,null,{"$f":"E836*F836","v":{"v":0,"d":"0.00"}}]
[]
[11,null,"PUSH PLATES AND KICK PLATES","H2"]
[]
[11,null,"Manufactured by \"Union\" or other equally approved","H3"]
[]
[11,30,"SS5023L-05-228W stainless steel push plate blank with four holes pre drilled for stainless steel counter sunk screw fixings and polished edges","No",5,null,{"$f":"E842*F842","v":{"v":0,"d":"0.00"}}]
[]
[11,31,"SS5089-200W 800  x 200 x 2mm thick Kick plate with four holes pre drilled for stainless steel counter sunk screw fixings and polished edges","No",58,null,{"$f":"E844*F844","v":{"v":0,"d":"0.00"}}]
[]
[11,32,"SS5023-06-228W  Stainless steel Push plate with four holes pre drilled for stainless steel counter sunk screw fixings and polished edges","No",5,null,{"$f":"E846*F846","v":{"v":0,"d":"0.00"}}]
[]
[11,null,"DOOR CLOSERS AND FLOOR SPRINGS","H2"]
[]
[11,null,"Manufactured by \"Assa Abloy\" or other equally approved","H3"]
[]
[11,33,"DC500 CAM Action closer EN1-4 SIL","No",2,null,{"$f":"E852*F852","v":{"v":0,"d":"0.00"}}]
[]
[11,34,"DC300DA R&P Closer EN3-6 DA SIL","No",8,null,{"$f":"E854*F854","v":{"v":0,"d":"0.00"}}]
[]
[11,35,"DC300 R&P Closer EN3-6 SIL","No",35,null,{"$f":"E856*F856","v":{"v":0,"d":"0.00"}}]
[]
[11,36,"DC420 CAM Action FS EN3 NON HO","No",4,null,{"$f":"E858*F858","v":{"v":0,"d":"0.00"}}]
[]
[11,37,"FD461-DC500 Mech co-ordinator double door","No",4,null,{"$f":"E860*F860","v":{"v":0,"d":"0.00"}}]
[]
[11,38,"DCA120-40 Straight mounting plate for door closers","No",9,null,{"$f":"E862*F862","v":{"v":0,"d":"0.00"}}]
[]
[11,39,"8852SC Dust proof strike","No",8,null,{"$f":"E864*F864","v":{"v":0,"d":"0.00"}}]
[]
[11,null,"LETTERS, NAMEPLATES, ETC.","H2"]
[]
[11,40,"SS5066-06SSE10 Male indicator sign","No",3,null,{"$f":"E868*F868","v":{"v":0,"d":"0.00"}}]
[]
[11,41,"SS5066-06SSE11 Female indicator sign","No",3,null,{"$f":"E870*F870","v":{"v":0,"d":"0.00"}}]
[]
[11,42,"SS5066-06SSE14 Paraplegic indicator sign","No",9,null,{"$f":"E872*F872","v":{"v":0,"d":"0.00"}}]
[]
[11,43,"SS5066-06SSE02 Tea/Kitchen indicator sign","No",1,null,{"$f":"E874*F874","v":{"v":0,"d":"0.00"}}]
[]
[11,44,"SS5066-06SSE17 Cleaner mop and bucket sign","No",1,null,{"$f":"E876*F876","v":{"v":0,"d":"0.00"}}]
[]
[11,45,"SS5066-06SSE01 Electric Shock sign","No",2,null,{"$f":"E878*F878","v":{"v":0,"d":"0.00"}}]
[]
[11,null,"SIGNAGE","H2"]
[]
[11,null,"Statutory signage to be SABS  and photo luminescent, external signage to be UV rated"]
[]
[11,null,"Red and white single sided signage screwed fixed on to walls as per manufacturer's details","H3"]
[]
[11,46,"190 x 190mm Arrow sign","No",12,null,{"$f":"E886*F886","v":{"v":0,"d":"0.00"}}]
[]
[11,47,"190 x 190mm Fire extinguisher sign","No",13,null,{"$f":"E888*F888","v":{"v":0,"d":"0.00"}}]
[]
[11,48,"190 x 190mm Fire hose reel sign","No",5,null,{"$f":"E890*F890","v":{"v":0,"d":"0.00"}}]
[]
[11,49,"190 x 190mm Fire hydrant sign","No",2,null,{"$f":"E892*F892","v":{"v":0,"d":"0.00"}}]
[]
[11,50,"190 x 190mm Exit sign","No",2,null,{"$f":"E894*F894","v":{"v":0,"d":"0.00"}}]
[]
[11,51,"190 x 190mm No smoking sign","No",2,null,{"$f":"E896*F896","v":{"v":0,"d":"0.00"}}]
[]
[11,52,"300 x 200mm Keep clear sign","No",5,null,{"$f":"E898*F898","v":{"v":0,"d":"0.00"}}]
[]
[11,null,"Green and white single sided signage screwed fixed on to walls as per manufacturer's details","H3"]
[]
[11,53,"190 x 190mm Arrow sign","No",17,null,{"$f":"E902*F902","v":{"v":0,"d":"0.00"}}]
[]
[11,54,"190 x 190mm Running man sign","No",17,null,{"$f":"E904*F904","v":{"v":0,"d":"0.00"}}]
[]
[11,null,"Lettering and number formed with aluminium sheeting, powder coated fixed to brick walls with concealed fixings to specialist details ","H3"]
[]
[11,55,"Name plate overall size 400 x 50mm high fixed to doors including wording to be confirmed by the Architect on site.","No",36,null,{"$f":"E908*F908","v":{"v":0,"d":"0.00"}}]
[]
[11,56,"Signage plate overall size 4200 x 100mm high including wording to be confirmed by the Architect on site. Tenderer's are referred to Drawing No.: 6.001, annexed to these Bills of Quantities for full details. ","No",2,null,{"$f":"E910*F910","v":{"v":0,"d":"0.00"}}]
[]
[11,null,"Wall mounted stainless steel plate external signage","H3"]
[]
[11,57,"300mm high Letters to be cut out of 6mm brushed stainless steel plate and fixed to wall with three (3) No. 10mm diameter mild steel rods welded to back of letter. All letters are to be in \"Helvetica Bold\" and in Capitals. Letters are to be strictly 15mm away from wall. Exact position and spacing of lettering is to be determined by the Architect on site.","No",15,null,{"$f":"E914*F914","v":{"v":0,"d":"0.00"}}]
[]
[11,null,"SUNDRIES","H2"]
[]
[11,58,"87001SS door stop","No",7,null,{"$f":"E918*F918","v":{"v":0,"d":"0.00"}}]
[]
[11,59,"99022SS wall projection door stop","No",12,null,{"$f":"E920*F920","v":{"v":0,"d":"0.00"}}]
[]
[11,60,"B3441 SC 150 x 30mm door stop & holder","No",71,null,{"$f":"E922*F922","v":{"v":0,"d":"0.00"}}]
[]
[11,61,"8852SC Dust proof keep","No",13,null,{"$f":"E924*F924","v":{"v":0,"d":"0.00"}}]
[]
[11,62,"SS8025SS Hat and coat hook buffer","No",50,null,{"$f":"E926*F926","v":{"v":0,"d":"0.00"}}]
[]
[11,63,"AL8103AS Multi-track three hooks","No",2,null,{"$f":"E928*F928","v":{"v":0,"d":"0.00"}}]
[]
[11,64,"2915SC Rebate set","No",6,null,{"$f":"E930*F930","v":{"v":0,"d":"0.00"}}]
[]
[11,65,"\"Franke\" or other equally approved rob hook (Code: 359945) plugged and screwed to door with stainless steel screws.","No",12,null,{"$f":"E932*F932","v":{"v":0,"d":"0.00"}}]
[]
[11,66,"\"Franke\" or other equally approved stainless steel sanitiser dispenser, plugged and screwed to wall with stainless steel screws.","No",2,null,{"$f":"E934*F934","v":{"v":0,"d":"0.00"}}]
[]
[11,67,"Stainless steel pedal bin","No",11,null,{"$f":"E936*F936","v":{"v":0,"d":"0.00"}}]
[]
[11,68,"Wall Mounted Airfreshner Electronic Dispenser  ","No",9,null,{"$f":"E938*F938","v":{"v":0,"d":"0.00"}}]
[]
[11,null,"PELMETS AND CURTAIN TRACKS","H2"]
[]
[11,null,"\"Yokota\" or other similar approved","H3"]
[]
[11,69,"\"Silverline\" hospital cubicle curtain rail fixed to suspended ceilings approximately 900mm below soffit of slab or timber trusses including 11 gliders per metre, hangers, brackets, stopped ends, etc.","m",42,null,{"$f":"E944*F944","v":{"v":0,"d":"0.00"}}]
[]
[11,70,"Extra over for end plugged","No",12,null,{"$f":"E946*F946","v":{"v":0,"d":"0.00"}}]
[]
[11,71,"Extra over for bend","No",9,null,{"$f":"E948*F948","v":{"v":0,"d":"0.00"}}]
[]
[11,72,"Extra over for joint at bend","No",9,null,{"$f":"E950*F950","v":{"v":0,"d":"0.00"}}]
[]
[11,null,"Sundries ","H3"]
[]
[11,73,"Blinds Premium (G2) 2400 Roller blind colour Riviera - Grey with stainless steel chain mechanism with right/ left hand side chain control (to be confirmed on site), size between 2450mm wide x 2300mm drop, face fixed in accordance with manufacturer's recommendations","No",5,null,{"$f":"E954*F954","v":{"v":0,"d":"0.00"}}]
[]
[11,null,"BATHROOM FITTINGS","H2"]
[]
[11,74,"\"Franke STRX672\" or other equally approved double toilet roll holder with spindle system for wall mounting, stainless steel, surface satin finished, front with InoxPlus surface refinement for the reduction of finger marks and better cleaning characteristics (easy to clean), material thickness 1.5 mm, curved front cover, cylinder lock with Franke standard key (Code: 008422). Size 156mm x 303mm x 141mm (W x H x D). Plugged and screwed to the wall with stainless steel screws.","No",14,null,{"$f":"E958*F958","v":{"v":0,"d":"0.00"}}]
[]
[11,75,"“Franke STRX611” or other equally approved sanitary towel and disposal bin for wall mounting, stainless steel, surface satin finished, front with InoxPlus surface refinement for the reduction of finger marks and better cleaning characteristics (easy to clean), material thickness 1.5 mm, curved front cover, approx. 3.8 litre capacity, folding self-closing lid with piano hinge, removable plastic container inside (Code: 2120050/359740, Chilli-B) plugged and screwed to wall with stainless steel screws.","No",7,null,{"$f":"E960*F960","v":{"v":0,"d":"0.00"}}]
[]
[11,76,"“Franke RODX605” or other equally approved waste bin for wall mounting, stainless steel, surface satin finished, material thickness 0.8 mm, rounded edges, mounting either with mounting bracket or directly onto the wall (Code: 7262, Gelmar) plugged and screwed to wall with stainless steel screws. ","No",14,null,{"$f":"E962*F962","v":{"v":0,"d":"0.00"}}]
[]
[11,77,"“Franke STRX618” or other equally approved Soap dispenser for wall mounting, stainless steel, surface satin finished, front with InoxPlus surface refinement for the reduction of finger marks and better cleaning characteristics (easy to clean), material thickness 1.5 mm, curved front cover, cylinder lock with Franke standard key, inspection window on front, suitable for liquid soaps and lotions, 0.8 litre soap tank, with plastic pull lever. Size 100mm x 304mm x 134mm (W x H x D). Plugged and screwed to wall with stainless steel screws.","No",14,null,{"$f":"E964*F964","v":{"v":0,"d":"0.00"}}]
[]
[11,78,"18/10 stainless steel paper towel dispenser in satin finish. To be surface mounted 1300mm above floor level at bottom edge. (Code 359716)","No",14,null,{"$f":"E966*F966","v":{"v":0,"d":"0.00"}}]
[]
[11,79,"Stainless steel sanitiser dispenser. To be surface mounted 1300mm above floor level at bottom edge. ","No",2,null,{"$f":"E968*F968","v":{"v":0,"d":"0.00"}}]
[]
[11,null,"PARAPLEGIC FITTINGS","H2"]
[]
[11,null,"Paraplegic Fittings - Supplied by Chairman Industries or other equally ","H3"]
[]
[11,80,"32mm Serrated stainless steel rear grab rail fixed vertically next to seat (Code SR2)","No",9,null,{"$f":"E974*F974","v":{"v":0,"d":"0.00"}}]
[]
[11,81,"32mmn Serrated stainless steel vertical wall grab rail at shower (Code SR1)","No",4,null,{"$f":"E976*F976","v":{"v":0,"d":"0.00"}}]
[]
[11,82,"32mm Serrated 90 degree angled stainless steel dog leg side grab rail angled to suite (Code DL3)","No",9,null,{"$f":"E978*F978","v":{"v":0,"d":"0.00"}}]
[]
["Bill No. 11",null,"Carried to Final Summary",{"$nulls":3},{"$f":"SUM(G764:G979)","v":{"v":0,"d":"0.00"}}]
[]
[12,null,"BILL NO. 12","H1"]
[]
[12,null,"STRUCTURAL STEELWORK","H1"]
[]
[12,null,"(CPAP WORK GROUP NO. 134 UNLESS OTHERWISE STATED)","H2"]
[]
[12,null,"PREAMBLES","H2"]
[]
[12,null,"The descriptions given in the various items below are not necessarily full and complete and reference must be made to the \"Standard Preambles To All Trades (Rev. 3) DOH 2009\", \"Supplementary Preambles\" and \"Supplementary Specifications\" to this contract for the full requirements of each scheduled item"]
[]
[12,null,"SUPPLEMENTARY PREAMBLES","H2"]
[]
[12,null,"Descriptions of bolts shall be deemed to include nuts and washers.  Descriptions of L-shaped and U-shaped anchor bolts shall be deemed to include pending, threading, nuts and washers and embedding in concrete.  Descriptions of expansion anchors and bolts and chemical anchors and bolts shall be deemed to include nuts, washers and mortices in brickwork or concrete.  Structural steelwork shall comply with the requirements of SABS 1200H and the relevant project specifications."]
[]
[12,null,"Corrosion Protection","H3"]
[]
[12,null,"All steelworka) Abrasive blast to Sa 2.5b) Galvanize to SABS 763 (Heavy Duty)c) Clean with Galvanized iron cleaner, treat galvanizing in such a way so that paint may be applied over itd) Apply 1 coat galvanizing primer - Inter guard 269 or equally e) Apply 2No. Coats re-coatable polyurethane - Interthane 900 or equal approved . Colour to Architect`s specification.All hot rolled steelwork shall be grade 350W, all hollow tube steelwork shall be grade 300W and all cold formed steelwork shall be SANS 10162 Part 1 with a minimum yield stress of 200Mpa and a minimum tensile stress of 365Mpa unless noted otherwise.All fixing bolts for structural steelwork shall be M20 grade 8.8 unless otherwise noted, and is deemed included. Only chemical anchor bolts are to be measured as a measurable item.All welds shall be 6mm continuous fillet welds unless noted otherwise.When steelwork connects to structures, the steelwork contractor shall check all site dimensions and levels before fabrication and erection.No flame cutting or site welding shall be carried out without the written approval of the engineer.Shop drawings shall be submitted in duplicate to the engineer for approval before commencing any fabrication."]
[]
[12,null,"Traceability of steel","H3"]
[]
[12,null,"All steel to be marked with manufacturer`s test certificate number to ensure full traceability and to facilitate re-use of the steel members."]
[]
[12,null,"Marking steelwork","H3"]
[]
[12,null,"Completed components shall be marked with a durable and distinguishing erection mark, section size, steel grade and manufacturer`s test certificate number in such a way as not to damage the component. Marking shall be in a discrete location. Hard stamping may be used unless noted otherwise."]
[]
[12,null,"Testing of welds","H3"]
[]
[12,null,"10% of all fillet welds and 100% of butt welds to be subjected to non destructive testing.  Fabricate, supply, deliver and erect including shop and site painting as described."]
[]
[12,null,"Note: All Structural steel work to trusses, girders, columns, etc. to be priced inclusive of Grade 8.8 galvanised bolts or other bolts as necessary","H3"]
[]
[12,null,"HOT DIPPED GALVANISED BEAMS","H2"]
[]
[12,1,"IPE 200 x 100 Beam, with one end fixed to purlin (Purlin elsewhere measured) and other end fixed to concrete column (concrete column elsewhere measured), with and including all necessary welding, bolts, washers, etc.","t",0.58,null,{"$f":"E1016*F1016","v":{"v":0,"d":"0.00"}}]
[]
[12,2,"305 x 165 x 41 UB Beam","t",3.64,null,{"$f":"E1018*F1018","v":{"v":0,"d":"0.00"}}]
[]
[12,3,"356 x 171 x 45 UB Beam","t",1.58,null,{"$f":"E1020*F1020","v":{"v":0,"d":"0.00"}}]
[]
[12,4,"457 x 191 x 67 UB Beam","t",2.15,null,{"$f":"E1022*F1022","v":{"v":0,"d":"0.00"}}]
[]
[12,null,"HOT DIPPED GALVANISED PURLINS, BRACINGS, TRIMMER, EAVES RUNNER, ETC.","H2"]
[]
[12,null,"Welded bracing, etc. with flat section connection plates bolted to steel","H3"]
[]
[12,5,"150 x 75 x 20 x 2.5 CFLC","t",5.45,null,{"$f":"E1028*F1028","v":{"v":0,"d":"0.00"}}]
[]
[12,6,"150 x 75 x 20 x 2.5 CRLC","t",1.83,null,{"$f":"E1030*F1030","v":{"v":0,"d":"0.00"}}]
[]
[12,7,"45 x 45 x 3L - Knee Brace","t",0.84,null,{"$f":"E1032*F1032","v":{"v":0,"d":"0.00"}}]
[]
[12,8,"50 x 50 x 5L - Verticals","t",0.5,null,{"$f":"E1034*F1034","v":{"v":0,"d":"0.00"}}]
[]
[12,9,"50 x 50 x 5L - Diagonals","t",0.44,null,{"$f":"E1036*F1036","v":{"v":0,"d":"0.00"}}]
[]
[12,10,"50 x 50 x 6L - Verticals","t",0.14,null,{"$f":"E1038*F1038","v":{"v":0,"d":"0.00"}}]
[]
[12,11,"50 x 50 x 6L - Diagonals","t",0.34,null,{"$f":"E1040*F1040","v":{"v":0,"d":"0.00"}}]
[]
[12,12,"50 x 50 x 6L - False Rafter","t",0.73,null,{"$f":"E1042*F1042","v":{"v":0,"d":"0.00"}}]
[]
[12,13,"60 x 60 x 6L - Rafter Bracing","t",0.85,null,{"$f":"E1044*F1044","v":{"v":0,"d":"0.00"}}]
[]
[12,14,"70 x 70 x 6L - Horizontal Tie Bracing","t",0.11,null,{"$f":"E1046*F1046","v":{"v":0,"d":"0.00"}}]
[]
[12,15,"80 x 80 x 8L - Top Chord","t",2.53,null,{"$f":"E1048*F1048","v":{"v":0,"d":"0.00"}}]
[]
[12,16,"80 x 80 x 8L - Bottom Chord ","t",2.52,null,{"$f":"E1050*F1050","v":{"v":0,"d":"0.00"}}]
[]
[12,17,"50 x 3.0 CHS - Verticals","t",0.2,null,{"$f":"E1052*F1052","v":{"v":0,"d":"0.00"}}]
[]
[12,18,"50 x 3.0 CHS - Diagonals","t",0.66,null,{"$f":"E1054*F1054","v":{"v":0,"d":"0.00"}}]
[]
[12,19,"102 x 3.5 CHS - Top Chord","t",1.06,null,{"$f":"E1056*F1056","v":{"v":0,"d":"0.00"}}]
[]
[12,20,"102 x 3.5 CHS - Bottom Chord","t",1.37,null,{"$f":"E1058*F1058","v":{"v":0,"d":"0.00"}}]
[]
[12,21,"75 x 50 x 6L - 70 long - Cleat","t",0.02,null,{"$f":"E1060*F1060","v":{"v":0,"d":"0.00"}}]
[]
[12,22,"80 x 80 L - Welded Braket to vertical cord","t",0.02,null,{"$f":"E1062*F1062","v":{"v":0,"d":"0.00"}}]
[]
[12,23,"203 X 133 X 25 UB Column ","t",2.38,null,{"$f":"E1064*F1064","v":{"v":0,"d":"0.00"}}]
[]
[12,null,"SUNDRY STEELWORK","H2"]
[]
[12,null,"Sundry Steelwork","H3"]
[]
[12,24,"Cleats, plates, gussets, connectors, bolts, etc. ","t",9.49,null,{"$f":"E1070*F1070","v":{"v":0,"d":"0.00"}}]
[]
[12,null,"Chemical anchors, etc.","H3"]
[]
[12,25,"\"Fisher\" or other approved M16 Hilti HSA Anchor studs (with embedment length of minimum 280mm into concrete (concrete elsewhere measured) with and including \"Fisher V360\" or other approved chemical mortar.","No",222,null,{"$f":"E1074*F1074","v":{"v":0,"d":"0.00"}}]
[]
[12,null,"Holding down bolts, etc.","H3"]
[]
[12,26,"Set out and embed set of four holding down bolts in top of concrete in exact position comprises of 400mm long holding down bolt, 12mm diameter grade 4.8 bolts with 100mm threaded projection. 80 x 80 x 12 welded to cage frame. All in accordance with the Engineers details. ","No",12,null,{"$f":"E1078*F1078","v":{"v":0,"d":"0.00"}}]
[]
[12,27,"Set out and embed set of four holding down bolts in top of concrete in exact position comprises of 600mm long holding down bolt, 24mm diameter grade 4.8 bolts with 100mm threaded projection. 80 x 80 x 12 welded to cage frame. All in accordance with the Engineers details.","No",8,null,{"$f":"E1080*F1080","v":{"v":0,"d":"0.00"}}]
[]
[12,null,"PAINTWORK ","H2"]
[]
[12,null,"Remove all grease and oil by washing with a water emulsifiable solvent degreaser and rinsing with potable water, dry abrasive blast to rear white metal in accordance with Sa 2.5 of the International Standard ISO 850-1 to obtain a surface profile of 25 - 75 microns and apply one coat Inter guard 269 galvanizing primer and two coats Interthane 990 re-coatable polyurethane","H3"]
[]
[12,28,"On rafters, beams, purlins, etc.","t",28.94,null,{"$f":"E1086*F1086","v":{"v":0,"d":"0.00"}}]
[]
[12,29,"On cleats, plates, gussets, connectors, etc.","t",9.49,null,{"$f":"E1088*F1088","v":{"v":0,"d":"0.00"}}]
[]
["Bill No. 12",null,"Carried to Final Summary",{"$nulls":3},{"$f":"SUM(G1014:G1089)","v":{"v":0,"d":"0.00"}}]
[]
[13,null,"BILL NO. 13","H1"]
[]
[13,null,"METALWORK","H1"]
[]
[13,null,"(CPAP WORK GROUP NO. 136 UNLESS OTHERWISE STATED)","H2"]
[]
[13,null,"PREAMBLES","H2"]
[]
[13,null,"The descriptions given in the various items below are not necessarily full and complete and reference must be made to the \"Standard Preambles To All Trades (Rev. 3) DOH 2009\", \"Supplementary Preambles\" and \"Supplementary Specifications\" to this contract for the full requirements of each scheduled item"]
[]
[13,null,"SUPPLEMENTARY PREAMBLES","H2"]
[]
[13,null,"Descriptions of bolts, anchors, etc.","H3"]
[]
[13,null,"Descriptions of bolts shall be deemed to include nuts and washers.  Descriptions of expansion anchors and bolts and chemical anchors and bolts shall be deemed to include nuts, washers and mortices in brickwork or concrete.  Items described as \"holed for bolt(s)\" shall be deemed to exclude the bolts unless otherwise described.  Items described as \"plugged\" shall be deemed to include screwing to fibre, plastic or metal plugs at not exceeding 600mm centres."]
[]
[13,null,"Aluminium doors, windows, etc.","H3"]
[]
[13,null,"Doors and windows shall comply with AAAMSA design criteria.  Doors and windows shall be supplied with protective tape and plastic and shall be removed only once surrounding trades have been completed.  The Contractor is advised that the design, supply and installation of the aluminium windows, doors and shopfronts are to be carried out in strict accordance with the Architect`s specification and all aluminium profiles, manufacturing and fixing methods are to comply with AAMSA specifications and installation standards.  The Contractor to provide shop drawings for approval by the Architect. The Contractor shall submit shop drawings for approval by the Architect within two weeks of appointment. The Contractor shall only proceed with the works after written approval has been given by the Architect.  The Contractor is to allow for and calculate tolerances for expansion and contraction of all aluminium profiles.  The contractor is to provide a waterproofing guarantee for all shopfront and windows.  The Contractor is to confirm all window and shopfront sizes with the Architect.  The following certificates shall be provided prior to commencement of work on site:  1. A copy of the relevant AAAMSA performance test certificate from the manufacturer/contractor supplying the architectural aluminium product.  2. A certificate of conformance confirming that anodising or powder coating has been processed in accordance with SANS 999 and SANS 1796 respectively.  3. A powder guarantee of not less than 15 years issued by the powder manufacturer. The specific conditions contained in this guarantee shall form part of the powder coating process.  4. A certificate of conformance confirming that glazing has been installed in accordance with SANS 10137 ensuring that safety glazing materials have been installed in the mandatory areas and that each individual pane of safety glazing materials has been permanently marked.  5. A warranty from the manufacturer of the laminated safety glass and/or hermetically sealed glazing units guaranteeing the products against de-lamination and colour degradation for a period of not less than five years."]
[]
[13,null,"Ironmongery","H3"]
[]
[13,null,"All ironmongery to aluminium windows, doors, shopfronts, roller shutter doors, etc. is to be high quality adjustable stainless steel friction hinges with restrictors included with self tapper stainless steel screw fixing of plastic handle and lock piece supplied and fixed by the contractor. The Contractor is to provide for approval by the Architect samples of these ironmongery. All ironmongery shall be  by the Architect prior to installation.  The Contractor to supply all relevant shopfronts with catches, handles, hinges, etc. to match shopfronts and doors, all to the Architects approval and as per Architect`s drawing & schedules."]
[]
[13,null,"Sliding gear","H3"]
[]
[13,null,"All sliding gear to sliding doors and windows to be supplied by the contractor unless otherwise specified. The contractor to provide samples for approval by the Architect of these sliding gear. All sliding gear shall be  by the Architect prior to installation."]
[]
[13,null,"Joints and sealants","H3"]
[]
[13,null,"All joints in frames shall be made by mechanical means.  An  silicone sealant is to be provided for both sides of all internal and external shop fronts between the aluminium frames and brick wall or concrete column and between the aluminium frame and plaster finish."]
[]
[13,null,"ALUMINIUM WINDOWS, DOORS, ETC. (CPAP WORK GROUP NO.140)","H2"]
[]
[13,null,"\"Crealco\" or other equally approved aluminium windows, shopfronts and doors complete with subframes, ironmongery, glass, sealing, etc. and fixing to brickwork or concrete complete with 'KoastGuard\" or other equally approved Qualicoat class 2 powder coating, Interpon D2525, Jet Black code QN205P all in accordance with suppliers instruction","H3"]
[]
[13,1,"Purpose made aluminium window size 1800 x 600mm high overall with 6.38mm clear laminated safety glass (W1). Tenderers are referred to Architect`s drawings annexed to these Bills of Quantities Drawing number 070638 DOH-A-8100-0","No",27,null,{"$f":"E1128*F1128","v":{"v":0,"d":"0.00"}}]
[]
[13,2,"Purpose made aluminium window size 1200 x 600mm high overall with 6.38mm clear laminated safety glass (W2). Tenderers are referred to Architect`s drawings annexed to these Bills of Quantities Drawing number 070638 DOH-A-8100-0","No",5,null,{"$f":"E1130*F1130","v":{"v":0,"d":"0.00"}}]
[]
[13,3,"Purpose made aluminium window size 600 x 900mm high overall with 6.38mm obscure safety glass (W3). Tenderers are referred to Architect`s drawings annexed to these Bills of Quantities Drawing number 070638 DOH-A-8100-0","No",14,null,{"$f":"E1132*F1132","v":{"v":0,"d":"0.00"}}]
[]
[13,4,"Purpose made aluminium window size 1200 x 600mm high overall with 6.38mm obscure safety glass (W4). Tenderers are referred to Architect`s drawings annexed to these Bills of Quantities Drawing number 070638 DOH-A-8100-0","No",3,null,{"$f":"E1134*F1134","v":{"v":0,"d":"0.00"}}]
[]
[13,5,"Purpose made aluminium window size 900 x 1800mm high overall with 6.38mm clear laminated safety glass (W5). Tenderers are referred to Architect`s drawings annexed to these Bills of Quantities Drawing number 070638 DOH-A-8100-0","No",15,null,{"$f":"E1136*F1136","v":{"v":0,"d":"0.00"}}]
[]
[13,6,"Purpose made aluminium window size 2000 x 1225mm high overall with 6.38mm clear laminated safety glass (W6). Tenderers are referred to Architect`s drawings annexed to these Bills of Quantities Drawing number 070638 DOH-A-8100-0","No",2,null,{"$f":"E1138*F1138","v":{"v":0,"d":"0.00"}}]
[]
[13,7,"Purpose made aluminium window size 1800 x 600mm high overall with 6.38mm obscure safety glass (W7). Tenderers are referred to Architect`s drawings annexed to these Bills of Quantities Drawing number 070638 DOH-A-8100-0","No",2,null,{"$f":"E1140*F1140","v":{"v":0,"d":"0.00"}}]
[]
[13,8,"Purpose made aluminium window size 1200 x 1225mm high overall with 6.38mm clear laminated safety glass (W8). Tenderers are referred to Architect`s drawings annexed to these Bills of Quantities Drawing number 070638 DOH-A-8100-0","No",1,null,{"$f":"E1142*F1142","v":{"v":0,"d":"0.00"}}]
[]
[13,9,"Purpose made aluminium window size 945 x 1225mm high overall with 6.38mm clear laminated safety glass (W9). Tenderers are referred to Architect`s drawings annexed to these Bills of Quantities Drawing number 070638 DOH-A-8100-0","No",1,null,{"$f":"E1144*F1144","v":{"v":0,"d":"0.00"}}]
[]
[13,10,"Purpose made aluminium window size 2000 x 1225mm high overall with 6.38mm clear laminated safety glass (W10). Tenderers are referred to Architect`s drawings annexed to these Bills of Quantities Drawing number 070638 DOH-A-8100-0","No",2,null,{"$f":"E1146*F1146","v":{"v":0,"d":"0.00"}}]
[]
[13,11,"Purpose made aluminium window size 1200 x 925mm high overall with 6.38mm clear laminated safety glass (W13). Tenderers are referred to Architect`s drawings annexed to these Bills of Quantities Drawing number 070638 DOH-A-8100-0","No",1,null,{"$f":"E1148*F1148","v":{"v":0,"d":"0.00"}}]
[]
[13,12,"Purpose made aluminium window size 2762 x 925mm high overall with 6.38mm obscure safety glass (W14). Tenderers are referred to Architect`s drawings annexed to these Bills of Quantities Drawing number 070638 DOH-A-8100-0","No",1,null,{"$f":"E1150*F1150","v":{"v":0,"d":"0.00"}}]
[]
[13,13,"Purpose made aluminium window size 1200 x 925mm high overall with 6.38mm Clear Laminated safety glass (W15). Tenderers are referred to Architect`s drawings annexed to these Bills of Quantities Drawing number 070638 DOH-A-8100-0","No",2,null,{"$f":"E1152*F1152","v":{"v":0,"d":"0.00"}}]
[]
[13,14,"Purpose made aluminium shopfront size 4390 x 2550mm high with 6.38mm clear toughened safety glass and 85mm top and side rails and 135mm bottom kick rail (W11). Tenderers are referred to Architect`s drawings annexed to these Bills of Quantities Drawing number 070638 DOH-A-8100-0","No",1,null,{"$f":"E1154*F1154","v":{"v":0,"d":"0.00"}}]
[]
[13,15,"Purpose made aluminium shopfront size 4130 x 2550mm high with 6.38mm clear toughened safety glass and 85mm top and side rails and 135mm bottom kick rail (W12). Tenderers are referred to Architect`s drawings annexed to these Bills of Quantities Drawing number 070638 DOH-A-8100-0","No",1,null,{"$f":"E1156*F1156","v":{"v":0,"d":"0.00"}}]
[]
[13,16,"Purpose made aluminium shopfront size 3541 x 2550mm high with 6.38mm clear toughened safety glass and 85mm top and side rails and 135mm bottom kick rail (W16). Tenderers are referred to Architect`s drawings annexed to these Bills of Quantities Drawing number 070638 DOH-A-8100-0","No",1,null,{"$f":"E1158*F1158","v":{"v":0,"d":"0.00"}}]
[]
[13,17,"Purpose made aluminium door size 5000 x 2550mm high (D1). Tenderers are referred to Architect's drawings annexed to these Bills of Quantities Drawing number 070638 DOH-A-8050-0","No",1,null,{"$f":"E1160*F1160","v":{"v":0,"d":"0.00"}}]
[]
[13,18,"Purpose made aluminium louvre door size 830 x 2125mm high (D6). Tenderers are referred to Architect's drawings annexed to these Bills of Quantities Drawing number 070638 DOH-A-8050-0","No",5,null,{"$f":"E1162*F1162","v":{"v":0,"d":"0.00"}}]
[]
[13,19,"Purpose made aluminium louvre door size 1700 x 2125mm high (D8). Tenderers are referred to Architect's drawings annexed to these Bills of Quantities Drawing number 070638 DOH-A-8050-0","No",2,null,{"$f":"E1164*F1164","v":{"v":0,"d":"0.00"}}]
[]
[13,20,"Purpose made aluminium sliding door size 4540 x 2550mm high (D22). Tenderers are referred to Architect's drawings annexed to these Bills of Quantities Drawing number 070638 DOH-A-8051-0","No",1,null,{"$f":"E1166*F1166","v":{"v":0,"d":"0.00"}}]
[]
[13,21,"Purpose made aluminium sliding door size 4000 x 2550mm high (D23). Tenderers are referred to Architect's drawings annexed to these Bills of Quantities Drawing number 070638 DOH-A-8051-0","No",1,null,{"$f":"E1168*F1168","v":{"v":0,"d":"0.00"}}]
[]
[13,22,"Purpose made aluminium sliding door size 2850 x 2550mm high (D24). Tenderers are referred to Architect's drawings annexed to these Bills of Quantities Drawing number 070638 DOH-A-8051-0","No",1,null,{"$f":"E1170*F1170","v":{"v":0,"d":"0.00"}}]
[]
[13,23,"Purpose made aluminium sliding door size 3000 x 2550mm high (D25). Tenderers are referred to Architect's drawings annexed to these Bills of Quantities Drawing number 070638 DOH-A-8051-0","No",1,null,{"$f":"E1172*F1172","v":{"v":0,"d":"0.00"}}]
[]
[13,24,"Purpose made aluminium sliding door size 6000 x 2550mm high (D30). Tenderers are referred to Architect's drawings annexed to these Bills of Quantities Drawing number 070638 DOH-A-8051-0","No",1,null,{"$f":"E1174*F1174","v":{"v":0,"d":"0.00"}}]
[]
[13,null,"Jet Black (Code: QN205P) class 2 powder coated aluminium door frames, complete with sealing, etc. and fixing to brickwork or concrete.","H3"]
[]
[13,25,"Aluminium door frame and side light to suit opening size 1613 x 2550mm high (D2). Tenderers are referred to Architect's drawings annexed to these Bills of Quantities Drawing number 070638 DOH-A-8050-0","No",4,null,{"$f":"E1178*F1178","v":{"v":0,"d":"0.00"}}]
[]
[13,26,"Aluminium door frame and side light to suit opening size 2586 x 2125mm high (D16). Tenderers are referred to Architect's drawings annexed to these Bills of Quantities Drawing number 070638 DOH-A-8051-0","No",3,null,{"$f":"E1180*F1180","v":{"v":0,"d":"0.00"}}]
[]
[13,27,"Aluminium door frame and side light to suit opening size 2535 x 2550mm high (D20). Tenderers are referred to Architect's drawings annexed to these Bills of Quantities Drawing number 070638 DOH-A-8051-0","No",1,null,{"$f":"E1182*F1182","v":{"v":0,"d":"0.00"}}]
[]
[13,28,"Aluminium door frame to suit opening size 900 x 2125mm high (D21). Tenderers are referred to Architect's drawings annexed to these Bills of Quantities Drawing number 070638 DOH-A-8051-0","No",1,null,{"$f":"E1184*F1184","v":{"v":0,"d":"0.00"}}]
[]
[13,null,"SHOWER DOORS","H2"]
[]
[13,null,"8mm Obscure toughened safety glass door fixed with “Dorma” or other equally approved tensor double action hinge fixed directly onto brick wall and including oscar knobs ","H3"]
[]
[13,29,"Door size 965 x 2032mm high (D11)","No",4,null,{"$f":"E1190*F1190","v":{"v":0,"d":"0.00"}}]
[]
[13,null,"GALVANISED MILD STEEL LOUVRE DOORS","H2"]
[]
[13,null,"Hot Dipped Galvanised Mild Steel louvers, complete with subframes, ironmongery, sealing, etc. and fixing to brickwork or concrete","H3"]
[]
[13,30,"Steel Louvred door (D26) size 1093 x 2125mm high. Tenderers are referred to Architect`s drawings annexed to these Bills of Quantities; Drawing number: 070638 DOH-A-8051-0","No",4,null,{"$f":"E1196*F1196","v":{"v":0,"d":"0.00"}}]
[]
[13,31,"Steel Louvred door (D27) size 1700 x 2125mm high. Tenderers are referred to Architect`s drawings annexed to these Bills of Quantities; Drawing number: 070638 DOH-A-8051-0","No",4,null,{"$f":"E1198*F1198","v":{"v":0,"d":"0.00"}}]
[]
[13,32,"Steel Louvred sub-station door (D28) size 2000 x 2202mm high. Tenderers are referred to Architect`s drawings annexed to these Bills of Quantities; Drawing number: 070638 DOH-A-8051-0","No",1,null,{"$f":"E1200*F1200","v":{"v":0,"d":"0.00"}}]
[]
[13,null,"STEEL ROLLER SHUTTERS, ETC.","H2"]
[]
[13,null,"'Seranda' or other equally approved Galvanised steel powder coated roller shutters fixed to brickwork or concrete","H3"]
[]
[13,33,"Galvanized mild steel manual operated roller shutter door suitable for opening size 1800 x 2125mm high and fixing to 40 x 40 x 5mm angle iron corner protection, complete with 85mm wide x 1.2mm thick interlocking slatted curtain, 75 x 30 x 3mm channel section guides and spring loaded roller mechanism with canopy. Installed complete with cushion rubber, bottom weather seal. (D17). Tenderers are referred to Architects drawings annexed to these Bills of Quantities Drawing number 070638 DOH-A-8051-0","No",1,null,{"$f":"E1206*F1206","v":{"v":0,"d":"0.00"}}]
[]
[13,34,"Galvanized mild steel manual operated roller shutter door suitable for opening size 2400 x 2125mm high and fixing to 40 x 40 x 5mm angle iron corner protection, complete with 85mm wide x 1.2mm thick interlocking slatted curtain, 75 x 30 x 3mm channel section guides and spring loaded roller mechanism with canopy. Installed complete with cushion rubber, bottom weather seal. (D29). Tenderers are referred to Architects drawings annexed to these Bills of Quantities Drawing number 070638 DOH-A-8051-0","No",1,null,{"$f":"E1208*F1208","v":{"v":0,"d":"0.00"}}]
[]
[13,null,"GALVANISED STEEL FLOORS","H2"]
[]
[13,null,"Galvanised floor duct covers","H3"]
[]
[13,35,"6mm \"Vastrap\" plate duct covers in approximately 650mm widths and suitable lengths laid loose in framing","m",10,null,{"$f":"E1214*F1214","v":{"v":0,"d":"0.00"}}]
[]
[13,36,"50 x 50 x 6mm Angle section frame with diameter bent lugs each 100mm long welded on at 300mm centres including embedding in concrete","m",21,null,{"$f":"E1216*F1216","v":{"v":0,"d":"0.00"}}]
[]
[13,null,"GALVANISED PRESSED STEEL DOOR FRAMES","H2"]
[]
[13,null,"'KZN Window and Door Frames' or other equally approved standard 1,6mm Double rebated frames suitable for half brick wall fitted with three hinges","H3"]
[]
[13,37,"Frame for single door 813 x 2032mm high","No",3,null,{"$f":"E1222*F1222","v":{"v":0,"d":"0.00"}}]
[]
[13,38,"Frame for single door 1000 x 2032mm high","No",13,null,{"$f":"E1224*F1224","v":{"v":0,"d":"0.00"}}]
[]
[13,null,"'KZN Window and Door Frames' or other equally approved standard 1,6mm Double rebated frames suitable for one brick wall fitted with three hinges","H3"]
[]
[13,39,"Frame for single door 810 x 2032mm high","No",2,null,{"$f":"E1228*F1228","v":{"v":0,"d":"0.00"}}]
[]
[13,40,"Frame for single door 813 x 2032mm high","No",2,null,{"$f":"E1230*F1230","v":{"v":0,"d":"0.00"}}]
[]
[13,41,"Frame for double door 1000 x 2032mm high","No",2,null,{"$f":"E1232*F1232","v":{"v":0,"d":"0.00"}}]
[]
[13,42,"Frame for double door 1613 x 2032mm high","No",6,null,{"$f":"E1234*F1234","v":{"v":0,"d":"0.00"}}]
[]
[13,null,"'KZN Window and Door Frames' or other equally approved standard 1,6mm Double rebated frames suitable for Partition wall fitted with three hinges","H3"]
[]
[13,43,"Frame for single door 813 x 2032mm high","No",1,null,{"$f":"E1238*F1238","v":{"v":0,"d":"0.00"}}]
[]
[13,null,"GALVANISED PRESSED STEEL TRANSFORMER ROOM DOORS AND FRAMES","H2"]
[]
[13,null,"Transformer Room Doors","H3"]
[]
[13,44,"Single Transformer room door size 1013 x 2125mm High as per Architects Detail (D26)","No",4,null,{"$f":"E1244*F1244","v":{"v":0,"d":"0.00"}}]
[]
[13,45,"Double Transformer room door size 1700 x 2125mm High as per Architects Detail (D27)","No",4,null,{"$f":"E1246*F1246","v":{"v":0,"d":"0.00"}}]
[]
[13,46,"Double Transformer room door size 2000 x 2400mm High as per Architects Detail (D28)","No",1,null,{"$f":"E1248*F1248","v":{"v":0,"d":"0.00"}}]
[]
[13,null,"GALVANISED MILD STEEL LOUVERS","H2"]
[]
[13,null,"'Renson' or other approved fixed pre-painted louvre units","H3"]
[]
[13,47,"'Renson No. 431' surface mounted louvre unit size 1800 x 2650mm high including fixed louvres, external frame, stainless steel insect screen mesh, etc. fixed to galvanised mild steel.","No",2,null,{"$f":"E1254*F1254","v":{"v":0,"d":"0.00"}}]
[]
[13,null,"ALUMINIUM STEEL LOUVER SCREENS","H2"]
[]
[13,null,"Mechanical Equipment Screen louvre units","H3"]
[]
[13,48,"Aluminium louvre screen unit 1500mm high including external frame, stainless steel insect screen mesh, etc. fixed to specialists details","m",50,null,{"$f":"E1260*F1260","v":{"v":0,"d":"0.00"}}]
[]
[13,null,"STAINLESS STEEL BALUSTRADES, HANDRAILS, ETC.","H2"]
[]
[13,null,"\"Otto Bock\" or other equally approved stainless steel (Grade 304) balustrade, handrails, etc.","H3"]
[]
[13,49,"50mm Diameter Hollow stainless steel Adjustable Height Handrail welded to 50mm diameter balustrades 750mm high, fixed to floors at 900mm centres. Each balustrade welded to 150 x 75 x 10mm stainless steel plate bolted to concrete surface bed with 16mm anchor bolts. Tenders are referred to Architects Drawings Annexured to these BOQ.  ","m",33,null,{"$f":"E1266*F1266","v":{"v":0,"d":"0.00"}}]
[]
[13,50,"50mm diameter handrail fixed to walls at 1m centres with brackets made of 12mm diameter bar 150mm girth and once bent with one end welded to handrail and other end fitted with 4mm thick x 50mm diameter clamp plate welded on, twice holed and bolted to concrete","m",16,null,{"$f":"E1268*F1268","v":{"v":0,"d":"0.00"}}]
[]
[13,51,"Extra over balustrades for ends","No",18,null,{"$f":"E1270*F1270","v":{"v":0,"d":"0.00"}}]
[]
[13,null,"HEAVY DUTY INDUSTRIAL RACKING, SHELVING, ETC.","H2"]
[]
[13,null,"\"Dexion static industrial and commercial Shelving Systems\" or other approved Epoxy powder coated galvanised 7 tier shelving system complete with shelves / decking, anchor bolted to concrete floor with stainless steel anchors, fixed strictly in accordance with the manufacturers specifications.","H3"]
[]
[13,52,"Shelving size 2400mm long x 2048mm high comprising slotted angle uprights at 914mm centres with 762mm x 914mm shelves assembled with bolts to adjustable heights","No",80,null,{"$f":"E1276*F1276","v":{"v":0,"d":"0.00"}}]
[]
[13,null,"WHITE BOARDS","H2"]
[]
[13,null,"Aluminium framed magnetic whiteboard fixed to walls","H3"]
[]
[13,53,"Size 2400 x 1200mm high","No",5,null,{"$f":"E1282*F1282","v":{"v":0,"d":"0.00"}}]
[]
[13,54,"Size 1500 x 1200mm high","No",2,null,{"$f":"E1284*F1284","v":{"v":0,"d":"0.00"}}]
[]
[13,55,"Size 1800 x 1200mm high","No",3,null,{"$f":"E1286*F1286","v":{"v":0,"d":"0.00"}}]
[]
[13,null,"STEEL LOCKERS ","H2"]
[]
[13,null,"\"Supply Wise\" or other equally approved steel double compartment stacked lockers (Code: HHH-LOC002-Grey), epoxy powder coated with flush fitting doors, for padlock. Colour: Hammertone Grey.","H3"]
[]
[13,56,"300 x 450 x 1800mm high steel lockers","No",22,null,{"$f":"E1292*F1292","v":{"v":0,"d":"0.00"}}]
[]
[13,null,"STEEL WORKBENCHES","H2"]
[]
[13,null,"The following in galvanised mild steel work benches fixed to steel angle supports","H3"]
[]
[13,57,"1900mm wide x 690mm x 840mm high work bench formed of 50 x 50 galvanised mild steel, manufactured with high quality solid timber 45mm thick, including free standing drawer lockable cabinet with not less than 3 drawers and 1 swing door. Tenderer's are referred to the architects drawings annexed to these bills of quantities.   ","No",16,null,{"$f":"E1298*F1298","v":{"v":0,"d":"0.00"}}]
[]
[13,58,"1480mm x 1220mm x 1000mm Trimming work bench with not less than 6 shelves made of steel and wood ","No",1,null,{"$f":"E1300*F1300","v":{"v":0,"d":"0.00"}}]
[]
[13,null,"STEEL WELDING TABLES","H2"]
[]
[13,null,"The following in hot dipped galvanised mild steel welding tables","H3"]
[]
[13,59,"900 x 600 x 800mm high welding table (Code: 756S5),  Legs to be manufactured from 40mmx 40 mm steel tubing, table top to be manufactured from 50mm x 50mm steel angle iron, top to include flat steel grid 58.5 x 29mm, manufactured from 40mm x 10mm flat bar with Spacing of 40mm apart, Top to include steel plate insert 58.5 x 29.5 x 20mm, Top to include removable fireclay plate to fill up remaining space and intermediate storage shelf. Tenderer's are referred to the architects drawings annexed to these bills of quantities. ","No",3,null,{"$f":"E1306*F1306","v":{"v":0,"d":"0.00"}}]
[]
[13,null,"HOT DIPPED GALVANISED SUNDRY STEELWORK","H2"]
[]
[13,null,"Brackets, etc. to benches, shelvings, etc.","H3"]
[]
[13,60,"40 x 40 x 4mm Galvanised steel angle iron welded together to form support frame for shower benches including 6mm Galvanised steel plate welded to frame fixed to floor with 8mm x 70mm masonry anchors Steel frame fixed to floor with 8mm x 70mm masonry anchor.  ","No",20,null,{"$f":"E1312*F1312","v":{"v":0,"d":"0.00"}}]
[]
[13,61,"800mm wide worktop formed of 50 x 50 x 5mm L-section framing to horizontal rail 500mm wide, vertical post 500mm high and raking stay 300mm long, all mitred and welded together with closed ends to horizontal rail and vertical post, the vertical post drilled for and bolted to wall with four M8 expansion bolts.","m",10,null,{"$f":"E1314*F1314","v":{"v":0,"d":"0.00"}}]
[]
[13,62,"Double slotted H25 wall band fixed to wall to manufacturer's specifications and including wall band saddle H30 for heavy loading. All in accordance with Architects drawings. Tenderers are referred to Architects drawings annexed to these Bills of Quantities for the full description.","m",53,null,{"$f":"E1316*F1316","v":{"v":0,"d":"0.00"}}]
[]
[13,63,"300mm straight shelf bracket fixed to underside of timber shelves and slotted wall band. All in accordance with Architects drawings. Tenderers are referred to Architects drawings annexed to these Bills of Quantities for the full description.","No",144,null,{"$f":"E1318*F1318","v":{"v":0,"d":"0.00"}}]
[]
[13,64,"90 x 90 x 8mm Angle iron fixed to edge of slab for brick supports with and including M8 expandable bolts fixed at 450mm centre. ","No",23,null,{"$f":"E1320*F1320","v":{"v":0,"d":"0.00"}}]
[]
[13,null,"HULABOND CLADDING","H2"]
[]
[13,null,"Hulabond cladding or other approved 4mm custom profile aluminium composite cladding panels","H3"]
[]
[13,65,"4mm Hulabond or other approved fixed to steel structure as per manufacturers \"Casette\" detail with the minimum silicon joint onto and including aluminium subframe. As per Architects drawings, aluminium cladding A, B and C","m2",130,null,{"$f":"E1326*F1326","v":{"v":0,"d":"0.00"}}]
[]
[13,null,"CAT LADDERS","H2"]
[]
[13,null,"Cat Ladder made of 65 x 10 Flat 168mm Long welded to stringer, 65 x 10 Flat 60 long end plate with 1/18 diameter hole for M16 fixing. Ends of straps cranked 60mm and fixed to masonry wall with M16 Hilti HSA Chemical, R-Rod and Hit-HY 70 adhesive including sleeve, anchor and nuts to be grade 316 stainless Steel and 20 diameter rungs 510mm long, drill 20 diameter holes in stringers for rungs to be plug welded. ","H3"]
[]
[13,66,"Cat Ladder approximately 3,6m High","No",2,null,{"$f":"E1332*F1332","v":{"v":0,"d":"0.00"}}]
[]
[13,null,"SUNDRIES","H2"]
[]
[13,null,"Supply, Install and Commission specialised Hospital tools and equipment ","H3"]
[]
[13,null,"Specialised metalwork loose furnitures, etc.  ","H3"]
[]
[13,67,"2000 x 1000 x 850mm Cutting and Trimming Floor mounted Table with drawer and shelf for storage, made of steel and 40mm beach wood/hard wood","No",1,null,{"$f":"E1340*F1340","v":{"v":0,"d":"0.00"}}]
[]
[13,68,"900 x 1800 x 450mm Steel cabinet with 2 doors, cabinet to be wall mounted","No",2,null,{"$f":"E1342*F1342","v":{"v":0,"d":"0.00"}}]
[]
[13,69,"2280 x 1000 x 500mm Steel Test platform for gait assessment of patients and dynamic alignment of lower limb prostheses with inclined platform with aluminium 3 stairs and ramp including 900mm high stainless steel hand rails on both sides of incline and ramp ","No",2,null,{"$f":"E1344*F1344","v":{"v":0,"d":"0.00"}}]
[]
[13,70,"600 x 800 x 400mm deep Stainless steel round tubing medical dressing trolley with two stainless steel shelves and one drawer including push handle and four trolley casters with brackets","No",3,null,{"$f":"E1346*F1346","v":{"v":0,"d":"0.00"}}]
[]
[13,71,"1800 x 900 x 850mm Stainless Steel Plaster modeling table, top cover with beveled sides, Base frame made of steel tubing and galvanised storage racks","No",5,null,{"$f":"E1348*F1348","v":{"v":0,"d":"0.00"}}]
[]
[13,72,"\"Otto Bock\" or other equally approved 1900 x 640 x 950mm Examination Bed including back panel with gas springs. Upward and downward adjustment. Height Adjustment with electric control: 500mm – 950mm. Linear motor of 220/230V Control box and Hand held control panel including Back up battery and 75mm individual brake casters. 50mm thick foam matress white epoxy coated steel frame and PVC upholstery.","No",6,null,{"$f":"E1350*F1350","v":{"v":0,"d":"0.00"}}]
[]
[13,73,"30Kg Steel Anvil hardened work surface, with two horns, from 30 kg with square hole for taking up tools, Length of work surface not less than 190mm, Width of work surface not less than 100mm, Length from horn to horn: not less than 480mm and weight not less than 30kg   ","No",1,null,{"$f":"E1352*F1352","v":{"v":0,"d":"0.00"}}]
[]
[13,74,"75Kg Steel Anvil hardened work surface, with two horns, from 70 kg - 80kg with square hole for taking up tools, Length of work surface not less than 450mm, Width of work surface not less than 120mm, Length from horn to horn: not less than 630mm and weight not less than 75kg","No",1,null,{"$f":"E1354*F1354","v":{"v":0,"d":"0.00"}}]
[]
[13,75,"40Kg Steel Anvil base, constructed with painted steel, fitted with timber insert, manufactured to accommodate between 35kg - 75kg, including compartment for sand for sound damping and for stability","No",2,null,{"$f":"E1356*F1356","v":{"v":0,"d":"0.00"}}]
[]
[13,76,"Steel mobile stand for hand lever shear 670mm high","No",1,null,{"$f":"E1358*F1358","v":{"v":0,"d":"0.00"}}]
[]
[13,null,"Specialised equipments, tools, etc. ","H3"]
[]
[13,77,"Pneumatic plaster cast saw blades manufactures from hardened/titanium stainless steel, circular saw blade with 65mm diameter and 11mm hole size","No",4,null,{"$f":"E1362*F1362","v":{"v":0,"d":"0.00"}}]
[]
[13,78,"\"Otto bock\" or other equally approved Pneumatic Staple Gun made of cast aluminium body/steel components, Staple length of 14mm and width of 12mm, fitted with male connector for quick change coupling and 4-7 bar operating pressure. Air consumption 0.5 liters during operation and case capacity +/-100 staples","No",1,null,{"$f":"E1364*F1364","v":{"v":0,"d":"0.00"}}]
[]
[13,79,"360 x 260mm Oven Tensioning frame manufactured from aluminium anodised and stainless steel, used for drape moulding plastic sockets for materials up to 20mm thick. including spare kit with joint screw, star handle, clamping bar, grip bar (Short) and Grip bar.","No",1,null,{"$f":"E1366*F1366","v":{"v":0,"d":"0.00"}}]
[]
[13,80,"Oven Vacuum Forming tool kit manufactured from aluminium anodized stainless steel and galvanised steel to include 350 x 450 x 250mm stand. Including aluminium 20mm diameter tensioning frame, square tubing bracket to secure vacuum forming plate, vacuum forming plate with vacuum pipe and 2 way exhaust pipe used for drape moulding plastic sockets for materials up to 20mm thick","No",1,null,{"$f":"E1368*F1368","v":{"v":0,"d":"0.00"}}]
[]
[13,81,"Shoe iron manufactured from cast steel to come as a set of 4 with size range Small having 130mm Length of foot piece, Height of last: 100mm (including clamping square of 30mm), Width of last at forefoot: 55mm and Width of last at heel: 38mm. Medium having 160mm Length of foot piece, Height of last: 140mm (including clamping square of 40mm), Width of last at forefoot: 60mm and Width of last at heel: 40mm. Large having 200mm Length of foot piece, Height of last: 140mm (including clamping square of 40mm), Width of last at forefoot: 65mm and Width of last at heel: 47mm. And Exra-Large having 240mm Length of foot piece, Height of last: 140mm (including clamping square of 40mm), Width of last at forefoot: 80mm and Width of last at heel: 60mm. All manufactured according to sample","No",5,null,{"$f":"E1370*F1370","v":{"v":0,"d":"0.00"}}]
[]
[13,82,"Strap cutter Frame manufactured from solid brass with stamped measurements from 1cm – 15cm, Guide to be slotted (horizontally) to slide over frame, for width control. Guide to be slotted (vertically) for height adjustment (spring loaded) Fitted with steel roller with for ease of cutting (brass plated). Roller controlled by spring lever. Frame to be fitted with removable cutter (for sharpening of cutter)and Cutter to have ergonomically designed wooden handle","No",1,null,{"$f":"E1372*F1372","v":{"v":0,"d":"0.00"}}]
[]
[13,83,"Clamping device to secure plaster models manufactured from steel/painted to swivel horizontally and vertically, with 150 x 150mm base plate, 35mm diameter support clamping by means of lever and height adjusted by means of lever","No",6,null,{"$f":"E1374*F1374","v":{"v":0,"d":"0.00"}}]
[]
[13,84,"\"Otto bock\" or other equally approved plaster of paris separator manufactured with 4 chamber transparent purification system, closed system to prevent odour, with 50mm discharge connection and quick release lid. Including film inserts pack of 25 pieces, 480mm aluminium construction water pump for plaster separator, 135mm in length, inlet connection hose straight 500mm x 1 ½’’ and flexible outlet connection hose 500mm x 50mm. 330 x 210mm Plaster separator  including cleaning by means of film inserts","No",2,null,{"$f":"E1376*F1376","v":{"v":0,"d":"0.00"}}]
[]
[13,85,"\"Hopewell Footwear\" or other equally approved heavy duty revolving eyelet punch set complete with ten tools, for inserting different eyelets, Height of 370mm, manufactured with cast steel, bench model, handle with spiral gear for pressure application to be manufactured with tool steel to prevent breakage","No",1,null,{"$f":"E1378*F1378","v":{"v":0,"d":"0.00"}}]
[]
[13,86,"\"Hopewell Footwear\" or other equally approved 900 x 870 x 1400mm clicking press heavy duty heavy duty body construction with solid steel work surface, automatic knife height adjustment through hydrostatic sensor Adjustable potentiometer for depth setting, Hydraulic control by means of 2 hand switch control, Motor safety switch, Punch plate base (Aluminium), Must include synthetic plate (Polypropylene), Oil filing reservoir (Hydraulic Oil),  Power requirement (V/Hz/Kw) 400\\50\\0.75, 900 x 430mm working table, Press force of 20 tons, Length of stroke 90mm, Length of stroke without cutting plate of 125mm, Shaft length of 370mm","No",1,null,{"$f":"E1380*F1380","v":{"v":0,"d":"0.00"}}]
[]
[13,87,"\"Hopewell Footwear\" or other equally approved 32mm high 16 Set Hydraulic clicking knife 2.5-5mm thick manufactured from high tensile steel (Hardened for clicking press) with reinforcing to prevent distortion, Sharpened on both sides, To be manufactured according Orthotics and Prosthetic sample specifications","No",2,null,{"$f":"E1382*F1382","v":{"v":0,"d":"0.00"}}]
[]
["Bill No. 13",null,"Carried to Final Summary",{"$nulls":3},{"$f":"SUM(G1126:G1383)","v":{"v":0,"d":"0.00"}}]
[]
[14,null,"BILL NO. 14","H1"]
[]
[14,null,"PLASTERING","H1"]
[]
[14,null,"(CPAP WORK GROUP NO. 142 UNLESS OTHERWISE STATED)","H2"]
[]
[14,null,"PREAMBLES","H2"]
[]
[14,null,"The descriptions given in the various items below are not necessarily full and complete and reference must be made to the \"Standard Preambles To All Trades (Rev. 3) DOH 2009\", \"Supplementary Preambles\" and \"Supplementary Specifications\" to this contract for the full requirements of each scheduled item"]
[]
[14,null,"SUPPLEMENTARY PREAMBLES","H2"]
[]
[14,null,"Method","H3"]
[]
[14,null,"The method to be used shall be either the monolithic method or the bonded method"]
[]
[14,null,"Preparation","H3"]
[]
[14,null,"For granolithic applied monolithically, the concrete floor shall be swept clean after bleeding of the concrete has ceased and the slab has begun to stiffen; any remaining bleed water shall be removed and the granolithic applied immediately thereafter. For granolithic to be bonded to the floor slab after it has hardened, the slab surface shall be hacked (preferably by mechanical means) until all laitance, dirt, oil, etc. is dislodged and swept clean of all loose matter. The slab shall then be wetted and kept damp for at least six hours before applying the granolithic."]
[]
[14,null,"Mix","H3"]
[]
[14,null,"Granolithic shall attain a compressive strength of at least 41MPA. The coarse aggregate shall comply with SANS 1083 and shall generally be capable of passing a 10mm mesh sieve. Where the thickness of the granolithic exceeds 25mm, the size of the coarse aggregate shall be increased to the maximum size compatible with the thickness of the granolithic."]
[]
[14,null,"Panels","H3"]
[]
[14,null,"Granolithic shall be laid in panels not exceeding 14m2 for monolithic finishes, not exceeding 9.5m2 for bonded finishes and not exceeding 6m2 for all external granolithic. Wherever possible, panels shall be square but at no time should the length of the panel exceed 1.5 times its width.  Where possible joints between panels shall be positioned over joints in the floor slab and shall be at least 3mm wide through the full thickness of the finish, separated by strips of wood or fibreboard and finished with V-joints."]
[]
[14,null,"Laying","H3"]
[]
[14,null,"Granolithic shall be applied to the partially set slab and thoroughly compacted and lightly wood floated to the required levels.  Bonded granolithic shall be applied to the slab after applying a 1:1 sand and cement slurry brushed over the surface and allowed to partially set before applying the granolithic. The granolithic shall be thoroughly compacted and lightly wood floated to the required levels.  After wood floating, the monolithic and bonded granolithic shall remain undisturbed until bleeding has ceased and the surface has stiffened. Any remaining bleed water and laitance shall then be removed and the surface steel trowelled or power floated."]
[]
[14,null,"Curing, seasoning and protection","H3"]
[]
[14,null,"Granolithic shall be covered with clean hessian with waterproof building foil over and kept wet for at least seven days after laying."]
[]
[14,null,"Colour","H3"]
[]
[14,null,"Coloured granolithic shall be tinted with an  colouring pigment mixed into a true and even colour."]
[]
[14,null,"SCREEDS","H2"]
[]
[14,null,"Screeds wood floated, on concrete","H3"]
[]
[14,1,"30mm Thick on floors (LI)","m2",722,null,{"$f":"E1430*F1430","v":{"v":0,"d":"0.00"}}]
[]
[14,2,"40mm Thick on floors laid to falls and currents (LI)","m2",8,null,{"$f":"E1432*F1432","v":{"v":0,"d":"0.00"}}]
[]
[14,3,"120mm Thick on floors laid to falls and currents (LI)","m2",172,null,{"$f":"E1434*F1434","v":{"v":0,"d":"0.00"}}]
[]
[14,4,"75 x 75mm Triangular fillets against walls, kerbs, etc. (LI)","m",64,null,{"$f":"E1436*F1436","v":{"v":0,"d":"0.00"}}]
[]
[14,null,"GRANOLITHIC","H2"]
[]
[14,null,"Untinted granolithic, on concrete","H3"]
[]
[14,5,"Average 30mm thick on floors with upper surface to falls (LI)","m2",165,null,{"$f":"E1442*F1442","v":{"v":0,"d":"0.00"}}]
[]
[14,null,"INTERNAL PLASTER","H2"]
[]
[14,null,"One coat cement plaster steel floated on brickwork","H3"]
[]
[14,6,"On walls (LI)","m2",3283,null,{"$f":"E1448*F1448","v":{"v":0,"d":"0.00"}}]
[]
[14,7,"On narrow widths (LI)","m2",243,null,{"$f":"E1450*F1450","v":{"v":0,"d":"0.00"}}]
[]
[14,null,"Cement plaster steel trowelled on concrete","H3"]
[]
[14,8,"On ceilings (LI)","m2",210,null,{"$f":"E1454*F1454","v":{"v":0,"d":"0.00"}}]
[]
[14,9,"On columns (LI)","m2",201,null,{"$f":"E1456*F1456","v":{"v":0,"d":"0.00"}}]
[]
[14,10,"On beams (LI)","m2",197,null,{"$f":"E1458*F1458","v":{"v":0,"d":"0.00"}}]
[]
[14,null,"EXTERNAL PLASTER","H2"]
[]
[14,null,"One coat cement plaster wood floated on brickwork","H3"]
[]
[14,11,"On walls (LI)","m2",537,null,{"$f":"E1464*F1464","v":{"v":0,"d":"0.00"}}]
[]
[14,12,"On narrow widths (LI)","m2",40,null,{"$f":"E1466*F1466","v":{"v":0,"d":"0.00"}}]
[]
[14,null,"One coat cement plaster wood floated on concrete surfaces","H3"]
[]
[14,13,"On columns (LI)","m2",85,null,{"$f":"E1470*F1470","v":{"v":0,"d":"0.00"}}]
[]
[14,14,"On beams (LI)","m2",209,null,{"$f":"E1472*F1472","v":{"v":0,"d":"0.00"}}]
[]
[14,null,"CORNER PROTECTORS, DIVIDING STRIPS, ETC.","H2"]
[]
[14,null,"Dividing strips","H3"]
[]
[14,15,"3 x 40mm Flat section brass dividing strips between differing floor finishes","m",15,null,{"$f":"E1478*F1478","v":{"v":0,"d":"0.00"}}]
[]
["Bill No. 14",null,"Carried to Final Summary",{"$nulls":3},{"$f":"SUM(G1423:G1479)","v":{"v":0,"d":"0.00"}}]
[]
[15,null,"BILL NO. 15","H1"]
[]
[15,null,"TILING","H1"]
[]
[15,null,"(CPAP WORK GROUP NO. 144 UNLESS OTHERWISE STATED)","H2"]
[]
[15,null,"PREAMBLES","H2"]
[]
[15,null,"The descriptions given in the various items below are not necessarily full and complete and reference must be made to the \"Standard Preambles To All Trades (Rev. 3) DOH 2009\", \"Supplementary Preambles\" and \"Supplementary Specifications\" to this contract for the full requirements of each scheduled item"]
[]
[15,null,"SUPPLEMENTARY PREAMBLES","H2"]
[]
[15,null,"Fixing","H3"]
[]
[15,null,"Unless described as \"fixed with adhesive to plaster (plaster elsewhere)\" descriptions of tiling on brick or concrete walls, columns, etc. shall be deemed to include 1:4 cement plaster backing and descriptions of tiling on concrete floors etc. shall be deemed to include 1:3 plaster bedding.  Tiling described as \"fixed with adhesive on power floated concrete\" shall be deemed to include for  tiling key-coat.  Ceramic, porcelain, marble and granite tiles are to be fixed and grouted with suitable adhesives and grouts from the Tal Professional range of products as recommended by the manufacturer."]
[]
[15,null,"WALL TILING","H2"]
[]
[15,null,"300 x 300 x 7mm Tiletoria \"RN-STARWH\" or other equally approved porcelain tiles fixed with an approved  adhesive to plastered walls (plaster elsewhere measured) and flush pointed with waterproofing jointing compound to match tile colour","H3"]
[]
[15,1,"On walls (LI)","m2",592,null,{"$f":"E1502*F1502","v":{"v":0,"d":"0.00"}}]
[]
[15,2,"On narrow widths (LI)","m2",83,null,{"$f":"E1504*F1504","v":{"v":0,"d":"0.00"}}]
[]
[15,3,"On Splash backs (LI)","m2",4,null,{"$f":"E1506*F1506","v":{"v":0,"d":"0.00"}}]
[]
[15,4,"Fair exposed around pipe not exceeding 100mm internal diameter","No",17,null,{"$f":"E1508*F1508","v":{"v":0,"d":"0.00"}}]
[]
[15,5,"Fair exposed around pipe exceeding 100mm and not exceeding 150mm internal diameter","No",12,null,{"$f":"E1510*F1510","v":{"v":0,"d":"0.00"}}]
[]
[15,null,"FLOOR TILING","H2"]
[]
[15,null,"300 x 300 x 7mm Tiletoria \"RN-STARDG\" or other equally approved porcelain tile fixed with an approved adhesive mixture for porcelain tiles to screed (screed elsewhere) and flush pointed with tinted grout","H3"]
[]
[15,6,"On floors (LI)","m2",123,null,{"$f":"E1516*F1516","v":{"v":0,"d":"0.00"}}]
[]
[15,7,"100mm High skirting (LI)","m",25,null,{"$f":"E1518*F1518","v":{"v":0,"d":"0.00"}}]
[]
[15,null,"300 x 300 x 7mm Tiletoria \"RN4501\" or other equally approved porcelain glazed mosaic tile fixed with an approved adhesive mixture for porcelain tiles to screed (screed elsewhere) and flush pointed with tinted grout","H3"]
[]
[15,8,"On shower floors (LI)","m2",8,null,{"$f":"E1522*F1522","v":{"v":0,"d":"0.00"}}]
[]
[15,null,"SUNDRIES","H2"]
[]
[15,null,"\"M-trim\" or other equally approved:","H3"]
[]
[15,9,"8 x 12mm aluminium square edge trim (Code: ASQE120)","m",107,null,{"$f":"E1528*F1528","v":{"v":0,"d":"0.00"}}]
[]
["Bill No. 15",null,"Carried to Final Summary",{"$nulls":3},{"$f":"SUM(G1499:G1529)","v":{"v":0,"d":"0.00"}}]
[]
[16,null,"BILL NO. 16","H1"]
[]
[16,null,"PLUMBING AND DRAINAGE ","H1"]
[]
[16,null,"(CPAP WORK GROUP NO. 148 UNLESS OTHERWISE STATED)","H2"]
[]
[16,null,"PREAMBLES","H2"]
[]
[16,null,"The descriptions given in the various items below are not necessarily full and complete and reference must be made to the \"Standard Preambles To All Trades (Rev. 3) DOH 2009\", \"Supplementary Preambles\" and \"Supplementary Specifications\" to this contract for the full requirements of each scheduled item"]
[]
[16,null,"SUPPLEMENTARY PREAMBLES","H2"]
[]
[16,null,"Sealing of edges","H3"]
[]
[16,null,"Outer edges of sinks, basins, baths, urinals, etc. are to be sealed against adjacent surfaces with  silicone"]
[]
[16,null,"uPVC pipes and fittings","H3"]
[]
[16,null,"Sewer and drainage pipes and fittings shall be jointed and sealed with butyl rubber rings. Soil, waste and vent pipes and fittings shall be solvent weld jointed or sealed with butyl rubber rings"]
[]
[16,null,"uPVC pressure pipes and fittings","H3"]
[]
[16,null,"Pipes of 50mm diameter and smaller shall be plain ended with solvent welded uPVC loose sockets and fittings pipes of 63mm diameter and greater shall have sockets and spigots with push-in type integral rubber ring joints. Bends shall be uPVC and all other fittings shall be cast iron, all with similar push-in type joints"]
[]
[16,null,"High density polyethylene (HDPE) pipes and fittings","H3"]
[]
[16,null,"Pipes shall be type IV and of the class specified with Plasson or Alprene compression fittings"]
[]
[16,null,"Polycorp polypropylene pipes","H3"]
[]
[16,null,"Polypropylene pipes 54mm diameter and smaller shall be seamless copper coloured Class 16 pipes jointed with Fast-Fuse heat welded thermoplastic or where so described Polylock compression fittings. Pipes shall be firmly fixed to walls, etc. with coloured nylon snap-in pipe clips with provision for accommodating thermal movement and jointed and fixed strictly in accordance with the manufacturer`s instructions."]
[]
[16,null,"Copper pipes","H3"]
[]
[16,null,"Pipes shall be hard drawn and half-hard Maksal pipes of the class described. Class 0 (thin walled hard drawn) pipes shall not be bent. Class 1 (thin walled half-hard) Class 2 (Half-hard) and Class 3 (heavy walled half-hard) pipes shall only be bent with benders with inner and outer formers. Fittings to copper waste, vent and anti-syphon pipes, capillary solder fittings and compression fittings shall be Cobra Watertech type. Capillary solder fittings shall comply with ISO 2016.  Copper pipes are to be installed in accordance with the latest revision of the Code of Practice for Copper Plumbing soldering techniques. Flux, solder, etc. to be strictly in accordance with the manufacturer`s requirements with special attention to copper flux composition."]
[]
[16,null,"Reducing fittings","H3"]
[]
[16,null,"Where fittings have reducing ends or branches they are described as \"reducing\" and only the largest end or branch size is given. Should the contractor wish to use other fittings and bushes or reducers he may do so on the understanding that no claim in this regard will be entertained."]
[]
[16,null,"Fixing of pipes","H3"]
[]
[16,null,"Unless specifically otherwise stated, descriptions of pipes shall be deemed to include fixing to walls, etc. casting in, building in or suspending not exceeding 1m below suspension."]
[]
[16,null,"Paper wrapping to pipes","H3"]
[]
[16,null,"Pipes chased into brickwork must be wrapped with two layers of sout brown paper tied with wire. Rates are to include for wrapping around joints and fittings"]
[]
[16,null,"Densyl petrolatum anti-corrosion tape as manufactured by Denso SA (Pty) Ltd","H3"]
[]
[16,null,"Pipes to be taped shall be coated with the appropriate primer and the tape shall be applied in the appropriate widths and with overlaps. Couplings and fittings to pipes shall be taped in strict accordance with the manufacturer`s instructions including mastic, tape, Lay flat sheeting, securing of same, etc.  Prices for wrapping of pipes shall include for all work as described to couplings in the length."]
[]
[16,null,"Excavations","H3"]
[]
[16,null,"No claim for rock excavation will be entertained unless the contractor has timeously notified the quantity surveyor thereof prior to backfilling"]
[]
[16,null,"\"Intermediate material\" and \"hard material\" shall be as defined in \"Earthworks\""]
[]
[16,null,"Laying, backfilling, bedding, etc. of pipes","H3"]
[]
[16,null,"Pipes shall be laid and bedded and trenches shall be carefully backfilled in accordance with manufacturers' instructions"]
[]
[16,null,"Where no manufacturers' instructions exist pipes shall be laid in accordance with clauses 5.1 and 5.2 of each of the following: SABS 1200 L : Medium-pressure pipelines LD : Sewers LE : Stormwater drainage Pipe trenches, etc. shall be backfilled in accordance with clauses 3, 5.5, 5.6, 5.7 and 7 of SABS 1200 DB : Earthworks (Pipe trenches) Pipes shall be bedded in accordance with clauses 3.1 to 3.4.1, 5.1 to 5.3 and 7 of SABS 1200 LB : Bedding (Pipes). Unless otherwise described bedding of rigid pipes shall be class B bedding"]
[]
[16,null,"Flush pans","H3"]
[]
[16,null,"Flush pans shall have straight or side outlets and \"P\" or \"S\" traps as necessary"]
[]
[16,null,"Stainless steel basins, sinks, wash troughs, urinals, etc.","H3"]
[]
[16,null,"Units shall have standard aprons on all exposed edges and tiling keys against walls where applicable"]
[]
[16,null,"General","H3"]
[]
[16,null,"Descriptions of cast iron roof outlets shall be deemed to include joints to pipes and casting into concrete (adaptors for joints to PVC pipes, etc. are given separately) Descriptions of overflow pipes where measured in number, shall be deemed to include joints to cisterns and splay cut ends.  Descriptions of pipes laid in and including trenches and inspection chambers, catchpits, etc. shall be deemed to include excavation, bedding, backfilling, compaction to a minimum of 95% Mod AASHTO density.  Descriptions of service pipes and flexible connecting pipes shall be deemed to include connections to taps, cisterns, etc and to steel pipes (adaptors for connections to copper pipes, etc. are given separately).  Descriptions of WC pans, slop hoppers, etc. shall be deemed to include for joints to soil pipes (pan connectors are separately measured)."]
[]
[16,null,"As-built drawings","H3"]
[]
[16,null,"Where required, the contractor shall prepare an updated set of as-built drawings. At completion of the contract the contractor shall hand these drawings to the principal agent for reproducing onto the originals for handing over to the employer (provision for allowance of as built drawings elsewhere)"]
[]
[16,null,"RAINWATER DISPOSAL","H2"]
[]
[16,null,"\"Ogee profile aluminium H3003h 14\" or other equally approved seamless gutter in marble white colour with and including matching rivet fixed mitres and end caps internally sealed using \"Sika\" or other equally approved silicon mastic sealer. Gutters are to be hung with nailed fixed internal aluminium hangers at 600mm centres to fibre cement fascia boards (Fibre cement fascia boards elsewhere measured)","H3"]
[]
[16,1,"125 x 85 x 0.6mm Ogee profile gutter","m",111,null,{"$f":"E1616*F1616","v":{"v":0,"d":"0.00"}}]
[]
[16,2,"Extra over gutter for outlet","No",6,null,{"$f":"E1618*F1618","v":{"v":0,"d":"0.00"}}]
[]
[16,3,"Extra over gutter for box gutter approximate size 600 x 350mm deep six times bent","m",42,null,{"$f":"E1620*F1620","v":{"v":0,"d":"0.00"}}]
[]
[16,null,"0.7mm Baked enamel aluminium downpipe including holder butts ","H3"]
[]
[16,4,"100 x 75mm rainwater pipe","m",20,null,{"$f":"E1624*F1624","v":{"v":0,"d":"0.00"}}]
[]
[16,5,"Extra over rainwater pipe for bend","No",12,null,{"$f":"E1626*F1626","v":{"v":0,"d":"0.00"}}]
[]
[16,6,"Extra over rainwater pipe for shoe","No",6,null,{"$f":"E1628*F1628","v":{"v":0,"d":"0.00"}}]
[]
[16,null,"SOIL DRAINAGE","H2"]
[]
[16,null,"uPVC pipes in class C bedding:","H3"]
[]
[16,7,"110mm Pipes vertically or ramped to cleaning eyes, etc. (no excavation) (LI)","m",13,null,{"$f":"E1634*F1634","v":{"v":0,"d":"0.00"}}]
[]
[16,8,"110mm Pipes laid in and including trenches not exceeding 1m deep (LI)","m",57,null,{"$f":"E1636*F1636","v":{"v":0,"d":"0.00"}}]
[]
[16,null,"Extra over uPVC pipes for fittings:","H3"]
[]
[16,9,"110mm Bend (LI)","No",26,null,{"$f":"E1640*F1640","v":{"v":0,"d":"0.00"}}]
[]
[16,10,"110mm Access junction (LI)","No",13,null,{"$f":"E1642*F1642","v":{"v":0,"d":"0.00"}}]
[]
[16,null,"Testing","H3"]
[]
[16,11,"Testing soil drainage pipe system","Item",1,null,{"$f":"E1646*F1646","v":{"v":0,"d":"0.00"}}]
[]
[16,null,"SUNDRIES","H2"]
[]
[16,12,"Excavate for and construct gulley comprising of 110mm uPVC gulley trap with 190mm diameter uPVC hopper head with pvc grating, all set in mass concrete and not exceeding 500mm deep. The top of the gulley to be raised 75mm above surrounding ground level and internally dished down to hopper head with smoothened render and external of raised sides to be finished neatly.","No",6,null,{"$f":"E1650*F1650","v":{"v":0,"d":"0.00"}}]
[]
[16,null,"SANITARY FITTINGS","H2"]
[]
[16,null,"Supply, fix, clean, wash and leave in a satisfactory condition the following items of sanitaryware:","H3"]
[]
[16,13,"“Vaal” or other equally approved BI wall hung urinal – white. Wall-hung urinal with top inlet. Supplied with a 38 mm chrome plated dome grating, a spreader (with a 20mm diameter thread), including flush pipe and two hanger brackets. 385mm x 380mm x 600mm (Code: VAA-705426WH).","No",3,null,{"$f":"E1656*F1656","v":{"v":0,"d":"0.00"}}]
[]
[16,14,"\"Grohe\" or other equally approved bau ceramic wall-hung pan with horizontal outlet white (Code: Gro-39491000), size: 412 x 180 x 494mm.","No",5,null,{"$f":"E1658*F1658","v":{"v":0,"d":"0.00"}}]
[]
[16,15,"\"Grohe\" or other equally approved bau soft close toilet seat and lid with quick release function (Code: GRO-39493000), colour: white, size: 383 x 49 x 460mm.","No",5,null,{"$f":"E1660*F1660","v":{"v":0,"d":"0.00"}}]
[]
[16,16,"\"Grohe\" or other equally approved uniset for WC  concealed cistern flush system  6 - 9 L adjustable (Code: GRO-38729000), size 1108 x 556 x 80mm.","No",5,null,{"$f":"E1662*F1662","v":{"v":0,"d":"0.00"}}]
[]
[16,17,"\"Grohe\" or other equally approved skate air for stop / start act horizontal chrome (Code: GRO-38565000).","No",5,null,{"$f":"E1664*F1664","v":{"v":0,"d":"0.00"}}]
[]
[16,18,"\"Grohe\" or other equally approved rapid SL 4 outlet adaptor female black (Code: GRO-42242000).","No",5,null,{"$f":"E1666*F1666","v":{"v":0,"d":"0.00"}}]
[]
[16,19,"“Vaal” or other equally approved pearl paraplegic\" semi close couple 90° outlet open rim wash-down pan and matching 9 litre cistern complete with lid, fitments, and purpose made C.P. side-flush lever (left or right) supplied with purpose made urea seat and cover plate (Code: 7300SCWH).","No",8,null,{"$f":"E1668*F1668","v":{"v":0,"d":"0.00"}}]
[]
[16,20,"\"Grohe\" or other equally approved bau ceramic wall-hung basin one hole punched with overflow (Code: GRO-39440000), colour: white, size: 553 x 386mm. Basin fix to walls with bracket.","No",11,null,{"$f":"E1670*F1670","v":{"v":0,"d":"0.00"}}]
[]
[16,21,"\"Vaal\" or other equally approved cameo oval self-rimming vanity basin with three semi-punched tap holes. One tap hole configuration, and chain stay hole through the centre semi-punched tap hole (Code: Vaa-702803WH). Basin fixed on vanity top (Vanity top elsewhere measured) including silicon around basin. ","No",10,null,{"$f":"E1672*F1672","v":{"v":0,"d":"0.00"}}]
[]
[16,null,"Stainless Steel","H3"]
[]
[16,null,"The following stainless steel units shall be manufactured in accordance with SABS 242","H4"]
[]
[16,null,"Flush pans shall have straight or side outlets and \"P\" or \"S\" traps as necessary."]
[]
[16,22,"“Franke PLN 611\" or other equally approved double end bowl inset sink (Code: 821047), grade 304 18/10 polished stainless steel finish, and supplied complete with 90mm basket strainer waste fittings. Sinks to be fitted to counter top (Counter top elsewhere measured). Silicone seal between sink and counter top. Size- 800 x 460mm.","No",1,null,{"$f":"E1680*F1680","v":{"v":0,"d":"0.00"}}]
[]
[16,23,"“Franke” or other equally approved floor standing bucket sink manufactured from grade 1.4301 (304) stainless steel, material thickness 1.2 mm, with splash back, hinged grating, 38 mm BSP waste fitting and complete with integral wall brackets. The bucket sink is supported on two front legs and is held in position by screwing the two integral wall brackets directly to the wall (Code: G21663N).","No",3,null,{"$f":"E1682*F1682","v":{"v":0,"d":"0.00"}}]
[]
[16,24,"“Franke” or other equally approved 1,2mm thick grade 304 18/10 stainless steel double pressed bowl industrial overall sink size 2400 x 700 x 900mm high with grade 304 stainless steel tubular legs with adjustable foot pieces for easy levelling on the floor, 2x rubber stopper, with an integral 150mm high splash back to the rear (Code: E20628D).","No",2,null,{"$f":"E1684*F1684","v":{"v":0,"d":"0.00"}}]
[]
[16,null,"\"The Water Company\" or other equally approved economy water fountain:","H3"]
[]
[16,25,"Water fountain (Code: WC-H-DFC020) comprising stainless steel cold tank, compressor cooling, adjustable thermostat for cold water, cooling capacity, ambient operation temperatures, etc. overall size 1230mm x 320mm x 310mm (H x D x W). Water fountain to connect to power and water main. ","No",1,null,{"$f":"E1688*F1688","v":{"v":0,"d":"0.00"}}]
[]
[16,null,"SANITARY PLUMBING","H2"]
[]
[16,null,"Geberit HDPE or otther equally approved pipes ","H3"]
[]
[16,26,"56mm Pipes (LI)","m",9,null,{"$f":"E1694*F1694","v":{"v":0,"d":"0.00"}}]
[]
[16,27,"56mm Pipes in chase in walls and floors (LI)","m",80,null,{"$f":"E1696*F1696","v":{"v":0,"d":"0.00"}}]
[]
[16,28,"63mm Pipes in chase in walls and floors (LI)","m",45,null,{"$f":"E1698*F1698","v":{"v":0,"d":"0.00"}}]
[]
[16,29,"75mm Pipes in chase in walls and floors (LI)","m",12,null,{"$f":"E1700*F1700","v":{"v":0,"d":"0.00"}}]
[]
[16,30,"110mm Pipes  (LI)","m",46,null,{"$f":"E1702*F1702","v":{"v":0,"d":"0.00"}}]
[]
[16,31,"110mm Pipes in chase in walls and floors (LI)","m",26,null,{"$f":"E1704*F1704","v":{"v":0,"d":"0.00"}}]
[]
[16,null,"Extra over pipes Geberit HDPE or other equally approved fittings ","H3"]
[]
[16,32,"56mm Bend (LI)","No",64,null,{"$f":"E1708*F1708","v":{"v":0,"d":"0.00"}}]
[]
[16,33,"56mm Access bend (LI)","No",32,null,{"$f":"E1710*F1710","v":{"v":0,"d":"0.00"}}]
[]
[16,34,"56mm Junction (LI)","No",4,null,{"$f":"E1712*F1712","v":{"v":0,"d":"0.00"}}]
[]
[16,35,"56mm Access junction (LI)","No",9,null,{"$f":"E1714*F1714","v":{"v":0,"d":"0.00"}}]
[]
[16,36,"63mm Bend (LI)","No",9,null,{"$f":"E1716*F1716","v":{"v":0,"d":"0.00"}}]
[]
[16,37,"63mm Access junction (LI)","No",2,null,{"$f":"E1718*F1718","v":{"v":0,"d":"0.00"}}]
[]
[16,38,"75mm Bend (LI)","No",5,null,{"$f":"E1720*F1720","v":{"v":0,"d":"0.00"}}]
[]
[16,39,"75mm Access junction (LI)","No",5,null,{"$f":"E1722*F1722","v":{"v":0,"d":"0.00"}}]
[]
[16,40,"110mm Bend (LI)","No",33,null,{"$f":"E1724*F1724","v":{"v":0,"d":"0.00"}}]
[]
[16,41,"110mm Access bend (LI)","No",14,null,{"$f":"E1726*F1726","v":{"v":0,"d":"0.00"}}]
[]
[16,42,"110mm Access junction (LI)","No",20,null,{"$f":"E1728*F1728","v":{"v":0,"d":"0.00"}}]
[]
[16,43,"110 x 56mm Access junction (LI)","No",11,null,{"$f":"E1730*F1730","v":{"v":0,"d":"0.00"}}]
[]
[16,44,"110 x 63mm Access junction (LI)","No",12,null,{"$f":"E1732*F1732","v":{"v":0,"d":"0.00"}}]
[]
[16,45,"110 x 75mm Access junction (LI)","No",4,null,{"$f":"E1734*F1734","v":{"v":0,"d":"0.00"}}]
[]
[16,46,"63mm Reducer (LI)","No",4,null,{"$f":"E1736*F1736","v":{"v":0,"d":"0.00"}}]
[]
[16,47,"75mm Reducer (LI)","No",4,null,{"$f":"E1738*F1738","v":{"v":0,"d":"0.00"}}]
[]
[16,48,"110mm Reducer (LI)","No",2,null,{"$f":"E1740*F1740","v":{"v":0,"d":"0.00"}}]
[]
[16,49,"110mm \"GI Two-way\" vent valve (LI)","No",12,null,{"$f":"E1742*F1742","v":{"v":0,"d":"0.00"}}]
[]
[16,50,"56mm Straight connector for basin/sink ","No",28,null,{"$f":"E1744*F1744","v":{"v":0,"d":"0.00"}}]
[]
[16,51,"56mm Straight connector for urinal ","No",15,null,{"$f":"E1746*F1746","v":{"v":0,"d":"0.00"}}]
[]
[16,52,"110mm Straight or bent pan connector ","No",12,null,{"$f":"E1748*F1748","v":{"v":0,"d":"0.00"}}]
[]
[16,53,"110mm Rodding eye with cast iron cover and frame (LI)","No",4,null,{"$f":"E1750*F1750","v":{"v":0,"d":"0.00"}}]
[]
[16,null,"\"Flexitraps\"","H3"]
[]
[16,54,"\"Marley\" or other equally approved 38mm Butyl rubber \"P\" or \"S\" trap jointed to waste outlet fitting and uPVC pipe including clamps","No",3,null,{"$f":"E1754*F1754","v":{"v":0,"d":"0.00"}}]
[]
[16,null,"Brass traps, waste unions, etc.","H3"]
[]
[16,55,"\"Franke\" or other equally approved plumbing kits Spazi F/2 double bowl","No",1,null,{"$f":"E1758*F1758","v":{"v":0,"d":"0.00"}}]
[]
[16,56,"\"Franke\" or other equally approved Spazi F/1 Single Bowl Plumbing Kit 1120008","No",1,null,{"$f":"E1760*F1760","v":{"v":0,"d":"0.00"}}]
[]
[16,57,"\"Cobra\" or other equally approved urinal bottle trap (Code: COB-360)","No",3,null,{"$f":"E1762*F1762","v":{"v":0,"d":"0.00"}}]
[]
[16,58,"\"Cobra\" or other equally approved basin bottle trap, 32 x 40mm, chrome (Code: COB-0617CH)","No",21,null,{"$f":"E1764*F1764","v":{"v":0,"d":"0.00"}}]
[]
[16,59,"\"Cobra\" or other equally approved basin wastes - chrome (Code: COB-P-303)","No",21,null,{"$f":"E1766*F1766","v":{"v":0,"d":"0.00"}}]
[]
[16,60,"\"Cobra\" or other equally approved 38mm Shower trap with incorporated chromium square grating (Code: COB-373SQ)","No",4,null,{"$f":"E1768*F1768","v":{"v":0,"d":"0.00"}}]
[]
[16,null,"Floor Drains","H3"]
[]
[16,61,"\"Herbish\" or other equally approved HB 200 V (H) NW100 stainless steel floor drain connected uPVC pipes all in accordance to manufacturer's details","No",3,null,{"$f":"E1772*F1772","v":{"v":0,"d":"0.00"}}]
[]
[16,null,"Testing","H3"]
[]
[16,62,"Testing waste pipe system","Item",1,null,{"$f":"E1776*F1776","v":{"v":0,"d":"0.00"}}]
[]
[16,null,"WATER SUPPLIES","H2"]
[]
[16,null,"HDPE class 12 pipes in ground","H3"]
[]
[16,63,"20mm Pipes laid in trenches (No excavations) (LI)","m",2,null,{"$f":"E1782*F1782","v":{"v":0,"d":"0.00"}}]
[]
[16,64,"20mm Pipes laid in trenches including excavations, risk of collapse, backfilling, etc. (LI)","m",4,null,{"$f":"E1784*F1784","v":{"v":0,"d":"0.00"}}]
[]
[16,65,"32mm Pipes laid in trenches (No excavations) (LI)","m",3,null,{"$f":"E1786*F1786","v":{"v":0,"d":"0.00"}}]
[]
[16,66,"32mm Pipes laid in trenches including excavations, risk of collapse, backfilling, etc. (LI)","m",13,null,{"$f":"E1788*F1788","v":{"v":0,"d":"0.00"}}]
[]
[16,67,"40mm Pipes laid in trenches (No excavations) (LI)","m",1,null,{"$f":"E1790*F1790","v":{"v":0,"d":"0.00"}}]
[]
[16,68,"40mm Pipes laid in trenches including excavations, risk of collapse, backfilling, etc. (LI)","m",3,null,{"$f":"E1792*F1792","v":{"v":0,"d":"0.00"}}]
[]
[16,null,"Extra over HDPE pipes for fittings:","H3"]
[]
[16,69,"20mm Elbow (LI)","No",4,null,{"$f":"E1796*F1796","v":{"v":0,"d":"0.00"}}]
[]
[16,70,"32mm Elbow (LI)","No",7,null,{"$f":"E1798*F1798","v":{"v":0,"d":"0.00"}}]
[]
[16,71,"40mm Elbow (LI)","No",2,null,{"$f":"E1800*F1800","v":{"v":0,"d":"0.00"}}]
[]
[16,null,"Copper pipes:","H3"]
[]
[16,null,"Pipes shall be hard drawn and half-hard pipes of the class stated. Class 0 (thin walled hard drawn) pipes shall not be bent. Class 1 (thin walled half-hard), class 2 (half-hard) and class 3 (heavy walled half-hard) pipes shall only be bent with benders with inner and outer formers. Fittings to copper waste, vent and anti-syphon pipes, capillary solder fittings and compression fittings shall be \"Cobra Watertech\" type. Capillary solder fittings shall comply with ISO 2016. Only compression fittings shall be used in walls or in ground"]
[]
[16,null,"\"Geberit Mepla\" or other equally approved pipes ","H3"]
[]
[16,72,"16mm Pipes (LI)","m",26,null,{"$f":"E1808*F1808","v":{"v":0,"d":"0.00"}}]
[]
[16,73,"16mm Pipes in chase in walls (LI)","m",156,null,{"$f":"E1810*F1810","v":{"v":0,"d":"0.00"}}]
[]
[16,74,"20mm Pipes (LI)","m",10,null,{"$f":"E1812*F1812","v":{"v":0,"d":"0.00"}}]
[]
[16,75,"20mm Pipes in chase in walls (LI)","m",26,null,{"$f":"E1814*F1814","v":{"v":0,"d":"0.00"}}]
[]
[16,76,"25mm Pipes (LI)","m",42,null,{"$f":"E1816*F1816","v":{"v":0,"d":"0.00"}}]
[]
[16,77,"25mm Pipes in chase in walls (LI)","m",115,null,{"$f":"E1818*F1818","v":{"v":0,"d":"0.00"}}]
[]
[16,78,"32mm Pipes (LI)","m",71,null,{"$f":"E1820*F1820","v":{"v":0,"d":"0.00"}}]
[]
[16,79,"32mm Pipes in chase in walls (LI)","m",28,null,{"$f":"E1822*F1822","v":{"v":0,"d":"0.00"}}]
[]
[16,80,"40mm Pipes (LI)","m",35,null,{"$f":"E1824*F1824","v":{"v":0,"d":"0.00"}}]
[]
[16,null,"Extra over 'Gerberit Mepla\" or other equally approved pipes for fittings ","H3"]
[]
[16,81,"16mm Fittings (LI)","No",118,null,{"$f":"E1828*F1828","v":{"v":0,"d":"0.00"}}]
[]
[16,82,"20mm Fittings (LI)","No",121,null,{"$f":"E1830*F1830","v":{"v":0,"d":"0.00"}}]
[]
[16,83,"25mm Fittings (LI)","No",31,null,{"$f":"E1832*F1832","v":{"v":0,"d":"0.00"}}]
[]
[16,84,"32mm Elbow (LI)","No",12,null,{"$f":"E1834*F1834","v":{"v":0,"d":"0.00"}}]
[]
[16,85,"32mm Reducer (LI)","No",5,null,{"$f":"E1836*F1836","v":{"v":0,"d":"0.00"}}]
[]
[16,86,"32mm Tees (LI)","No",3,null,{"$f":"E1838*F1838","v":{"v":0,"d":"0.00"}}]
[]
[16,87,"32 x 16mm Tees (LI)","No",3,null,{"$f":"E1840*F1840","v":{"v":0,"d":"0.00"}}]
[]
[16,88,"32 x 20mm Tees (LI)","No",4,null,{"$f":"E1842*F1842","v":{"v":0,"d":"0.00"}}]
[]
[16,null,"Extra over 'Gerberit Mepla\" or other equally approved pipes for brass compression fittings:","H3"]
[]
[16,89,"16mm Fittings (LI)","No",72,null,{"$f":"E1846*F1846","v":{"v":0,"d":"0.00"}}]
[]
[16,90,"20mm Fittings (LI)","No",72,null,{"$f":"E1848*F1848","v":{"v":0,"d":"0.00"}}]
[]
[16,91,"25mm Fittings (LI)","No",3,null,{"$f":"E1850*F1850","v":{"v":0,"d":"0.00"}}]
[]
[16,92,"40 x 32mm Reducer (LI)","No",1,null,{"$f":"E1852*F1852","v":{"v":0,"d":"0.00"}}]
[]
[16,null,"TAPS, VALVES, ETC.","H2"]
[]
[16,null,"Taps, valves, etc.  jointed to copper pipes are to include brass connectors, adaptors, etc. Installation and fixings to be as per manufacturers specifications and SANS 1808-9 compliant.  ","H3"]
[]
[16,93,"16mm Flexible service pipe 300mm girth","No",75,null,{"$f":"E1858*F1858","v":{"v":0,"d":"0.00"}}]
[]
[16,94,"16mm Angle valve","No",75,null,{"$f":"E1860*F1860","v":{"v":0,"d":"0.00"}}]
[]
[16,95,"20mm Angle regulating valve ","No",16,null,{"$f":"E1862*F1862","v":{"v":0,"d":"0.00"}}]
[]
[16,96,"20mm Ball-O-Stop valve","No",18,null,{"$f":"E1864*F1864","v":{"v":0,"d":"0.00"}}]
[]
[16,97,"25mm Ball-O-Stop valve","No",5,null,{"$f":"E1866*F1866","v":{"v":0,"d":"0.00"}}]
[]
[16,98,"Temperature balancing valve ","No",2,null,{"$f":"E1868*F1868","v":{"v":0,"d":"0.00"}}]
[]
[16,99,"“Cobra” or other equally approved junior flush valves - chrome. Junior flush master exposed flush valve, chrome. Includes-3/4 Ball-O-Stop control inlet, wall flange, additional toilet piston screw, and non-hold open feature. SANS 1240, JASWIC listed. (Code: COB-FJ6-000)","No",3,null,{"$f":"E1870*F1870","v":{"v":0,"d":"0.00"}}]
[]
[16,100,"\"Cobra\" or other equally approved Noka 15mm chrome plated deck mounted sink mixer with overarm swivel outlet and adjustable flanges (Code: NA-970), manufactured in accordance with SANS 226:2004 Type 1 (BS 5412) ","No",1,null,{"$f":"E1872*F1872","v":{"v":0,"d":"0.00"}}]
[]
[16,101,"\"Franke\" or other equally approved water save self-closing push button pillar tap, chrome finish, with flow time of 6 - 9 sec. (Code: F5SV1001)","No",9,null,{"$f":"E1874*F1874","v":{"v":0,"d":"0.00"}}]
[]
[16,102,"\"Cobra\" or other equally approved medical elbow action pillar tap with high waist - chrome. Medical elbow-action pillar tap, chrome. Includes: 1/4 inch turn ceramic disc head part, blue indice, 1/2 inch BSP male inlet, and flanged back nut. SANS 226 TYPE 2. (Code: COB-515-21)","No",13,null,{"$f":"E1876*F1876","v":{"v":0,"d":"0.00"}}]
[]
[16,103,"\"Cobra\" or other equally approved brass hose bib tap (Code: 108-20), manufactured in accordance with SANS 226:2009 Type 1 (BS 1010) ","No",3,null,{"$f":"E1878*F1878","v":{"v":0,"d":"0.00"}}]
[]
[16,104,"\"Cobra\" or other equally approved Noka 15mm chrome plated wall mounted underwall mixer (Code: NA-956), manufactured in accordance with SANS 226:2004 Type 2 (BS 5412) ","No",4,null,{"$f":"E1880*F1880","v":{"v":0,"d":"0.00"}}]
[]
[16,105,"\"Idral\" or other equally approved water save vandal proof shower rose, chrome finish (Code: 09033)","No",4,null,{"$f":"E1882*F1882","v":{"v":0,"d":"0.00"}}]
[]
[16,null,"ELECTRIC HEAT PUMPS, WATER HEATERS, EXPANSION VESSELS, ETC.","H2"]
[]
[16,106,"'Kwikot' or other approved 30 litre high pressure hot water heater and hoist and fix in position on and including fibreglass drip tray, draincock, catch tray, vacuum breaker, multi pressure control, isolator, expansion relief valve, safety valve, water overflow pipe including fittings, necessary fixing accessories and two connections for 22mm copper pipes including connectors","No",2,null,{"$f":"E1886*F1886","v":{"v":0,"d":"0.00"}}]
[]
[16,107,"'Kwikot' or other approved 100 litre high pressure hot water heater and hoist and fix in position on and including fibreglass drip tray, draincock, catch tray, vacuum breaker, multi pressure control, isolator, expansion relief valve, safety valve, water overflow pipe including fittings, necessary fixing accessories and two connections for 22mm copper pipes including connectors","No",1,null,{"$f":"E1888*F1888","v":{"v":0,"d":"0.00"}}]
[]
[16,108,"'Kwikot' or other approved 200 litre high pressure hot water heater and hoist and fix in position on and including fibreglass drip tray, draincock, catch tray, vacuum breaker, multi pressure control, isolator, expansion relief valve, safety valve, water overflow pipe including fittings, necessary fixing accessories and two connections for 22mm copper pipes including connectors","No",2,null,{"$f":"E1890*F1890","v":{"v":0,"d":"0.00"}}]
[]
[16,109,"\"KwikPump / HP-010\" or other equally approved hot water heat pump 5.6kw including pipes, fittings, valves, electrical connection, etc. complete installation ","No",1,null,{"$f":"E1892*F1892","v":{"v":0,"d":"0.00"}}]
[]
[16,110,"\"KwikPump / HP-010\" or other equally approved hot water heat pump 3,6kw including pipes, fittings, valves, electrical connection, etc. complete installation ","No",2,null,{"$f":"E1894*F1894","v":{"v":0,"d":"0.00"}}]
[]
[16,null,"FIRE APPLIANCES, ETC.","H2"]
[]
[16,111,"4.5kg DCP fire extinguisher securely fixed to wall on backing board in strict accordance with all requirements of authorities","No",8,null,{"$f":"E1898*F1898","v":{"v":0,"d":"0.00"}}]
[]
[16,112,"9kg DCP fire extinguisher securely fixed to wall on backing board in strict accordance with all requirements of authorities","No",3,null,{"$f":"E1900*F1900","v":{"v":0,"d":"0.00"}}]
[]
[16,113,"5kg CO2 fire extinguisher securely fixed to wall on backing board in strict accordance with all requirements of authorities","No",2,null,{"$f":"E1902*F1902","v":{"v":0,"d":"0.00"}}]
[]
[16,114,"Fire hose reel fixed to wall with bracket including cover","No",4,null,{"$f":"E1904*F1904","v":{"v":0,"d":"0.00"}}]
[]
[16,null,"WATER SUPPLIES TO FIRE APPLIANCES","H2"]
[]
[16,null,"Galvanised mild steel pipes in ground wrapped with rust protection tape","H3"]
[]
[16,115,"100mm Pipes vertically, etc. (no excavation) (LI)","m",4,null,{"$f":"E1910*F1910","v":{"v":0,"d":"0.00"}}]
[]
[16,116,"100mm Pipes laid in trenches including excavations, risk of collapse, backfilling, etc. (LI)","m",80,null,{"$f":"E1912*F1912","v":{"v":0,"d":"0.00"}}]
[]
[16,null,"Extra over galvanised mild steel pipes for fittings:","H3"]
[]
[16,117,"100mm Bend (LI)","No",11,null,{"$f":"E1916*F1916","v":{"v":0,"d":"0.00"}}]
[]
[16,null,"SABS Black Mild Steel pipes including all holder butts and couplings in the running length with welded type fittings to be used. All pipe in wall/floor chases to be wrapped twice in brown Kraft paper. Pipes passing through opening in brickwork or slab shall be coated with DENZO Protective pipe wrapping. All pipes to be painted with one coat primer and two coats signal red.","H3"]
[]
[16,118,"25mm Pipes (LI)","m",50,null,{"$f":"E1920*F1920","v":{"v":0,"d":"0.00"}}]
[]
[16,119,"100mm Pipes (LI)","m",37,null,{"$f":"E1922*F1922","v":{"v":0,"d":"0.00"}}]
[]
[16,null,"Extra over Black Mild Steel pipe for welded type fittings:","H3"]
[]
[16,120,"28mm Bend (LI)","No",4,null,{"$f":"E1926*F1926","v":{"v":0,"d":"0.00"}}]
[]
[16,121,"100mm Stop end (LI)","No",4,null,{"$f":"E1928*F1928","v":{"v":0,"d":"0.00"}}]
[]
[16,122,"100mm Coupling (LI)","No",4,null,{"$f":"E1930*F1930","v":{"v":0,"d":"0.00"}}]
[]
[16,123,"100 x 28mm Tees (LI)","No",4,null,{"$f":"E1932*F1932","v":{"v":0,"d":"0.00"}}]
[]
[16,null,"SUNDRIES TO WATER SUPPLIES","H2"]
[]
[16,124,"28mm M1 Union","No",4,null,{"$f":"E1936*F1936","v":{"v":0,"d":"0.00"}}]
[]
[16,125,"28mm Stop valve","No",4,null,{"$f":"E1938*F1938","v":{"v":0,"d":"0.00"}}]
[]
[16,126,"65mm Instantaneous fire hydrant complete with mounting bracket, etc. ","No",2,null,{"$f":"E1940*F1940","v":{"v":0,"d":"0.00"}}]
[]
[16,127,"100mm Fire hydrant","No",4,null,{"$f":"E1942*F1942","v":{"v":0,"d":"0.00"}}]
[]
[16,null,"PIPE INSULATION","H2"]
[]
[16,null,"Thermaflex snap on sectional pipe insulation, neatly cut around pipe as required","H3"]
[]
[16,128,"Insulation to 15mm diameter piping and couplings including working around fittings (LI)","m",169,null,{"$f":"E1948*F1948","v":{"v":0,"d":"0.00"}}]
[]
[16,129,"Insulation to 22mm diameter piping and couplings including working around fittings (LI)","m",132,null,{"$f":"E1950*F1950","v":{"v":0,"d":"0.00"}}]
[]
[16,null,"Testing","H3"]
[]
[16,130,"Testing water pipe system","Item",1,null,{"$f":"E1954*F1954","v":{"v":0,"d":"0.00"}}]
[]
["Bill No. 16",null,"Carried to Final Summary",{"$nulls":3},{"$f":"SUM(G1614:G1955)","v":{"v":0,"d":"0.00"}}]
[]
[17,null,"ELECTRICAL WORK","H1"]
[]
[17,null,"BILL NO. 17","H1"]
[]
[17,null,"(CPAP WORK GROUP NO. 160 UNLESS OTHERWISE STATED)","H2"]
[]
[17,null,"PREAMBLES","H2"]
[]
[17,null,"The descriptions given in the various items below are not necessarily full and complete and reference must be made to the \"Standard Preambles To All Trades (Rev. 3) DOH 2009\", \"Supplementary Preambles\" and \"Supplementary Specifications\" to this contract for the full requirements of each scheduled item"]
[]
[17,null,"SUPPLEMENTARY PREAMBLES","H2"]
[]
[17,null,"Specifications, drawings, etc","H4"]
[]
[17,null,"Tenderers are referred to the specification and drawings  annexed to these bills of quantities for the electrical work, for the full descriptions of the following items which are to be read and priced in conjunction with the said specification and drawings"]
[]
[17,null,"Distribution boards etc","H4"]
[]
[17,null,"Rates for distribution boards, etc. are to include for busbars, jumpers, neutral bars, internal wiring and connections, circuit identification markers, control gear labels, circuit legend cards and working drawings"]
[]
[17,null,"Switches, socket outlets, etc. ","H4"]
[]
[17,null,"Rates for switches, socket outlets, etc. are to include for screwing to outlet boxes, connecting up and cover plates"]
[]
[17,null,"Light fittings","H4"]
[]
[17,null,"Rates for light fittings are to include for hanging, fixing and connecting and for lamp holders and fluorescent tubes and lamps of the type and wattage described"]
[]
[17,null,"HIGH TENSION DISTRIBUTION ","H1"]
[]
[17,1,"95mm² 3 Core XLPE on Groupe Schneider ring main unit switch disconnecter using Raychem heat shrink termination kit and cable gland","No",4,null,{"$f":"E1988*F1988","v":{"v":0,"d":"0.00"}}]
[]
[17,2,"Test each cable length once installed prior to preparing ends","No",4,null,{"$f":"E1990*F1990","v":{"v":0,"d":"0.00"}}]
[]
[17,3,"Test each cable length once ends have been prepared and termination kits fitted, but not connected to equipment","No",4,null,{"$f":"E1992*F1992","v":{"v":0,"d":"0.00"}}]
[]
[17,null,"LOW TENSION DISTRIBUTION ","H1"]
[]
[17,null,"DISTRIBUTION BOARDS","H2"]
[]
[17,null,"Distribution Boards as per Distribution Board schedule ","H2"]
[]
[17,4,"Main LV Board as per Drawing No. 403","No",1,null,{"$f":"E2000*F2000","v":{"v":0,"d":"0.00"}}]
[]
[17,5,"DB A/AE/A-UPS as per Drawing No. 404","No",1,null,{"$f":"E2002*F2002","v":{"v":0,"d":"0.00"}}]
[]
[17,6,"DB B/BE/B-UPS as per Drawing No.405","No",1,null,{"$f":"E2004*F2004","v":{"v":0,"d":"0.00"}}]
[]
[17,7,"DB GE (Guard House) as per Drawing No. 406","No",1,null,{"$f":"E2006*F2006","v":{"v":0,"d":"0.00"}}]
[]
[17,8,"DB DE (Domestic Waste) as per Drawing No.407","No",1,null,{"$f":"E2008*F2008","v":{"v":0,"d":"0.00"}}]
[]
[17,9,"DB UPS as per Drawing No. 408","No",1,null,{"$f":"E2010*F2010","v":{"v":0,"d":"0.00"}}]
[]
[17,null,"CABLING","H2"]
[]
[17,null,"1000/600V PVC/SWA/ECC/PVC copper cables secured to cable laid in trenches or drawn through sleeve pipes (trenches and sleeve pipes elsewhere measured) ","H3"]
[]
[17,10,"95mm² 4 Core","m",260,null,{"$f":"E2016*F2016","v":{"v":0,"d":"0.00"}}]
[]
[17,11,"70mm² 4 Core","m",110,null,{"$f":"E2018*F2018","v":{"v":0,"d":"0.00"}}]
[]
[17,12,"35mm² 4 Core","m",150,null,{"$f":"E2020*F2020","v":{"v":0,"d":"0.00"}}]
[]
[17,13,"25mm² 4 Core","m",220,null,{"$f":"E2022*F2022","v":{"v":0,"d":"0.00"}}]
[]
[17,14,"16mm² 4 Core","m",50,null,{"$f":"E2024*F2024","v":{"v":0,"d":"0.00"}}]
[]
[17,15,"10mm² 4 Core","m",150,null,{"$f":"E2026*F2026","v":{"v":0,"d":"0.00"}}]
[]
[17,16,"16mm² 2 Core","m",95,null,{"$f":"E2028*F2028","v":{"v":0,"d":"0.00"}}]
[]
[17,17,"10mm² 2 Core","m",35,null,{"$f":"E2030*F2030","v":{"v":0,"d":"0.00"}}]
[]
[17,18,"6mm² 2 Core","m",175,null,{"$f":"E2032*F2032","v":{"v":0,"d":"0.00"}}]
[]
[17,null,"1000/600V PVC/SWA/ECC/PVC copper cables secured to cable trays and ladders (cable trays and ladders elsewhere measured) ","H3"]
[]
[17,19,"95mm² 4 Core","m",20,null,{"$f":"E2036*F2036","v":{"v":0,"d":"0.00"}}]
[]
[17,20,"70mm² 4 Core","m",50,null,{"$f":"E2038*F2038","v":{"v":0,"d":"0.00"}}]
[]
[17,21,"35mm² 4 Core","m",30,null,{"$f":"E2040*F2040","v":{"v":0,"d":"0.00"}}]
[]
[17,22,"25mm² 4 Core","m",40,null,{"$f":"E2042*F2042","v":{"v":0,"d":"0.00"}}]
[]
[17,23,"16mm² 4 Core","m",60,null,{"$f":"E2044*F2044","v":{"v":0,"d":"0.00"}}]
[]
[17,24,"10mm² 4 Core","m",40,null,{"$f":"E2046*F2046","v":{"v":0,"d":"0.00"}}]
[]
[17,25,"16mm² 2 Core","m",45,null,{"$f":"E2048*F2048","v":{"v":0,"d":"0.00"}}]
[]
[17,26,"10mm² 2 Core","m",40,null,{"$f":"E2050*F2050","v":{"v":0,"d":"0.00"}}]
[]
[17,null,"Cable joints ","H3"]
[]
[17,null,"Cable terminations ","H3"]
[]
[17,27,"95mm² 4 Core","No",4,null,{"$f":"E2056*F2056","v":{"v":0,"d":"0.00"}}]
[]
[17,28,"70mm² 4 Core","No",2,null,{"$f":"E2058*F2058","v":{"v":0,"d":"0.00"}}]
[]
[17,29,"35mm² 4 Core","No",8,null,{"$f":"E2060*F2060","v":{"v":0,"d":"0.00"}}]
[]
[17,30,"25mm² 4 Core","No",8,null,{"$f":"E2062*F2062","v":{"v":0,"d":"0.00"}}]
[]
[17,31,"16mm² 4 Core","No",6,null,{"$f":"E2064*F2064","v":{"v":0,"d":"0.00"}}]
[]
[17,32,"10mm² 4 Core","No",6,null,{"$f":"E2066*F2066","v":{"v":0,"d":"0.00"}}]
[]
[17,33,"16mm² 2 Core","No",2,null,{"$f":"E2068*F2068","v":{"v":0,"d":"0.00"}}]
[]
[17,34,"10mm² 2 Core","No",2,null,{"$f":"E2070*F2070","v":{"v":0,"d":"0.00"}}]
[]
[17,null,"CABLE LADDERS","H2"]
[]
[17,null,"Galvanised heavy duty cable trays, including short lengths and fixed to walls ","H3"]
[]
[17,35,"100mm Wide","m",25,null,{"$f":"E2076*F2076","v":{"v":0,"d":"0.00"}}]
[]
[17,36,"200mm Wide","m",20,null,{"$f":"E2078*F2078","v":{"v":0,"d":"0.00"}}]
[]
[17,37,"300mm Wide","m",125,null,{"$f":"E2080*F2080","v":{"v":0,"d":"0.00"}}]
[]
[17,38,"400mm Wide","m",10,null,{"$f":"E2082*F2082","v":{"v":0,"d":"0.00"}}]
[]
[17,39,"600mm Wide","m",10,null,{"$f":"E2084*F2084","v":{"v":0,"d":"0.00"}}]
[]
[17,40,"800mm Wide","m",10,null,{"$f":"E2086*F2086","v":{"v":0,"d":"0.00"}}]
[]
[17,null,"Extra over 100mm wide cable ladder for ","H3"]
[]
[17,41,"Elbow ","No",2,null,{"$f":"E2090*F2090","v":{"v":0,"d":"0.00"}}]
[]
[17,42,"Tee","No",1,null,{"$f":"E2092*F2092","v":{"v":0,"d":"0.00"}}]
[]
[17,null,"Extra over 200mm wide cable ladder for ","H3"]
[]
[17,43,"Elbow ","No",5,null,{"$f":"E2096*F2096","v":{"v":0,"d":"0.00"}}]
[]
[17,44,"Tee","No",2,null,{"$f":"E2098*F2098","v":{"v":0,"d":"0.00"}}]
[]
[17,null,"Extra over 300mm wide cable ladder for ","H3"]
[]
[17,45,"Elbow ","No",4,null,{"$f":"E2102*F2102","v":{"v":0,"d":"0.00"}}]
[]
[17,46,"Tee","No",1,null,{"$f":"E2104*F2104","v":{"v":0,"d":"0.00"}}]
[]
[17,null,"Extra over 400mm wide cable ladder for ","H3"]
[]
[17,47,"Elbow ","No",3,null,{"$f":"E2108*F2108","v":{"v":0,"d":"0.00"}}]
[]
[17,48,"Tee","No",1,null,{"$f":"E2110*F2110","v":{"v":0,"d":"0.00"}}]
[]
[17,null,"Extra over 600mm wide cable ladder for ","H3"]
[]
[17,49,"Elbow ","No",2,null,{"$f":"E2114*F2114","v":{"v":0,"d":"0.00"}}]
[]
[17,50,"Tee","No",1,null,{"$f":"E2116*F2116","v":{"v":0,"d":"0.00"}}]
[]
[17,null,"Extra over 800mm wide cable ladder for ","H3"]
[]
[17,51,"Elbow ","No",1,null,{"$f":"E2120*F2120","v":{"v":0,"d":"0.00"}}]
[]
[17,52,"Tee","No",1,null,{"$f":"E2122*F2122","v":{"v":0,"d":"0.00"}}]
[]
[17,null,"Extra on last to install horizontally (trapeze) or vertically (P1000 Unistrut). Fixings at 1000mm. Installation is to include for all joiner splices, raw bolts, and fixing cable trays to Unistrut with bolt fasteners complete with spring washer, fixing bolts, etc.","H3"]
[]
[17,53,"200mm Wide","m",25,null,{"$f":"E2126*F2126","v":{"v":0,"d":"0.00"}}]
[]
[17,54,"300mm Wide","m",10,null,{"$f":"E2128*F2128","v":{"v":0,"d":"0.00"}}]
[]
[17,55,"400mm Wide","m",125,null,{"$f":"E2130*F2130","v":{"v":0,"d":"0.00"}}]
[]
[17,56,"600mm Wide","m",10,null,{"$f":"E2132*F2132","v":{"v":0,"d":"0.00"}}]
[]
[17,57,"800mm Wide","m",10,null,{"$f":"E2134*F2134","v":{"v":0,"d":"0.00"}}]
[]
[17,58,"Earthing and bonding of cable ladder and galvanised trunking","Item",1,null,{"$f":"E2136*F2136","v":{"v":0,"d":"0.00"}}]
[]
[17,null,"CABLE TRENCHES ","H2"]
[]
[17,59,"Excavate in earth not exceeding 2m deep for cable trenches including risk of collapse of excavations, keeping excavations free from water, setting aside excavated material and later refilling of trenches ","m3",783,null,{"$f":"E2140*F2140","v":{"v":0,"d":"0.00"}}]
[]
[17,60,"Extra over trench excavations in earth for excavation in soft rock ","m3",78,null,{"$f":"E2142*F2142","v":{"v":0,"d":"0.00"}}]
[]
[17,61,"Extra over trench excavations for carting away surplus material to a dumping site to be located by the contractor ","m3",78,null,{"$f":"E2144*F2144","v":{"v":0,"d":"0.00"}}]
[]
[17,null,"SUNDRIES ","H2"]
[]
[17,null,"Build the following manholes including trenching and manhole covers","H3"]
[]
[17,62,"600mm x 600mm x 800mm deep - LV Power ","No",2,null,{"$f":"E2150*F2150","v":{"v":0,"d":"0.00"}}]
[]
[17,63,"600mm x 600mm x 800mm deep - Telkom ","No",4,null,{"$f":"E2152*F2152","v":{"v":0,"d":"0.00"}}]
[]
[17,64,"1 000mm x 1 000mm x 800mm deep - MV Power","No",4,null,{"$f":"E2154*F2154","v":{"v":0,"d":"0.00"}}]
[]
[17,null,"GENERAL LIGHTING AND POWER ","H1"]
[]
[17,null,"SLEEVES, ETC. ","H2"]
[]
[17,null,"Unplasticised polyvinyl chloride (UPVC) sleeve pipes laid in trenches (trenches elsewhere measured) ","H3"]
[]
[17,65,"75mm Diameter","m",370,null,{"$f":"E2162*F2162","v":{"v":0,"d":"0.00"}}]
[]
[17,66,"110mm Diameter","m",562,null,{"$f":"E2164*F2164","v":{"v":0,"d":"0.00"}}]
[]
[17,null,"Extra over UPVC sleeve pipes for ","H3"]
[]
[17,67,"75mm Diameter","No",8,null,{"$f":"E2168*F2168","v":{"v":0,"d":"0.00"}}]
[]
[17,68,"110mm Diameter","No",8,null,{"$f":"E2170*F2170","v":{"v":0,"d":"0.00"}}]
[]
[17,null,"CONDUITS, ETC. ","H2"]
[]
[17,null,"Rigid PVC conduit cast into slab and/or chased into brickworks, etc. ","H3"]
[]
[17,69,"20mm","m",330,null,{"$f":"E2176*F2176","v":{"v":0,"d":"0.00"}}]
[]
[17,70,"25mm","m",3250,null,{"$f":"E2178*F2178","v":{"v":0,"d":"0.00"}}]
[]
[17,71,"32mm","m",100,null,{"$f":"E2180*F2180","v":{"v":0,"d":"0.00"}}]
[]
[17,null,"Galvanised steel conduit accessories ","H3"]
[]
[17,72,"100 x 100 x 50mm Outlet box with cover","No",170,null,{"$f":"E2184*F2184","v":{"v":0,"d":"0.00"}}]
[]
[17,73,"Round outlet box for 20mm conduit ","No",247,null,{"$f":"E2186*F2186","v":{"v":0,"d":"0.00"}}]
[]
[17,74,"Round outlet box for 25mm conduit ","No",2076,null,{"$f":"E2188*F2188","v":{"v":0,"d":"0.00"}}]
[]
[17,75,"Round outlet box for 32mm conduit ","No",6,null,{"$f":"E2190*F2190","v":{"v":0,"d":"0.00"}}]
[]
[17,null,"WIRING CHANNELS ","H2"]
[]
[17,76,"Type P9000 galvanised wiring channels fitted with full length PVC cover plates complete with hangers, connectors, splices, etc. ","m",397,null,{"$f":"E2194*F2194","v":{"v":0,"d":"0.00"}}]
[]
[17,null,"Extra over wiring channels for ","H3"]
[]
[17,77,"Pre-punched opening for socket outlet ","No",64,null,{"$f":"E2198*F2198","v":{"v":0,"d":"0.00"}}]
[]
[17,78,"Elbow ","No",14,null,{"$f":"E2200*F2200","v":{"v":0,"d":"0.00"}}]
[]
[17,79,"Tee ","No",16,null,{"$f":"E2202*F2202","v":{"v":0,"d":"0.00"}}]
[]
[17,80,"End caps ","No",22,null,{"$f":"E2204*F2204","v":{"v":0,"d":"0.00"}}]
[]
[17,null,"POWER SKIRTINGS ","H2"]
[]
[17,81,"Execuduct PVC two compartment power skirting fixed to walls ","m",107,null,{"$f":"E2208*F2208","v":{"v":0,"d":"0.00"}}]
[]
[17,null,"Extra over power skirting for ","H3"]
[]
[17,82,"Corner piece ","No",4,null,{"$f":"E2212*F2212","v":{"v":0,"d":"0.00"}}]
[]
[17,83,"End caps ","No",12,null,{"$f":"E2214*F2214","v":{"v":0,"d":"0.00"}}]
[]
[17,84,"16A 3 pin single switched socket outlet","No",5,null,{"$f":"E2216*F2216","v":{"v":0,"d":"0.00"}}]
[]
[17,85,"16A 3 pin single switched socket outlet, shaved pin (red) ","No",5,null,{"$f":"E2218*F2218","v":{"v":0,"d":"0.00"}}]
[]
[17,86,"16A 3 pin single switched socket outlet including 2 prong plus earth socket complete with white cover and toggle switch, fixed to skirting.","No",13,null,{"$f":"E2220*F2220","v":{"v":0,"d":"0.00"}}]
[]
[17,87,"16A 3 pin single switched socket outlet complete with white cover and red toggle switch, fixed to skirting.","No",26,null,{"$f":"E2222*F2222","v":{"v":0,"d":"0.00"}}]
[]
[17,88,"16A 3 pin single switched socket outlet complete with white cover and blue toggle switch, fixed to skirting.","No",6,null,{"$f":"E2224*F2224","v":{"v":0,"d":"0.00"}}]
[]
[17,89,"16A 3 pin single switched socket outlet complete with red cover and red toggle switch, chamfered earth pin, fixed to skirting.","No",26,null,{"$f":"E2226*F2226","v":{"v":0,"d":"0.00"}}]
[]
[17,90,"Data socket","No",31,null,{"$f":"E2228*F2228","v":{"v":0,"d":"0.00"}}]
[]
[17,null,"CONDUCTORS ","H2"]
[]
[17,null,"Twin and earth wire lay in ceiling or clipped to structure ","H3"]
[]
[17,91,"2.5mm² 2 Core","No",600,null,{"$f":"E2234*F2234","v":{"v":0,"d":"0.00"}}]
[]
[17,92,"4mm² 2 Core  ","m",1500,null,{"$f":"E2236*F2236","v":{"v":0,"d":"0.00"}}]
[]
[17,null,"Extra over twin and earth wire for terminations and connection","H3"]
[]
[17,93,"2.5mm² 2 Core","No",540,null,{"$f":"E2240*F2240","v":{"v":0,"d":"0.00"}}]
[]
[17,94,"4mm² 2 Core","No",48,null,{"$f":"E2242*F2242","v":{"v":0,"d":"0.00"}}]
[]
[17,null,"PVC insulated 1000V grade hard drawn copper wire into conduit, trunking and power skirting","H3"]
[]
[17,95,"1.5mm²","m",1050,null,{"$f":"E2246*F2246","v":{"v":0,"d":"0.00"}}]
[]
[17,96,"2.5mm² ","m",34300,null,{"$f":"E2248*F2248","v":{"v":0,"d":"0.00"}}]
[]
[17,97,"4mm² ","m",600,null,{"$f":"E2250*F2250","v":{"v":0,"d":"0.00"}}]
[]
[17,null,"BOXES, ETC.","H2"]
[]
[17,null,"Partition / cluster boxes surface mounted or chased into brickwork or cast into concrete. Crab tree or approved equal including universal cradle, and modular outlet plates. Blank cover plates to be installed where no accessories are installed.  Toggles white, red or blue. ","H3"]
[]
[17,98,"Nine (9) ways ","No",10,null,{"$f":"E2256*F2256","v":{"v":0,"d":"0.00"}}]
[]
[17,null,"Boxes cast in floors ","H3"]
[]
[17,99,"Cab strut access floor conduit box system 205 x 287 x 79mm complete with 2x switch socket outlets, 1 x standard socket outlet and 3 x RJ45 outlets. All sockets with white, red or blue toggles.","No",4,null,{"$f":"E2260*F2260","v":{"v":0,"d":"0.00"}}]
[]
[17,null,"Cast in box and stainless steel face plate","H3"]
[]
[17,100,"340mm x 125mm cast in box and 350 x 150mm stainless steel plates as per Drawing No. 16016-509","No",10,null,{"$f":"E2264*F2264","v":{"v":0,"d":"0.00"}}]
[]
[17,101,"340mm x 150mm cast in box and 350 x 150mm stainless steel plates as per Drawing No. 16016-509","No",10,null,{"$f":"E2266*F2266","v":{"v":0,"d":"0.00"}}]
[]
[17,null,"Stainless steel pedestal for supporting isolators and switched socket outlets","H3"]
[]
[17,102,"340mm / 120mm x 3mm thick stainless-steel pedestal","No",6,null,{"$f":"E2270*F2270","v":{"v":0,"d":"0.00"}}]
[]
[17,null,"LIGHT SWITCHES, SOCKET OUTLETS, ETC. ","H2"]
[]
[17,null,"Rates for switches, socket outlets, etc. are to include for screwing to outlet boxes, connecting up and cover plates "]
[]
[17,null,"Supply, install and connect electrical accessories (Crab tree or approved equal) including covers and boxes. Toggle White, Red or Blue","H3"]
[]
[17,103,"1 lever, 1 way light switch in 100mm x 100mm box","No",348,null,{"$f":"E2278*F2278","v":{"v":0,"d":"0.00"}}]
[]
[17,104,"1 lever, 1 way zone 1 (Intrinsic safe) light switch in 100mm x 100mm box","No",3,null,{"$f":"E2280*F2280","v":{"v":0,"d":"0.00"}}]
[]
[17,105,"2 lever, 1 way light switch in 100mm x 100mm box","No",8,null,{"$f":"E2282*F2282","v":{"v":0,"d":"0.00"}}]
[]
[17,106,"5A 3 pin socket outlet in conduit box","No",1447,null,{"$f":"E2284*F2284","v":{"v":0,"d":"0.00"}}]
[]
[17,107,"16A 3 pin flush mounted single switched socket outlet including 2 prong plus earth socket complete with toggle and white cover","No",30,null,{"$f":"E2286*F2286","v":{"v":0,"d":"0.00"}}]
[]
[17,108,"Double 16A 3 pin flush mounted single switched socket outlet complete with white cover and toggle","No",6,null,{"$f":"E2288*F2288","v":{"v":0,"d":"0.00"}}]
[]
[17,109,"16A 3 pin flush mounted single switched socket outlet complete with white cover and red toggle switch","No",6,null,{"$f":"E2290*F2290","v":{"v":0,"d":"0.00"}}]
[]
[17,110,"16A 3 pin flush mounted single switched socket outlet complete with white cover and blue toggle switch","No",20,null,{"$f":"E2292*F2292","v":{"v":0,"d":"0.00"}}]
[]
[17,111,"16  3 pin flush mounted single switched socket outlet complete with red cover and red toggle switch. Chamfered earth pin","No",6,null,{"$f":"E2294*F2294","v":{"v":0,"d":"0.00"}}]
[]
[17,null,"Supply, install and connect electrical accessories (Crab tree or approved equal) including covers and boxes. Toggle White, Red or Blue","H3"]
[]
[17,112,"16A 3 pin flush mounted single switched socket outlet","No",5,null,{"$f":"E2298*F2298","v":{"v":0,"d":"0.00"}}]
[]
[17,113,"20A SP isolator in conduit box, surface mounted or flush mounted","No",33,null,{"$f":"E2300*F2300","v":{"v":0,"d":"0.00"}}]
[]
[17,114,"30A TP industrial isolator in conduit box, surface mounted","No",13,null,{"$f":"E2302*F2302","v":{"v":0,"d":"0.00"}}]
[]
[17,115,"60A TP industrial isolator in conduit box, surface mounted","No",6,null,{"$f":"E2304*F2304","v":{"v":0,"d":"0.00"}}]
[]
[17,null,"Mains switching soffit mounted motion/daylight sensors (BEG Lux mat or equal and approved).","H3"]
[]
[17,116,"Luxomat PD3 (1 channel - lighting)","No",35,null,{"$f":"E2308*F2308","v":{"v":0,"d":"0.00"}}]
[]
[17,null,"LUMINARIES","H2"]
[]
[17,null,"Rate for luminaries are to include for hanging, fixing and connecting and for lamp holders and fluorescent tubes and lamps of the type and wattage describe, Drawing No. 2013-600","H2"]
[]
[17,117,"Type A","No",14,null,{"$f":"E2314*F2314","v":{"v":0,"d":"0.00"}}]
[]
[17,118,"Type B","No",24,null,{"$f":"E2316*F2316","v":{"v":0,"d":"0.00"}}]
[]
[17,119,"Type C","No",26,null,{"$f":"E2318*F2318","v":{"v":0,"d":"0.00"}}]
[]
[17,120,"Type D","No",37,null,{"$f":"E2320*F2320","v":{"v":0,"d":"0.00"}}]
[]
[17,121,"Type E","No",101,null,{"$f":"E2322*F2322","v":{"v":0,"d":"0.00"}}]
[]
[17,122,"Type F","No",5,null,{"$f":"E2324*F2324","v":{"v":0,"d":"0.00"}}]
[]
[17,123,"Type H","No",5,null,{"$f":"E2326*F2326","v":{"v":0,"d":"0.00"}}]
[]
[17,124,"Type K","No",19,null,{"$f":"E2328*F2328","v":{"v":0,"d":"0.00"}}]
[]
[17,125,"Type L","No",1,null,{"$f":"E2330*F2330","v":{"v":0,"d":"0.00"}}]
[]
[17,null,"EQUIPMENT","H1"]
[]
[17,null,"MV SWITCH GEAR","H2"]
[]
[17,126,"Supply, deliver and install 800 kVA minisub as per specification provided (Drawing No. 20013_602_0) complete with 3-way RM6 ring main, transformer and L.V. section as per single line diagram:","No",1,null,{"$f":"E2336*F2336","v":{"v":0,"d":"0.00"}}]
[]
[17,127,"Submit test report and commission the MV installation","No",1,null,{"$f":"E2338*F2338","v":{"v":0,"d":"0.00"}}]
[]
[17,128,"Allow to live seal/95 mm² 3 core copper XLPE ","No",2,null,{"$f":"E2340*F2340","v":{"v":0,"d":"0.00"}}]
[]
[17,129,"Insulated 11 000 Volt cable specified ","No",1,null,{"$f":"E2342*F2342","v":{"v":0,"d":"0.00"}}]
[]
[17,null,"DIESEL GENERATORS","H2"]
[]
[17,130,"Supply and install 50 kVA (Prime) diesel generator including delivery, off loading and installing in position complete with exhaust pipe, sound attenuators and full tank of diesel on completion of testing as specified in schedule 20013_603","No",1,null,{"$f":"E2346*F2346","v":{"v":0,"d":"0.00"}}]
[]
[17,null,"UPS","H2"]
[]
[17,131,"Supply, install, test and commission 10 kVA UPS at 0.8 lag pf, three phase in (400 V, 50HZ) three phase out with 20minute battery back up at full load as per attached schedule 20013_606","No",5,null,{"$f":"E2350*F2350","v":{"v":0,"d":"0.00"}}]
[]
[17,null,"EARTHING AND LIGHTNING PROTECTION","H1"]
[]
[17,null,"LIGHTNING PROTECTION","H2"]
[]
[17,null,"Conductor, etc. ","H3"]
[]
[17,132,"Aluminium circular conductor fixed to roof / parapet with proprietary fixings.","m",100,null,{"$f":"E2358*F2358","v":{"v":0,"d":"0.00"}}]
[]
[17,133,"6000mm lengths of 50mm² Green PVC insulated copper conductors fitted into conduit complete with lugs, ferrules and termination clamps between roof steelwork and Earth Electrode.","No",45,null,{"$f":"E2360*F2360","v":{"v":0,"d":"0.00"}}]
[]
[17,134,"1600mm x 16mm copper clad earth electrodes driven into ground connected to first earth rod with 70 mm² Cu bare earth wire inclusive of ferrules, lugs, etc.","No",45,null,{"$f":"E2362*F2362","v":{"v":0,"d":"0.00"}}]
[]
[17,135,"Testing and commissioning the entire lightning protection installation as per I.E.C.standards, including re- testing as may be required after making good, and typed test certificates","Item",1,null,{"$f":"E2364*F2364","v":{"v":0,"d":"0.00"}}]
[]
[17,null,"EARTHING","H2"]
[]
[17,136,"Soil testing, design, supply and installation for 1Ohm substation earth ","Item",1,null,{"$f":"E2368*F2368","v":{"v":0,"d":"0.00"}}]
[]
[17,137,"Soil testing, design, supply and installation for 1 Ohm telecommunications earth ","Item",1,null,{"$f":"E2370*F2370","v":{"v":0,"d":"0.00"}}]
[]
[17,null,"Pre-drilled copper earth bars complete with insulated mountings and removable test links","H3"]
[]
[17,138,"50mm x 12mm x 800mm","No",4,null,{"$f":"E2374*F2374","v":{"v":0,"d":"0.00"}}]
[]
[17,139,"50mm x 6mm x 600mm","No",8,null,{"$f":"E2376*F2376","v":{"v":0,"d":"0.00"}}]
[]
[17,null,"Cu PVC earth wire (SANS 1507-3) in continuous lengths ","H3"]
[]
[17,140,"16mm²","m",85,null,{"$f":"E2380*F2380","v":{"v":0,"d":"0.00"}}]
[]
[17,141,"35mm²","m",150,null,{"$f":"E2382*F2382","v":{"v":0,"d":"0.00"}}]
[]
[17,142,"70mm² ","m",50,null,{"$f":"E2384*F2384","v":{"v":0,"d":"0.00"}}]
[]
[17,143,"120mm²","m",215,null,{"$f":"E2386*F2386","v":{"v":0,"d":"0.00"}}]
[]
[17,144,"Allowance for general earthing and bonding in accordance with SANS 0142","Item",1,null,{"$f":"E2388*F2388","v":{"v":0,"d":"0.00"}}]
[]
[17,145,"I.E.C. standards, including re-testing as may be required after making ","Item",1,null,{"$f":"E2390*F2390","v":{"v":0,"d":"0.00"}}]
[]
[17,146,"Testing and commissioning the entire earthing installation as per I.E.C.standards, including re-testing as may be required after making good, and typed test certificates","Item",1,null,{"$f":"E2392*F2392","v":{"v":0,"d":"0.00"}}]
[]
[17,null,"ELECTRONIC CONTAINMENTS","H1"]
[]
[17,null,"The complete supply, transport to site, store in \\ accordance with the specification of hot dip galvanised wire mesh for data and telephony systems. Rates to include for bends, T's, risers and offsets as required","H3"]
[]
[17,null,"CABLE LADDERS","H2"]
[]
[17,null,"Galvanised heavy duty cable trays, including short lengths and fixed to walls","H3"]
[]
[17,147,"150mm Wide ","m",50,null,{"$f":"E2402*F2402","v":{"v":0,"d":"0.00"}}]
[]
[17,148,"200mm Wide","m",650,null,{"$f":"E2404*F2404","v":{"v":0,"d":"0.00"}}]
[]
[17,null,"Extra over 150mm wide cable ladder for ","H3"]
[]
[17,149,"Elbow ","No",2,null,{"$f":"E2408*F2408","v":{"v":0,"d":"0.00"}}]
[]
[17,150,"Tee","No",1,null,{"$f":"E2410*F2410","v":{"v":0,"d":"0.00"}}]
[]
[17,null,"Extra over 250mm wide cable ladder for ","H3"]
[]
[17,151,"Elbow ","No",2,null,{"$f":"E2414*F2414","v":{"v":0,"d":"0.00"}}]
[]
[17,152,"Tee","No",1,null,{"$f":"E2416*F2416","v":{"v":0,"d":"0.00"}}]
[]
[17,null,"Extra on last to install horizontally (trapeze) or vertically (P1000 Unistrut). Fixings at 1000mm. Installation is to include for all joiner splices, raw bolts and fixing cable trays to Unistrut with bolt fasteners complete with spring washer, fixing bolts, etc.","H3"]
[]
[17,153,"150mm Wide ","m",50,null,{"$f":"E2420*F2420","v":{"v":0,"d":"0.00"}}]
[]
[17,154,"200mm Wide","m",650,null,{"$f":"E2422*F2422","v":{"v":0,"d":"0.00"}}]
[]
[17,null,"Extra over wiring channels for ","H3"]
[]
[17,155,"Pre-punched opening for socket outlet ","No",16,null,{"$f":"E2426*F2426","v":{"v":0,"d":"0.00"}}]
[]
[17,156,"Elbow ","No",6,null,{"$f":"E2428*F2428","v":{"v":0,"d":"0.00"}}]
[]
[17,157,"Tee ","No",2,null,{"$f":"E2430*F2430","v":{"v":0,"d":"0.00"}}]
[]
[17,158,"End caps ","No",12,null,{"$f":"E2432*F2432","v":{"v":0,"d":"0.00"}}]
[]
[17,null,"CONDUITS, ETC. ","H2"]
[]
[17,null,"Rigid PVC conduit cast into slab and/or chased into brickworks, etc. ","H3"]
[]
[17,159,"25mm","m",2500,null,{"$f":"E2438*F2438","v":{"v":0,"d":"0.00"}}]
[]
[17,160,"32mm","m",500,null,{"$f":"E2440*F2440","v":{"v":0,"d":"0.00"}}]
[]
[17,161,"50mm","m",100,null,{"$f":"E2442*F2442","v":{"v":0,"d":"0.00"}}]
[]
[17,null,"Galvanised steel conduit accessories ","H3"]
[]
[17,162,"Round conduit box, complete with cover","No",300,null,{"$f":"E2446*F2446","v":{"v":0,"d":"0.00"}}]
[]
[17,163,"100 x 100 x 50mm Outlet box with cover","No",52,null,{"$f":"E2448*F2448","v":{"v":0,"d":"0.00"}}]
[]
[17,164,"Round outlet box for 25mm conduit ","No",242,null,{"$f":"E2450*F2450","v":{"v":0,"d":"0.00"}}]
[]
[17,165,"Round outlet box for 32mm conduit ","No",48,null,{"$f":"E2452*F2452","v":{"v":0,"d":"0.00"}}]
[]
[17,166,"Round outlet box for 50mm conduit ","No",10,null,{"$f":"E2454*F2454","v":{"v":0,"d":"0.00"}}]
[]
[17,null,"PVC conduit accessories ","H3"]
[]
[17,167,"300mm x 300mm PVC junction box with screw lid","No",32,null,{"$f":"E2458*F2458","v":{"v":0,"d":"0.00"}}]
[]
[17,null,"WIRING CHANNELS ","H2"]
[]
[17,168,"Type P9000 galvanised wiring channels fitted with full length PVC cover plates complete with hangers, connectors, splices, etc. ","m",250,null,{"$f":"E2462*F2462","v":{"v":0,"d":"0.00"}}]
[]
[17,null,"ELECTRONIC INSTALLATION","H1"]
[]
[17,null,"IT NETWORK ","H1"]
[]
[17,null,"Supply, install, test and commission IT Network complete with all hardware, software, connectors, adapters, fixings, power supplies, cables, consumables and all material to complete the installation as intended","H3"]
[]
[17,null,"Riser equipment, complete with power supplies and mounting equipment","H3"]
[]
[17,null,"IT CUPBOARD","H2"]
[]
[17,169,"9U 600 wide, 475 deep wall mounted rack, complete with 10 way (16A) dedicated power rail and 2-way fans","No",3,null,{"$f":"E2474*F2474","v":{"v":0,"d":"0.00"}}]
[]
[17,170,"Aruba 2530 24 port 1G PoE plus switch","No",2,null,{"$f":"E2476*F2476","v":{"v":0,"d":"0.00"}}]
[]
[17,171,"Aruba 2530 8 port 1G PoE plus switch","No",1,null,{"$f":"E2478*F2478","v":{"v":0,"d":"0.00"}}]
[]
[17,172,"24 Way modular (populated) UTP Cat 6, complete with mimic labels","No",30,null,{"$f":"E2480*F2480","v":{"v":0,"d":"0.00"}}]
[]
[17,173,"Fibre splice panel sliding tray (empty)","No",3,null,{"$f":"E2482*F2482","v":{"v":0,"d":"0.00"}}]
[]
[17,null,"Supply and installation of fibre backbone 8 core indoor duct cable-single mode fibre (Server room to electronic cupboards) ","H3"]
[]
[17,174,"8 Core indoor duct cable-single mode fibre","m",3500,null,{"$f":"E2486*F2486","v":{"v":0,"d":"0.00"}}]
[]
[17,null,"Termination and splicing into connection of fibre ","H3"]
[]
[17,175,"Mid coupler module - LC DX 6 port - OM3 10G APPL","No",6,null,{"$f":"E2490*F2490","v":{"v":0,"d":"0.00"}}]
[]
[17,176,"Unjacketed pigtails - Duplex LC - single mode","No",6,null,{"$f":"E2492*F2492","v":{"v":0,"d":"0.00"}}]
[]
[17,177,"Termination and splicing of 8 core cable ","No",6,null,{"$f":"E2494*F2494","v":{"v":0,"d":"0.00"}}]
[]
[17,178,"OTDR test and certificate","Item",1,null,{"$f":"E2496*F2496","v":{"v":0,"d":"0.00"}}]
[]
[17,179,"Label backbone cable (Heat shrink labels on each end)","No",6,null,{"$f":"E2498*F2498","v":{"v":0,"d":"0.00"}}]
[]
[17,null,"Supply and installation of cable and wiring on cable basket ceiling void or drawn into conduit as specified including all labels and termination at both ends","H3"]
[]
[17,180,"Category 6 UTP cable ","m",4000,null,{"$f":"E2502*F2502","v":{"v":0,"d":"0.00"}}]
[]
[17,181,"Termination of UTP Cat 6 on to RJ45","No",60,null,{"$f":"E2504*F2504","v":{"v":0,"d":"0.00"}}]
[]
[17,182,"Connectors, adaptors, power socket, cables, consumables and other material to complete the installation as intended","Item",1,null,{"$f":"E2506*F2506","v":{"v":0,"d":"0.00"}}]
[]
[17,null,"WIRELESS ACCESS POINT SYSTEM ","H2"]
[]
[17,183,"Wi-Fi Controller","No",1,null,{"$f":"E2510*F2510","v":{"v":0,"d":"0.00"}}]
[]
[17,184,"Wi-Fi Security Gateway With rack mount 4 ports","No",1,null,{"$f":"E2512*F2512","v":{"v":0,"d":"0.00"}}]
[]
[17,185,"Dual-Band ceiling mounted access point","No",8,null,{"$f":"E2514*F2514","v":{"v":0,"d":"0.00"}}]
[]
[17,186,"Configure and document the complete system","Item",1,null,{"$f":"E2516*F2516","v":{"v":0,"d":"0.00"}}]
[]
[17,null,"CLOSED CIRCUIT TELEVISION","H1"]
[]
[17,null,"Supply, install, test and commission CCTV system (HIK Vision or equal and approved) complete with all hardware, software, connectors, adapters, fixings, power supplies, cables, consumables and all material to complete the installation as intended","H3"]
[]
[17,187,"Network Video Recorder - DS-9632NI-I8","No",2,null,{"$f":"E2522*F2522","v":{"v":0,"d":"0.00"}}]
[]
[17,188,"Hard Drive 8 TB SATA 6Gb/s - WD4NPURX","No",2,null,{"$f":"E2524*F2524","v":{"v":0,"d":"0.00"}}]
[]
[17,189,"Video Management System software and licences for 100 cameras - IVMS-4200","Item",1,null,{"$f":"E2526*F2526","v":{"v":0,"d":"0.00"}}]
[]
[17,190,"Video and audio decoder for up to 4 monitors - 6904UDI ","No",1,null,{"$f":"E2528*F2528","v":{"v":0,"d":"0.00"}}]
[]
[17,191,"Joystick and keyboard DS-1005KI","No",1,null,{"$f":"E2530*F2530","v":{"v":0,"d":"0.00"}}]
[]
[17,192,"46\" control room monitor suitable for 24 hour, 7 days a week operation complete with universal wall mount","No",1,null,{"$f":"E2532*F2532","v":{"v":0,"d":"0.00"}}]
[]
[17,193,"Desktop PC with I7 processor,8GB RAM plus 500 Gbit SSD storage, 19\" monitor, mouse, keyboard, etc., Windows 10 ","No",1,null,{"$f":"E2534*F2534","v":{"v":0,"d":"0.00"}}]
[]
[17,null,"Cameras, complete with all mounting equipment","H3"]
[]
[17,194,"Camera Type 1 - 2MP In ceiling dome - DS 2CD2725FWD-IZS","No",18,null,{"$f":"E2538*F2538","v":{"v":0,"d":"0.00"}}]
[]
[17,195,"Camera Type 1 - 2MP surface dome - DS 2CD2725FWD-IZS and bracket (DS-1280ZJ-DM18)","No",1,null,{"$f":"E2540*F2540","v":{"v":0,"d":"0.00"}}]
[]
[17,196,"Camera Type 5 - 2MP bullet - DS-2CD2025WD-I  (fixed lens)","No",1,null,{"$f":"E2542*F2542","v":{"v":0,"d":"0.00"}}]
[]
[17,197,"Camera Type 5 - 2MP bullet - DS-2CD2625FWD-IZS (vary focal lens)","No",1,null,{"$f":"E2544*F2544","v":{"v":0,"d":"0.00"}}]
[]
[17,198,"Camera Type 3 - PTZ  2 MP surface mounted - DS 2DE4A225IW-DE","No",1,null,{"$f":"E2546*F2546","v":{"v":0,"d":"0.00"}}]
[]
[17,199,"Camera Type 3 - PTZ 4 MP mounted in ceiling - DS 2DE5425W-AE","No",26,null,{"$f":"E2548*F2548","v":{"v":0,"d":"0.00"}}]
[]
[17,200,"Wall mount bracket for surface mounted dome domes - DS-1473ZJ-155","No",2,null,{"$f":"E2550*F2550","v":{"v":0,"d":"0.00"}}]
[]
[17,null,"Supply and installation of cable and wiring on cable basket/trunking in ceiling void or drawn into conduit as specified, including labels at both ends.","H3"]
[]
[17,201,"Category 6 UTP cable ","m",2560,null,{"$f":"E2554*F2554","v":{"v":0,"d":"0.00"}}]
[]
[17,202,"Termination of UTP Cat 6 onto patch panels ","No",44,null,{"$f":"E2556*F2556","v":{"v":0,"d":"0.00"}}]
[]
[17,203,"Termination of UTP Cat 6 onto RJ45 at camera end","No",44,null,{"$f":"E2558*F2558","v":{"v":0,"d":"0.00"}}]
[]
[17,null,"SUNDRIES ","H2"]
[]
[17,204,"Configure and document the complete system.","Item",1,null,{"$f":"E2562*F2562","v":{"v":0,"d":"0.00"}}]
[]
[17,null,"PUBLIC ADDRESS","H1"]
[]
[17,null,"Supply, install, test and commission Bosch Paver (or equal and approved) public address and voice evacuation system complete with connectors, adapters, fixings, power sockets, cables, consumables and all material to complete the installation as intended","H3"]
[]
[17,null,"Control Room equipment, complete with power supplies and mounting equipment (19\" rack supplied and installed by others).","H3"]
[]
[17,205,"Central Paging Manager for 12 zones (PVA - 4CR12)","No",1,null,{"$f":"E2570*F2570","v":{"v":0,"d":"0.00"}}]
[]
[17,206,"Power amplifier (2x500W) - PVA-2P500 ","No",1,null,{"$f":"E2572*F2572","v":{"v":0,"d":"0.00"}}]
[]
[17,207,"Call station - PVA-15CST ","No",1,null,{"$f":"E2574*F2574","v":{"v":0,"d":"0.00"}}]
[]
[17,208,"Tuner BGM source - PLE-SDT ","No",1,null,{"$f":"E2576*F2576","v":{"v":0,"d":"0.00"}}]
[]
[17,209,"External antenna for above","No",1,null,{"$f":"E2578*F2578","v":{"v":0,"d":"0.00"}}]
[]
[17,210,"Power management / battery charger - PLN-24CH12 ","No",1,null,{"$f":"E2580*F2580","v":{"v":0,"d":"0.00"}}]
[]
[17,211,"Allowance for Maintenance free batteries rated at 85 ampere hours with minimum life expectancy of 7 years or 250 complete discharge cycle","Item",1,null,{"$f":"E2582*F2582","v":{"v":0,"d":"0.00"}}]
[]
[17,null,"Loudspeakers, complete with fixings for ceiling, soffit/structure or wall mounting, and terminations.","H3"]
[]
[17,212,"Ceiling Loudspeaker (6W) - LC3-UC06E ","No",52,null,{"$f":"E2586*F2586","v":{"v":0,"d":"0.00"}}]
[]
[17,213,"Back box for above - LC3-CBB ","No",55,null,{"$f":"E2588*F2588","v":{"v":0,"d":"0.00"}}]
[]
[17,214,"Box Loudspeaker (6W) - LC3-UC06E ","No",2,null,{"$f":"E2590*F2590","v":{"v":0,"d":"0.00"}}]
[]
[17,215,"Horn Loudspeaker (10W) - LH1-10M10E","No",2,null,{"$f":"E2592*F2592","v":{"v":0,"d":"0.00"}}]
[]
[17,null,"Supply and installation of cable (red) on cable basket in ceiling void or drawn into conduit as specified, including all labels and terminations at both ends.","H3"]
[]
[17,216,"PH120 2 core, 2.5mm² stranded fire rated cable (red)","m",2500,null,{"$f":"E2596*F2596","v":{"v":0,"d":"0.00"}}]
[]
[17,217,"PH120 2 core, 4mm² stranded fire rated cable (red)","m",1500,null,{"$f":"E2598*F2598","v":{"v":0,"d":"0.00"}}]
[]
[17,218,"Connectors, adapters, power sockets, cables, consumables and other material to complete the installation as intended.","Item",1,null,{"$f":"E2600*F2600","v":{"v":0,"d":"0.00"}}]
[]
[17,219,"Configure and document the complete system.","Item",1,null,{"$f":"E2602*F2602","v":{"v":0,"d":"0.00"}}]
[]
[17,220,"Termination junction boxes in electronics risers complete with terminals","No",8,null,{"$f":"E2604*F2604","v":{"v":0,"d":"0.00"}}]
[]
[17,null,"FIRE DETECTION ","H1"]
[]
[17,221,"Manual call point ","No",5,null,{"$f":"E2608*F2608","v":{"v":0,"d":"0.00"}}]
[]
[17,222,"Addressable optical smoking detector ","No",43,null,{"$f":"E2610*F2610","v":{"v":0,"d":"0.00"}}]
[]
[17,223,"Addressable ceiling void smoke detector with ceiling LED ","No",28,null,{"$f":"E2612*F2612","v":{"v":0,"d":"0.00"}}]
[]
[17,224,"Analogue addressable combined fire alarm sounder and flashing beacon ","No",14,null,{"$f":"E2614*F2614","v":{"v":0,"d":"0.00"}}]
[]
[17,225,"Ziton ZP3 2 loop analogue control panel, 230V, EN54 approved ","No",3,null,{"$f":"E2616*F2616","v":{"v":0,"d":"0.00"}}]
[]
[17,226,"Analogue addressable heat detector ","No",3,null,{"$f":"E2618*F2618","v":{"v":0,"d":"0.00"}}]
[]
[17,227,"Zener barrier ","No",1,null,{"$f":"E2620*F2620","v":{"v":0,"d":"0.00"}}]
[]
[17,228,"Fire rated cabling to BS 6387 ","m",500,null,{"$f":"E2622*F2622","v":{"v":0,"d":"0.00"}}]
[]
[17,229,"Bosal conduit ","m",500,null,{"$f":"E2624*F2624","v":{"v":0,"d":"0.00"}}]
[]
[17,230,"Reyroll type spraque adaptalock flexible, black ","m",500,null,{"$f":"E2626*F2626","v":{"v":0,"d":"0.00"}}]
[]
[17,231,"Ziton ZP3AB-NET1 network interface board ","No",1,null,{"$f":"E2628*F2628","v":{"v":0,"d":"0.00"}}]
[]
[17,232,"BS131N battery 12V 18AH ","No",3,null,{"$f":"E2630*F2630","v":{"v":0,"d":"0.00"}}]
[]
[17,233,"Programming fire panel device message and zoning as per the Engineer & Client requirements ","No",3,null,{"$f":"E2632*F2632","v":{"v":0,"d":"0.00"}}]
[]
[17,234,"Fire panel action/event programming as per the Engineer's mandate ","No",3,null,{"$f":"E2634*F2634","v":{"v":0,"d":"0.00"}}]
[]
[17,235,"300mm Wide tray ","m",500,null,{"$f":"E2636*F2636","v":{"v":0,"d":"0.00"}}]
[]
[17,236,"300mm Wide 90 degree bend ","No",20,null,{"$f":"E2638*F2638","v":{"v":0,"d":"0.00"}}]
[]
[17,237," DMN782 Hinged call point cover ","No",5,null,{"$f":"E2640*F2640","v":{"v":0,"d":"0.00"}}]
[]
[17,238,"Separate complete testing, commissioning and handover of the fire detection system in accordance with the applicable regulations ","No",3,null,{"$f":"E2642*F2642","v":{"v":0,"d":"0.00"}}]
[]
[17,239,"Training of supervisor and management staff for the main system ","Item",1,null,{"$f":"E2644*F2644","v":{"v":0,"d":"0.00"}}]
[]
[17,null,"ACCESS CONTROL","H1"]
[]
[17,null,"Supply, install, test and commission Impro Access Portal Basic (Or equal and approved) access control and intercom system complete with connectors, adapters, fixings, power sockets, cables, consumables and all material to complete required","H3"]
[]
[17,null,"Control room equipment complete with all power supplies and mounting equipment.","H3"]
[]
[17,240,"Programming and enrolment station, PC (I7 8 Gb RAM plus 500 Gbit SSD storage, Windows 10, Office and Acrobat) with 21\" monitor, mouse, keyboard, etc. ","No",1,null,{"$f":"E2652*F2652","v":{"v":0,"d":"0.00"}}]
[]
[17,241,"Card reader fingerprint enrolment reader","No",1,null,{"$f":"E2654*F2654","v":{"v":0,"d":"0.00"}}]
[]
[17,242,"Enrolment camera","No",1,null,{"$f":"E2656*F2656","v":{"v":0,"d":"0.00"}}]
[]
[17,243,"Setup and program access control software for 100 users and 40 No. doors","Item",1,null,{"$f":"E2658*F2658","v":{"v":0,"d":"0.00"}}]
[]
[17,null,"Door control complete with all mounting equipment. Located in IT cupboard","H3"]
[]
[17,244,"Wall mounted door controller in IP 54 housing complete with 2 No. Wiegand reader modules and power supply","No",6,null,{"$f":"E2662*F2662","v":{"v":0,"d":"0.00"}}]
[]
[17,245,"Card reader","No",14,null,{"$f":"E2664*F2664","v":{"v":0,"d":"0.00"}}]
[]
[17,246,"600kg surface mounted monitored maglock with LED","No",7,null,{"$f":"E2666*F2666","v":{"v":0,"d":"0.00"}}]
[]
[17,247,"ZL bracket for maglock","No",7,null,{"$f":"E2668*F2668","v":{"v":0,"d":"0.00"}}]
[]
[17,248,"No touch exit sensor","No",4,null,{"$f":"E2670*F2670","v":{"v":0,"d":"0.00"}}]
[]
[17,249,"Green Break glass unit with internal buzzer (resettable)","No",7,null,{"$f":"E2672*F2672","v":{"v":0,"d":"0.00"}}]
[]
[17,null,"Supply and installation of cable and wiring on cable basket in ceiling void or drawn into conduit as specified, including all labels and terminations at both ends.","H3"]
[]
[17,250,"Category 6 UTP cable ","m",1500,null,{"$f":"E2676*F2676","v":{"v":0,"d":"0.00"}}]
[]
[17,251,"Termination of UTP Cat 6","No",20,null,{"$f":"E2678*F2678","v":{"v":0,"d":"0.00"}}]
[]
[17,252,"8 twisted pair PVC insulated mylar cable. 0.22mm² stranded tinned copper cores. Aluminium polyester shield and drain.","m",1570,null,{"$f":"E2680*F2680","v":{"v":0,"d":"0.00"}}]
[]
[17,253,"Termination of above cable ","No",20,null,{"$f":"E2682*F2682","v":{"v":0,"d":"0.00"}}]
[]
[17,254,"2 Core PVC insulated cable. 1mm² stranded copper cores. ","m",400,null,{"$f":"E2684*F2684","v":{"v":0,"d":"0.00"}}]
[]
[17,255,"Termination of above cable ","No",20,null,{"$f":"E2686*F2686","v":{"v":0,"d":"0.00"}}]
[]
[17,256,"Cards Printer, Catridge for 50 prints, software and installation ","No",1,null,{"$f":"E2688*F2688","v":{"v":0,"d":"0.00"}}]
[]
[17,null,"INTERCOMS","H1"]
[]
[17,null,"NOTE:  Descriptions in this bill shall be read in conjunction with the specification"]
[]
[17,null,"Supply, install, test and commission intercom with colour video system complete with all hardware, software, terminations, fixings etc.","H3"]
[]
[17,null,"Aiphone or equal approved system","H2"]
[]
[17,null,"Central equipment ","H2"]
[]
[17,257,"Master station unit suitable for 2 No. door stations and hands free with 3.5\" colour LCD display ","No",2,null,{"$f":"E2700*F2700","v":{"v":0,"d":"0.00"}}]
[]
[17,null,"Field equipment ","H2"]
[]
[17,258,"Door station with audio and video, flush mounted with stainless steel face","No",5,null,{"$f":"E2704*F2704","v":{"v":0,"d":"0.00"}}]
[]
[17,259,"Door maglock release connection via a I/O interface to access control system located in IT Room  ","No",5,null,{"$f":"E2706*F2706","v":{"v":0,"d":"0.00"}}]
[]
[17,null,"Cabling","H2"]
[]
[17,260,"Cat 6A cabling","m",1500,null,{"$f":"E2710*F2710","v":{"v":0,"d":"0.00"}}]
[]
[17,261,"RJ45 termination","No",10,null,{"$f":"E2712*F2712","v":{"v":0,"d":"0.00"}}]
[]
[17,262,"4 core 1.0 mm Cu PVC cable","m",800,null,{"$f":"E2714*F2714","v":{"v":0,"d":"0.00"}}]
[]
[17,263,"Terminated in above equipment","No",10,null,{"$f":"E2716*F2716","v":{"v":0,"d":"0.00"}}]
[]
[17,null,"SMOKE DETECTION SYSTEM","H1"]
[]
[17,null,"Supply, install, test and commission ZITON ZP2 (or equal and approved) smoke detection and alarm system complete with connectors, adapters, fixings, power sockets, cables, consumables and all material to complete the installation ","H3"]
[]
[17,null,"Analogue addressable fire panels with master / slave network connections, complete with backup batteries and programming","H3"]
[]
[17,264,"Master 4 loop, 40 zone","No",1,null,{"$f":"E2724*F2724","v":{"v":0,"d":"0.00"}}]
[]
[17,265,"Slave 4 loop, 40 zone","No",1,null,{"$f":"E2726*F2726","v":{"v":0,"d":"0.00"}}]
[]
[17,266,"Repeater panel","No",1,null,{"$f":"E2728*F2728","v":{"v":0,"d":"0.00"}}]
[]
[17,null,"Addressable base mounted detectors, complete with base and fixings for floor void, ceiling, soffit/structure or wall mounting, and terminations.","H3"]
[]
[17,267,"Optical sensor - under ceiling","No",50,null,{"$f":"E2732*F2732","v":{"v":0,"d":"0.00"}}]
[]
[17,268,"Optical sensor - Soffit mounted","No",10,null,{"$f":"E2734*F2734","v":{"v":0,"d":"0.00"}}]
[]
[17,269,"Optical sensor - ceiling void","No",10,null,{"$f":"E2736*F2736","v":{"v":0,"d":"0.00"}}]
[]
[17,270,"Heat sensor","No",2,null,{"$f":"E2738*F2738","v":{"v":0,"d":"0.00"}}]
[]
[17,271,"Rate of rise temperature sensor","No",2,null,{"$f":"E2740*F2740","v":{"v":0,"d":"0.00"}}]
[]
[17,272,"Extra on last for base sounder","No",2,null,{"$f":"E2742*F2742","v":{"v":0,"d":"0.00"}}]
[]
[17,273,"Extra on last for base sounder with beacon","No",2,null,{"$f":"E2744*F2744","v":{"v":0,"d":"0.00"}}]
[]
[17,null,"Addressable field devices, complete with fixings for ceiling, soffit/structure or wall mounting, and terminations.","H3"]
[]
[17,274,"Manual call point with isolator (resettable)","No",6,null,{"$f":"E2748*F2748","v":{"v":0,"d":"0.00"}}]
[]
[17,275,"IO unit with isolator (complete with hinged lid enclosure)","No",10,null,{"$f":"E2750*F2750","v":{"v":0,"d":"0.00"}}]
[]
[17,276,"Multi tone sounder/strobe","No",4,null,{"$f":"E2752*F2752","v":{"v":0,"d":"0.00"}}]
[]
[17,277,"Surface mount door hold open magnet complete with universal stainless steel adjustable bracket and emergency release button and door anchor plate (400N) and power supplies.","No",4,null,{"$f":"E2754*F2754","v":{"v":0,"d":"0.00"}}]
[]
[17,null,"SMOKE DETECTION SYSTEM","H1"]
[]
[17,null,"Supply and installation of cable (red) on cable basket in ceiling void or drawn into conduit as specified, including all labels and terminations at both ends.","H3"]
[]
[17,278,"PH120 2 Core, 1.0mm² stranded fire rated cable (red)","m",1500,null,{"$f":"E2760*F2760","v":{"v":0,"d":"0.00"}}]
[]
[17,279,"PH120 2 Core, 1.5mm² stranded fire rated cable (red)","m",3000,null,{"$f":"E2762*F2762","v":{"v":0,"d":"0.00"}}]
[]
[17,280,"PH120 2 Core, 2.5mm² stranded fire rated cable (red)","m",800,null,{"$f":"E2764*F2764","v":{"v":0,"d":"0.00"}}]
[]
[17,281,"Termination junction boxes in electronics risers complete with terminals","No",6,null,{"$f":"E2766*F2766","v":{"v":0,"d":"0.00"}}]
[]
[17,282,"Connectors, adapters, power sockets, cables, consumables and other material to complete the installation as intended.","Item",1,null,{"$f":"E2768*F2768","v":{"v":0,"d":"0.00"}}]
[]
[17,283,"Staff training on equipments ","Item",1,null,{"$f":"E2770*F2770","v":{"v":0,"d":"0.00"}}]
[]
[17,null,"SUNDRIES ","H1"]
[]
[17,null,"Specialised electrical appliances ","H3"]
[]
[17,284,"\"Otto Bock\" or other equally approved 1900 x 640 x 950mm high electrical examination beds with back panel and gas springs including upward and downward height adjustment with electric control height between 500mm - 950mm. 220/230V linear motor, with control box, hand held control panel and back up battery, 75mm individual brake casters, 50mm thick foam mattress and white epoxy coated steel frame and PVC upholstery","No",9,null,{"$f":"E2776*F2776","v":{"v":0,"d":"0.00"}}]
[]
[17,285,"\"Otto bock\" or other equally approved Pneumatic plaster cast saw Oscillating frequency not less than 19,000 hz, Motor capacity ( At 6 bar operating pressure) not less than 0,280 kw, Air consumption (At 6 bar operating pressure). At least 560 lts per minute, body to be manufactured with aluminium /steel, Weight not more than 0, 74 kg, Supplied with exhaust hose, One steel circular saw blade. One depth stop,One hexagon head wrench and One allen key","No",2,null,{"$f":"E2778*F2778","v":{"v":0,"d":"0.00"}}]
[]
[17,286,"\"Bosch\" or other equally approved heat gun manufactured from high grade plastic and stainless steel, with 220-230V/1000 - 1800W power requirements, temperature range 50-600 C, Overheat protection to ensure safety, 3 stage operation and 3m cord length with plug adaptor tube for heat protection. Electronic heating element protection suitable for continuous operation","No",2,null,{"$f":"E2780*F2780","v":{"v":0,"d":"0.00"}}]
[]
[17,287,"Soldering station manual display control, with temperature range between 200 - 450°C, To be supplied with not less than 3 tips, manufactured with recess for soldering tip cleaning pad built in solder stand for iron. Power Requirements of 220/230V with plug and not less than 1.5m power cable ","No",1,null,{"$f":"E2782*F2782","v":{"v":0,"d":"0.00"}}]
[]
[17,288,"\"Otto Bock\" or other equally approved Rasp milling tools for grinding and milling machine manufactured from tool steel, medium cut for wood, plastic and foam. Set of 5 including 85mm x 50mm x 0.9kg, 60mm x 50mm x 0.7kg,  70mm x 30mm x 0.26kg,  40mm x 36mm x 0.25kg and 50mm x 40mm x 0.69kg. To connect to 5/8’’ thread or M16","No",1,null,{"$f":"E2784*F2784","v":{"v":0,"d":"0.00"}}]
[]
[17,289,"\"Otto Bock\" or other equally approved rubber sanding drums for grinding and milling machine manufactured from integral foam with Conical attachment and 1 x sanding sleeve, Outside diameter 72.5mm and Inside diameter 35mm tapered to 30mm","No",10,null,{"$f":"E2786*F2786","v":{"v":0,"d":"0.00"}}]
[]
[17,290,"\"Otto Bock\" or other equally approved sanding drum with rubber tensioner for grinding and milling machine made from tool steel with locking nut and rubber roll, Internal female thread diameter 5/8” or M16, Includes rubber tensioner and one sanding sleeve. Diameter of rubber rolls 25mm, Weight 0.15kg, Length of rubber roll 45mm ","No",2,null,{"$f":"E2788*F2788","v":{"v":0,"d":"0.00"}}]
[]
[17,291,"\"Otto Bock\" or other equally approved buffing wheel for grinding and milling machine used for polishing stainless steel, aluminium, brass etc. To fit onto threaded connector: 5/8 OR M16, manufactured from cotton, bore hole size: 16mm, outside diameter: 100mm, Width: 25mm, Weight 1100 grams","No",10,null,{"$f":"E2790*F2790","v":{"v":0,"d":"0.00"}}]
[]
[17,292,"Buffing wheel threaded connector for grinding and milling machine for attachment of cotton buffing wheel, manufactured of steel with 2 washers and 1 screw, Internal female thread diameter 5/8” or M16, For polishing stainless steel, aluminium, brass etc. ","No",2,null,{"$f":"E2792*F2792","v":{"v":0,"d":"0.00"}}]
[]
[17,293,"Cordless impact drill kit made of plastic and metal, Power Requirements: not less than 18 volts, Forward, Reverse and Hammer Action, Must include dial for torque setting, Hammer action setting to be controlled manually, Kit to be supplied in plastic case with 1 cordless drill, 2 li-ion battery and 1 charger with cable and plug. Must have not less than 10mm chuck (Key less chuck) and industrial type","No",1,null,{"$f":"E2794*F2794","v":{"v":0,"d":"0.00"}}]
[]
[17,294,"115mm Diameter industrial type angle grinder made of plastic and metal with power requirements of 900W, Speed: not less than 10000rpm, manufactured with spindle lock for quick changing accessories, Lock on switch to assist with comfort and control, With handle and safety guard","No",1,null,{"$f":"E2796*F2796","v":{"v":0,"d":"0.00"}}]
[]
[17,295,"Jigsaw viarable speed industrial type made of steel and metal, 220Volts with plug and not less than 2m power cable, Not less than 450 Watts, Heavy duty type, Should be able to cut plastics/hardwood, steel and aluminum. Variable speed control, Length of stroke: not less than 18mm, manufactured with blade protection and adjustable base supplied with tools","No",1,null,{"$f":"E2798*F2798","v":{"v":0,"d":"0.00"}}]
[]
[17,null,"Maintenance","H3"]
[]
[17,296,"Training of the user department for equipment use. Manuals to be handed over at training. ","Item",1,null,{"$f":"E2802*F2802","v":{"v":0,"d":"0.00"}}]
[]
[17,297,"Maintenance of specialised equipments for a period of 12 months ","Item",1,null,{"$f":"E2804*F2804","v":{"v":0,"d":"0.00"}}]
[]
[17,298,"Extended maintenance of equipments, for a period of 5 years ","Item",1,null,{"$f":"E2806*F2806","v":{"v":0,"d":"0.00"}}]
[]
[17,null,"GENERAL","H1"]
[]
[17,299,"Provide one sample lug cut through at 45 deg. for each of the PVC SWA PVC ECC cables exceeding 25 mm² as per the cable schedule including supply of lug","Item",1,null,{"$f":"E2810*F2810","v":{"v":0,"d":"0.00"}}]
[]
[17,300,"Liaise with Telecommunications provider for the approval of conduits, cable trays, sleeves, power skirting and JBs installed","Item",1,null,{"$f":"E2812*F2812","v":{"v":0,"d":"0.00"}}]
[]
[17,301,"Liaise with Telecommunications provider for the approval of Comms room and underground sleeves around the site","Item",1,null,{"$f":"E2814*F2814","v":{"v":0,"d":"0.00"}}]
[]
[17,302,"Allowance to finalise the requirements of the local electrical supply authority and liaise the date of connection of power, submission of relevant certificates of compliance to ensure energisation of all outgoing circuits.","Item",1,null,{"$f":"E2816*F2816","v":{"v":0,"d":"0.00"}}]
[]
[17,303,"Inspect and take over all below ground electrical sleeves  and manholes installed by others","Item",1,null,{"$f":"E2818*F2818","v":{"v":0,"d":"0.00"}}]
[]
[17,304,"Conduct Infra Red Theram imaging of the Completed Electrical installation and provide a comprehensive report","Item",1,null,{"$f":"E2820*F2820","v":{"v":0,"d":"0.00"}}]
[]
[17,305,"Proving of existing services i.e. tracing MV, LV cables for the entire site","Item",1,null,{"$f":"E2822*F2822","v":{"v":0,"d":"0.00"}}]
[]
[17,null,"TESTING AND COMMISSIONING","H2"]
[]
[17,306,"Testing equipment to carry out site tests as specified for lux levels, cables, relays, switchgear, distribution boards, etc.","Item",1,null,{"$f":"E2826*F2826","v":{"v":0,"d":"0.00"}}]
[]
[17,307,"Test complete electrical installation in conjunction with the other services, viz., MV electrical, air-conditioning security system / smoke detection system, fire protection system, domestic water pumps, lifts smoke extract fans etc. as specified","Item",1,null,{"$f":"E2828*F2828","v":{"v":0,"d":"0.00"}}]
[]
[17,308,"Collate the “as built drawings\" and manuals for correctly indexed, and submit to the Engineer for review","Item",1,null,{"$f":"E2830*F2830","v":{"v":0,"d":"0.00"}}]
[]
[17,null,"HANDOVER","H2"]
[]
[17,309,"Budgetary allowance to produce and print As Built CAD drawings","Item",1,null,{"$f":"E2834*F2834","v":{"v":0,"d":"0.00"}}]
[]
[17,310,"Budgetary allowance for technical authoring of As Built manuals.","Item",1,null,{"$f":"E2836*F2836","v":{"v":0,"d":"0.00"}}]
[]
[17,null,"GUARANTEES ","H2"]
[]
[17,311,"Maintenance and guarantee of the complete installation including fitting, material and workmanship for a period of twelve months from date of completion and handover","Item",1,null,{"$f":"E2840*F2840","v":{"v":0,"d":"0.00"}}]
[]
[17,312,"Budgetary allowance for ISP connection costs and monthly rental","Item",1,null,{"$f":"E2842*F2842","v":{"v":0,"d":"0.00"}}]
[]
[17,null,"GENERAL ITEMS","H2"]
[]
[17,313,"Compile all typed test reports, commissioning data, marked up \"as built\" drawings, package in plastic covered A4 files and plastic envelopes correctly indexed, and submit to the Engineer for review","Item",1,null,{"$f":"E2846*F2846","v":{"v":0,"d":"0.00"}}]
[]
[17,314,"Update as built drawings and test results as necessary, and suppliers' information indexed correctly","Item",1,null,{"$f":"E2848*F2848","v":{"v":0,"d":"0.00"}}]
[]
[17,315,"Complete an IBUYA test sheet per DB including earth loop impedance tests on all cables prior to terminating ends and earth loop impedance testing of each circuit as specified","Item",1,null,{"$f":"E2850*F2850","v":{"v":0,"d":"0.00"}}]
[]
[17,316,"Set up all protection devices as required","Item",1,null,{"$f":"E2852*F2852","v":{"v":0,"d":"0.00"}}]
[]
[17,317,"Set up all meters as required","Item",1,null,{"$f":"E2854*F2854","v":{"v":0,"d":"0.00"}}]
[]
[17,318,"Certificate of compliance to be issued on completion of the project in addition to detailed testing as specified","Item",1,null,{"$f":"E2856*F2856","v":{"v":0,"d":"0.00"}}]
[]
[17,319,"3 Sets of as-built drawings and manuals","Item",1,null,{"$f":"E2858*F2858","v":{"v":0,"d":"0.00"}}]
[]
["Bill No. 17",null,"Carried to Final Summary",{"$nulls":3},{"$f":"SUM(G1980:G2859)","v":{"v":0,"d":"0.00"}}]
[]
[18,null,"BILL NO. 18","H1"]
[]
[18,null,"MECHANICAL WORK","H1"]
[]
[18,null,"(CPAP WORK GROUP NO. 170 UNLESS OTHERWISE STATED)","H2"]
[]
[18,null,"PREAMBLES","H2"]
[]
[18,null,"The descriptions given in the various items below are not necessarily full and complete and reference must be made to the \"Standard Preambles To All Trades (Rev. 3) DOH 2009\", \"Supplementary Preambles\" and \"Supplementary Specifications\" to this contract for the full requirements of each scheduled item"]
[]
[18,null,"SUPPLEMENTARY PREAMBLES","H2"]
[]
[18,null,"Specifications, drawings, etc","H4"]
[]
[18,null,"Tenderers are referred to the specification and drawings numbered ? to ? prepared by ?,  annexed to these bills of quantities (accompanying these bills of quantities?) for the mechanical work, for the full descriptions of the following items which are to be read and priced in conjunction with the said specification and drawings"]
[]
[18,null,"Ductwork","H4"]
[]
[18,null,"Descriptions of ducts shall be deemed to include stiffeners, jointing materials, sealants, couplers in the running length and access/inspection panels in accordance with the specification"]
[]
[18,null,"Dampers","H4"]
[]
[18,null,"Descriptions of smoke and fire dampers shall be deemed to include fusible links, sleeves, frames, supports and access openings in ducts"]
[]
[18,null,"Air diffusion","H4"]
[]
[18,null,"Descriptions of air terminals, grilles, louvres and the like shall be deemed to include necks, frames, supports and flexible connections"]
[]
[18,null,"Fans","H4"]
[]
[18,null,"Descriptions of fan assemblies shall be deemed to include supports from the structure, flexible or other connections to ductwork, vibration isolation mountings and airtight inspection doors"]
[]
[18,null,"Sound attenuators","H4"]
[]
[18,null,"Descriptions of sound attenuators shall be deemed to include flanged or flexible connections to ducts and supports from the structure"]
[]
[18,null,"Fan coil units, fan air terminals and fan heaters","H4"]
[]
[18,null,"Descriptions of fan coil units, fan air terminals and fan heaters shall be deemed to include connection points for water, air and electrical supply, for air grilles, dust trays, condensate trays and vibration isolation mountings.  Flexible ducts, flexible hose and connecting cables for connecting these units to each other or to water pipe, and electrical supply are separately measured"]
[]
[18,null,"Major equipment","H4"]
[]
[18,null,"Descriptions of major equipment such as chillers, air handling units and the like shall be deemed to include connections to water, air and electrical supply and/or discharge points, supports, bearers, vibration insulation mountings, filters, insulation, inspection ladders and gangways, access doors and panels and painting etc as specified"]
[]
[18,null,"Piping","H4"]
[]
[18,null,"Pipe diameters are nominal internal unless otherwise stated  Where fittings have reducing ends or branches they are described as \"reducing\". In the case of pipes with diameters not exceeding 60mm only the largest end or branch diameter is given.  Should the contractor wish to use other fittings and bushes or reducers he may do so on the understanding that no claim in this regard will be entertained.  In the case of pipes with diameters exceeding 60mm all diameters are given and no claim for extra bushes, reducers, etc will be entertained"]
[]
[18,null,"Fixing of pipes","H4"]
[]
[18,null,"Unless otherwise stated, descriptions of pipes shall be deemed to include fixing to walls etc, casting in, building in or suspending not exceeding 1m below suspension level"]
[]
[18,null,"Pump sets","H4"]
[]
[18,null,"Descriptions of pumps shall be deemed to include connections to water and electrical supply and/or discharge points, vibration insulation mountings, insulation, drip trays with outlets, pressure gauges, etc"]
[]
[18,null,"Valves","H4"]
[]
[18,null,"Descriptions of valves shall be deemed to include flanged or screwed connections to pipes, reducers, supports, etc"]
[]
[18,null,"Insulation","H4"]
[]
[18,null,"Descriptions of insulation shall be deemed to include priming the pipes with zinc chromate primer before the insulation is applied, painting the insulation when completed and applying vapour barrier where specified"]
[]
[18,null,"AIR CONDITIONING INSTALLATION ","H2"]
[]
[18,null,"DX SPLIT UNITS","H3"]
[]
[18,1,"3.6kW Wall mounted midwall inverter unit including pump and cooling capacity. Condenser unit mounted on external wall. Including connection to drain socket with p-trap, insulation, control wiring, power wiring, etc. ","No",5,null,{"$f":"E2930*F2930","v":{"v":0,"d":"0.00"}}]
[]
[18,2,"4.2kW Wall mounted midwall inverter unit including pump and cooling capacity. Condenser unit mounted on external wall. Including connection to drain socket with p-trap, insulation, control wiring, power wiring, etc. ","No",2,null,{"$f":"E2932*F2932","v":{"v":0,"d":"0.00"}}]
[]
[18,3,"7.2kW Wall mounted midwall inverter unit including pump and cooling capacity. Condenser unit mounted on external wall. Including connection to drain socket with p-trap, insulation, control wiring, power wiring, etc. ","No",1,null,{"$f":"E2934*F2934","v":{"v":0,"d":"0.00"}}]
[]
[18,4,"9.0kW Wall mounted midwall inverter unit including pump and cooling capacity. Condenser unit mounted on external wall. Including connection to drain socket with p-trap, insulation, control wiring, power wiring, etc. ","No",2,null,{"$f":"E2936*F2936","v":{"v":0,"d":"0.00"}}]
[]
[18,null,"For the supply, delivery to site, installation and connection of the following remote controllers","H3"]
[]
[18,5," Wired touch controller","No",10,null,{"$f":"E2940*F2940","v":{"v":0,"d":"0.00"}}]
[]
[18,null,"For the complete pressure testing, purging and charging with refrigerant of the following VRV Systems:","H3"]
[]
[18,6,"3.6kW Wall mounted midwall inverter unit","No",5,null,{"$f":"E2944*F2944","v":{"v":0,"d":"0.00"}}]
[]
[18,7,"4.2kW Wall mounted midwall inverter unit","No",2,null,{"$f":"E2946*F2946","v":{"v":0,"d":"0.00"}}]
[]
[18,8,"7.2kW Wall mounted midwall inverter unit","No",1,null,{"$f":"E2948*F2948","v":{"v":0,"d":"0.00"}}]
[]
[18,9,"9.0kW Wall mounted midwall inverter unit","No",2,null,{"$f":"E2950*F2950","v":{"v":0,"d":"0.00"}}]
[]
[18,null,"SUPPLY DUCTWORK","H3"]
[]
[18,null,"Rectangular galvanised sheet metal low pressure ducting including supports","H4"]
[]
[18,null,"CONDENSER WATER PIPEWORK, ETC.","H3"]
[]
[18,null,"Refrigerant piping","H2"]
[]
[18,null,"Class 2 copper piping including brackets, cable tray, etc. ","H3"]
[]
[18,10,"6.35mm Pipe ","m",35,null,{"$f":"E2962*F2962","v":{"v":0,"d":"0.00"}}]
[]
[18,11,"9.52mm Pipe","m",32,null,{"$f":"E2964*F2964","v":{"v":0,"d":"0.00"}}]
[]
[18,12,"12.7mm Pipe ","m",35,null,{"$f":"E2966*F2966","v":{"v":0,"d":"0.00"}}]
[]
[18,13,"15.88mm Pipe ","m",32,null,{"$f":"E2968*F2968","v":{"v":0,"d":"0.00"}}]
[]
[18,null,"Extra over Class 2 copper pipes for capillary fittings","H3"]
[]
[18,14,"6.35mm Fittings ","No",6,null,{"$f":"E2972*F2972","v":{"v":0,"d":"0.00"}}]
[]
[18,15,"9.52mm Fittings ","No",5,null,{"$f":"E2974*F2974","v":{"v":0,"d":"0.00"}}]
[]
[18,16,"12.7mm Fittings ","No",6,null,{"$f":"E2976*F2976","v":{"v":0,"d":"0.00"}}]
[]
[18,17,"15.88mm Fittings ","No",5,null,{"$f":"E2978*F2978","v":{"v":0,"d":"0.00"}}]
[]
[18,null,"Drain piping ","H2"]
[]
[18,null,"Class 6 uPVC piping Including brackets, cable tray, etc. ","H3"]
[]
[18,18,"20mm Pipe","m",35,null,{"$f":"E2984*F2984","v":{"v":0,"d":"0.00"}}]
[]
[18,19,"32mm Pipe ","m",5,null,{"$f":"E2986*F2986","v":{"v":0,"d":"0.00"}}]
[]
[18,20,"40mm Pipe ","m",10,null,{"$f":"E2988*F2988","v":{"v":0,"d":"0.00"}}]
[]
[18,null,"Extra over Class 6 uPVC pipes for fittings ","H3"]
[]
[18,21,"20mm Fittings ","No",6,null,{"$f":"E2992*F2992","v":{"v":0,"d":"0.00"}}]
[]
[18,22,"32mm Fittings ","No",2,null,{"$f":"E2994*F2994","v":{"v":0,"d":"0.00"}}]
[]
[18,23,"40mm Fittings ","No",4,null,{"$f":"E2996*F2996","v":{"v":0,"d":"0.00"}}]
[]
[18,null,"TRUNKING ","H2"]
[]
[18,null,"P2000 Galvanized wired mesh light duty cable trays including short lengths, tees, bends and fixed with hangers, brackets to walls, trusses, etc. ","H3"]
[]
[18,24,"41.3mm Wide cable trays","m",70,null,{"$f":"E3002*F3002","v":{"v":0,"d":"0.00"}}]
[]
[18,null,"PIPE INSULATION ","H2"]
[]
[18,null,"Insulation to concealed pipes including vapour barrier ","H3"]
[]
[18,25,"6.35mm Pipe ","m",35,null,{"$f":"E3008*F3008","v":{"v":0,"d":"0.00"}}]
[]
[18,26,"9.52mm Pipe","m",32,null,{"$f":"E3010*F3010","v":{"v":0,"d":"0.00"}}]
[]
[18,27,"12.7mm Pipe ","m",35,null,{"$f":"E3012*F3012","v":{"v":0,"d":"0.00"}}]
[]
[18,28,"15.88mm Pipe ","m",32,null,{"$f":"E3014*F3014","v":{"v":0,"d":"0.00"}}]
[]
[18,29,"20mm Pipe","m",35,null,{"$f":"E3016*F3016","v":{"v":0,"d":"0.00"}}]
[]
[18,30,"32mm Pipe ","m",5,null,{"$f":"E3018*F3018","v":{"v":0,"d":"0.00"}}]
[]
[18,31,"40mm Pipe ","m",10,null,{"$f":"E3020*F3020","v":{"v":0,"d":"0.00"}}]
[]
[18,null,"Extra over insulation to concealed pipes for insulation to ","H3"]
[]
[18,32,"6.35mm Fittings ","No",7,null,{"$f":"E3024*F3024","v":{"v":0,"d":"0.00"}}]
[]
[18,33,"9.52mm Fittings ","No",5,null,{"$f":"E3026*F3026","v":{"v":0,"d":"0.00"}}]
[]
[18,34,"12.7mm Fittings ","No",6,null,{"$f":"E3028*F3028","v":{"v":0,"d":"0.00"}}]
[]
[18,35,"15.88mm Fittings ","No",4,null,{"$f":"E3030*F3030","v":{"v":0,"d":"0.00"}}]
[]
[18,36,"20mm Fittings ","No",6,null,{"$f":"E3032*F3032","v":{"v":0,"d":"0.00"}}]
[]
[18,37,"32mm Fittings ","No",2,null,{"$f":"E3034*F3034","v":{"v":0,"d":"0.00"}}]
[]
[18,38,"40mm Fittings ","No",4,null,{"$f":"E3036*F3036","v":{"v":0,"d":"0.00"}}]
[]
[18,null,"SUPPLY AIR DUCTWORK","H2"]
[]
[18,null,"MEDIUM PRESSURE DUCTWORK","H2"]
[]
[18,null,"Rectangular galvanised sheet metal medium pressure ducting including supports  ","H3"]
[]
[18,39,"Category 1 ducting suspended not exceeding 1m below steel roof trusses ","m2",35,null,{"$f":"E3044*F3044","v":{"v":0,"d":"0.00"}}]
[]
[18,40,"Category 1 ducting suspended exceeding 1m and not exceeding 2m below steel roof trusses ","m2",29,null,{"$f":"E3046*F3046","v":{"v":0,"d":"0.00"}}]
[]
[18,41,"Category 2 ducting suspended not exceeding 1m below steel roof trusses ","m2",12,null,{"$f":"E3048*F3048","v":{"v":0,"d":"0.00"}}]
[]
[18,42,"Category 2 ducting suspended exceeding 1m and not exceeding 2m below steel roof trusses ","m2",9,null,{"$f":"E3050*F3050","v":{"v":0,"d":"0.00"}}]
[]
[18,null,"Extra over rectangular galvanised sheet metal medium pressure ducting including supports for  ","H3"]
[]
[18,null,"Category 1 ducting ","H3"]
[]
[18,43,"Stopped end ","No",6,null,{"$f":"E3056*F3056","v":{"v":0,"d":"0.00"}}]
[]
[18,44,"Reducer, radius bend, square bend, transformation, spigot, branch or tee ","No",14,null,{"$f":"E3058*F3058","v":{"v":0,"d":"0.00"}}]
[]
[18,null,"Category 2 ducting ","H3"]
[]
[18,45,"Reducer, radius bend, square bend, transformation, spigot, branch or tee ","No",7,null,{"$f":"E3062*F3062","v":{"v":0,"d":"0.00"}}]
[]
[18,null,"Galvanised sheet metal medium pressure ducting including supports  ","H3"]
[]
[18,46,"100mm Diameter ducting suspended not exceeding 1m below steel roof trusses ","m",8,null,{"$f":"E3066*F3066","v":{"v":0,"d":"0.00"}}]
[]
[18,47,"100mm Diameter ducting suspended exceeding 1m and not exceeding 2m below steel roof trusses ","m",10,null,{"$f":"E3068*F3068","v":{"v":0,"d":"0.00"}}]
[]
[18,48,"150mm Diameter ducting suspended not exceeding 1m below steel roof trusses ","m",17,null,{"$f":"E3070*F3070","v":{"v":0,"d":"0.00"}}]
[]
[18,49,"150mm Diameter ducting suspended exceeding 1m and not exceeding 2m below steel roof trusses ","m",20,null,{"$f":"E3072*F3072","v":{"v":0,"d":"0.00"}}]
[]
[18,50,"200mm Diameter ducting suspended not exceeding 1m below steel roof trusses ","m",17,null,{"$f":"E3074*F3074","v":{"v":0,"d":"0.00"}}]
[]
[18,51,"200mm Diameter ducting suspended exceeding 1m and not exceeding 2m below steel roof trusses ","m",21,null,{"$f":"E3076*F3076","v":{"v":0,"d":"0.00"}}]
[]
[18,52,"250mm Diameter ducting suspended not exceeding 1m below steel roof trusses ","m",14,null,{"$f":"E3078*F3078","v":{"v":0,"d":"0.00"}}]
[]
[18,53,"250mm Diameter ducting suspended exceeding 1m and not exceeding 2m below steel roof trusses ","m",17,null,{"$f":"E3080*F3080","v":{"v":0,"d":"0.00"}}]
[]
[18,54,"300mm Diameter ducting suspended not exceeding 1m below steel roof trusses ","m",5,null,{"$f":"E3082*F3082","v":{"v":0,"d":"0.00"}}]
[]
[18,55,"300mm Diameter ducting suspended exceeding 1m and not exceeding 2m below steel roof trusses ","m",7,null,{"$f":"E3084*F3084","v":{"v":0,"d":"0.00"}}]
[]
[18,56,"350mm Diameter ducting suspended not exceeding 1m below steel roof trusses ","m",12,null,{"$f":"E3086*F3086","v":{"v":0,"d":"0.00"}}]
[]
[18,57,"350mm Diameter ducting suspended exceeding 1m and not exceeding 2m below steel roof trusses ","m",9,null,{"$f":"E3088*F3088","v":{"v":0,"d":"0.00"}}]
[]
[18,58,"400mm Diameter ducting suspended not exceeding 1m below steel roof trusses ","m",14,null,{"$f":"E3090*F3090","v":{"v":0,"d":"0.00"}}]
[]
[18,59,"400mm Diameter ducting suspended exceeding 1m and not exceeding 2m below steel roof trusses ","m",9,null,{"$f":"E3092*F3092","v":{"v":0,"d":"0.00"}}]
[]
[18,60,"450mm Diameter ducting suspended not exceeding 1m below steel roof trusses ","m",11,null,{"$f":"E3094*F3094","v":{"v":0,"d":"0.00"}}]
[]
[18,61,"450mm Diameter ducting suspended exceeding 1m and not exceeding 2m below steel roof trusses ","m",13,null,{"$f":"E3096*F3096","v":{"v":0,"d":"0.00"}}]
[]
[18,62,"500mm Diameter ducting suspended not exceeding 1m below steel roof trusses ","m",14,null,{"$f":"E3098*F3098","v":{"v":0,"d":"0.00"}}]
[]
[18,63,"500mm Diameter ducting suspended exceeding 1m and not exceeding 2m below steel roof trusses ","m",17,null,{"$f":"E3100*F3100","v":{"v":0,"d":"0.00"}}]
[]
[18,64,"550mm Diameter ducting suspended exceeding 1m and not exceeding 2m below steel roof trusses ","m",2,null,{"$f":"E3102*F3102","v":{"v":0,"d":"0.00"}}]
[]
[18,65,"630mm Diameter ducting suspended exceeding 1m and not exceeding 2m below steel roof trusses ","m",4,null,{"$f":"E3104*F3104","v":{"v":0,"d":"0.00"}}]
[]
[18,66,"650mm Diameter ducting suspended exceeding 1m and not exceeding 2m below steel roof trusses ","m",7,null,{"$f":"E3106*F3106","v":{"v":0,"d":"0.00"}}]
[]
[18,null,"Extra over galvanised sheet metal medium pressure ducting including supports for  ","H3"]
[]
[18,null,"100mm Diameter ducting ","H3"]
[]
[18,67,"Reducer, radius bend, square bend, transformation, spigot, branch or tee ","No",11,null,{"$f":"E3112*F3112","v":{"v":0,"d":"0.00"}}]
[]
[18,null,"150mm Diameter ducting ","H3"]
[]
[18,68,"Stopped end ","No",3,null,{"$f":"E3116*F3116","v":{"v":0,"d":"0.00"}}]
[]
[18,69,"Reducer, radius bend, square bend, transformation, spigot, branch or tee ","No",23,null,{"$f":"E3118*F3118","v":{"v":0,"d":"0.00"}}]
[]
[18,null,"200mm Diameter ducting ","H3"]
[]
[18,70,"Stopped end ","No",2,null,{"$f":"E3122*F3122","v":{"v":0,"d":"0.00"}}]
[]
[18,71,"Reducer, radius bend, square bend, transformation, spigot, branch or tee ","No",21,null,{"$f":"E3124*F3124","v":{"v":0,"d":"0.00"}}]
[]
[18,null,"250mm Diameter ducting ","H3"]
[]
[18,72,"Stopped end ","No",1,null,{"$f":"E3128*F3128","v":{"v":0,"d":"0.00"}}]
[]
[18,73,"Reducer, radius bend, square bend, transformation, spigot, branch or tee ","No",26,null,{"$f":"E3130*F3130","v":{"v":0,"d":"0.00"}}]
[]
[18,null,"300mm Diameter ducting ","H3"]
[]
[18,74,"Stopped end ","No",1,null,{"$f":"E3134*F3134","v":{"v":0,"d":"0.00"}}]
[]
[18,75,"Reducer, radius bend, square bend, transformation, spigot, branch or tee ","No",7,null,{"$f":"E3136*F3136","v":{"v":0,"d":"0.00"}}]
[]
[18,null,"350mm Diameter ducting ","H3"]
[]
[18,76,"Stopped end ","No",2,null,{"$f":"E3140*F3140","v":{"v":0,"d":"0.00"}}]
[]
[18,77,"Reducer, radius bend, square bend, transformation, spigot, branch or tee ","No",7,null,{"$f":"E3142*F3142","v":{"v":0,"d":"0.00"}}]
[]
[18,null,"400mm Diameter ducting ","H3"]
[]
[18,78,"Stopped end ","No",1,null,{"$f":"E3146*F3146","v":{"v":0,"d":"0.00"}}]
[]
[18,79,"Reducer, radius bend, square bend, transformation, spigot, branch or tee ","No",5,null,{"$f":"E3148*F3148","v":{"v":0,"d":"0.00"}}]
[]
[18,null,"450mm Diameter ducting ","H3"]
[]
[18,80,"Reducer, radius bend, square bend, transformation, spigot, branch or tee ","No",6,null,{"$f":"E3152*F3152","v":{"v":0,"d":"0.00"}}]
[]
[18,null,"500mm Diameter ducting ","H3"]
[]
[18,81,"Stopped end ","No",1,null,{"$f":"E3156*F3156","v":{"v":0,"d":"0.00"}}]
[]
[18,82,"Reducer, radius bend, square bend, transformation, spigot, branch or tee ","No",5,null,{"$f":"E3158*F3158","v":{"v":0,"d":"0.00"}}]
[]
[18,null,"550mm Diameter ducting ","H3"]
[]
[18,83,"Reducer, radius bend, square bend, transformation, spigot, branch or tee ","No",3,null,{"$f":"E3162*F3162","v":{"v":0,"d":"0.00"}}]
[]
[18,null,"630mm Diameter ducting ","H3"]
[]
[18,84,"Reducer, radius bend, square bend, transformation, spigot, branch or tee ","No",4,null,{"$f":"E3166*F3166","v":{"v":0,"d":"0.00"}}]
[]
[18,null,"650mm Diameter ducting ","H3"]
[]
[18,85,"Reducer, radius bend, square bend, transformation, spigot, branch or tee ","No",2,null,{"$f":"E3170*F3170","v":{"v":0,"d":"0.00"}}]
[]
[18,null,"RETURN AIR DUCTWORK","H2"]
[]
[18,null,"MEDIUM PRESSURE DUCTWORK","H2"]
[]
[18,null,"Rectangular galvanised sheet metal medium pressure ducting including supports  ","H3"]
[]
[18,86,"Category 1 ducting suspended not exceeding 1m below steel roof trusses ","m2",9,null,{"$f":"E3178*F3178","v":{"v":0,"d":"0.00"}}]
[]
[18,87,"Category 1 ducting suspended exceeding 1m and not exceeding 2m below steel roof trusses ","m2",11,null,{"$f":"E3180*F3180","v":{"v":0,"d":"0.00"}}]
[]
[18,88,"Category 2 ducting suspended not exceeding 1m below steel roof trusses ","m2",7,null,{"$f":"E3182*F3182","v":{"v":0,"d":"0.00"}}]
[]
[18,89,"Category 2 ducting suspended exceeding 1m and not exceeding 2m below steel roof trusses ","m2",8,null,{"$f":"E3184*F3184","v":{"v":0,"d":"0.00"}}]
[]
[18,null,"Extra over rectangular galvanised sheet metal medium pressure ducting including supports for  ","H3"]
[]
[18,null,"Category 1 ducting ","H3"]
[]
[18,90,"Stopped end ","No",1,null,{"$f":"E3190*F3190","v":{"v":0,"d":"0.00"}}]
[]
[18,91,"Reducer, radius bend, square bend, transformation, spigot, branch or tee ","No",1,null,{"$f":"E3192*F3192","v":{"v":0,"d":"0.00"}}]
[]
[18,null,"Category 2 ducting ","H3"]
[]
[18,92,"Reducer, radius bend, square bend, transformation, spigot, branch or tee ","No",6,null,{"$f":"E3196*F3196","v":{"v":0,"d":"0.00"}}]
[]
[18,null,"Galvanised sheet metal medium pressure ducting including supports  ","H3"]
[]
[18,93,"250mm Diameter ducting suspended not exceeding 1m below steel roof trusses ","m",7,null,{"$f":"E3200*F3200","v":{"v":0,"d":"0.00"}}]
[]
[18,94,"250mm Diameter ducting suspended exceeding 1m and not exceeding 2m below steel roof trusses ","m",9,null,{"$f":"E3202*F3202","v":{"v":0,"d":"0.00"}}]
[]
[18,95,"300mm Diameter ducting suspended exceeding 1m and not exceeding 2m below steel roof trusses ","m",4,null,{"$f":"E3204*F3204","v":{"v":0,"d":"0.00"}}]
[]
[18,96,"350mm Diameter ducting suspended not exceeding 1m below steel roof trusses ","m",9,null,{"$f":"E3206*F3206","v":{"v":0,"d":"0.00"}}]
[]
[18,97,"350mm Diameter ducting suspended exceeding 1m and not exceeding 2m below steel roof trusses ","m",10,null,{"$f":"E3208*F3208","v":{"v":0,"d":"0.00"}}]
[]
[18,null,"Extra over galvanised sheet metal medium pressure ducting including supports for  ","H3"]
[]
[18,null,"250mm Diameter ducting ","H3"]
[]
[18,98,"Reducer, radius bend, square bend, transformation, spigot, branch or tee ","No",22,null,{"$f":"E3214*F3214","v":{"v":0,"d":"0.00"}}]
[]
[18,null,"300mm Diameter ducting ","H3"]
[]
[18,99,"Stopped end ","No",1,null,{"$f":"E3218*F3218","v":{"v":0,"d":"0.00"}}]
[]
[18,null,"350mm Diameter ducting ","H3"]
[]
[18,100,"Reducer, radius bend, square bend, transformation, spigot, branch or tee ","No",3,null,{"$f":"E3222*F3222","v":{"v":0,"d":"0.00"}}]
[]
[18,null,"EXTRACT AIR DUCTWORK","H2"]
[]
[18,null,"MEDIUM PRESSURE DUCTWORK","H2"]
[]
[18,null,"Rectangular galvanised sheet metal medium pressure ducting including supports  ","H3"]
[]
[18,101,"Category 1 ducting suspended not exceeding 1m below steel roof trusses ","m2",10,null,{"$f":"E3230*F3230","v":{"v":0,"d":"0.00"}}]
[]
[18,102,"Category 1 ducting suspended not exceeding 1m below steel roof trusses ","m2",12,null,{"$f":"E3232*F3232","v":{"v":0,"d":"0.00"}}]
[]
[18,103,"Category 2 ducting suspended not exceeding 1m below steel roof trusses ","m2",48,null,{"$f":"E3234*F3234","v":{"v":0,"d":"0.00"}}]
[]
[18,104,"Category 2 ducting suspended not exceeding 1m below steel roof trusses ","m2",39,null,{"$f":"E3236*F3236","v":{"v":0,"d":"0.00"}}]
[]
[18,null,"Extra over rectangular galvanised sheet metal medium pressure ducting including supports for  ","H3"]
[]
[18,null,"Category 1 ducting ","H3"]
[]
[18,105,"Stopped end ","No",3,null,{"$f":"E3242*F3242","v":{"v":0,"d":"0.00"}}]
[]
[18,106,"Reducer, radius bend, square bend, transformation, spigot, branch or tee ","No",19,null,{"$f":"E3244*F3244","v":{"v":0,"d":"0.00"}}]
[]
[18,null,"Category 2 ducting ","H3"]
[]
[18,107,"Reducer, radius bend, square bend, transformation, spigot, branch or tee ","No",7,null,{"$f":"E3248*F3248","v":{"v":0,"d":"0.00"}}]
[]
[18,null,"Galvanised sheet metal medium pressure ducting including supports  ","H3"]
[]
[18,108,"100mm Diameter ducting suspended exceeding 1m and not exceeding 2m below steel roof trusses ","m",3,null,{"$f":"E3252*F3252","v":{"v":0,"d":"0.00"}}]
[]
[18,109,"150mm Diameter ducting suspended not exceeding 1m below steel roof trusses ","m",13,null,{"$f":"E3254*F3254","v":{"v":0,"d":"0.00"}}]
[]
[18,110,"150mm Diameter ducting suspended exceeding 1m and not exceeding 2m below steel roof trusses ","m",11,null,{"$f":"E3256*F3256","v":{"v":0,"d":"0.00"}}]
[]
[18,111,"200mm Diameter ducting suspended not exceeding 1m below steel roof trusses ","m",7,null,{"$f":"E3258*F3258","v":{"v":0,"d":"0.00"}}]
[]
[18,112,"200mm Diameter ducting suspended exceeding 1m and not exceeding 2m below steel roof trusses ","m",5,null,{"$f":"E3260*F3260","v":{"v":0,"d":"0.00"}}]
[]
[18,113,"250mm Diameter ducting suspended not exceeding 1m below steel roof trusses ","m",4,null,{"$f":"E3262*F3262","v":{"v":0,"d":"0.00"}}]
[]
[18,114,"300mm Diameter ducting suspended not exceeding 1m below steel roof trusses ","m",10,null,{"$f":"E3264*F3264","v":{"v":0,"d":"0.00"}}]
[]
[18,115,"300mm Diameter ducting suspended exceeding 1m and not exceeding 2m below steel roof trusses ","m",9,null,{"$f":"E3266*F3266","v":{"v":0,"d":"0.00"}}]
[]
[18,116,"350mm Diameter ducting suspended not exceeding 1m below steel roof trusses ","m",7,null,{"$f":"E3268*F3268","v":{"v":0,"d":"0.00"}}]
[]
[18,117,"350mm Diameter ducting suspended exceeding 1m and not exceeding 2m below steel roof trusses ","m",6,null,{"$f":"E3270*F3270","v":{"v":0,"d":"0.00"}}]
[]
[18,118,"400mm Diameter ducting suspended exceeding 1m and not exceeding 2m below steel roof trusses ","m",1,null,{"$f":"E3272*F3272","v":{"v":0,"d":"0.00"}}]
[]
[18,119,"630mm Diameter ducting suspended exceeding 1m and not exceeding 2m below steel roof trusses ","m",2,null,{"$f":"E3274*F3274","v":{"v":0,"d":"0.00"}}]
[]
[18,null,"100mm Diameter ducting ","H3"]
[]
[18,120,"Reducer, radius bend, square bend, transformation, spigot, branch or tee ","No",5,null,{"$f":"E3278*F3278","v":{"v":0,"d":"0.00"}}]
[]
[18,null,"150mm Diameter ducting ","H3"]
[]
[18,121,"Stopped end ","No",1,null,{"$f":"E3282*F3282","v":{"v":0,"d":"0.00"}}]
[]
[18,122,"Reducer, radius bend, square bend, transformation, spigot, branch or tee ","No",36,null,{"$f":"E3284*F3284","v":{"v":0,"d":"0.00"}}]
[]
[18,null,"200mm Diameter ducting ","H3"]
[]
[18,123,"Stopped end ","No",3,null,{"$f":"E3288*F3288","v":{"v":0,"d":"0.00"}}]
[]
[18,124,"Reducer, radius bend, square bend, transformation, spigot, branch or tee ","No",7,null,{"$f":"E3290*F3290","v":{"v":0,"d":"0.00"}}]
[]
[18,null,"250mm Diameter ducting ","H3"]
[]
[18,125,"Stopped end ","No",1,null,{"$f":"E3294*F3294","v":{"v":0,"d":"0.00"}}]
[]
[18,126,"Reducer, radius bend, square bend, transformation, spigot, branch or tee ","No",2,null,{"$f":"E3296*F3296","v":{"v":0,"d":"0.00"}}]
[]
[18,null,"300mm Diameter ducting ","H3"]
[]
[18,127,"Stopped end ","No",4,null,{"$f":"E3300*F3300","v":{"v":0,"d":"0.00"}}]
[]
[18,128,"Reducer, radius bend, square bend, transformation, spigot, branch or tee ","No",16,null,{"$f":"E3302*F3302","v":{"v":0,"d":"0.00"}}]
[]
[18,null,"350mm Diameter ducting ","H3"]
[]
[18,129,"Stopped end ","No",2,null,{"$f":"E3306*F3306","v":{"v":0,"d":"0.00"}}]
[]
[18,130,"Reducer, radius bend, square bend, transformation, spigot, branch or tee ","No",1,null,{"$f":"E3308*F3308","v":{"v":0,"d":"0.00"}}]
[]
[18,null,"400mm Diameter ducting ","H3"]
[]
[18,131,"Stopped end ","No",1,null,{"$f":"E3312*F3312","v":{"v":0,"d":"0.00"}}]
[]
[18,132,"Reducer, radius bend, square bend, transformation, spigot, branch or tee ","No",1,null,{"$f":"E3314*F3314","v":{"v":0,"d":"0.00"}}]
[]
[18,null,"630mm Diameter ducting ","H3"]
[]
[18,133,"Reducer, radius bend, square bend, transformation, spigot, branch or tee ","No",1,null,{"$f":"E3318*F3318","v":{"v":0,"d":"0.00"}}]
[]
[18,null,"DUCTING INSULATION","H2"]
[]
[18,null,"External insulation","H4"]
[]
[18,134,"50mm Thick insulation","m2",279,null,{"$f":"E3324*F3324","v":{"v":0,"d":"0.00"}}]
[]
[18,135,"75mm Thick insulation with sheet metal covering","m2",121,null,{"$f":"E3326*F3326","v":{"v":0,"d":"0.00"}}]
[]
[18,null,"DIFFUSERS, GRILLES, ETC. ","H2"]
[]
[18,null,"Anodised aluminium door grilles","H3"]
[]
[18,136,"200 x 200mm Door grille (DG01)","No",21,null,{"$f":"E3332*F3332","v":{"v":0,"d":"0.00"}}]
[]
[18,137,"250 x 250mm Door grille (DG02)","No",5,null,{"$f":"E3334*F3334","v":{"v":0,"d":"0.00"}}]
[]
[18,138,"300 x 300mm Door grille (DG03)","No",9,null,{"$f":"E3336*F3336","v":{"v":0,"d":"0.00"}}]
[]
[18,null,"Anodised aluminium supply diffusers","H3"]
[]
[18,139,"600 x 600mm Medium cone vav diffuser (SD02) ","No",18,null,{"$f":"E3340*F3340","v":{"v":0,"d":"0.00"}}]
[]
[18,140,"600mm Diameter medium cone vav diffuser (SD03) ","No",5,null,{"$f":"E3342*F3342","v":{"v":0,"d":"0.00"}}]
[]
[18,141,"600mm Diameter medium cone vav diffuser (SD05) ","No",6,null,{"$f":"E3344*F3344","v":{"v":0,"d":"0.00"}}]
[]
[18,null,"Anodised aluminium extract, transfer and return air grilles","H3"]
[]
[18,142,"150mm Diameter ceiling mounted extraction disc valve (DV01) ","No",5,null,{"$f":"E3348*F3348","v":{"v":0,"d":"0.00"}}]
[]
[18,143,"200mm Diameter ceiling mounted extraction disc valve (DV02) ","No",34,null,{"$f":"E3350*F3350","v":{"v":0,"d":"0.00"}}]
[]
[18,144,"150mm Diameter ceiling mounted fresh air supply disc valve (FD01) ","No",6,null,{"$f":"E3352*F3352","v":{"v":0,"d":"0.00"}}]
[]
[18,145,"200mm Diameter ceiling mounted fresh air supply disc valve (FD02) ","No",22,null,{"$f":"E3354*F3354","v":{"v":0,"d":"0.00"}}]
[]
[18,146,"250mm Diameter ceiling mounted fresh air supply disc valve (FD03) ","No",8,null,{"$f":"E3356*F3356","v":{"v":0,"d":"0.00"}}]
[]
[18,147,"300mm Diameter ceiling mounted fresh air supply disc valve (FD04) ","No",2,null,{"$f":"E3358*F3358","v":{"v":0,"d":"0.00"}}]
[]
[18,148,"250 x 250mm Extraction EGG crate grille with OBD dampers (EG01)","No",4,null,{"$f":"E3360*F3360","v":{"v":0,"d":"0.00"}}]
[]
[18,149,"1200 x 600mm Extraction EGG crate grille with OBD dampers (EG02)","No",6,null,{"$f":"E3362*F3362","v":{"v":0,"d":"0.00"}}]
[]
[18,150,"1200 x 600mm Return air grille (RG01) ","No",5,null,{"$f":"E3364*F3364","v":{"v":0,"d":"0.00"}}]
[]
[18,null,"Powder coated anodised aluminium weather louvres","H3"]
[]
[18,151,"150 x 150mm Weather louvre with vermin screen, mounted on end of duct (WL01) ","No",1,null,{"$f":"E3368*F3368","v":{"v":0,"d":"0.00"}}]
[]
[18,152,"250 x 250mm Weather louvre with vermin screen, mounted on end of duct (WL02) ","No",2,null,{"$f":"E3370*F3370","v":{"v":0,"d":"0.00"}}]
[]
[18,153,"350 x 350mm Weather louvre with vermin screen, mounted on end of duct (WL03) ","No",6,null,{"$f":"E3372*F3372","v":{"v":0,"d":"0.00"}}]
[]
[18,null,"DUCTING SUNDRIES","H2"]
[]
[18,null,"Dampers","H3"]
[]
[18,154,"100mm Diameter balancing damper (BD01)","No",6,null,{"$f":"E3378*F3378","v":{"v":0,"d":"0.00"}}]
[]
[18,155,"150mm Diameter balancing damper (BD02)","No",22,null,{"$f":"E3380*F3380","v":{"v":0,"d":"0.00"}}]
[]
[18,156,"200mm Diameter balancing damper (BD03)","No",13,null,{"$f":"E3382*F3382","v":{"v":0,"d":"0.00"}}]
[]
[18,157,"250mm Diameter balancing damper (BD04)","No",28,null,{"$f":"E3384*F3384","v":{"v":0,"d":"0.00"}}]
[]
[18,158,"300mm Diameter balancing damper (BD05)","No",6,null,{"$f":"E3386*F3386","v":{"v":0,"d":"0.00"}}]
[]
[18,159,"150mm Diameter round fire damper (FD01)","No",1,null,{"$f":"E3388*F3388","v":{"v":0,"d":"0.00"}}]
[]
[18,160,"250mm Diameter round fire damper (FD02)","No",1,null,{"$f":"E3390*F3390","v":{"v":0,"d":"0.00"}}]
[]
[18,161,"350mm Diameter round fire damper (FD03)","No",1,null,{"$f":"E3392*F3392","v":{"v":0,"d":"0.00"}}]
[]
[18,162,"400mm Diameter round fire damper (FD04)","No",1,null,{"$f":"E3394*F3394","v":{"v":0,"d":"0.00"}}]
[]
[18,163,"450mm Diameter round fire damper (FD05)","No",2,null,{"$f":"E3396*F3396","v":{"v":0,"d":"0.00"}}]
[]
[18,164,"150mm Diameter non-return damper (NR01)","No",1,null,{"$f":"E3398*F3398","v":{"v":0,"d":"0.00"}}]
[]
[18,null,"EQUIPMENT","H2"]
[]
[18,null,"Fresh air ventilation fans including FA filters, plenum and sound attenuators ","H3"]
[]
[18,165,"AP 560mm diameter fresh air axial fan 912 litres/second (FA1.0.63)","No",1,null,{"$f":"E3404*F3404","v":{"v":0,"d":"0.00"}}]
[]
[18,166,"AP 560mm diameter fresh air axial fan 1012 litres/second (FA2.0.61)","No",1,null,{"$f":"E3406*F3406","v":{"v":0,"d":"0.00"}}]
[]
[18,167,"AP 630mm diameter fresh air axial fan 1609 litres/second (FA3.0.62)","No",1,null,{"$f":"E3408*F3408","v":{"v":0,"d":"0.00"}}]
[]
[18,null,"Extraction wall fans ","H3"]
[]
[18,168,"AMS HXM 350mm diameter extraction wall fan 190 litres/second (EF1.0.24) ","No",2,null,{"$f":"E3412*F3412","v":{"v":0,"d":"0.00"}}]
[]
[18,169,"AMS HXM 300 S 300mm diameter extraction wall mount fan 15 litres/second (EF2.0.26) ","No",1,null,{"$f":"E3414*F3414","v":{"v":0,"d":"0.00"}}]
[]
[18,170,"AMS HXM 300 S 300mm diameter extraction wall mount fan 65 litres/second (EF2.0.27) ","No",2,null,{"$f":"E3416*F3416","v":{"v":0,"d":"0.00"}}]
[]
[18,171,"AMS HXM 300 S 300mm diameter extraction wall mount fan 45 litres/second (EF2.0.28) ","No",2,null,{"$f":"E3418*F3418","v":{"v":0,"d":"0.00"}}]
[]
[18,172,"AMS HXM 300 S 300mm diameter extraction wall mount fan 60 litres/second (EF2.0.29) ","No",1,null,{"$f":"E3420*F3420","v":{"v":0,"d":"0.00"}}]
[]
[18,173,"AMS HXM 300 S 300mm diameter extraction wall mount fan 75 litres/second (EF2.0.34) ","No",1,null,{"$f":"E3422*F3422","v":{"v":0,"d":"0.00"}}]
[]
[18,174,"HIT 250 B 250mm diameter extraction wall fan 300 litres/second (EF3.0.33) including fire damper","No",1,null,{"$f":"E3424*F3424","v":{"v":0,"d":"0.00"}}]
[]
[18,null,"Silent axial extraction fans plenum & sound attenuators ","H3"]
[]
[18,175,"HIT 250 B 250mm diameter extraction fan 150 litres/second (EF3.0.65)","No",4,null,{"$f":"E3428*F3428","v":{"v":0,"d":"0.00"}}]
[]
[18,176,"HIT 250 B 250mm diameter extraction fan 210 litres/second (EF4.0.37)","No",1,null,{"$f":"E3430*F3430","v":{"v":0,"d":"0.00"}}]
[]
[18,177,"AMS HIT 315 B 315mm diameter extraction fan 310 litres/second (EF5.0.54)","No",1,null,{"$f":"E3432*F3432","v":{"v":0,"d":"0.00"}}]
[]
[18,178,"AMS HIT 315 B 315mm diameter extraction fan 310 litres/second (EF5.0.55)","No",1,null,{"$f":"E3434*F3434","v":{"v":0,"d":"0.00"}}]
[]
[18,179,"TD 400mm diameter extraction fan 350 litres/second (EF6.0.36)","No",2,null,{"$f":"E3436*F3436","v":{"v":0,"d":"0.00"}}]
[]
[18,180,"TD 400mm diameter extraction fan 425 litres/second (EF6.0.51)","No",1,null,{"$f":"E3438*F3438","v":{"v":0,"d":"0.00"}}]
[]
[18,181,"AP 560mm diameter extraction air axial fan 2400 litres/second (EF7.0.64)","No",1,null,{"$f":"E3440*F3440","v":{"v":0,"d":"0.00"}}]
[]
[18,null,"Air handling units","H3"]
[]
[18,182,"Air handling unit as per the specification (AHU1.0.58).\"Cooling Capacity: Total: 33.2kWHeating Capacity: 35kWTotal Supply Air: 1336l/sTotal Fresh Air: 285l/sFilters 4x4 - G4 Washable & F9 including GaugeESP: 250PaIncluding: Supply Air VSD and dirty filter compensation, rigging and hoisting of unit into final position\" Tenderers are referred to Mechanical Engineer drawings annexed to these Bills of Quantities.","No",1,null,{"$f":"E3444*F3444","v":{"v":0,"d":"0.00"}}]
[]
[18,183,"Air handling unit as per the specification (AHU2.0.60).  \"Cooling Capacity: Total: 23.5kW Heating Capacity: 25kW Total Supply Air: 760l/s Total Fresh Air: 374l/s Filters 4x4 - G4 Washable & F9 including Gauge ESP: 250Pa Including: Supply Air VSD and dirty filter compensation, rigging and hoisting of  unit into final position\"  Tenderers are referred to Mechanical Engineer drawings annexed to these Bills of Quantities.","No",1,null,{"$f":"E3446*F3446","v":{"v":0,"d":"0.00"}}]
[]
[18,null,"GAS","H1"]
[]
[18,null,"COMPRESSED AIR","H1"]
[]
[18,null,"For the complete supply, delivery, installation, testing, commissioning and handing over of the following "]
[]
[18,null,"Compressors and receivers as per specification","H3"]
[]
[18,184,"0.8m3/min Rotary screw compressor","No",1,null,{"$f":"E3456*F3456","v":{"v":0,"d":"0.00"}}]
[]
[18,185,"6.5m3 Receiver with fittings","No",1,null,{"$f":"E3458*F3458","v":{"v":0,"d":"0.00"}}]
[]
[18,186,"Refrigerated air dryer ","No",1,null,{"$f":"E3460*F3460","v":{"v":0,"d":"0.00"}}]
[]
[18,187,"General purpose air filters (1.0 micron, oil < 0.5ppm)","No",1,null,{"$f":"E3462*F3462","v":{"v":0,"d":"0.00"}}]
[]
[18,188,"Oil absorber","No",1,null,{"$f":"E3464*F3464","v":{"v":0,"d":"0.00"}}]
[]
[18,null,"Pressure regulators","H3"]
[]
[18,189,"20mm Line pressure regulator, filter condensate drain for 0.6 m3/min (R)","No",1,null,{"$f":"E3468*F3468","v":{"v":0,"d":"0.00"}}]
[]
[18,190,"End of line condensate trap","No",1,null,{"$f":"E3470*F3470","v":{"v":0,"d":"0.00"}}]
[]
[18,191,"Automatic condensate trap","No",1,null,{"$f":"E3472*F3472","v":{"v":0,"d":"0.00"}}]
[]
[18,192,"Spirax automatic drain trap","No",1,null,{"$f":"E3474*F3474","v":{"v":0,"d":"0.00"}}]
[]
[18,null,"Pipes and valves ","H2"]
[]
[18,null,"Supply, install & commission"]
[]
[18,null,"Galvanised mild steel pipe to SABS 62 heavy grade","H3"]
[]
[18,193,"20mm Pipe","m",40,null,{"$f":"E3482*F3482","v":{"v":0,"d":"0.00"}}]
[]
[18,null,"Extra over for pipe fittings of malleable iron","H3"]
[]
[18,194,"20mm Radius bend","No",13,null,{"$f":"E3486*F3486","v":{"v":0,"d":"0.00"}}]
[]
[18,null,"Valves","H3"]
[]
[18,195,"20mm Solenoid valve","No",1,null,{"$f":"E3490*F3490","v":{"v":0,"d":"0.00"}}]
[]
[18,196,"20mm Shut off valve","No",1,null,{"$f":"E3492*F3492","v":{"v":0,"d":"0.00"}}]
[]
[18,197,"20mm Safety relief valve","No",1,null,{"$f":"E3494*F3494","v":{"v":0,"d":"0.00"}}]
[]
[18,null,"GAS INSTALLATION","H1"]
[]
[18,null,"All piping, hangers, brackets and cages, connections balancing testing and commissioning of  the following gas cylinders:","H3"]
[]
[18,198,"Oxygen 48kg gas cylinders ","No",2,null,{"$f":"E3500*F3500","v":{"v":0,"d":"0.00"}}]
[]
[18,199,"Acetylene 48kg gas cylinders ","No",2,null,{"$f":"E3502*F3502","v":{"v":0,"d":"0.00"}}]
[]
[18,null,"Pressure regulators","H3"]
[]
[18,200,"20mm Line pressure regulator","No",6,null,{"$f":"E3506*F3506","v":{"v":0,"d":"0.00"}}]
[]
[18,null,"Gas piping","H2"]
[]
[18,null,"Copper, Medical Grade, piping and ancillaries including supports and fixings","H3"]
[]
[18,201,"20mm Pipe","m",25,null,{"$f":"E3512*F3512","v":{"v":0,"d":"0.00"}}]
[]
[18,null,"Extra over for copper pipe, Medical Grade, for capillary fittings","H3"]
[]
[18,202,"20mm Elbow ","No",24,null,{"$f":"E3516*F3516","v":{"v":0,"d":"0.00"}}]
[]
[18,null,"Extra over for copper pipe, Medical Grade, for compression fittings","H3"]
[]
[18,203,"20mm Shut off valve","No",6,null,{"$f":"E3520*F3520","v":{"v":0,"d":"0.00"}}]
[]
[18,204,"20mm Non-return valve","No",4,null,{"$f":"E3522*F3522","v":{"v":0,"d":"0.00"}}]
[]
[18,205,"20mm Isolation valve","No",10,null,{"$f":"E3524*F3524","v":{"v":0,"d":"0.00"}}]
[]
[18,206,"20mm Pressure gauge","No",2,null,{"$f":"E3526*F3526","v":{"v":0,"d":"0.00"}}]
[]
[18,null,"SPECIALISED HOSPITAL EQUIPMENT","H2"]
[]
[18,null,"Supply, Install and Commission \"Otto bock\" or other equally approved specialists equipment","H3"]
[]
[18,207,"900 x 600 x 1120mm Heavy duty plaster casting Apparatus with Baseplate and Supporting Device for AK plaster casting ring set for left and right with complete casting ring 44 piece set 36cm - 64cm, to assist in the manufacturing of ischial containment  plaster negative casts under body load, adjustments of position to be made with crank handle ","No",2,null,{"$f":"E3532*F3532","v":{"v":0,"d":"0.00"}}]
[]
[18,208,"Floor mounted vacuum station for lamination with 3 swivel and rotatable pipe vices, including four exhaust grates with adjustable lamellas, Two holders for rolls of sheeting material, Two compartments for storing reinforcement materials with each compartment has sliding/ flip up doors for dust protection and right compartment can be directly exhausted. The bench top cabinet must be  firmly connected to the ventilation unit and must include an explosion protected ventilator, a silencer and a filter unit. 600Pa compression volume and air outlet stud diameter of 150mm, all features such as the vacuum exhaust grates, sliding doors and vacuum machine connections are provided on each side","No",1,null,{"$f":"E3534*F3534","v":{"v":0,"d":"0.00"}}]
[]
[18,209,"Fume extractor with suction arm designed by fume and dust specialist ","No",2,null,{"$f":"E3536*F3536","v":{"v":0,"d":"0.00"}}]
[]
[18,210,"Vacuum Machine for lamination for fabrication of thin walled plastic laminates and vacuum forming of thermoplastics with 6 vacuum outlets, must be fully automatic and controlled through two contact pressure gauges, manufactured with two separate adjustable vacuum banks, each with not less than four connections fitted with water trap, visual and audio control and replaceable filter. With power supply of 220-230V 50hz 0.11kw and suction capacity not less than 25L per minute","No",3,null,{"$f":"E3538*F3538","v":{"v":0,"d":"0.00"}}]
[]
[18,211,"1000 x 1000 x 1000mm Spray paint booths with extraction fan suction arm including removable filter, to be designed by fume and dust specialist ","No",1,null,{"$f":"E3540*F3540","v":{"v":0,"d":"0.00"}}]
[]
[18,212,"1234 x 870 x 1000mm 720L Double oven with 290 x 470mm viewing glass used for proper heating of thermoplastic sheets, must also be suitable for vacuum forming using vacuum inserts as well as for drying plaster models and for sintering techniques, two doors, stainless steel interior, with fans for forced air circulation. Temperature selector Class 2, timer 0–99 hours with microprocessor, Three-term action regulator with LED-display, electronic wear-free element, Ventilation adjuster and Ø 50 mm exhaust connections with two chrome oven racks and must have four casters at base of oven. Including 2 m power cord with CEE plug 5x16 A and CEE socket 5x16 A. Temperature to be 300°C, 3×400 V/N/PE; 50–60 Hz; 5 kW power equipment","No",1,null,{"$f":"E3542*F3542","v":{"v":0,"d":"0.00"}}]
[]
[18,213,"815 x 817 x 965mm 60L Single door with 380 x 380mm  viewing glass heating cabinet made of stainless steel interior including fans for forced air circulation, used for proper heating of thermoplastic sheets, heating materials for Orthopaedic footwear, Must also be suitable for vacuum forming using vacuum inserts as well as for drying plaster models and for sintering techniques. 2 m power cord with CEE plug 5x16 A and CEE socket 5x16 A with temperature range up to 300 °C and 220- 230 V/N/PE; 50–60 Hz; 5 kW power requirements","No",1,null,{"$f":"E3544*F3544","v":{"v":0,"d":"0.00"}}]
[]
[18,214,"Heat and fume extraction unit with hood designed by fume and dust specialist companies floor mounted","No",1,null,{"$f":"E3546*F3546","v":{"v":0,"d":"0.00"}}]
[]
[18,215,"360° rotatable Standing Lift vice manufactured with steel, floor column and base plate, supplied with 320mm x 320mm x 10mm base plate with pneumatic spring including mounting materials for bolting to floor and work bench. Base plate to have pre drilled holes with adjustable height range of 800mm - 1100mm ","No",7,null,{"$f":"E3548*F3548","v":{"v":0,"d":"0.00"}}]
[]
[18,216,"140mm Jaw Bench vice made of forged steel, opening to the front, surface hardened jaws, adjustable, hardened guide rail, hardened anvil, including vice with 360° rotating base with attached device for jaw protectors and plastic jaw protectors. 135mm Jaw with 180mm opening, hole spacing of 145mm and 14mm mounting holes. Vice must also have a measurement scale for quickly setting the span width and a  round stable forged vice rotating mount","No",3,null,{"$f":"E3550*F3550","v":{"v":0,"d":"0.00"}}]
[]
[18,217,"Floor mounted Bench vice with 140mm jaw size made of forged steel, opening to the front","No",20,null,{"$f":"E3552*F3552","v":{"v":0,"d":"0.00"}}]
[]
[18,218,"13mm chick Pneumatic reversible air drills manufactured with aluminium body and steel components drills to be used for all purpose application, drill chuck clamping range between 1mm - 10mm, with work air pressure not more than 7 bar and drills to have reversible pistol action and hose connector plug in nipple","No",2,null,{"$f":"E3554*F3554","v":{"v":0,"d":"0.00"}}]
[]
[18,219,"Spinal Casting Aid made of modular galvanised steel tubes and quick acting screw clamps used for assistance and support in casting with head extension sling and self-adjusting pulley above the body's centre of gravity including adjustable footplate, knee supports, pressure pads and handles. Height of the base to not be less than 2600mm","No",1,null,{"$f":"E3556*F3556","v":{"v":0,"d":"0.00"}}]
[]
[18,220,"360 x 660 x 180mm Steel/Aluminium vacuum forming apparatus used for bedding and insole fabrication, with 570 x 350mm frame, vacuum connection for external vacuum pump, 13mm diameter 3m vacuum hose, fitted with integrated non-return valve and regulation valves to control vacuum and ventilation, supplied with air filter and softwalk mat","No",2,null,{"$f":"E3558*F3558","v":{"v":0,"d":"0.00"}}]
[]
[18,221,"Multi-purpose MIG/STICK Welder constructed with robust outer shell and heavy components to withstand harsh environment including clear digital display for easy changes as well as step less wire feed setting and robust wheel and strong platform for the gas bottle, 220V single phase air cooled, Wire spool up to 15kg and kit including 4m MIG torch, earth clamp with 3m cable and dinse plug, 3m CO2 Gas hose, flow meter and accessories kit (Wrench, Hose Clamps, 0.8mm and 1mm Contact tips)","No",1,null,{"$f":"E3560*F3560","v":{"v":0,"d":"0.00"}}]
[]
[18,222," Adjustable grinding and milling machine for use with central dust collecting system. Diameter of collection mount-125mm, swings horizontally, manual height adjustable. Cast stand with steel columns, Adjustable electronic speed control with electromagnetic brake. R.P.M. Router motor-1500/3000, removable protection housing for router shaft, thread of router shaft-5/8 inch or M16, fitted with dust extraction shroud with adjustable mount and flexible hose diameter-125mm, fitted with motor protection switch. With Off and On switch for motor control. Switch for speed control. Switch for emergency shut off, Not less than 2 meters of power cable with CEE plug 5x16 amps and CEE wall socket 5x16 amps. Standard equipment-wrench 27mm, dust collection shroud complete, threaded stud for tools with 5/8 inch thread, floor fastening set, protective nut 5/8 inch inner and protective shaft housing long and short. Shaft length-not less than 450mm and Power requirements of 220/230V 1Phase or 3 Phase (400v\\N\\PE;50Hz,0.8Kw)","No",3,null,{"$f":"E3562*F3562","v":{"v":0,"d":"0.00"}}]
[]
[18,223,"Heat sealing iron for sealing of PVA bags for lamination, manufactured with temperature control. Range from 100 to 180 degrees C, Heating surface to be insulated with Teflon and supplied with stand and wood/ plastic handle. Supplied with not less than 1.5m power cord and grounded plug. Power supply=220volts 50-60hz 0.2kw. Heating surface to be not less than 35 x 100mm ","No",2,null,{"$f":"E3564*F3564","v":{"v":0,"d":"0.00"}}]
[]
[18,224,"Hand lever metal shear body made of steel with one blade for sheet metal. One blade for round bar steel, 180mm blade length and 950mm lever length, sheet metal up to 6mm thick. For sound bar steel up to 13mm diameter, base frame steel construction 670mm high with wheels","No",1,null,{"$f":"E3566*F3566","v":{"v":0,"d":"0.00"}}]
[]
[18,225,"Scouring machine supplied with 2 rubber drums on roller bearings 100mm and 100mm/40mm, belt type. Changing of belts by means of levers, including heavy metal construction with steel base, Adaptable to central dust collection system fitted with individual lights for clear visibility including 2 speed motor to run scouring belts (1400/2800 RPM), equipped with emergency stop button and separate switch for main motor manufactured with belt adjusters for side to side alignment of scouring belt. Power requirement of 220V/230V- 3 phase (380/400 volts), with belts to be protected by metal safety guards","No",1,null,{"$f":"E3568*F3568","v":{"v":0,"d":"0.00"}}]
[]
[18,226,"Finishing Machine for Orthopaedic shoe technology made of heavy steel metal construction built in dust collection system this includes fan motor and dust bag, manufactured with single last trimmer, fitted with 2 heel breaster, 1 sanding belt run on rubber drum not less than 35mm and 1 sanding belt run on rubber drum not less than 95mm, Heel trimmer, sole milling mechanism with bayonet and naumkeag, fitted with 2 x triple polishing unit (manual operation) and emergency switch, Power requirement of 400v/50hz not less than 3.5kw 2m electric cord with cee plug 5x16a","No",1,null,{"$f":"E3570*F3570","v":{"v":0,"d":"0.00"}}]
[]
[18,227,"Heavy duty floor model drill press variable speed control, height adjustable on a geared steering rack. Drilling height adjustable spindle stop. Drilling depth stop is indicated through scale. Drill table surface not less 340x280mm work space, Motor protection switch with under voltage release, emergency power shut off. Two meters of power cord with cee plug 5x16amp and cee socket 5x16amp, Continuous /normal drilling capacity not less than 18-23mm, Drilling depth 100mm, Working radius 240mm, Diameter of column not less than 80mm, Distance spindle to table 160mm-880mm, Spindle rpm infinitely adjustable 250-4000rpm, Power requirement 3 Phase (400V/N/PE;50hz;0,8kw)","No",1,null,{"$f":"E3572*F3572","v":{"v":0,"d":"0.00"}}]
[]
[18,228,"Heavy duty band saw for working with wood, plastic and metal, Heavy duty closed steel construction for quiet operation and high performance, Saw blade to run on replaceable valcanised rubber covered wheels and to be protected up to the cutting wheel, Blade to be held true by two precision blade guides one above and one below the table. Must be adjustable and have easy access to, Table to be manufactured with cast iron and be able to tilt 15degrees to left and 45 degrees to the right side of the saw blade, Limit stops to be mounted on the left and right side of the saw blade. Square cuts on above knee sockets must be possible ie when socket clamped to alignment apparatus and using guide base. Must have exhaust for dust extraction, electrical equipment to have motor protection switch, Not less than 2meters of power cable CEE plug 5x16 amp and CEE socket 5x16 amp, must be supplied with service tool kit, Dimensions: width not less than 650mm,depth not less than 500mm and height not less than 1800mm, Cutting height up to guide between 270mm-370mm and cutting width not less than 370mm, Variable saw blade speed. Saw blade size not less than 3600mm. Blade width range 10mm to 25mm, with table size length not less than 500mm and not less than width 500mm","No",1,null,{"$f":"E3574*F3574","v":{"v":0,"d":"0.00"}}]
[]
[18,229,"Heavy duty belt sander vertical, required for accurate sanding of right angles and flat surfaces, adjustable slope angle, built in suction insert body of machine must be completely sealed so that the dust is contained within the machine for extraction, Diameter of collection system mounts to be 100mm/125mm. To be Connected to central dust collection unit. Electrical equipment motor protection switch not less than 2 meters of power cable with CEE plug 5x16 amp and CEE socket 5x16 amp, Power requirement of 3x400v/pe,50-60hz,2.2kw, Belt width- not less than 300mm, Belt length- not less than 2000mm, RPM - not less than 1400 and must be supplied with service tool kit","No",1,null,{"$f":"E3576*F3576","v":{"v":0,"d":"0.00"}}]
[]
[18,230,"800 x 1900 x 700mm Condition disc and belt sanding machine motor protections switch and speed selection switch, power requirements of 3 x 400PE/50, Face plate on left 350mm diameter with support table. Right side contact wheel and belt tension arm. Belt Width of 50mm Belt Length of 2500m, Sandpaper Disc self-adhesive: Diameter - 350mm, Connecting cable 2m with 5 x 16A CEE plug and 5 x 16A socket and motor Speed: 1500/ 3000rev per min","No",1,null,{"$f":"E3578*F3578","v":{"v":0,"d":"0.00"}}]
[]
[18,231,"Bench double grinder with machine base with two corundum wheels each with different grain, protective hood and tools rests, grinding wheel diameter not less than 180mm, width not less than 25mm and Speed not less than 2800 min, Power requirement of 1 phase 220/230V  or 3 phase 400V PE; 50 (V/Hz), Machine base to match double grinder, Power cord of 3 m with CEE plug 5 × 16 A and CEE socket 5 × 16 A, Dresser for grinding wheels ⌀ 100-400 mm, Machine to be supplied with spark guard","No",1,null,{"$f":"E3580*F3580","v":{"v":0,"d":"0.00"}}]
[]
[18,232,"Clean air duct extractor automatic compressed air filter cleaning system, Compact clean air dust extraction for extracting wood and plastic chips, Optional machine recognition and automatic startup of multiple machines. To be used with multiple machines (Not less than 5). Powerful efficient extraction, Low maintenance, with ON/OFF switch for clean air dust extraction, 1 or 2 Chip collectors including chip collection bags, Chip collection volume not less than 100 liters, 5m power cord with CEE plug, Extraction connector: Diameter 200mm - 250mm, Sound pressure level not more than 71.9db(A) and Power of 400V/50Hz/ 3 Phase","No",1,null,{"$f":"E3582*F3582","v":{"v":0,"d":"0.00"}}]
[]
[18,233,"Milling set for processing seat cushions with 2 specially shaped milling cutters, Includes Suction Hood, Includes 2 lever tools for clamping milling cutters including connection for mobile suction device, Speed of 4500rpm, Power Supply of 220/230V. Supplied with 2m power cord with 2 pin earthed plug, used for shaping foam","No",1,null,{"$f":"E3584*F3584","v":{"v":0,"d":"0.00"}}]
[]
[18,234,"Heavy duty patcher sewing machine for sewing of all kinds of leather articles, shoes, leather sleeves etc. Top feed of sewing machine must be rotatable in all directions, Operation hand wheel and through foot pedal, To be supplied with multiple thread holder and steel stand, Sewing speed not less than 200rpm, Stitch length (adjustable)  1.5 – 5.1mm, Sewing thickness max-10.5mm, Clearance (right of needle) not less than 445mm, Dimensions of cylinder bed (at the needle) WxH-25.5mm X22mm, Dimensions of upper part WxDxH  Not less than 700xNot less than 280x Not less than 500mm,Height not less than 1350mm and must be supplied with service tool kit","No",1,null,{"$f":"E3586*F3586","v":{"v":0,"d":"0.00"}}]
[]
[18,null,"Supply, Install and Commission \"Kingfisher\" or other equally approved specialists equipment","H3"]
[]
[18,235,"20L Heavy duty vacuum cleaner for hazardous dust extraction, 2.5m Vacuum hose and accessories for wet and dry use including dust bag and casters with brakes, 230V/1000W power requirements and 5m connection cable","No",2,null,{"$f":"E3590*F3590","v":{"v":0,"d":"0.00"}}]
[]
[18,null,"Supply, Install and Commission \"Hopewell Footwear\" or other equally approved specialists equipment","H3"]
[]
[18,236,"Post bed machine for sewing of all kinds of leather articles i.e shoes, leather sleeves etc. High speed, single needle post bed machine with driven roller presser and double intermittent wheel and needle feed. Machine speed up to 3500 rpm. Must be fitted with safety clutch, Stitch type 301 Max thickness of sewing goods-8mm, Number of needles 1, Stitch length up to 5mm, Feed type :reversible needle feed top driven and wheel feed, Needle type 134.  Bed type to be post bed, Roller presser standard 35mm Hook regular hook, Self-lubricating, Maximum foot lift-12.5mm, Power requirement 1x230n/pe-50/60 0.3  Powercord not less than 2mts with 15 amp plug, Supplied with table and multiple thread holder","No",1,null,{"$f":"E3594*F3594","v":{"v":0,"d":"0.00"}}]
[]
[18,237,"470 x 250 x 440mm high Leather splitting machine with 240 x 300mm base, cast steel body construction,  rollers, gears and blade manufactured from tool steel, Parallel guiding via rollers and gear transmission, Work surface width up to 140mm, Splitting and flattening thickness of 228mm, adjustment control for splitting thickness, Used for leather and rubber","No",1,null,{"$f":"E3596*F3596","v":{"v":0,"d":"0.00"}}]
[]
[18,238,"Boot stretcher Cast steel body construction, Gears and levers manufactured from high tensile steel, Model : double, Cast aluminium stretching adapters, Supplied with 2 sets of lasts and attachments","No",1,null,{"$f":"E3598*F3598","v":{"v":0,"d":"0.00"}}]
[]
[18,null,"Specialised mechanical equipments, fittings, etc. ","H3"]
[]
[18,239,"\"Afrox\" or other equally approved Oxy-Acetylene welding kit to comprise of 1 torch handle, cutting attachment, 1 single stage oxygen regulator, 2 torch mounted flash back arrestors with 1 for acetylene and 1 for oxygen, swagged nozzles with sizes 3.5 and 10mm, 4-6m reinforced welding hose for oxygen and acetylene, 4 x 3/8\" nut and tail set for acetylene gauge, 4 x 3/8\" nut and tail set for oxygen gauge, 8 welding hose clamps to suit welding hose","No",2,null,{"$f":"E3602*F3602","v":{"v":0,"d":"0.00"}}]
[]
[18,240,"\"Afrox\" or other equally approved Heavy duty oxygen regulator for gas welding manufactured from brass/ plastic, fitted with cylinder pressure gauge 0 - 30 000kPa and regulated pressure gauge 0 - 900kPa, fitted with control to regulate pressure and clockwise male nut for connection to cylinder, fitted with safety valve ","No",2,null,{"$f":"E3604*F3604","v":{"v":0,"d":"0.00"}}]
[]
[18,241,"\"Afrox\" or other equally approved Heavy duty Acetylene regulator for gas welding manufactured from brass/ plastic fitted with cylinder pressure gauge 0 - 4000kPa and regulated pressure gauge 0 - 200kPa, fitted with control to regulate pressure and ant-clockwise male nut for connection to cylinder, fitted with safety valve ","No",2,null,{"$f":"E3606*F3606","v":{"v":0,"d":"0.00"}}]
[]
[18,242,"Air pressure regulator medium duty with oil mister for regulating air pressure and oiling of air tools, manufactured from metal/brass, fitted with 2 transparent plastic traps with valves, 1 plastic trap for removing moisture amd 1 plastic oil reservoir for lubricating air tools. Control with air pressure gauge and ½’’inner thread","No",1,null,{"$f":"E3608*F3608","v":{"v":0,"d":"0.00"}}]
[]
[18,null,"Maintenance","H3"]
[]
[18,243,"Training of the user department for equipment use. Manuals to be handed over at training. ","Item",1,null,{"$f":"E3612*F3612","v":{"v":0,"d":"0.00"}}]
[]
[18,244,"Maintenance of specialised equipments for a period of 12 months ","Item",1,null,{"$f":"E3614*F3614","v":{"v":0,"d":"0.00"}}]
[]
[18,245,"Extended maintenance of equipments, for a period of 5 years ","Item",1,null,{"$f":"E3616*F3616","v":{"v":0,"d":"0.00"}}]
[]
[18,null,"GENERAL","H2"]
[]
[18,246,"Testing and commisioning the installation","Item",1,null,{"$f":"E3620*F3620","v":{"v":0,"d":"0.00"}}]
[]
[18,247,"Provision of as-built drawings, manuals and operative training ","Item",1,null,{"$f":"E3622*F3622","v":{"v":0,"d":"0.00"}}]
[]
[18,248,"Coding and labelling of plants ","Item",1,null,{"$f":"E3624*F3624","v":{"v":0,"d":"0.00"}}]
[]
[18,249,"Replacement parts","Item",1,null,{"$f":"E3626*F3626","v":{"v":0,"d":"0.00"}}]
[]
[18,250,"Comprehensive maintenance during the 12-month guarantee period","Item",1,null,{"$f":"E3628*F3628","v":{"v":0,"d":"0.00"}}]
[]
["Bill No. 18",null,"Carried to Final Summary",{"$nulls":3},{"$f":"SUM(G2928:G3629)","v":{"v":0,"d":"0.00"}}]
[]
[19,null,"BILL NO. 19","H1"]
[]
[19,null,"GLAZING","H1"]
[]
[19,null,"(CPAP WORK GROUP NO. 150 UNLESS OTHERWISE STATED) ","H2"]
[]
[19,null,"PREAMBLES","H2"]
[]
[19,null,"The descriptions given in the various items below are not necessarily full and complete and reference must be made to the \"Standard Preambles To All Trades (Rev. 3) DOH 2009\", \"Supplementary Preambles\" and \"Supplementary Specifications\" to this contract for the full requirements of each scheduled item"]
[]
[19,null,"MIRRORS","H2"]
[]
[19,null,"5mm Silvered float glass copper backed mirrors with polished edges, holed for and fixed with chromium plated dome capped mirror screws with rubber buffers to plugs in brickwork or concrete","H3"]
[]
[19,1,"Mirror 450 x 450mm high with four (4) no. screws","No",17,null,{"$f":"E3646*F3646","v":{"v":0,"d":"0.00"}}]
[]
[19,null,"6mm Silvered float glass copper backed mirrors with polished edges, holed for and fixed with chromium plated dome capped mirror screws with rubber buffers to plugs in brickwork or concrete","H3"]
[]
[19,2,"1000 x 2000mm high with eight (8) no. screws","No",3,null,{"$f":"E3650*F3650","v":{"v":0,"d":"0.00"}}]
[]
[19,null,"6mm thick mobile mirror on frame ","H3"]
[]
[19,3,"600mm x 1700mm mirror on frame with a minimum of 4 wheels, steel frame to be on a 4 trolley caster","No",3,null,{"$f":"E3654*F3654","v":{"v":0,"d":"0.00"}}]
[]
["Bill No. 19",null,"Carried to Final Summary",{"$nulls":3},{"$f":"SUM(G3642:G3655)","v":{"v":0,"d":"0.00"}}]
[]
[20,null,"BILL NO. 20","H1"]
[]
[20,null,"PAINTWORK","H1"]
[]
[20,null,"(CPAP WORK GROUP NO. 152 UNLESS OTHERWISE STATED) ","H2"]
[]
[20,null,"PREAMBLES","H2"]
[]
[20,null,"The descriptions given in the various items below are not necessarily full and complete and reference must be made to the \"Standard Preambles To All Trades (Rev. 3) DOH 2009\", \"Supplementary Preambles\" and \"Supplementary Specifications\" to this contract for the full requirements of each scheduled item"]
[]
[20,null,"SUPPLEMENTARY PREAMBLES","H2"]
[]
[20,null,"SABS Specifications","H3"]
[]
[20,null,"Alkali resistant primer - SABS 1416"]
[]
[20,null,"Wash primer (metal etch) - SABS 723"]
[]
[20,null,"Primers for internal wood work - SABS 678 Type 111"]
[]
[20,null,"Zinc chromate primer for steel - SABS 679 Type 1"]
[]
[20,null,"Undercoat for paints (Except emulsion paint) - SABS 681 Type 1"]
[]
[20,null,"Gloss enamel paint - SABS 631"]
[]
[20,null,"Aluminium paint - SABS 682 Grade 11"]
[]
[20,null,"Structural steel paint - SABS 684 Type B"]
[]
[20,null,"Emulsion paint - SABS 1586 (Gloss, Semi gloss, Matt : Internal / External)"]
[]
[20,null,"ON EXTERNAL FLOATED PLASTER SURFACES","H2"]
[]
[20,null,"Apply \"Plascon\" or other equally approved alkali resistant primer and two coats \"Micatex\" emulsion paint for exterior use","H3"]
[]
[20,1,"On walls (LI)","m2",537,null,{"$f":"E3694*F3694","v":{"v":0,"d":"0.00"}}]
[]
[20,2,"On narrow widths (LI)","m2",40,null,{"$f":"E3696*F3696","v":{"v":0,"d":"0.00"}}]
[]
[20,3,"On columns (LI)","m2",85,null,{"$f":"E3698*F3698","v":{"v":0,"d":"0.00"}}]
[]
[20,4,"On beams (LI)","m2",209,null,{"$f":"E3700*F3700","v":{"v":0,"d":"0.00"}}]
[]
[20,null,"ON INTERNAL FLOATED PLASTER SURFACES","H2"]
[]
[20,null,"Apply \"Plascon\" or other equally approved Primer (PP700) and two coats \"Velvaglo\" water based paint for interior use","H3"]
[]
[20,5,"On walls (LI)","m2",2687,null,{"$f":"E3706*F3706","v":{"v":0,"d":"0.00"}}]
[]
[20,6,"On narrow widths (LI)","m2",160,null,{"$f":"E3708*F3708","v":{"v":0,"d":"0.00"}}]
[]
[20,7,"On soffits (LI)","m2",210,null,{"$f":"E3710*F3710","v":{"v":0,"d":"0.00"}}]
[]
[20,8,"On columns (LI)","m2",201,null,{"$f":"E3712*F3712","v":{"v":0,"d":"0.00"}}]
[]
[20,9,"On beams (LI)","m2",197,null,{"$f":"E3714*F3714","v":{"v":0,"d":"0.00"}}]
[]
[20,null,"ON WOOD SURFACES","H2"]
[]
[20,null,"Prepare and apply two coats \"Plascon\" or other equally approved mat varnish","H3"]
[]
[20,10,"On doors (LI)","m2",207,null,{"$f":"E3720*F3720","v":{"v":0,"d":"0.00"}}]
[]
[20,null,"ON PLASTERBOARD SURFACES","H2"]
[]
[20,null,"Apply \"Plascon\" or other equally approved Primer (PP700) and two coats \"Velvaglo\" water based paint for interior use","H3"]
[]
[20,11,"On dry walls (LI)","m2",184,null,{"$f":"E3726*F3726","v":{"v":0,"d":"0.00"}}]
[]
[20,null,"ON FIBRE-CEMENT BOARD SURFACES","H2"]
[]
[20,null,"Apply \"Plascon\" or other equally approved gypsum and plaster primer (PP700) and two coats professional super matt (PEM 900/TSA) for interior use","H3"]
[]
[20,12,"Ceilings including priming metal cover strips and nail heads (LI)","m2",13,null,{"$f":"E3732*F3732","v":{"v":0,"d":"0.00"}}]
[]
[20,13,"75mm Coved cornices (LI)","m",83,null,{"$f":"E3734*F3734","v":{"v":0,"d":"0.00"}}]
[]
[20,null,"Apply \"Plascon\" or other equally approved alkali resistant primer and two coats \"Nu-Roof\" emulsion paint for exterior use","H3"]
[]
[20,14,"On fascia and barge boards","m",357,null,{"$f":"E3738*F3738","v":{"v":0,"d":"0.00"}}]
[]
[20,null,"Apply one coat primer, one coat universal undercoat and two coats \"Plascon Velvaglo Polyurethane Enamel\" or equal and approved paint","H3"]
[]
[20,15,"On cills ","m",125,null,{"$f":"E3742*F3742","v":{"v":0,"d":"0.00"}}]
[]
[20,null,"ON PRECAST CONCRETE SURFACES","H2"]
[]
[20,null,"Apply one coat primer, one coat universal undercoat and two coats \"Plascon Velvaglo Polyurethane Enamel\" or equal and approved paint","H3"]
[]
[20,16,"On cills ","m",125,null,{"$f":"E3748*F3748","v":{"v":0,"d":"0.00"}}]
[]
[20,null,"ON METAL","H2"]
[]
[20,null,"Apply \"Plascon\" or other approved alkyd based zinc phosphate primer, one coat alkyd based universal undercoat and two coats superior quality universal enamel paint, on steel","H3"]
[]
[20,17,"On door frames (LI)","m2",48,null,{"$f":"E3754*F3754","v":{"v":0,"d":"0.00"}}]
[]
[20,null,"Apply one coat calcium plumbate primer on:","H3"]
[]
[20,18,"Backs of galvanised steel door frames before fixing (LI)","m2",48,null,{"$f":"E3758*F3758","v":{"v":0,"d":"0.00"}}]
[]
["Bill No. 20",null,"Carried to Final Summary",{"$nulls":3},{"$f":"SUM(G3691:G3759)","v":{"v":0,"d":"0.00"}}]
[]
[21,null,"BILL NO. 21","H1"]
[]
[21,null,"EXTERNAL WORKS (ALL TRADES)","H1"]
[]
[21,null,"PREAMBLES","H2"]
[]
[21,null,"The descriptions given in the various items below are not necessarily full and complete and reference must be made to the \"Standard Preambles To All Trades (Rev. 3) DOH 2009\", \"Supplementary Preambles\" and \"Supplementary Specifications\" to this contract for the full requirements of each scheduled item"]
[]
[21,null,"SITE CLEARANCE  (CPAP Work Group No. 104)","H1"]
[]
[21,1,"Allow for clearing the area of the site to be built upon of all grass, weeds, shrubs, trees with trunks not exceeding 200mm girth, debris, etc., including grubbing up all roots, scoffling up as required and cart away all vegetation and debris.","m2",5604,null,{"$f":"E3772*F3772","v":{"v":0,"d":"0.00"}}]
[]
[21,null,"Excavation other than bulk in earth not exceeding 2m deep","H3"]
[]
[21,2,"Locate and carefully excavate by hand to prove position of existing services","m3",31,null,{"$f":"E3776*F3776","v":{"v":0,"d":"0.00"}}]
[]
[21,null,"SUBSOIL DRAINAGE (CPAP Work Group No. 146)","H1"]
[]
[21,null,"HDPE pipes","H2"]
[]
[21,null,"Slotted HDPE flexible drainage pipes","H3"]
[]
[21,3,"160mm HDPE flexible slotted agricultural pipes laid behind retaining walls for a depth not exceeding 6m including 19mm crushed stone encasing 300 x 300mm and ''Kaymat' U14 geofabric filter blanket wrapped around encasing with 150mm side and 300mm end laps including stitching. (LI)","m",273,null,{"$f":"E3784*F3784","v":{"v":0,"d":"0.00"}}]
[]
[21,4,"Extra over for 160mm capped end (LI)","No",2,null,{"$f":"E3786*F3786","v":{"v":0,"d":"0.00"}}]
[]
[21,5,"Extra over for 160mm bend (LI)","No",5,null,{"$f":"E3788*F3788","v":{"v":0,"d":"0.00"}}]
[]
[21,null,"Earthworks (CPAP Work Group No. 104)","H3"]
[]
[21,6,"Excavation in earth not exceeding 2m deep for pipe trenches (LI)","m3",273,null,{"$f":"E3792*F3792","v":{"v":0,"d":"0.00"}}]
[]
[21,7,"Extra over excavation in earth for pipe trenches, chambers, etc. for excavation in intermediate material (LI)","m3",41,null,{"$f":"E3794*F3794","v":{"v":0,"d":"0.00"}}]
[]
[21,8,"Extra over excavation in earth for pipe trenches, chambers, etc. for excavation in hard material (LI)","m3",27,null,{"$f":"E3796*F3796","v":{"v":0,"d":"0.00"}}]
[]
[21,9,"Extra over for imported granular bedding and backfill to pipe trenches to 95% Mod. AASHTO density (LI)","m3",164,null,{"$f":"E3798*F3798","v":{"v":0,"d":"0.00"}}]
[]
[21,10,"Backfilling obtained from excavations and backfill to pipe trenches to 95% Mod. AASHTO density (LI)","m3",55,null,{"$f":"E3800*F3800","v":{"v":0,"d":"0.00"}}]
[]
[21,11,"Extra over on excavations for carting away surplus material from excavations and/or stock piles to an area where directed on site or adjacent site and spread and levelled (LI)","m3",218,null,{"$f":"E3802*F3802","v":{"v":0,"d":"0.00"}}]
[]
[21,null,"STORMWATER DRAINAGE (CPAP Work Group No. 146)","H1"]
[]
[21,null,"Alterations to existing manholes etc:","H2"]
[]
[21,12,"Break through one brickwall  situated on side of manhole for and connect up new 375mm Class 75D concrete pipe (elsewhere measured) and make good all round including new channels, benching, etc. (LI)","No",1,null,{"$f":"E3808*F3808","v":{"v":0,"d":"0.00"}}]
[]
[21,null,"Class 34 HD uPVC pipes in class C bedding:  ","H2"]
[]
[21,13,"160mm Pipes laid in and including excavation, risk of collapse, working space, hoisting in position, backfilling with selected excavated material, cart away surplus material and shoring to pipe trenches exceeding 1m not exceeding 2m deep. (LI)","m",107,null,{"$f":"E3812*F3812","v":{"v":0,"d":"0.00"}}]
[]
[21,14,"250mm Pipes laid in and including excavation, risk of collapse, working space, hoisting in position, backfilling with selected excavated material, cart away surplus material and shoring to pipe trenches exceeding 1m not exceeding 2m deep. (LI)","m",209,null,{"$f":"E3814*F3814","v":{"v":0,"d":"0.00"}}]
[]
[21,null,"Class 75D concrete pipes in class C bedding: ","H2"]
[]
[21,15,"375mm Pipes laid in and including excavation, risk of collapse, working space, hoisting in position, backfilling with selected excavated material, cart away surplus material and shoring to pipe trenches exceeding 1m deep and not exceeding 2m deep. (LI)","m",5,null,{"$f":"E3818*F3818","v":{"v":0,"d":"0.00"}}]
[]
[21,null,"Manholes, etc:","H2"]
[]
[21,16,"Build manhole complete with benching, haunching, etc. size internally 590 x 590mm with one brick sides to suit depth as per the Engineer not exceeding 1000mm deep including excavation, risk of collapse, working space, hoisting in position, backfilling with selected excavated material, cart away surplus material, shoring and fitted with type 4A heavy duty polymer manhole cover and frame (refer to drawing no. D3806/20-SW04 detail SWD03 annexured to these bills of quantities). (LI)","No",5,null,{"$f":"E3822*F3822","v":{"v":0,"d":"0.00"}}]
[]
[21,17,"Build manhole complete with benching, haunching, etc. size internally 590 x 590mm with one brick sides to suit depth as per the Engineer exceeding 1000mm and not exceeding 1500mm deep including excavation, risk of collapse, working space, hoisting in position, backfilling with selected excavated material, cart away surplus material, shoring and fitted with type 4A heavy duty polymer manhole cover and frame (refer to drawing no. D3806/20-SW04 detail SWD03 annexured to these bills of quantities). (LI)","No",7,null,{"$f":"E3824*F3824","v":{"v":0,"d":"0.00"}}]
[]
[21,18,"Build manhole complete with benching, haunching, etc. size internally 590 x 590mm with one brick sides to suit depth as per the Engineer exceeding 1500mm and not exceeding 2000mm deep including excavation, risk of collapse, working space, hoisting in position, backfilling with selected excavated material, cart away surplus material, shoring and fitted with type 4A heavy duty polymer manhole cover and frame (refer to drawing no. D3806/20-SW04 detail SWD03 annexured to these bills of quantities). (LI)","No",5,null,{"$f":"E3826*F3826","v":{"v":0,"d":"0.00"}}]
[]
[21,19,"Build manhole complete with benching, haunching, etc. size internally 590 x 590mm with one brick sides to suit depth as per the Engineer exceeding 2000mm and not exceeding 2500mm deep including excavation, risk of collapse, working space, hoisting in position, backfilling with selected excavated material, cart away surplus material, shoring and fitted with type 4A heavy duty polymer manhole cover and frame (refer to drawing no. D3806/20-SW04 detail SWD03 annexured to these bills of quantities). (LI)","No",1,null,{"$f":"E3828*F3828","v":{"v":0,"d":"0.00"}}]
[]
[21,null,"Grid inlets for Stormwater:","H2"]
[]
[21,20,"Build catchpit complete with benching, haunching, etc. size internally 740 x 740mm with one brick sides to a depth exceeding 1000mm and not exceeding 1250mm  deep including excavation, risk of collapse, working space, hoisting in position, backfilling with selected excavated material, cart away surplus material , shoring and fitted with Type 2A polymer grating and frame. (refer to drawing no.D3806/20-SW04 detail SWD04 annexured to these bills of quantities). (LI)","No",9,null,{"$f":"E3832*F3832","v":{"v":0,"d":"0.00"}}]
[]
[21,21,"Stormwater channel, etc. of approximate size 500 x 500 x 1250mm deep, with concrete walls 200mm thick, with smooth off shutter finish in lower pit level with and including galvanised \"Mentis Rectagrid\" grating (RS40-40x3.0/30 kg/m2) including casting in galvanised 45 x 45 x 5mm angle section framing with 30 x 5mm flat section lugs each 150mm girth welded on at 400mm centres. (LI)","m",8,null,{"$f":"E3834*F3834","v":{"v":0,"d":"0.00"}}]
[]
[21,null,"Sundries","H2"]
[]
[21,22,"Unreinforced concrete encasing to horizontal pipe including the necessary formwork (LI)","m3",33,null,{"$f":"E3838*F3838","v":{"v":0,"d":"0.00"}}]
[]
[21,23,"Extra over excavation in earth for pipe trenches, chambers, etc. for excavation in intermediate material (LI)","m3",18,null,{"$f":"E3840*F3840","v":{"v":0,"d":"0.00"}}]
[]
[21,24,"Extra over excavations for importation of G7 material for backfilling to pipe trenches (LI)","m3",209,null,{"$f":"E3842*F3842","v":{"v":0,"d":"0.00"}}]
[]
[21,25,"Allow for testing all the stormwater drains as directed by the Employer or his agents and for re-testing after replacing any defective work to his satisfaction. The contractor is to provide all testing apparatus and labour and is to follow the instructions implicitly.","Item",1,null,{"$f":"E3844*F3844","v":{"v":0,"d":"0.00"}}]
[]
[21,null,"SOIL DRAINAGE (CPAP Work Group No. 146)","H1"]
[]
[21,null,"Alterations to existing drains, manholes etc:","H2"]
[]
[21,26,"Break through one brickwall situated on side of manhole for and connect up new 110mm Class 34 uPVC pipe (elsewhere measured) and make good all round including new channels, benching, etc. (LI)","No",1,null,{"$f":"E3850*F3850","v":{"v":0,"d":"0.00"}}]
[]
[21,null,"uPVC class 34 pipes in class C bedding","H2"]
[]
[21,27,"110mm Pipes laid in and including excavation, risk of collapse, working space, hoisting in position, backfilling with selected excavated material, cart away surplus material and shoring to pipe trenches not exceeding 1m deep. (LI)","m",78,null,{"$f":"E3854*F3854","v":{"v":0,"d":"0.00"}}]
[]
[21,28,"110mm Pipes laid in and including excavation, risk of collapse, working space, hoisting in position, backfilling with selected excavated material, cart away surplus material and shoring to pipe trenches exceeding 1m and not exceeding 2m deep. (LI)","m",181,null,{"$f":"E3856*F3856","v":{"v":0,"d":"0.00"}}]
[]
[21,null,"Extra over uPVC pipes for fittings","H2"]
[]
[21,29,"110mm Bend (LI)","No",49,null,{"$f":"E3860*F3860","v":{"v":0,"d":"0.00"}}]
[]
[21,30,"110mm Junction (LI)","No",10,null,{"$f":"E3862*F3862","v":{"v":0,"d":"0.00"}}]
[]
[21,31,"110mm Access junction (LI)","No",19,null,{"$f":"E3864*F3864","v":{"v":0,"d":"0.00"}}]
[]
[21,32,"110mm  Rodding Eye (LI)","No",1,null,{"$f":"E3866*F3866","v":{"v":0,"d":"0.00"}}]
[]
[21,null,"Precast concrete circular manholes (covers elsewhere measured) formed of manhole rings (SABS 1294) including excavation, risk of collapse, working space, backfilling with selected material from the excavations, cart away surplus material, shoring, hoisting in position, step irons, benching and haunching","H2"]
[]
[21,33,"Precast concrete manhole rings (SABS 1294)  size internally  1000mm diameter, exceeding 1m and not exceeding 1.25m deep internally including excavation, risk of collapse, working space, hoisting in position, backfilling with selected excavated material, cart away surplus material, shoring, step irons, benching and haunching. (LI)","No",1,null,{"$f":"E3870*F3870","v":{"v":0,"d":"0.00"}}]
[]
[21,34,"Precast concrete manhole rings (SABS 1294)  size internally  1000mm diameter, exceeding 1.25m and not exceeding 1.5m deep internally including excavation, risk of collapse, working space, hoisting in position, backfilling with selected excavated material, cart away surplus material, shoring, step irons, benching and haunching. (LI)","No",3,null,{"$f":"E3872*F3872","v":{"v":0,"d":"0.00"}}]
[]
[21,35,"Precast concrete manhole rings (SABS 1294)  size internally  1000mm diameter exceeding 1.5m and not exceeding 1.75m deep including excavation, risk of collapse, working space, hoisting in position, backfilling with selected excavated material, cart away surplus material, shoring, step irons, benching and haunching. (LI)","No",2,null,{"$f":"E3874*F3874","v":{"v":0,"d":"0.00"}}]
[]
[21,36,"Precast concrete manhole rings (SABS 1294)  size internally  1000mm diameter exceeding 1.75m and not exceeding 2m deep including excavation, risk of collapse, working space, hoisting in position, backfilling with selected excavated material, cart away surplus material, shoring, step irons, benching and haunching. (LI) ","No",2,null,{"$f":"E3876*F3876","v":{"v":0,"d":"0.00"}}]
[]
[21,37,"Precast concrete manhole rings (SABS 1294)  size internally  1250mm diameter exceeding 2m and not exceeding 2.25m deep including excavation, risk of collapse, working space, hoisting in position, backfilling with selected excavated material, cart away surplus material, shoring, step irons, benching and haunching. (LI)","No",2,null,{"$f":"E3878*F3878","v":{"v":0,"d":"0.00"}}]
[]
[21,38,"Precast concrete manhole rings (SABS 1294)  size internally 1250mm diameter exceeding 2.25m and not exceeding 2.5m deep including excavation, risk of collapse, working space, hoisting in position, backfilling with selected excavated material, cart away surplus material, shoring, step irons, benching and haunching. (LI)","No",1,null,{"$f":"E3880*F3880","v":{"v":0,"d":"0.00"}}]
[]
[21,39,"Precast concrete manhole rings (SABS 1294)  size internally  1250mm diameter exceeding 2.5m and not exceeding 2.75m deep including excavation, risk of collapse, working space, hoisting in position, backfilling with selected excavated material, cart away surplus material, shoring, step irons, benching and haunching. (LI)  ","No",1,null,{"$f":"E3882*F3882","v":{"v":0,"d":"0.00"}}]
[]
[21,40,"Precast concrete manhole rings (SABS 1294)  size internally  1250mm diameter exceeding 2.75m and not exceeding 3m deep including excavation, risk of collapse, working space, hoisting in position, backfilling with selected excavated material, cart away surplus material, shoring, step irons, benching and haunching. (LI)","No",1,null,{"$f":"E3884*F3884","v":{"v":0,"d":"0.00"}}]
[]
[21,null,"Gratings, covers, etc.","H2"]
[]
[21,41,"550mm Diameter 190kg type 2A cast iron manhole cover and frame","No",13,null,{"$f":"E3888*F3888","v":{"v":0,"d":"0.00"}}]
[]
[21,42,"110mm Cast iron cleaning eye","No",10,null,{"$f":"E3890*F3890","v":{"v":0,"d":"0.00"}}]
[]
[21,43,"400 x 400 x 75mm Precast concrete inspection eye marker slab set in ground","No",11,null,{"$f":"E3892*F3892","v":{"v":0,"d":"0.00"}}]
[]
[21,null,"UPVC Gulleys","H2"]
[]
[21,44,"110mm Diameter gulley trap jointed to drain, complete with hopper head and grid and the whole set on and encased in unreinforced concrete Class A, including necessary excavation and formwork.","No",4,null,{"$f":"E3896*F3896","v":{"v":0,"d":"0.00"}}]
[]
[21,45,"Extra over 110mm diameter gulley trap for 380 x 380 x 170mm precast gulley surround placed on and including 75mm thick Class C concrete base and fitted with 187mm diameter uPVC grating.","No",4,null,{"$f":"E3898*F3898","v":{"v":0,"d":"0.00"}}]
[]
[21,null,"Sundries","H2"]
[]
[21,46,"Unreinforced concrete encasing to horizontal pipe including the necessary formwork. (LI)","m3",5,null,{"$f":"E3902*F3902","v":{"v":0,"d":"0.00"}}]
[]
[21,47,"Allow for testing all the soil drainage lines as directed by the Employer or his agents and for re-testing after replacing any defective work to his satisfaction. The contractor is to provide all testing apparatus and labour and is to follow the instructions implictly.","Item",1,null,{"$f":"E3904*F3904","v":{"v":0,"d":"0.00"}}]
[]
[21,null,"WATER SUPPLIES TO DOMESTIC AND FIRE RETICULATION (CPAP Work Group No. 146)","H1"]
[]
[21,null,"\"HDPE\" or other equally approved pipes with solvent welded joints","H2"]
[]
[21,48,"12mm \"HDPE 100PN 12.5\", in ground including excavation, backfilling compacted to 95% Mod. AASHTO density, risk of collapse, etc. not exceeding 1m. (LI)","m",1,null,{"$f":"E3910*F3910","v":{"v":0,"d":"0.00"}}]
[]
[21,49,"20mm \"HDPE 100PN 12.5\", in ground including excavation, backfilling compacted to 95% Mod. AASHTO density, risk of collapse, etc. not exceeding 1m. (LI)","m",2,null,{"$f":"E3912*F3912","v":{"v":0,"d":"0.00"}}]
[]
[21,50,"26mm \"HDPE 100PN 12.5\", in ground including excavation, backfilling compacted to 95% Mod. AASHTO density, risk of collapse, etc. not exceeding 1m. (LI)","m",42,null,{"$f":"E3914*F3914","v":{"v":0,"d":"0.00"}}]
[]
[21,51,"32mm \"HDPE 100PN 12.5\", in ground including excavation, backfilling compacted to 95% Mod. AASHTO density, risk of collapse, etc. not exceeding 1m. (LI)","m",17,null,{"$f":"E3916*F3916","v":{"v":0,"d":"0.00"}}]
[]
[21,52,"63mm \"HDPE 100PN 12.5\", in ground including excavation, backfilling compacted to 95% Mod. AASHTO density, risk of collapse, etc. not exceeding 1m. (LI)","m",251,null,{"$f":"E3918*F3918","v":{"v":0,"d":"0.00"}}]
[]
[21,53,"76mm \"HDPE 100PN 12.5\", in ground including excavation, backfilling compacted to 95% Mod. AASHTO density, risk of collapse, etc. not exceeding 1m. (LI)","m",20,null,{"$f":"E3920*F3920","v":{"v":0,"d":"0.00"}}]
[]
[21,54,"110mm \"HDPE 100PN 12.5\" Pipe, in ground including excavation, backfilling, compacted to 95% Mod. AASHTO density, risk of collapse, etc. not exceeding 1m deep. (LI)","m",268,null,{"$f":"E3922*F3922","v":{"v":0,"d":"0.00"}}]
[]
[21,null,"Extra over HDPE Pipes for Electroweld Fusion couplings for Fittings ","H2"]
[]
[21,55,"63mm Tee (LI)","No",6,null,{"$f":"E3926*F3926","v":{"v":0,"d":"0.00"}}]
[]
[21,56,"73 x 63mm Tee (LI)","No",1,null,{"$f":"E3928*F3928","v":{"v":0,"d":"0.00"}}]
[]
[21,57,"73mm Tee (LI)","No",1,null,{"$f":"E3930*F3930","v":{"v":0,"d":"0.00"}}]
[]
[21,58,"100mm Tee (LI)","No",5,null,{"$f":"E3932*F3932","v":{"v":0,"d":"0.00"}}]
[]
[21,59,"110mm Tee (LI)","No",7,null,{"$f":"E3934*F3934","v":{"v":0,"d":"0.00"}}]
[]
[21,60,"63mm Electro weld elbow (LI)","No",7,null,{"$f":"E3936*F3936","v":{"v":0,"d":"0.00"}}]
[]
[21,61,"100mm Electro weld elbow (LI)","No",7,null,{"$f":"E3938*F3938","v":{"v":0,"d":"0.00"}}]
[]
[21,62,"110mm Electro weld elbow (LI)","No",7,null,{"$f":"E3940*F3940","v":{"v":0,"d":"0.00"}}]
[]
[21,63,"32 x 12mm Reducer (LI)","No",1,null,{"$f":"E3942*F3942","v":{"v":0,"d":"0.00"}}]
[]
[21,64,"63 x 20mm Reducer (LI)","No",5,null,{"$f":"E3944*F3944","v":{"v":0,"d":"0.00"}}]
[]
[21,65,"73mm Reducer (LI)","No",1,null,{"$f":"E3946*F3946","v":{"v":0,"d":"0.00"}}]
[]
[21,66,"110 x 26mm Reducer (LI)","No",4,null,{"$f":"E3948*F3948","v":{"v":0,"d":"0.00"}}]
[]
[21,67,"110 x 80mm Reducer (LI)","No",1,null,{"$f":"E3950*F3950","v":{"v":0,"d":"0.00"}}]
[]
[21,68,"12mm Bend (LI)","No",1,null,{"$f":"E3952*F3952","v":{"v":0,"d":"0.00"}}]
[]
[21,69,"20mm Bend (LI)","No",1,null,{"$f":"E3954*F3954","v":{"v":0,"d":"0.00"}}]
[]
[21,70,"26mm Bend (LI)","No",4,null,{"$f":"E3956*F3956","v":{"v":0,"d":"0.00"}}]
[]
[21,71,"32mm Bend (LI)","No",4,null,{"$f":"E3958*F3958","v":{"v":0,"d":"0.00"}}]
[]
[21,72,"80mm Bend (LI)","No",1,null,{"$f":"E3960*F3960","v":{"v":0,"d":"0.00"}}]
[]
[21,73,"26mm coupling (LI)","No",4,null,{"$f":"E3962*F3962","v":{"v":0,"d":"0.00"}}]
[]
[21,74,"80mm coupling (LI)","No",1,null,{"$f":"E3964*F3964","v":{"v":0,"d":"0.00"}}]
[]
[21,75,"63 Table D brass flanges complete with backing plate and bolts including gaskets and flange adapters","No",18,null,{"$f":"E3966*F3966","v":{"v":0,"d":"0.00"}}]
[]
[21,76,"100 Table D Brass flanges complete with backing plate and bolts including gaskets and flange adapters","No",8,null,{"$f":"E3968*F3968","v":{"v":0,"d":"0.00"}}]
[]
[21,null,"Extra over all excavations for loading, carting and dumping surplus excavated material (no allowance made for increase in bulk)","H2"]
[]
[21,77,"Off site to a dumping site to be found by the Contractor","m3",35,null,{"$f":"E3972*F3972","v":{"v":0,"d":"0.00"}}]
[]
[21,null,"Backfilling with  G5 material supplied and carted onto site by the Contractor, compacted to a density of at least 95% Mod. AASHTO maximum density","H2"]
[]
[21,78,"Imported G5 material in trenches (LI)","m3",395,null,{"$f":"E3976*F3976","v":{"v":0,"d":"0.00"}}]
[]
[21,null,"Sundries","H2"]
[]
[21,79,"Plain tee or bulb section galvanised mild steel fencing post standard 1800mm long driven into ground as support for standpipe","No",26,null,{"$f":"E3980*F3980","v":{"v":0,"d":"0.00"}}]
[]
[21,80,"Unreinforced concrete Class B (1:3:5) in thrust blocks size 500 x 500 x 700mm high at bends, tees, etc., including necessary excavation, formwork, etc. (LI)","No",26,null,{"$f":"E3982*F3982","v":{"v":0,"d":"0.00"}}]
[]
[21,null,"Valve chamber","H2"]
[]
[21,81,"Excavate in ground for and build valve chamber 600 x 600 x 1000mm deep of one brick sides with 150mm (20MPa) thick concrete base, fitted with and including 450 x 600mm x 81kg single seal cast iron cover and frame.","No",26,null,{"$f":"E3986*F3986","v":{"v":0,"d":"0.00"}}]
[]
[21,null,"\"Chubb\" or other equally approved ","H2"]
[]
[21,82,"80 x 65mm Brass hydrant booster connection with cap and chain","No",2,null,{"$f":"E3990*F3990","v":{"v":0,"d":"0.00"}}]
[]
[21,83,"80 x 65mm Brass double booster pump connection with caps and chains","No",1,null,{"$f":"E3992*F3992","v":{"v":0,"d":"0.00"}}]
[]
[21,null,"Fire Hydrant pedestals","H2"]
[]
[21,84,"Unreinforced concrete hydrant pedestal 900mm high cast around vertical pipe with bottom 300mm below ground, 300 x 300mm square at base and tapering to octagonal shaped top 200 x 200mm overall including necessary excavation, formwork and two coats of paint to exposed surfaces","No",3,null,{"$f":"E3996*F3996","v":{"v":0,"d":"0.00"}}]
[]
[21,null,"Extra over for Fittings to Valve Chamber","H2"]
[]
[21,85,"40mm Stainer ","No",1,null,{"$f":"E4000*F4000","v":{"v":0,"d":"0.00"}}]
[]
[21,86,"40mm PSV ","No",1,null,{"$f":"E4002*F4002","v":{"v":0,"d":"0.00"}}]
[]
[21,87,"Isolating Valves ","No",2,null,{"$f":"E4004*F4004","v":{"v":0,"d":"0.00"}}]
[]
[21,88,"76mm Non return valve ","No",1,null,{"$f":"E4006*F4006","v":{"v":0,"d":"0.00"}}]
[]
[21,89,"110mm Non return valve","No",1,null,{"$f":"E4008*F4008","v":{"v":0,"d":"0.00"}}]
[]
[21,90,"26mm Gate Valve ","No",3,null,{"$f":"E4010*F4010","v":{"v":0,"d":"0.00"}}]
[]
[21,91,"40mm Gate Valve ","No",1,null,{"$f":"E4012*F4012","v":{"v":0,"d":"0.00"}}]
[]
[21,92," 76mm Gate Valve ","No",2,null,{"$f":"E4014*F4014","v":{"v":0,"d":"0.00"}}]
[]
[21,93,"110mm Gate Valve ","No",1,null,{"$f":"E4016*F4016","v":{"v":0,"d":"0.00"}}]
[]
[21,null,"Water Meter","H2"]
[]
[21,94,"40mm Analog cold water meter including tail pieces per pair including female adaptors, in line restrictor, etc. complete installation ","No",1,null,{"$f":"E4020*F4020","v":{"v":0,"d":"0.00"}}]
[]
[21,null,"Testing","H2"]
[]
[21,95,"Allow for testing the whole water supplies as directed by the Employer or his agents and for re-testing after replacing any defective work to his satisfaction. The contractor is to provide all testing apparatus and labour and is to follow the instructions implicitly.","Item",1,null,{"$f":"E4024*F4024","v":{"v":0,"d":"0.00"}}]
[]
[21,null,"SEPARATION TANK","H1"]
[]
[21,null,"Earthworks (CPAP Work Group No. 104)","H2"]
[]
[21,null,"Excavation other than bulk ","H3"]
[]
[21,96,"Holes not exceeding 2m deep (LI)","m3",24,null,{"$f":"E4032*F4032","v":{"v":0,"d":"0.00"}}]
[]
[21,97,"Holes exceeding 2m not exceeding 4m deep","m3",2,null,{"$f":"E4034*F4034","v":{"v":0,"d":"0.00"}}]
[]
[21,98,"Compaction of ground surface under bases etc., including scarifying for a depth of 150mm, breaking down oversize material, adding suitable material where necessary and compacting to 95% Mod. AASHTO density","m2",12,null,{"$f":"E4036*F4036","v":{"v":0,"d":"0.00"}}]
[]
[21,99,"Extra for excavations in intermediate rock (LI)","m3",2,null,{"$f":"E4038*F4038","v":{"v":0,"d":"0.00"}}]
[]
[21,100,"Risk of collapse of sides of trenches and holes exceeding 1,5m deep","m2",34,null,{"$f":"E4040*F4040","v":{"v":0,"d":"0.00"}}]
[]
[21,101,"Extra over all excavations for loading, carting and dumping surplus excavated material off site to a dumping site to be found by the Contractor (no allowance made for increase in bulk)","m3",26,null,{"$f":"E4042*F4042","v":{"v":0,"d":"0.00"}}]
[]
[21,102,"Allow for keeping excavations free of all water other than subterranean water","Item",1,null,{"$f":"E4044*F4044","v":{"v":0,"d":"0.00"}}]
[]
[21,103,"Approved brand of anti-termite soil poison applied by a registered pest control company and guaranteed against termite infestation for ten years bottoms and sides of holes and trenches (LI)","m2",12,null,{"$f":"E4046*F4046","v":{"v":0,"d":"0.00"}}]
[]
[21,104,"Allow for the execution of all the prescribed density tests on filling, etc., as pointed out by the Engineer on site to the approval of the Principal Agent.","Item",1,null,{"$f":"E4048*F4048","v":{"v":0,"d":"0.00"}}]
[]
[21,null,"Concrete (CPAP Work Group No. 110)","H2"]
[]
[21,null,"Concrete","H3"]
[]
[21,105,"15MPa/19mm Unreinforced concrete in blinding layer cast against excavated surfaces. (LI)","m3",1,null,{"$f":"E4054*F4054","v":{"v":0,"d":"0.00"}}]
[]
[21,106,"30MPa/19mm Reinforced concrete in surface beds on waterproofing (LI)","m3",3,null,{"$f":"E4056*F4056","v":{"v":0,"d":"0.00"}}]
[]
[21,107,"40MPa/19mm Reinforced concrete in slabs (LI)","m3",2,null,{"$f":"E4058*F4058","v":{"v":0,"d":"0.00"}}]
[]
[21,108,"Finishing to top surfaces of concrete with smooth wood float (Class U2) to surface beds, slabs, etc. (LI)","m2",10,null,{"$f":"E4060*F4060","v":{"v":0,"d":"0.00"}}]
[]
[21,109,"Allow for necessary concrete test cubes size 150 x 150 x 150mm from batches of concrete required for this building as specified, made, stored, cured and tested in accordance with SABS Methods 861 and 863, including use of approved cube moulds, transporting to an approved laboratory for testing, paying all charges and submitting reports to the Head: Works ","Item",1,null,{"$f":"E4062*F4062","v":{"v":0,"d":"0.00"}}]
[]
[21,null,"Formwork (CPAP Work Group No. 111)","H2"]
[]
[21,null,"Formwork","H3"]
[]
[21,110,"Class F1 ordinary finish formwork to edges not exceeding 300mm high (LI)","m",15,null,{"$f":"E4068*F4068","v":{"v":0,"d":"0.00"}}]
[]
[21,111,"Class F1 ordinary finish formwork to soffits of slab propped up exceeding 1.5m and not exceeding 3.5m above bearing level (LI)","m2",10,null,{"$f":"E4070*F4070","v":{"v":0,"d":"0.00"}}]
[]
[21,null,"Reinforcement (CPAP Work Group No. 114)","H2"]
[]
[21,null,"Reinforcement ","H3"]
[]
[21,112,"Type 245 fabric reinforcement in surface beds (LI)","m2",24,null,{"$f":"E4076*F4076","v":{"v":0,"d":"0.00"}}]
[]
[21,113,"High tensile reinforcement bars of varying diameters (LI)","t",1,null,{"$f":"E4078*F4078","v":{"v":0,"d":"0.00"}}]
[]
[21,null,"Masonry (CPAP Work Group No. 116)","H2"]
[]
[21,null,"Brickwork of NFX bricks in class II mortar","H3"]
[]
[21,114,"Half brick walls (LI)","m2",5,null,{"$f":"E4084*F4084","v":{"v":0,"d":"0.00"}}]
[]
[21,115,"One brick walls (LI)","m2",21,null,{"$f":"E4086*F4086","v":{"v":0,"d":"0.00"}}]
[]
[21,null,"2.5mm Galvanised brickwork reinforcement","H3"]
[]
[21,116,"75mm Wide reinforcement built in horizontally (LI)","m",20,null,{"$f":"E4090*F4090","v":{"v":0,"d":"0.00"}}]
[]
[21,117,"155mm Wide reinforcement built in horizontally (LI)","m",83,null,{"$f":"E4092*F4092","v":{"v":0,"d":"0.00"}}]
[]
[21,null,"Waterproofing (CPAP Work Group No. 120)","H2"]
[]
[21,null,"Waterproofing","H3"]
[]
[21,118,"50 x 50mm Prostruct 531 MGP corner fillet 300mm girth","m",22,null,{"$f":"E4098*F4098","v":{"v":0,"d":"0.00"}}]
[]
[21,null,"Plastering ","H3"]
[]
[21,119,"25mm Thick on floor (LI)","m2",10,null,{"$f":"E4102*F4102","v":{"v":0,"d":"0.00"}}]
[]
[21,null,"Drainage (CPAP Work Group No. 146)","H2"]
[]
[21,null,"Plumbing and Drainage","H3"]
[]
[21,null,"uPVC class 34 pipes in class C bedding","H4"]
[]
[21,120,"110mm Diameter pipe cast in walls (LI)","m",6,null,{"$f":"E4110*F4110","v":{"v":0,"d":"0.00"}}]
[]
[21,121,"Extra over uPVC pipe for 110mm Bend (LI)","No",4,null,{"$f":"E4112*F4112","v":{"v":0,"d":"0.00"}}]
[]
[21,122,"Extra over uPVC pipe for  110mm junction (LI)","No",3,null,{"$f":"E4114*F4114","v":{"v":0,"d":"0.00"}}]
[]
[21,123," Extra Over for end caps (LI)","No",3,null,{"$f":"E4116*F4116","v":{"v":0,"d":"0.00"}}]
[]
[21,124,"50mm vent pipe (LI)","No",1,null,{"$f":"E4118*F4118","v":{"v":0,"d":"0.00"}}]
[]
[21,null,"Gratings, covers, etc:","H4"]
[]
[21,125,"Besaans Du Plessis or other equally approved double seal M2400 550mm diameter heavy duty cover with 200mm diameter inspection cover","No",3,null,{"$f":"E4122*F4122","v":{"v":0,"d":"0.00"}}]
[]
[21,126,"Besaans Du Plessis or other equally approved double seal M0030 275 x 275mm single seal manhole cover including  10mm plates stiffen and welded on the underside.","No",1,null,{"$f":"E4124*F4124","v":{"v":0,"d":"0.00"}}]
[]
[21,null,"Sundries","H4"]
[]
[21,127,"Unreinforced concrete encasing to horizontal pipe including the necessary formwork. (LI)","m3",1,null,{"$f":"E4128*F4128","v":{"v":0,"d":"0.00"}}]
[]
[21,null,"Painting (CPAP Work Group No. 152)","H2"]
[]
[21,null,"One coat \"Pro-Struct 256\" MCL epoxy primer and two coats \"Pro-Struct 627\" non-slip epoxy enamel coating with silica sand mixture to achieve a total dry film thickness of 500 microns","H3"]
[]
[21,128,"On cement render floors","m2",10,null,{"$f":"E4134*F4134","v":{"v":0,"d":"0.00"}}]
[]
[21,null,"RAINWATER TANKS AND PLINTHS","H1"]
[]
[21,null,"Earthworks (CPAP Work Group No. 104)","H2"]
[]
[21,129,"Excavate in earth not exceeding 2m deep for bases (LI)","m3",9,null,{"$f":"E4140*F4140","v":{"v":0,"d":"0.00"}}]
[]
[21,130,"Risk of collapse of sides of trench excavations not exceeding 1.5m deep (LI)","m2",31,null,{"$f":"E4142*F4142","v":{"v":0,"d":"0.00"}}]
[]
[21,131,"Earthfilling from the excavations as backfilling to trenches compacted to 95% Mod. AASHTO density (LI)","m3",5,null,{"$f":"E4144*F4144","v":{"v":0,"d":"0.00"}}]
[]
[21,132,"Extra over backfilling with G3 material obtained from commercial sources compacted to 98% Mod AASHTO density under bases (LI)","m3",4,null,{"$f":"E4146*F4146","v":{"v":0,"d":"0.00"}}]
[]
[21,133,"Extra over backfilling with G5 material obtained from commercial sources compacted to 98% Mod AASHTO density under bases (LI)","m3",4,null,{"$f":"E4148*F4148","v":{"v":0,"d":"0.00"}}]
[]
[21,134,"Surplus material from excavations to be spread and levelled where directed on site","m3",5,null,{"$f":"E4150*F4150","v":{"v":0,"d":"0.00"}}]
[]
[21,135,"Compaction of ground surface under floors compacted to 95% Mod. ASSTO density","m2",19,null,{"$f":"E4152*F4152","v":{"v":0,"d":"0.00"}}]
[]
[21,136,"Modified AASHTO Density tests on fillings","No",3,null,{"$f":"E4154*F4154","v":{"v":0,"d":"0.00"}}]
[]
[21,137,"Approved brand of weed killer applied to surfaces of earth under floors and to sides of excavations (LI)","m2",69,null,{"$f":"E4156*F4156","v":{"v":0,"d":"0.00"}}]
[]
[21,null,"Concrete (CPAP Work Group No.110)","H2"]
[]
[21,null,"30Mpa/19mm Reinforced concrete cast against excavated surfaces","H3"]
[]
[21,138,"Strip Footings (LI)","m3",5,null,{"$f":"E4162*F4162","v":{"v":0,"d":"0.00"}}]
[]
[21,139,"Slab (LI)","m3",6,null,{"$f":"E4164*F4164","v":{"v":0,"d":"0.00"}}]
[]
[21,140,"Making and testing set of three 150 x 150 x 150mm concrete strength test cube (Provisional)","No",4,null,{"$f":"E4166*F4166","v":{"v":0,"d":"0.00"}}]
[]
[21,null,"Reinforcement (CPAP Work Group 114)","H2"]
[]
[21,141,"Various diameter bars in mild steel reinforcement (LI)","t",1,null,{"$f":"E4170*F4170","v":{"v":0,"d":"0.00"}}]
[]
[21,null,"Fabric reinforcement (CPAP Work Group 114)","H2"]
[]
[21,142,"Type ref. 193 fabric reinforcement in concrete surface beds, slabs, etc. (LI)","m2",29,null,{"$f":"E4174*F4174","v":{"v":0,"d":"0.00"}}]
[]
[21,null,"Masonry (CPAP Work Group No. 116)","H2"]
[]
[21,null,"Brickwork of NFX bricks in class II mortar","H3"]
[]
[21,null,"One brick walls in foundations (LI)","m2",6,null,{"$f":"E4180*F4180","v":{"v":0,"d":"0.00"}}]
[]
[21,null,"Brickwork of NFP bricks in class II mortar","H3"]
[]
[21,143,"One brick walls (LI)","m2",12,null,{"$f":"E4184*F4184","v":{"v":0,"d":"0.00"}}]
[]
[21,144,"Extra over brickwork for face brickwork in \"Corobrick Firelight Satin FBX\" or other equally approved face bricks pointed with flush joints (LI)","m2",12,null,{"$f":"E4186*F4186","v":{"v":0,"d":"0.00"}}]
[]
[21,null,"Slip joints between horizontal concrete and brickwork surfaces including cement mortar bedding","H3"]
[]
[21,145,"Two layers of 3mm thick masonite board not exceeding 300mm wide or high","m",28,null,{"$f":"E4190*F4190","v":{"v":0,"d":"0.00"}}]
[]
[21,null,"Waterproofing (CPAP Work Group No. 120)","H2"]
[]
[21,146,"'Pro-Struct 749' or other equally approved polysulphide joint sealant including backing cord, bond breaker, etc. to slip joints","m",28,null,{"$f":"E4194*F4194","v":{"v":0,"d":"0.00"}}]
[]
[21,null,"Plumbing (CPAP Work Group No. 148)","H2"]
[]
[21,null,"Polyethylene rainwater tanks, etc.","H3"]
[]
[21,147,"5000 litre \"JoJo\" tank with access lid with inlet hole and sieve and outlet union for 15mm tap and place in position on plinth and secure with twisted double strand 3mm galvanised wire. (LI)","No",4,null,{"$f":"E4200*F4200","v":{"v":0,"d":"0.00"}}]
[]
[21,null,"Taps, valves, etc.","H3"]
[]
[21,148,"Hose bib tap, brass including 3/4 hose union, etc.","No",4,null,{"$f":"E4204*F4204","v":{"v":0,"d":"0.00"}}]
[]
[21,null,"REINFORCED CONCRETE RETAINING WALLS","H1"]
[]
[21,null,"Alterations (CPAP work group No. 102)","H2"]
[]
[21,null,"Trench and hole excavations in earth for breaking up and removing","H3"]
[]
[21,149,"Unreinforced concrete blinding ","m3",7,null,{"$f":"E4212*F4212","v":{"v":0,"d":"0.00"}}]
[]
[21,150,"Reinforced concrete strip footings  ","m3",13,null,{"$f":"E4214*F4214","v":{"v":0,"d":"0.00"}}]
[]
[21,null,"Earthworks (CPAP Work Group No. 104)","H2"]
[]
[21,null,"Excavation other than bulk ","H3"]
[]
[21,151,"Trenches not exceeding 2m deep (LI)","m3",824,null,{"$f":"E4220*F4220","v":{"v":0,"d":"0.00"}}]
[]
[21,152,"Extra over for excavations in intermediate material (LI)","m3",62,null,{"$f":"E4222*F4222","v":{"v":0,"d":"0.00"}}]
[]
[21,153,"Extra over for excavations in hard material","m3",41,null,{"$f":"E4224*F4224","v":{"v":0,"d":"0.00"}}]
[]
[21,154,"Back excavation of vertical sides of excavations in earth for working space including backfilling compacted to 98% Mod. AASHTO density exceeding 500mm and not exceeding 1500mm deep for placing and removing formwork to walls 300mm away from excavated face (LI)","m2",383,null,{"$f":"E4226*F4226","v":{"v":0,"d":"0.00"}}]
[]
[21,155,"Risk of collapse of sides of trench and hole excavations not exceeding 1,5m deep","m2",702,null,{"$f":"E4228*F4228","v":{"v":0,"d":"0.00"}}]
[]
[21,156,"Earthfilling from the excavations as backfilling to trenches compacted to 95% Mod. AASHTO density (LI)","m3",245,null,{"$f":"E4230*F4230","v":{"v":0,"d":"0.00"}}]
[]
[21,157,"Imported G7 material imported from commercial sources supplied by contractor, compacted to 98% Mod. AASHTO density behind retaining walls (LI)","m3",610,null,{"$f":"E4232*F4232","v":{"v":0,"d":"0.00"}}]
[]
[21,158,"Extra over all excavations for loading, carting and dumping surplus excavated material off site to a dumping site to be found by the Contractor (no allowance made for increase in bulk)","m3",579,null,{"$f":"E4234*F4234","v":{"v":0,"d":"0.00"}}]
[]
[21,159,"Modified AASHTO Density tests on fillings","No",143,null,{"$f":"E4236*F4236","v":{"v":0,"d":"0.00"}}]
[]
[21,null,"Concrete, Formwork and Reinforcement","H2"]
[]
[21,null,"Concrete (CPAP Work Group No. 110)","H3"]
[]
[21,160,"10MPa/19mm Unreinforced concrete cast against excavated surfaces for blinding (LI)","m3",33,null,{"$f":"E4242*F4242","v":{"v":0,"d":"0.00"}}]
[]
[21,161,"30MPa/19mm Reinforced concrete cast against excavated surfaces for strip footings (LI)","m3",295,null,{"$f":"E4244*F4244","v":{"v":0,"d":"0.00"}}]
[]
[21,162,"30MPa/19mm Reinforced concrete in walls (LI)","m3",251,null,{"$f":"E4246*F4246","v":{"v":0,"d":"0.00"}}]
[]
[21,null,"Concrete Sundries","H3"]
[]
[21,163,"Making and testing set of three 150 x 150 x 150mm concrete strength test cube (Provisional)","No",330,null,{"$f":"E4250*F4250","v":{"v":0,"d":"0.00"}}]
[]
[21,null,"Expansion joints with bitumen impregnated soft board between vertical concrete joints","H3"]
[]
[21,164,"20mm Joints exceeding 300mm high (LI)","m2",182,null,{"$f":"E4254*F4254","v":{"v":0,"d":"0.00"}}]
[]
[21,null,"Construction joints with 200mm wide bandage over construction joint","H3"]
[]
[21,165,"300mm thick Construction Joints (LI)","m2",454,null,{"$f":"E4258*F4258","v":{"v":0,"d":"0.00"}}]
[]
[21,null,"Formwork (CPAP Work Group No. 111)","H3"]
[]
[21,166,"Class FM2 ordinary finish formwork to sides of strip footings (LI)","m2",187,null,{"$f":"E4262*F4262","v":{"v":0,"d":"0.00"}}]
[]
[21,167,"Class FM1 smooth finish formwork to sides of walls exceeding 3500mm and not exceeding 5000mm high (LI)","m2",1626,null,{"$f":"E4264*F4264","v":{"v":0,"d":"0.00"}}]
[]
[21,null,"Boxing in smooth formwork to form","H3"]
[]
[21,168,"25 x 25mm Chamfers along top and bottom edge (LI)","m",546,null,{"$f":"E4268*F4268","v":{"v":0,"d":"0.00"}}]
[]
[21,null,"Reinforcement (CPAP Work Group No. 114)","H3"]
[]
[21,169,"Various diameter bars in mild steel reinforcement (LI)","t",14.53,null,{"$f":"E4272*F4272","v":{"v":0,"d":"0.00"}}]
[]
[21,170,"Various diameter bars in high tensile steel reinforcement (LI)","t",33.9,null,{"$f":"E4274*F4274","v":{"v":0,"d":"0.00"}}]
[]
[21,null,"Dowelled Bars","H3"]
[]
[21,171,"12mm Diameter hot dipped galvanised mild steel rod 500mm long with one end drill into concrete and epoxy coated, and other end left projecting and cast in when adjoining concrete is poured including perforating formwork and 12mm joint filler board.","No",286,null,{"$f":"E4278*F4278","v":{"v":0,"d":"0.00"}}]
[]
[21,172,"16mm Diameter hot dipped galvanised mild steel rod 500mm long with one end drill into concrete and epoxy coated, and other end left projecting and cast in when adjoining concrete is poured including perforating formwork and 12mm joint filler board.","No",286,null,{"$f":"E4280*F4280","v":{"v":0,"d":"0.00"}}]
[]
[21,null,"Waterproofing (CPAP Work Group No. 120)","H2"]
[]
[21,null,"Waterproofing (CPAP Work Group No. 120)","H3"]
[]
[21,null,"One Layer \"Derbigum\" or other equally approved CG4 waterproofing membrane sealed to solvent based bitumen primed surface by means of torch fusion with minimum 100mm side laps and minimum 150mm end laps","H4"]
[]
[21,173,"On retaining walls","m2",813,null,{"$f":"E4288*F4288","v":{"v":0,"d":"0.00"}}]
[]
[21,174,"Extra over waterproofing to walls for one layer of 'interdek' or other equally approved approved  sheeting with a minimum lap of 200mm to receive backfilling (Back filling else where measured)","m2",813,null,{"$f":"E4290*F4290","v":{"v":0,"d":"0.00"}}]
[]
[21,null,"APRONS","H1"]
[]
[21,null,"Earthworks (CPAP Work Group No. 104)","H2"]
[]
[21,175,"Reduce levels in earth not exceeding 2m deep (LI)","m3",36,null,{"$f":"E4296*F4296","v":{"v":0,"d":"0.00"}}]
[]
[21,176,"Extra over all excavations for loading, carting and dumping surplus excavated material off site to a dumping site to be found by the Contractor  (no allowance made for increase in bulk)","m3",36,null,{"$f":"E4298*F4298","v":{"v":0,"d":"0.00"}}]
[]
[21,177,"Backfilling with G5 material supplied and carted onto site by the Contractor, compacted to a density of at least 95% Mod. AASHTO maximum density under channelling (LI) ","m3",36,null,{"$f":"E4300*F4300","v":{"v":0,"d":"0.00"}}]
[]
[21,178,"Keeping excavations free of all water other than subterranean water","Item",1,null,{"$f":"E4302*F4302","v":{"v":0,"d":"0.00"}}]
[]
[21,179,"Modified AASHTO Density tests on fillings","No",6,null,{"$f":"E4304*F4304","v":{"v":0,"d":"0.00"}}]
[]
[21,180,"Anti-termite soil poison applied by a registered pest control company and guaranteed against termite infestation for ten years under floors etc including forming and poisoning shallow furrows against foundation walls etc., filling in furrows and ramming (LI)","m2",243,null,{"$f":"E4306*F4306","v":{"v":0,"d":"0.00"}}]
[]
[21,null,"Concrete, Formwork and Reinforcement","H2"]
[]
[21,null,"Concrete (CPAP Work Group No. 110)","H3"]
[]
[21,181,"25MPa/19mm Reinforced concrete in panels cast against compacted earth (LI)","m3",24,null,{"$f":"E4312*F4312","v":{"v":0,"d":"0.00"}}]
[]
[21,182,"Finishing to top surfaces of concrete with smooth wood float (Class FM2) (LI)","m2",243,null,{"$f":"E4314*F4314","v":{"v":0,"d":"0.00"}}]
[]
[21,183,"Movement joint not exceeding 300mm high formed with one layer of 10mm 'Masonite Flexi joint Board' or other equally approved bitumen impregnated softboard filler board vertically between block and concrete surfaces (LI)","m",215,null,{"$f":"E4316*F4316","v":{"v":0,"d":"0.00"}}]
[]
[21,184,"Making and testing set of three 150 x 150 x 150mm concrete strength test cube (Provisional)","No",1,null,{"$f":"E4318*F4318","v":{"v":0,"d":"0.00"}}]
[]
[21,null,"Formwork (CPAP Work Group No. 111)","H3"]
[]
[21,185,"Class FM2 ordinary finish formwork to edges not exceeding 300mm high (LI)","m",215,null,{"$f":"E4322*F4322","v":{"v":0,"d":"0.00"}}]
[]
[21,null,"Reinforcement (CPAP Work Group No. 114)","H3"]
[]
[21,186,"Type ref. 193 fabric reinforcement in surface beds (LI)","m2",215,null,{"$f":"E4326*F4326","v":{"v":0,"d":"0.00"}}]
[]
[21,null,"Waterproofing (CPAP Work Group No. 120)","H2"]
[]
[21,187,"Thioflex 600' or other equally approved two-part polysulphide flexible joint sealants, including backing cord, bond breaker, primer, etc., in horizontal joints10 x 10mm at expansion joints.","m",215,null,{"$f":"E4330*F4330","v":{"v":0,"d":"0.00"}}]
[]
[21,null,"FENCING AND GATES","H1"]
[]
[21,null,"Metalwork (CPAP Work Group No. 136)","H2"]
[]
[21,null,"'Clearvu' or other equally approved galvanised steel security fencing:","H3"]
[]
[21,188,"Marine fusion bonded galvanized mesh panels with aperture of 76 x 12mm and widths not exceeding 3297mm wide and height of 1800mm high bolted  to 2400mm high tapered locking posts embedded in 20Mpa/19mm concrete. (LI)","m",17,null,{"$f":"E4338*F4338","v":{"v":0,"d":"0.00"}}]
[]
[21,189,"Marine fusion bonded galvanized mesh panels with aperture of 76 x 12mm and widths not exceeding 3297mm wide and height of 2100mm high bolted  to 2700mm high tapered locking posts embedded in 20Mpa/19mm concrete. (LI)","m",273,null,{"$f":"E4340*F4340","v":{"v":0,"d":"0.00"}}]
[]
[21,null,"Extra over 'Clearvu' or other equally approved fence for:","H3"]
[]
[21,190,"Marine fusion bonded galvanized 'Shark tooth spike' fitted to fencing panels (Fencing panels elsewhere measured) (LI)","m",273,null,{"$f":"E4344*F4344","v":{"v":0,"d":"0.00"}}]
[]
[21,null,"Gates, etc.","H3"]
[]
[21,191,"Single gate size 1000 x 2100mm high with frame and mullions formed of 100 x 50 x 5mm hot dipped galvanised frame and filled in with marine fusion bond wire mesh complete with posts, keep, etc. (LI)","No",1,null,{"$f":"E4348*F4348","v":{"v":0,"d":"0.00"}}]
[]
[21,192,"Sliding gate overall size 9000 x 2100mm high formed of two equal leaves with frame and mullions formed of 100 x 50 x 5mm hot dipped galvanised frame and filled in with marine fusion bond wire mesh complete with posts, keep, etc. (LI)","No",1,null,{"$f":"E4350*F4350","v":{"v":0,"d":"0.00"}}]
[]
[21,193,"Double swing gate overall size 1980 x 2100mm high formed of two equal leaves with frame and mullions formed of 100 x 50 x 5mm hot dipped galvanised frame and filled in with marine fusion bond wire mesh complete with posts, keep, etc. (LI)","No",1,null,{"$f":"E4352*F4352","v":{"v":0,"d":"0.00"}}]
[]
[21,null,"GUARD HOUSE","H1"]
[]
[21,null,"Earthworks (CPAP Work Group No. 104)","H2"]
[]
[21,null,"Excavation in earth not exceeding 2m deep","H3"]
[]
[21,194,"Reduced levels under floors (LI)","m3",2,null,{"$f":"E4360*F4360","v":{"v":0,"d":"0.00"}}]
[]
[21,195,"Ground beams (LI)","m3",2,null,{"$f":"E4362*F4362","v":{"v":0,"d":"0.00"}}]
[]
[21,null,"Extra over trench and hole excavations in earth for excavation in for:","H3"]
[]
[21,196,"Soft material (LI)","m3",1,null,{"$f":"E4366*F4366","v":{"v":0,"d":"0.00"}}]
[]
[21,197,"Hard material","m3",1,null,{"$f":"E4368*F4368","v":{"v":0,"d":"0.00"}}]
[]
[21,null,"Extra over all excavations for carting away","H3"]
[]
[21,198,"Surplus material from excavations and/or stock piles on site, to a dumping site to be located by the contractor","m3",4,null,{"$f":"E4372*F4372","v":{"v":0,"d":"0.00"}}]
[]
[21,null,"Risk of collapse of excavations","H3"]
[]
[21,199,"Sides of trench and hole excavations not exceeding 1,5m deep","m2",12,null,{"$f":"E4376*F4376","v":{"v":0,"d":"0.00"}}]
[]
[21,null,"Keeping excavations free of water","H3"]
[]
[21,200,"Keeping excavations free of all water other than subterranean water","Item",1,null,{"$f":"E4380*F4380","v":{"v":0,"d":"0.00"}}]
[]
[21,null,"Earth filling supplied by the contractor, compacted to 95% Mod. AASHTO density","H3"]
[]
[21,201,"Under floors of G5 material in accordance with SABS 1200 DM and compacted to 95% Mod. AASHTO density (LI)","m3",2,null,{"$f":"E4384*F4384","v":{"v":0,"d":"0.00"}}]
[]
[21,null,"Compaction of surfaces","H3"]
[]
[21,202,"Compaction of ground surface under floors etc including grading, levelling and scarifying for a depth of 150mm, breaking down oversize material, adding suitable material where necessary and compacting to 98% Mod. AASHTO density","m2",12,null,{"$f":"E4388*F4388","v":{"v":0,"d":"0.00"}}]
[]
[21,null,"Prescribed density tests on filling","H3"]
[]
[21,203,"\"Modified AASHTO Density\" test","No",1,null,{"$f":"E4392*F4392","v":{"v":0,"d":"0.00"}}]
[]
[21,null,"Soil poisoning","H3"]
[]
[21,null,"Anti-termite soil poison applied by a registered Pest Control company and guaranteed againist termite infestation for ten years","H3"]
[]
[21,204,"Under floors etc including forming and poisoning shallow furrows against foundation walls etc., filling in furrows and ramming (LI)","m2",12,null,{"$f":"E4398*F4398","v":{"v":0,"d":"0.00"}}]
[]
[21,205,"To bottoms and sides of trenches, etc. (LI)","m2",18,null,{"$f":"E4400*F4400","v":{"v":0,"d":"0.00"}}]
[]
[21,null,"Concrete, Formwork and Reinforcement","H2"]
[]
[21,null,"Concrete (CPAP Work Group No. 110)","H2"]
[]
[21,null,"Reinforced concrete cast against excavated surfaces","H3"]
[]
[21,null,"25Mpa/19mm concrete","H3"]
[]
[21,206,"Ground beams (LI)","m3",2,null,{"$f":"E4410*F4410","v":{"v":0,"d":"0.00"}}]
[]
[21,207,"Surface beds on waterproofing (LI)","m3",4,null,{"$f":"E4412*F4412","v":{"v":0,"d":"0.00"}}]
[]
[21,208,"Surface bed thickening (LI)","m3",0.3,null,{"$f":"E4414*F4414","v":{"v":0,"d":"0.00"}}]
[]
[21,null,"Test Cubes","H3"]
[]
[21,209,"Making and testing set of three 150 x 150 x 150mm concrete strength test cube (Provisional)","No",1,null,{"$f":"E4418*F4418","v":{"v":0,"d":"0.00"}}]
[]
[21,null,"Concrete Sundries","H3"]
[]
[21,null,"Finishing top surfaces of concrete smooth with a wood float","H3"]
[]
[21,210,"Surface beds, slabs, etc. (LI)","m2",4,null,{"$f":"E4424*F4424","v":{"v":0,"d":"0.00"}}]
[]
[21,null,"Movement Joints","H3"]
[]
[21,null,"Expansion joints with 12mm bitumen impregnated softboard between vertical concrete surfaces, including necessary formwork","H3"]
[]
[21,211,"10mm Joints exceeding 300mm high (LI)","m",21,null,{"$f":"E4430*F4430","v":{"v":0,"d":"0.00"}}]
[]
[21,null,"Saw cut joints","H3"]
[]
[21,212,"3 x 30mm Saw cut joints in top of concrete","m",9,null,{"$f":"E4434*F4434","v":{"v":0,"d":"0.00"}}]
[]
[21,null,"(CPAP Work Group No. 111)","H2"]
[]
[21,null,"Formwork (Degree of Accuracy II) ","H2"]
[]
[21,null,"Rough formwork to sides","H3"]
[]
[21,213,"Edges, risers, ends and reveals not exceeding 300mm high or wide (LI)","m",2,null,{"$f":"E4442*F4442","v":{"v":0,"d":"0.00"}}]
[]
[21,null,"(CPAP Work Group No. 114)","H2"]
[]
[21,null,"Reinforcement (Provisonal)","H2"]
[]
[21,214,"Bars of various diameters (LI)","t",0.2,null,{"$f":"E4448*F4448","v":{"v":0,"d":"0.00"}}]
[]
[21,null,"Fabric reinforcement","H3"]
[]
[21,215,"Type ref. 193 fabric reinforcement in concrete surface beds, slabs, etc. (LI)","m2",12,null,{"$f":"E4452*F4452","v":{"v":0,"d":"0.00"}}]
[]
[21,null,"Masonry (CPAP Work Group No. 116)","H2"]
[]
[21,null,"Brickwork of NFX bricks (14Mpa norminal compression strength) in class II mortar","H3"]
[]
[21,null,"Superstructure","H3"]
[]
[21,216,"Half brick walls (LI)","m2",7,null,{"$f":"E4460*F4460","v":{"v":0,"d":"0.00"}}]
[]
[21,217,"Half brickwall ib beamfill (LI)","m2",10,null,{"$f":"E4462*F4462","v":{"v":0,"d":"0.00"}}]
[]
[21,218,"One brick walls (LI)","m2",40,null,{"$f":"E4464*F4464","v":{"v":0,"d":"0.00"}}]
[]
[21,null,"Brickwork sundries","H3"]
[]
[21,null,"2.5mm Galvanised brickwork reinforcement","H3"]
[]
[21,219,"75mm Wide reinforcement built in horizontally (LI)","m",66,null,{"$f":"E4470*F4470","v":{"v":0,"d":"0.00"}}]
[]
[21,220,"155mm Wide reinforcement built in horizontally (LI)","m",158,null,{"$f":"E4472*F4472","v":{"v":0,"d":"0.00"}}]
[]
[21,null,"Bagging of 1:3 cement and sand mixture","H3"]
[]
[21,221,"On brick walls, piers, etc. (LI)","m2",48,null,{"$f":"E4476*F4476","v":{"v":0,"d":"0.00"}}]
[]
[21,null,"Joint forming material in movement joints","H3"]
[]
[21,222,"12mm Bitumen impregnated fibre board built in vertically between brick skins (LI)","m",7,null,{"$f":"E4480*F4480","v":{"v":0,"d":"0.00"}}]
[]
[21,null,"Prestressed fabricated concrete lintels including necessary temporary supports","H3"]
[]
[21,223,"75 x 110mm Lintels in lengths not exceeding 3m (LI)","m",10,null,{"$f":"E4484*F4484","v":{"v":0,"d":"0.00"}}]
[]
[21,null,"Turning pieces to lintels, etc.","H3"]
[]
[21,224,"220mm Wide turning pieces (LI)","m",8,null,{"$f":"E4488*F4488","v":{"v":0,"d":"0.00"}}]
[]
[21,null,"'Everite' or other equally approved:","H3"]
[]
[21,225,"Fibre cement cill of approximate width of 120mm set and fixed in position with  adhesive as per manufacturer's instruction, with and including all edge to be neatly sealed with  silicon (LI)","m",9,null,{"$f":"E4492*F4492","v":{"v":0,"d":"0.00"}}]
[]
[21,null,"Face Brickwork","H3"]
[]
[21,null,"\" Corobrick Firelight Satin FBS \" or other equally approved face bricks pointed with tinted flush horizontal and vertical joints ","H3"]
[]
[21,226,"Extra over brickwork for face brickwork (LI)","m2",48,null,{"$f":"E4498*F4498","v":{"v":0,"d":"0.00"}}]
[]
[21,227,"Extra over brickwork for brick-on-edge header course bands one course high set at slope (LI)","m",9,null,{"$f":"E4500*F4500","v":{"v":0,"d":"0.00"}}]
[]
[21,null,"\"Eezi Quartz Slate\" or other equally approved countertop with polished finish, bedded in cement mortar (fixed with adhesive, screed elsewhere measured)","H3"]
[]
[21,228,"600mm wide x 30mm thick rustenberg granite top and front edge on 50 x 50mm galvanised steel brackets bolted to wall","m",1,null,{"$f":"E4504*F4504","v":{"v":0,"d":"0.00"}}]
[]
[21,null,"Waterproofing (CPAP Work Group No. 120)","H2"]
[]
[21,null,"One layer of 375 micron \"Consol Plastics Brikgrip DPC\" embossed damp proof course","H3"]
[]
[21,229,"In walls (LI)","m2",4,null,{"$f":"E4510*F4510","v":{"v":0,"d":"0.00"}}]
[]
[21,230,"Under cills (LI)","m2",2,null,{"$f":"E4512*F4512","v":{"v":0,"d":"0.00"}}]
[]
[21,null,"One layer of 375 micron \"Consol Plastics\" waterproof sheeting sealed at laps","H3"]
[]
[21,231,"Under surface beds (LI)","m2",16,null,{"$f":"E4516*F4516","v":{"v":0,"d":"0.00"}}]
[]
[21,null,"Two coats emulsion bitumen emulsion waterproof coating","H3"]
[]
[21,232,"On bagged brick walls (LI)","m2",48,null,{"$f":"E4520*F4520","v":{"v":0,"d":"0.00"}}]
[]
[21,null,"Joint sealants, etc.","H3"]
[]
[21,null,"\"Sika\" or other equally approved two-part grey polysulphide sealing compound including backing cord, bond breaker , primer, etc","H3"]
[]
[21,233,"6 x 10mm In expansion joints in saw cut joints, etc.","m",9,null,{"$f":"E4526*F4526","v":{"v":0,"d":"0.00"}}]
[]
[21,234,"12 x 12mm In vertical expansion joints including raking out expansion joint filler as necessary","m",5,null,{"$f":"E4528*F4528","v":{"v":0,"d":"0.00"}}]
[]
[21,null,"Roof Covering (CPAP Work Group No. 124)","H2"]
[]
[21,null,"Profilled Aluminium Sheet Cladding Aluminium-zinc (AZ) alloy coated sheet to comply with SANS 9364/SANS14713 with a coating grade of AZ200 for coastal regions/ aggressive atmospheric conditions, fixed to timber purlins","H3"]
[]
[21,235,"Roof covering with pitches not exceeding 25 degrees","m2",29,null,{"$f":"E4534*F4534","v":{"v":0,"d":"0.00"}}]
[]
[21,null,"Carpentry and Joinery (CPAP Work Group No. 126)","H2"]
[]
[21,null,"Plate nailed timber roof truss constructed to mono pitch roof with roof pitched at 25 degrees, rafter and tie beam 32 x 108mm ,strust 32 x69mm including standard galvanised gusset plates, trusses to be hoisted and fixed into position approximately 2,6m above ground level.","H3"]
[]
[21,236,"Mono pitch timber roof truss, with 600mm over hang on one side and 800mm over hang on the other side and tie beam spanning 2,0m to 3,0m","No",3,null,{"$f":"E4540*F4540","v":{"v":0,"d":"0.00"}}]
[]
[21,237,"38 x 114mm sawn softwood wall plates","m",6,null,{"$f":"E4542*F4542","v":{"v":0,"d":"0.00"}}]
[]
[21,null,"\"Everite Nutec\" or other equally approved medium density pressed fibre-cement","H3"]
[]
[21,238,"15 x 255mm Fascias, including galvanised steel H-profile joiners","m",3,null,{"$f":"E4546*F4546","v":{"v":0,"d":"0.00"}}]
[]
[21,239,"80 x 275mm Angle section barge board, including galvanised steel H-profile joiners","m",18,null,{"$f":"E4548*F4548","v":{"v":0,"d":"0.00"}}]
[]
[21,null,"Framed Doors, etc.","H3"]
[]
[21,null,"Wrought meranti doors hung to steel frames","H3"]
[]
[21,240,"44mm Ledged, solid core doors with veneer suitable for painting on both sides and hardwood edge strips all round hung to steel frames. (D12) (steel frames elsewhere measured)","No",1,null,{"$f":"E4554*F4554","v":{"v":0,"d":"0.00"}}]
[]
[21,null,"Cabinets, etc.","H3"]
[]
[21,null,"30mm thick Postform with rounded edges on melanin faced chipboard frame","H3"]
[]
[21,241,"Two compartment melamine faced particle board cabinet unit 2765mm x 600mm wide x 850mm high  formed of 30mm thick Postform with rounded edges on melanin faced chipboard frame, equal leaved doors and two drawers made of 16mm thick Bisonlam moisture resistant board doors in cherry finish with high impact edging strips all round and 16mm Bisonlam moisture resistant board base with cross bracing directly under frame & securely fixed to floor and wall at 600mm centres max with screws and Plastic plugs, all in accordance with the Architects Drawing annexed to these Bills of Quantities","No",1,null,{"$f":"E4560*F4560","v":{"v":0,"d":"0.00"}}]
[]
[21,null,"Prefabricated factory finished kitchen cupboards","H3"]
[]
[21,242,"Kitchen sink unit cupboard 1230 x 600mm deep x 900mm high with two equal leaved doors all in accordance with the Architects Drawing annexed to these Bills of Quantities","No",1,null,{"$f":"E4564*F4564","v":{"v":0,"d":"0.00"}}]
[]
[21,null,"Ceilings (CPAP Work Group No. 129)","H2"]
[]
[21,null,"\"OWA\" or other approved 12.5mm Vinyl Faced Gypsum Ceiling Panels, face covered with white embossed vinyl, size 1200 x 600mm, laid on fire rated Clip system S3 exposed demountable suspension system including galvanised main tees, cross tees, etc., all suspended with galvanised hangers at centres not exceeding 1200mm.","H3"]
[]
[21,243,"Ceilings suspended not exceeding 1m below structural steel","m2",16,null,{"$f":"E4570*F4570","v":{"v":0,"d":"0.00"}}]
[]
[21,null,"Cornices, etc. to suspended ceilings","H3"]
[]
[21,244,"\"OWAconstruct\" or other approved shadowline W trim plugged and screwed at 200mm centres.","m",20,null,{"$f":"E4574*F4574","v":{"v":0,"d":"0.00"}}]
[]
[21,null,"Ironmongery (CPAP Work Group No. 132)","H2"]
[]
[21,null,"Locksets, etc.","H3"]
[]
[21,245,"'Union' or other equally approved 3 lever lockset","No",1,null,{"$f":"E4580*F4580","v":{"v":0,"d":"0.00"}}]
[]
[21,246,"SS2016SS Bathroom deadbolt","No",1,null,{"$f":"E4582*F4582","v":{"v":0,"d":"0.00"}}]
[]
[21,247,"SS5004-73SS Escutcheon on rose bathroom indicator","Pairs",1,null,{"$f":"E4584*F4584","v":{"v":0,"d":"0.00"}}]
[]
[21,null,"Sundries","H3"]
[]
[21,248,"'9002AS 1 EA' Aluminium door stop AS or other equally approved","No",2,null,{"$f":"E4588*F4588","v":{"v":0,"d":"0.00"}}]
[]
[21,null,"Metalwork (CPAP Work Group No. 136)","H2"]
[]
[21,null,"Natural anodized aluminium windows, complete with subframes, ironmongery, glass, sealing, etc. and fixing to brickwork or concrete.","H3"]
[]
[21,249,"Window size 600 x 900mm high overall (W 3). Tenderers are referred to Architect`s drawings annexured to these Bills of Quantities Drawing number 070638 - DOH - A - 8100 -0","No",1,null,{"$f":"E4594*F4594","v":{"v":0,"d":"0.00"}}]
[]
[21,250,"Window size 1200 x 925mm high overall (W15). Tenderers are referred to Architect`s drawings annexured to these Bills of Quantities Drawing number 070638 - DOH - A - 8100 -0","No",2,null,{"$f":"E4596*F4596","v":{"v":0,"d":"0.00"}}]
[]
[21,251,"Window size 2700 x 925mm high overall (W14). Tenderers are referred to Architect`s drawings annexured to these Bills of Quantities Drawing number 070638 - DOH - A - 8100 -0","No",2,null,{"$f":"E4598*F4598","v":{"v":0,"d":"0.00"}}]
[]
[21,null,"Galvanised pressed steel door frames","H3"]
[]
[21,null,"1,6mm Double rebated frames suitable for half brick wall fitted with three 100mm hinges","H3"]
[]
[21,252,"Frame for door 813 x 2032mm high.","No",1,null,{"$f":"E4604*F4604","v":{"v":0,"d":"0.00"}}]
[]
[21,null,"Hot dipped galvanised sundry steelwork","H3"]
[]
[21,null,"Brackets, etc. to shelvings:","H3"]
[]
[21,253,"Wall support to worktops formed with 40 x 40 x 4mm L-section framing to horizontal rail 600mm wide, vertical post 530mm high and raking stay 300mm long, all mitred and welded together with closed ends to horizontal rail and vertical post, the vertical post twice drilled for and bolted with M10 expansion bolts.","No",2,null,{"$f":"E4610*F4610","v":{"v":0,"d":"0.00"}}]
[]
[21,null,"Drainage (CPAP Work Group No. 148)","H2"]
[]
[21,null,"\"Ogee profile aluminium H3003h 14\" or other equally approved seamless gutter in marble white colour with and including matching rivet fixed mitres and end caps internally sealed using \"Sika\" or other equally approved silicon mastic sealer. Gutters are to be hung with nailed fixed internal aluminium hangers at 600mm centres to fibre cement fascia boards (Fibre cement fascia boards elsewhere measured)","H3"]
[]
[21,254,"125 x 85 x 0.6mm Ogee profile gutter","m",3,null,{"$f":"E4616*F4616","v":{"v":0,"d":"0.00"}}]
[]
[21,255,"Extra over gutter for outlet","No",1,null,{"$f":"E4618*F4618","v":{"v":0,"d":"0.00"}}]
[]
[21,256,"Extra over for end caps ","No",2,null,{"$f":"E4620*F4620","v":{"v":0,"d":"0.00"}}]
[]
[21,257,"Extra over gutter for box gutter approximate size 600 x 350mm deep six times bent","m",1,null,{"$f":"E4622*F4622","v":{"v":0,"d":"0.00"}}]
[]
[21,null,"0.7mm Baked enamel aluminium downpipe including holder butts ","H3"]
[]
[21,258,"100 x 75mm rainwater pipe","m",3,null,{"$f":"E4626*F4626","v":{"v":0,"d":"0.00"}}]
[]
[21,259,"Extra over rainwater pipe for bend","No",1,null,{"$f":"E4628*F4628","v":{"v":0,"d":"0.00"}}]
[]
[21,260,"Extra over rainwater pipe for shoe","No",1,null,{"$f":"E4630*F4630","v":{"v":0,"d":"0.00"}}]
[]
[21,null,"Plastering (CPAP Work Group No. 142)","H2"]
[]
[21,null,"Screeds","H3"]
[]
[21,null,"Screeds wood floated, on concrete","H3"]
[]
[21,261,"30mm Thick on floors and landings (LI)","m2",16,null,{"$f":"E4638*F4638","v":{"v":0,"d":"0.00"}}]
[]
[21,null,"Internal plaster","H3"]
[]
[21,null,"One coat cement plaster steel floated on brickwork","H3"]
[]
[21,262,"On walls (LI)","m2",52,null,{"$f":"E4644*F4644","v":{"v":0,"d":"0.00"}}]
[]
[21,263,"On narrow widths (LI)","m2",4,null,{"$f":"E4646*F4646","v":{"v":0,"d":"0.00"}}]
[]
[21,null,"Corner protectors, dividing strips, etc.","H3"]
[]
[21,null,"Dividing strips","H3"]
[]
[21,264,"3 x 40mm Flat section brass dividing strips between differing floor finishes","m",2,null,{"$f":"E4652*F4652","v":{"v":0,"d":"0.00"}}]
[]
[21,null,"Tiling (CPAP Work Group No. 144)","H2"]
[]
[21,null,"Wall tiling","H3"]
[]
[21,null,"200 x 200 x 5mm White matt \"Johnson\" or other approved ceramic tiles fixed with an approved adhesive to plastered walls (plaster elswhere measured) and flush pointed with waterproofing jointing compound to match tile colour","H3"]
[]
[21,265,"On walls (LI)","m2",17,null,{"$f":"E4660*F4660","v":{"v":0,"d":"0.00"}}]
[]
[21,266,"On narrow widths (LI)","m2",1,null,{"$f":"E4662*F4662","v":{"v":0,"d":"0.00"}}]
[]
[21,null,"Floor tiles","H3"]
[]
[21,null,"300 x 300 tiles \"Sondela\" or other approved \"Code ST967\" fixed with adhesive mixture for porcelain tiles to screed (screed elsewhere) and flush pointed with tinted grout - Contact no: 031 569 3377","H3"]
[]
[21,267,"On floors (LI)","m2",12,null,{"$f":"E4668*F4668","v":{"v":0,"d":"0.00"}}]
[]
[21,268,"100mm High skirting (LI)","m",10,null,{"$f":"E4670*F4670","v":{"v":0,"d":"0.00"}}]
[]
[21,null,"Sundries","H3"]
[]
[21,null,"\"Genesis\" or other approved aluminium corner protectors, stair nosings, expansion joint strips, etc.","H3"]
[]
[21,269,"10mm Tile edge trim \"Code ESA 100\" and seal behind tiles at horizontal, vertical or sloping external corners","m",10,null,{"$f":"E4676*F4676","v":{"v":0,"d":"0.00"}}]
[]
[21,null,"Plumbing an Drainage (CPAP Work Group No. 148)","H2"]
[]
[21,null,"Sanitary Fittings","H3"]
[]
[21,null,"Supply, fix, clean, wash and leave in a satisfactory condition the following items of sanitaryware:"]
[]
[21,null,"'Cameo' or other approved","H3"]
[]
[21,270,"595 x 455mm Oval self-rimming vanity basin (code 8784Z0) with three semi-punched tapholes, one taphole configuration, and chainstay hole through the centre semi-punched taphole. Supplied as standard without an overflow attachement installed on 30mm Rusternburg granite top ( Granite Top measures elsewhere) ","No",1,null,{"$f":"E4686*F4686","v":{"v":0,"d":"0.00"}}]
[]
[21,null,"'Vaal' or other approved","H3"]
[]
[21,271,"\"Vaal Parktown\" vitreous 90 degree outlet pan (Code 431500) closed rim back to wall unit with top inlet with an exposed flush valve","No",1,null,{"$f":"E4690*F4690","v":{"v":0,"d":"0.00"}}]
[]
[21,null,"'Franke' or other approved","H3"]
[]
[21,null,"Stainless steel","H3"]
[]
[21,272,"\"Franke Quinline QLX 611 (Product Code 820 000)\" or other approved single end bowl insert sink and drainer supplied with 90mm basket strainer waste fitting  formed of AISI grade 304 (18/10) stainless steel size 900 x 500mm wide overall complete with \"Franke Spazi F/ 1 waste trap and pipe to suit waste outlet and  \"code 311\" chromium plated sink waste slotted with 86 mm diameter flange and 93mm long shank and chain with rubber plug and  fixed on counter (elsewhere measured) and seal at junction with brickwork with clear silicone sealer (S9)","No",1,null,{"$f":"E4696*F4696","v":{"v":0,"d":"0.00"}}]
[]
[21,null,"Sanitary plumbing","H3"]
[]
[21,null,"Unplasticized polyvinyl chloride (UPVC) pipes","H3"]
[]
[21,273,"50mm Pipes (LI)","m",9,null,{"$f":"E4702*F4702","v":{"v":0,"d":"0.00"}}]
[]
[21,274,"50mm Pipes in chase in walls and floors (LI)","m",3,null,{"$f":"E4704*F4704","v":{"v":0,"d":"0.00"}}]
[]
[21,275,"110mm Pipes (LI)","m",4,null,{"$f":"E4706*F4706","v":{"v":0,"d":"0.00"}}]
[]
[21,276,"110mm Pipes in chase in walls and floors (LI)","m",4,null,{"$f":"E4708*F4708","v":{"v":0,"d":"0.00"}}]
[]
[21,277,"110mm Pipes laid in trenches (No excavations) (LI)","m",4,null,{"$f":"E4710*F4710","v":{"v":0,"d":"0.00"}}]
[]
[21,278,"110mm Pipes laid in trenches including excavations, risk of collapse, backfilling, etc. (LI)","m",39,null,{"$f":"E4712*F4712","v":{"v":0,"d":"0.00"}}]
[]
[21,null,"Extra over uPVC pipes for fittings","H3"]
[]
[21,279,"50mm BSP adaptor (LI)","No",5,null,{"$f":"E4716*F4716","v":{"v":0,"d":"0.00"}}]
[]
[21,280,"50mm Bend (LI)","No",16,null,{"$f":"E4718*F4718","v":{"v":0,"d":"0.00"}}]
[]
[21,281,"110mm Bend (LI)","No",4,null,{"$f":"E4720*F4720","v":{"v":0,"d":"0.00"}}]
[]
[21,282,"50mm Access bend (LI)","No",7,null,{"$f":"E4722*F4722","v":{"v":0,"d":"0.00"}}]
[]
[21,283,"110mm Access bend (LI)","No",2,null,{"$f":"E4724*F4724","v":{"v":0,"d":"0.00"}}]
[]
[21,284,"50mm Junction (LI)","No",10,null,{"$f":"E4726*F4726","v":{"v":0,"d":"0.00"}}]
[]
[21,285,"110mm Junction (LI)","No",5,null,{"$f":"E4728*F4728","v":{"v":0,"d":"0.00"}}]
[]
[21,286,"110mm Reducing junction (LI)","No",1,null,{"$f":"E4730*F4730","v":{"v":0,"d":"0.00"}}]
[]
[21,287,"110mm Double junction (LI)","No",3,null,{"$f":"E4732*F4732","v":{"v":0,"d":"0.00"}}]
[]
[21,288,"110mm Reducing double junction (LI)","No",2,null,{"$f":"E4734*F4734","v":{"v":0,"d":"0.00"}}]
[]
[21,289,"50mm Access junction (LI)","No",2,null,{"$f":"E4736*F4736","v":{"v":0,"d":"0.00"}}]
[]
[21,290,"110mm Access junction (LI)","No",1,null,{"$f":"E4738*F4738","v":{"v":0,"d":"0.00"}}]
[]
[21,291,"110mm Reducer (LI)","No",2,null,{"$f":"E4740*F4740","v":{"v":0,"d":"0.00"}}]
[]
[21,292,"110mm \"GI Two-way\" vent valve (LI)","No",1,null,{"$f":"E4742*F4742","v":{"v":0,"d":"0.00"}}]
[]
[21,293,"110mm Straight or bent pan connector","No",1,null,{"$f":"E4744*F4744","v":{"v":0,"d":"0.00"}}]
[]
[21,294,"160mm \"ABC\" cast iron rodding eye cover and frame and joint up UPVC pipe with and including necessary adaptor (LI)","No",2,null,{"$f":"E4746*F4746","v":{"v":0,"d":"0.00"}}]
[]
[21,null,"UPVC gulleys","H3"]
[]
[21,295,"110mm Diameter gulley trap jointed to drain, complete with hopper head and grid and the whole set on and encased in unreinforced concrete Class A, including necessary excavation and formwork.","No",1,null,{"$f":"E4750*F4750","v":{"v":0,"d":"0.00"}}]
[]
[21,296,"Extra over 110mm diameter gulley trap for 380 x 380 x 170mm precast gulley surround placed on and including 75mm thick Class C concrete base and fitted with 187mm diameter uPVC grating.","No",1,null,{"$f":"E4752*F4752","v":{"v":0,"d":"0.00"}}]
[]
[21,null,"\"Flexitraps\"","H3"]
[]
[21,297,"40mm Butyl rubber for single bowl sink jointed to waste outlet fitting including clamps","No",1,null,{"$f":"E4756*F4756","v":{"v":0,"d":"0.00"}}]
[]
[21,null,"\"Cobra\" or other approved brass traps, waste unions, etc.","H3"]
[]
[21,298,"32mm Chromium plated bottle trap as \"Cobra 345/50\"","No",1,null,{"$f":"E4760*F4760","v":{"v":0,"d":"0.00"}}]
[]
[21,null,"Water supplies","H3"]
[]
[21,null,"Copper pipes:","H3"]
[]
[21,null,"Pipes shall be hard drawn and half-hard pipes of the class stated.  Class 0 (thin walled hard drawn) pipes shall not be bent.  Class 1 (thin walled half-hard), class 2 (half-hard) and class 3 (heavy walled half-hard) pipes shall only be bent with benders with inner and outer formers.  Fittings to copper waste, vent and anti-syphon pipes, capillary solder fittings and compression fittings shall be \"Cobra Watertech\" type.  Capillary solder fittings shall comply with ISO 2016.  Only compression fittings shall be used in walls or in ground"]
[]
[21,null,"Class 2 copper pipes","H3"]
[]
[21,299,"15mm Pipes (LI)","m",24,null,{"$f":"E4770*F4770","v":{"v":0,"d":"0.00"}}]
[]
[21,300,"15mm Pipes in chase in walls (LI)","m",12,null,{"$f":"E4772*F4772","v":{"v":0,"d":"0.00"}}]
[]
[21,301,"22mm Pipes (LI)","m",8,null,{"$f":"E4774*F4774","v":{"v":0,"d":"0.00"}}]
[]
[21,302,"22mm Pipes in chase in walls (LI)","m",4,null,{"$f":"E4776*F4776","v":{"v":0,"d":"0.00"}}]
[]
[21,303,"28mm Pipes (LI)","m",2,null,{"$f":"E4778*F4778","v":{"v":0,"d":"0.00"}}]
[]
[21,null,"Extra over class 2 copper pipes for capillary fittings","H3"]
[]
[21,304,"15mm Fittings (LI)","No",48,null,{"$f":"E4782*F4782","v":{"v":0,"d":"0.00"}}]
[]
[21,305,"22mm Fittings (LI)","No",32,null,{"$f":"E4784*F4784","v":{"v":0,"d":"0.00"}}]
[]
[21,306,"28mm Fittings (LI)","No",4,null,{"$f":"E4786*F4786","v":{"v":0,"d":"0.00"}}]
[]
[21,307,"80mm Reducer (LI)","No",1,null,{"$f":"E4788*F4788","v":{"v":0,"d":"0.00"}}]
[]
[21,null,"Extra over class 2 copper pipes for brass compression fittings:","H3"]
[]
[21,308,"15mm Fittings (LI)","No",24,null,{"$f":"E4792*F4792","v":{"v":0,"d":"0.00"}}]
[]
[21,309,"22mm Fittings (LI)","No",14,null,{"$f":"E4794*F4794","v":{"v":0,"d":"0.00"}}]
[]
[21,310,"28mm Fittings (LI)","No",8,null,{"$f":"E4796*F4796","v":{"v":0,"d":"0.00"}}]
[]
[21,311,"42mm Reducing tee (LI)","No",1,null,{"$f":"E4798*F4798","v":{"v":0,"d":"0.00"}}]
[]
[21,312,"80mm Reducer (LI)","No",1,null,{"$f":"E4800*F4800","v":{"v":0,"d":"0.00"}}]
[]
[21,null,"Taps, valves, etc.","H3"]
[]
[21,null,"Taps, valves, etc.  jointed to copper pipes are to include brass connectors, adaptors etc. Installation and fixings to be as per manufacturers specifications and SANS 1808-9 compliant.  "]
[]
[21,313,"15mm 832/350FCP Ball type angle valve with 350mm long flexible hose connector","No",3,null,{"$f":"E4806*F4806","v":{"v":0,"d":"0.00"}}]
[]
[21,314,"\"Flushmaster FJ6.000\" exposed type top entry flush valve in accordance with SANS 1240 complete with standard chromium plated straight wall flange, flush pipe with flush pipe connector and fix to vertical inlet of WC pan","No",1,null,{"$f":"E4808*F4808","v":{"v":0,"d":"0.00"}}]
[]
[21,315,"Sink pillar tap with aerated swan neck swivel outlet 1/2\" BSP male inlet as Cobra CS-215/044CP but with lidimo handle","No",1,null,{"$f":"E4810*F4810","v":{"v":0,"d":"0.00"}}]
[]
[21,316,"Square type Cobra Lidimo pillar tap with hot & cold indicies code: LO-214-15","No",1,null,{"$f":"E4812*F4812","v":{"v":0,"d":"0.00"}}]
[]
[21,null,"Fire Appliances etc.","H3"]
[]
[21,317,"4.5kg D.C.P stored pressure (70% powder) fire extinguisher securely fixed to wall on backing board in strict accordance with all requirements of authorities","No",1,null,{"$f":"E4816*F4816","v":{"v":0,"d":"0.00"}}]
[]
[21,null,"Testing","H3"]
[]
[21,318,"Testing water pipe system","Item",1,null,{"$f":"E4820*F4820","v":{"v":0,"d":"0.00"}}]
[]
[21,null,"Paintwork (CPAP Work Group No. 152)","H2"]
[]
[21,null,"On internal floated plaster surfaces","H3"]
[]
[21,null,"\"Plascon\" or other equally approved alkali resistant primer and two coats \"Wall and All\" emulsion paint for interior use","H3"]
[]
[21,319,"On walls (LI)","m2",39,null,{"$f":"E4828*F4828","v":{"v":0,"d":"0.00"}}]
[]
[21,320,"On narrow widths (LI)","m2",6,null,{"$f":"E4830*F4830","v":{"v":0,"d":"0.00"}}]
[]
[21,null,"On fibre-cement board surfaces ","H3"]
[]
[21,null,"Apply \"Plascon\" or other equally approved alkali resistant primer and two coats \"Nu-Roof\" emulsion paint for exterior use","H3"]
[]
[21,321,"On fascia and barge boards","m",21,null,{"$f":"E4836*F4836","v":{"v":0,"d":"0.00"}}]
[]
[21,null,"Apply one coat primer, one coat universal undercoat and two coats \"Plascon Velvaglo Polyurethane Enamel\" or equal and approved paint","H3"]
[]
[21,322,"On cills ","m",9,null,{"$f":"E4840*F4840","v":{"v":0,"d":"0.00"}}]
[]
[21,null,"On wood surfaces ","H3"]
[]
[21,null,"Two coats of carbolinium","H3"]
[]
[21,323,"On exposed timber trusses (LI)","m2",4,null,{"$f":"E4846*F4846","v":{"v":0,"d":"0.00"}}]
[]
[21,null,"Prepare and apply two coats \"Plascon\" or other equally approved mat varnish","H3"]
[]
[21,324,"On doors (LI)","m2",4,null,{"$f":"E4850*F4850","v":{"v":0,"d":"0.00"}}]
[]
[21,null,"On metal surfaces ","H3"]
[]
[21,null,"Apply \"Plascon\" or other approved alkyd based zinc phosphate primer, one coat alkyd based universal undercoat and two coats superior quality universal enamel paint, on steel","H3"]
[]
[21,325,"On door frames (LI)","m2",3,null,{"$f":"E4856*F4856","v":{"v":0,"d":"0.00"}}]
[]
[21,null,"Apply one coat calcium plumbate primer on:","H3"]
[]
[21,326,"Backs of galvanised steel door frames before fixing (LI)","m2",3,null,{"$f":"E4860*F4860","v":{"v":0,"d":"0.00"}}]
[]
[21,null,"CARPORTS","H1"]
[]
[21,null,"Earthworks (CPAP Work Group No. 104)","H2"]
[]
[21,null,"Excavation in earth not exceeding 2m deep","H3"]
[]
[21,327,"Holes (LI)","m3",16,null,{"$f":"E4868*F4868","v":{"v":0,"d":"0.00"}}]
[]
[21,null,"Extra over trench and hole excavations in earth for excavation in for:","H3"]
[]
[21,328,"Soft material (LI)","m3",2,null,{"$f":"E4872*F4872","v":{"v":0,"d":"0.00"}}]
[]
[21,329,"Hard material","m3",2,null,{"$f":"E4874*F4874","v":{"v":0,"d":"0.00"}}]
[]
[21,null,"Extra over all excavations for carting away","H3"]
[]
[21,330,"Surplus material from excavations and/or stock piles on site, to a dumping site to be located by the contractor","m3",16,null,{"$f":"E4878*F4878","v":{"v":0,"d":"0.00"}}]
[]
[21,null,"Risk of collapse of excavations","H3"]
[]
[21,331,"Sides of trench and hole excavations not exceeding 1,5m deep","m2",61,null,{"$f":"E4882*F4882","v":{"v":0,"d":"0.00"}}]
[]
[21,null,"Keeping excavations free of water","H3"]
[]
[21,332,"Keeping excavations free of all water other than subterranean water","Item",1,null,{"$f":"E4886*F4886","v":{"v":0,"d":"0.00"}}]
[]
[21,null,"Earth filling supplied by the contractor, compacted to 95% Mod. AASHTO density","H3"]
[]
[21,333,"Under bases of G5 material in accordance with SABS 1200 DM and compacted to 95% Mod. AASHTO density (LI)","m3",3,null,{"$f":"E4890*F4890","v":{"v":0,"d":"0.00"}}]
[]
[21,null,"Compaction of surfaces","H3"]
[]
[21,334,"Compaction of ground surface under floors etc including grading, levelling and scarifying for a depth of 150mm, breaking down oversize material, adding suitable material where necessary and compacting to 98% Mod. AASHTO density","m2",15,null,{"$f":"E4894*F4894","v":{"v":0,"d":"0.00"}}]
[]
[21,null,"Prescribed density tests on filling","H3"]
[]
[21,335,"\"Modified AASHTO Density\" test","No",8,null,{"$f":"E4898*F4898","v":{"v":0,"d":"0.00"}}]
[]
[21,null,"Soil poisoning","H3"]
[]
[21,null,"Anti-termite soil poison applied by a registered Pest Control company and guaranteed againist termite infestation for ten years","H3"]
[]
[21,336,"Under floors etc including forming and poisoning shallow furrows against foundation walls etc., filling in furrows and ramming (LI)","m2",15,null,{"$f":"E4904*F4904","v":{"v":0,"d":"0.00"}}]
[]
[21,null,"Concrete, Formwork and Reinforcement","H2"]
[]
[21,null,"Concrete (CPAP Work Group No. 110)","H2"]
[]
[21,null,"10MPa/19mm concrete","H3"]
[]
[21,337,"Surface blinding under footings and bases (LI)","m3",1,null,{"$f":"E4912*F4912","v":{"v":0,"d":"0.00"}}]
[]
[21,null,"Reinforced concrete cast against excavated surfaces","H3"]
[]
[21,null,"25Mpa/19mm concrete","H3"]
[]
[21,338,"Bases (LI)","m3",8,null,{"$f":"E4918*F4918","v":{"v":0,"d":"0.00"}}]
[]
[21,339,"Stub columns (LI)","m3",4,null,{"$f":"E4920*F4920","v":{"v":0,"d":"0.00"}}]
[]
[21,null,"Test Cubes","H3"]
[]
[21,340,"Making and testing set of three 150 x 150 x 150mm concrete strength test cube (Provisional)","No",2,null,{"$f":"E4924*F4924","v":{"v":0,"d":"0.00"}}]
[]
[21,null,"Concrete Sundries","H3"]
[]
[21,null,"40Mpa Non-shrink grout:","H3"]
[]
[21,341,"Bedding approximately 25mm thick under base plate including chamfered edges all round.","m2",1,null,{"$f":"E4930*F4930","v":{"v":0,"d":"0.00"}}]
[]
[21,null,"Formwork (CPAP Work Group No. 111)","H2"]
[]
[21,null,"Smooth formwork to sides","H3"]
[]
[21,342,"Stub columns propped up not exceeding 1.5m high (LI)","m2",7,null,{"$f":"E4936*F4936","v":{"v":0,"d":"0.00"}}]
[]
[21,null,"Reinforcement (Provisonal)","H2"]
[]
[21,null,"(CPAP Work Group No. 114)","H2"]
[]
[21,null,"Reinforcement to structural concrete work","H3"]
[]
[21,343,"Bars of various diameters (LI)","t",1.31,null,{"$f":"E4944*F4944","v":{"v":0,"d":"0.00"}}]
[]
[21,null,"Roof Covering (CPAP Work Group No. 124)","H2"]
[]
[21,null,"\"Global Kliptite\" or other equally approved double interlocking concealed fix, 0.8mm spelter galvanised sheet steel and accessories, fixed to timber purlins","H3"]
[]
[21,344,"Roof covering with pitches not exceeding 25 degrees","m2",329,null,{"$f":"E4950*F4950","v":{"v":0,"d":"0.00"}}]
[]
[21,null,"Structural Steel (CPAP Work Group No. 134)","H2"]
[]
[21,null,"Hot Dipped Galvanised Columns","H3"]
[]
[21,345,"203 x 133 x 25kg/m UB columns with and including base plate formed of 550 x 400 x 20mm thick plate welded to bottom end of post and chemically fixed to concrete surface and other end with welded closure piece to accommodate steel rafter (Steel rafter elsewhere measured)","t",2.17,null,{"$f":"E4956*F4956","v":{"v":0,"d":"0.00"}}]
[]
[21,null,"Hot Dipped Galvanised Beams","H3"]
[]
[21,346,"203 x 133 x 25kg/m UB Rafters with one end fixed to steel columns (Steel Columns elsewhere measured), with and including all necessary welding, bolts, washers, etc","t",1.9,null,{"$f":"E4960*F4960","v":{"v":0,"d":"0.00"}}]
[]
[21,null,"Hot Dipped Galvanised Purlins","H3"]
[]
[21,347,"150 x 75 x 20 x 2.5mm Cold rolled lipped channels","t",0.9,null,{"$f":"E4964*F4964","v":{"v":0,"d":"0.00"}}]
[]
[21,348,"89 x 3.5 thick CHS tie","t",0.5,null,{"$f":"E4966*F4966","v":{"v":0,"d":"0.00"}}]
[]
[21,null,"Sundry Steelwork","H3"]
[]
[21,349,"Cleats, plates, gussets, connectors, etc","t",1.74,null,{"$f":"E4970*F4970","v":{"v":0,"d":"0.00"}}]
[]
[21,null,"Chemical anchors, etc","H3"]
[]
[21,350,"\"Fisher\" or other approved M20 (8.8) galvanised HD chemical anchors studs (with embedment length of minimum 280mm into steel (steel elsewhere measured) with and including \"Fisher V360\" or other approved chemical mortar","No",12,null,{"$f":"E4974*F4974","v":{"v":0,"d":"0.00"}}]
[]
[21,351,"\"Fisher\" or other approved M16 (8.8) galvanised HD chemical anchors studs (with embedment length of minimum 280mm into steel (steel elsewhere measured) with and including \"Fisher V360\" or other approved chemical mortar","No",36,null,{"$f":"E4976*F4976","v":{"v":0,"d":"0.00"}}]
[]
[21,null,"Holding down bolts, etc.","H3"]
[]
[21,352,"Set out and embed set of four holding down bolts in top of concrete in exact position comprises of 400mm long holding down bolt, 12mm diameter grade 4.8 bolts with 100mm threaded projection. 60 x 60 x 10 Anchors drilled and welded to bolts set in 10mm from bottom. All in accordance with the Engineers details.","No",24,null,{"$f":"E4980*F4980","v":{"v":0,"d":"0.00"}}]
[]
[21,null,"RAMPS","H1"]
[]
[21,null,"Earthworks (CPAP Work Group No. 104)","H2"]
[]
[21,null,"Excavation other than bulk ","H3"]
[]
[21,353,"Excavate in earth not exceeding 2m deep for strip footings (LI)","m3",31,null,{"$f":"E4988*F4988","v":{"v":0,"d":"0.00"}}]
[]
[21,354,"Extra over for excavations in soft material (LI)","m3",3,null,{"$f":"E4990*F4990","v":{"v":0,"d":"0.00"}}]
[]
[21,355,"Extra over for excavations in hard material","m3",2,null,{"$f":"E4992*F4992","v":{"v":0,"d":"0.00"}}]
[]
[21,356,"Risk of collapse of sides of trench and hole excavations not exceeding 1,5m deep","m2",70,null,{"$f":"E4994*F4994","v":{"v":0,"d":"0.00"}}]
[]
[21,357,"Imported G5 material imported from commercial sources supplied by contractor, compacted to 98% Mod. AASHTO density to strip footing (LI)","m3",15,null,{"$f":"E4996*F4996","v":{"v":0,"d":"0.00"}}]
[]
[21,358,"Imported G5 material imported from commercial sources supplied by contractor, compacted to 98% Mod. AASHTO density to floors (LI)","m3",32,null,{"$f":"E4998*F4998","v":{"v":0,"d":"0.00"}}]
[]
[21,359,"Extra over all excavations for loading, carting and dumping surplus excavated material off site to a dumping site to be found by the Contractor (no allowance made for increase in bulk)","m3",16,null,{"$f":"E5000*F5000","v":{"v":0,"d":"0.00"}}]
[]
[21,360,"Allow for the execution of all the prescribed density tests on filling, etc., as pointed out by the Engineer on site to the approval of the Principal Agent.","Item",1,null,{"$f":"E5002*F5002","v":{"v":0,"d":"0.00"}}]
[]
[21,null,"Concrete, Formwork and Reinforcement","H2"]
[]
[21,null,"Concrete (CPAP Work Group No. 110)","H3"]
[]
[21,361,"10MPa/19mm Unreinforced concrete cast against excavated surfaces for blinding (LI)","m3",2,null,{"$f":"E5008*F5008","v":{"v":0,"d":"0.00"}}]
[]
[21,362,"25MPa/19mm Reinforced concrete cast against excavated surfaces for trenches (LI)","m3",9,null,{"$f":"E5010*F5010","v":{"v":0,"d":"0.00"}}]
[]
[21,363,"30MPa/19mm Reinforced concrete in ramps (LI)","m3",14,null,{"$f":"E5012*F5012","v":{"v":0,"d":"0.00"}}]
[]
[21,null,"Concrete Sundries","H3"]
[]
[21,364,"Allow for necessary concrete test cubes size 150 x 150 x 150mm from batches of concrete required for this building as specified, made, stored, cured and tested in accordance with SABS Methods 861 and 863, including use of approved cube moulds, transporting to an approved laboratory for testing, paying all charges and submitting reports to the Engineer.","Item",1,null,{"$f":"E5016*F5016","v":{"v":0,"d":"0.00"}}]
[]
[21,null,"Expansion joints with 12mm bitumen impregnated softboard between vertical concrete surfaces, including necessary formwork","H3"]
[]
[21,365,"10mm Joints not exceeding 300mm high (LI)","m",29,null,{"$f":"E5020*F5020","v":{"v":0,"d":"0.00"}}]
[]
[21,null,"Saw cut joints","H3"]
[]
[21,366,"3 x 30mm Saw cut joints in top of concrete","m",22,null,{"$f":"E5024*F5024","v":{"v":0,"d":"0.00"}}]
[]
[21,null,"Finishing to surface of concrete to an evenly ribbed non-slip finish","H3"]
[]
[21,367,"Ramps (LI)","m2",96,null,{"$f":"E5028*F5028","v":{"v":0,"d":"0.00"}}]
[]
[21,null,"Reinforcement (CPAP Work Group No. 114)","H3"]
[]
[21,368,"Various diameter bars in high tensile steel reinforcement (LI)","t",1.73,null,{"$f":"E5032*F5032","v":{"v":0,"d":"0.00"}}]
[]
[21,null,"Masonry (CPAP Work Group No. 116)","H2"]
[]
[21,null,"Brickwork of NFX bricks (14Mpa norminal compression strength) in class II mortar","H3"]
[]
[21,369,"One and a half brick walls (LI)","m2",29,null,{"$f":"E5038*F5038","v":{"v":0,"d":"0.00"}}]
[]
[21,null,"Brickwork sundries","H3"]
[]
[21,null,"2.5mm Galvanised brickwork reinforcement","H4"]
[]
[21,370,"155mm Wide reinforcement built in horizontally (LI)","m",113,null,{"$f":"E5044*F5044","v":{"v":0,"d":"0.00"}}]
[]
[21,null,"Joint forming material in movement joints","H3"]
[]
[21,371,"12mm Bitumen impregnated fibre board built in vertically between brick skins (LI)","m",6,null,{"$f":"E5048*F5048","v":{"v":0,"d":"0.00"}}]
[]
[21,372,"12 x 12mm In vertical expansion joints including raking out expansion joint filler as necessary (LI)","m",6,null,{"$f":"E5050*F5050","v":{"v":0,"d":"0.00"}}]
[]
[21,null,"Face Brickwork","H3"]
[]
[21,null,"\" Corobrick Roan Satin FBX \" or other approved face bricks pointed with tinted recessed horizontal and vertical joints ","H4"]
[]
[21,373,"Extra over brickwork for face brickwork (LI)","m2",29,null,{"$f":"E5056*F5056","v":{"v":0,"d":"0.00"}}]
[]
[21,null,"Metalwork (CPAP Work Group No. 136)","H2"]
[]
[21,null,"Stainless steel (Grade 304) balustrading, handrails, etc","H3"]
[]
[21,374,"Horizontal balustrades 1000mm high formed of 50mm diameter continuous top and centre rails supported on 43mm diameter stanchions at 1000mm centres, each stanchion fitted with 150 x 75mm base plate twice drilled for and bolted to concrete with 16mm anchor bolts.","m",6,null,{"$f":"E5062*F5062","v":{"v":0,"d":"0.00"}}]
[]
[21,375,"Horizontal Racking balustrades 1000mm high formed of 50mm diameter continuous top and centre rails supported on 43mm diameter stanchions at 1000mm centres, each stanchion fitted with 150 x 75mm base plate twice drilled for and bolted to concrete with 16mm anchor bolts.","m",28,null,{"$f":"E5064*F5064","v":{"v":0,"d":"0.00"}}]
[]
[21,376,"50mm diameter handrail fixed to walls at 1m centres with brackets made of 12mm diameter bar 150mm girth and once bent with one end welded to handrail and other end fitted with 4mm thick x 50mm diameter clamp plate welded on, twice holed and bolted to concrete","m",28,null,{"$f":"E5066*F5066","v":{"v":0,"d":"0.00"}}]
[]
[21,377,"Extra over balustrades for ends","No",2,null,{"$f":"E5068*F5068","v":{"v":0,"d":"0.00"}}]
[]
[21,378,"Extra over balustrades for 90 degree bend","No",1,null,{"$f":"E5070*F5070","v":{"v":0,"d":"0.00"}}]
[]
[21,null,"ROADWORKS (CPAP Work Group No. 154)","H1"]
[]
[21,null,"Excavation other than bulk ","H3"]
[]
[21,379,"Trim and level off surface of ground (excavated or filled under this contract) to receive sub-base to roads, parking areas, etc., including excavating or filling, ripping and scarifying as necessary and compacting the whole area for a depth of 150mm to at least 95% Mod. AASHTO density.","m2",2516,null,{"$f":"E5076*F5076","v":{"v":0,"d":"0.00"}}]
[]
[21,380,"Excavate to reduce levels under concrete road to receive sub-base (sub-base elsewhere measured) ","m3",1131,null,{"$f":"E5078*F5078","v":{"v":0,"d":"0.00"}}]
[]
[21,381,"Extra over all excavations for loading, carting and dumping surplus excavated material off site to a dumping site to be found by the Contractor (no allowance made for increase in bulk)","m3",1131,null,{"$f":"E5080*F5080","v":{"v":0,"d":"0.00"}}]
[]
[21,382,"150mm Thick layer of G2 sub-base course under roads, parking areas, etc., with selected and approved natural G2 quality material, supplied and carted onto site by the contractor,  compacted in layers of 150mm thickness to at least 102% Mod. AASHTO density.","m3",377,null,{"$f":"E5082*F5082","v":{"v":0,"d":"0.00"}}]
[]
[21,383,"150mm Thick layer of G5 sub-base course under roads, parking areas, etc., with selected and  natural G5 quality material, supplied and carted onto site by the contractor,  compacted in layers of 150mm thickness to at least 95% Mod. AASHTO density.","m3",377,null,{"$f":"E5084*F5084","v":{"v":0,"d":"0.00"}}]
[]
[21,384,"150mm Thick layer of G7 sub-base course under roads, parking areas, etc., with selected and  natural G7 quality material, supplied and carted onto site by the contractor,  compacted in layers of 150mm thickness to at least 95% Mod. AASHTO density.","m3",377,null,{"$f":"E5086*F5086","v":{"v":0,"d":"0.00"}}]
[]
[21,385,"Keeping excavations free of all water other than subterranean water","Item",1,null,{"$f":"E5088*F5088","v":{"v":0,"d":"0.00"}}]
[]
[21,386," brand of weed killer applied by a registered pest control company under roads, parking and paving.","m2",2516,null,{"$f":"E5090*F5090","v":{"v":0,"d":"0.00"}}]
[]
[21,387,"Allow for the execution of all the prescribed density tests on filling, etc., as pointed out by the Engineer on site to the approval of the Principal Agent.","Item",1,null,{"$f":"E5092*F5092","v":{"v":0,"d":"0.00"}}]
[]
[21,null,"Tarmacdam","H3"]
[]
[21,null,"Road Alterations","H3"]
[]
[21,388,"Saw cut into existing road to tie in roadway","m",18,null,{"$f":"E5098*F5098","v":{"v":0,"d":"0.00"}}]
[]
[21,null,"Bituminous premix road surfacing","H3"]
[]
[21,389,"Prime and lay 40mm thick 40/50 pen. Bitumen 9.5mm Stone, laid compacted, to falls","m2",2388,null,{"$f":"E5102*F5102","v":{"v":0,"d":"0.00"}}]
[]
[21,null,"Concrete, Formwork & Reinforcement(CPAP Work Group No. )","H2"]
[]
[21,null,"30Mpa Concrete","H3"]
[]
[21,390,"Concrete road slabs laid to falls","m3",23,null,{"$f":"E5108*F5108","v":{"v":0,"d":"0.00"}}]
[]
[21,null,"Finish to concrete","H3"]
[]
[21,391,"Powerfloat and sponge finish","m2",128,null,{"$f":"E5112*F5112","v":{"v":0,"d":"0.00"}}]
[]
[21,null,"Formwork","H3"]
[]
[21,392,"Rough Formwork to edges of concrete road slab","m",56,null,{"$f":"E5116*F5116","v":{"v":0,"d":"0.00"}}]
[]
[21,null,"Reinforcement","H3"]
[]
[21,393,"Ref 245 Wire Mesh ","m2",128,null,{"$f":"E5120*F5120","v":{"v":0,"d":"0.00"}}]
[]
[21,null,"Precast concrete (CPAP work group no. 112)","H3"]
[]
[21,394,"Kerb (SABS 927 Fig 6) 125 x 230mm high with minimum 150 x 150 x 300mm unreinforced concrete bedding and haunching, mortar jointing to joints, including excavation, backfilling etc","m",173,null,{"$f":"E5124*F5124","v":{"v":0,"d":"0.00"}}]
[]
[21,395,"Ditto, but circular on plan not exceeding 4m radius","m",101,null,{"$f":"E5126*F5126","v":{"v":0,"d":"0.00"}}]
[]
[21,null,"Paintwork (CPAP Work Group No. 152)","H2"]
[]
[21,null,"Two coats 'Plascon' or other equally approved road marking paint including setting out, etc. in accordance with the Provincial Road Department specification and standards in","H3"]
[]
[21,396,"100mm Wide solid lines to parking demarcation bays, etc.","m",284,null,{"$f":"E5132*F5132","v":{"v":0,"d":"0.00"}}]
[]
[21,397,"1,0m Long directional arrows","No",10,null,{"$f":"E5134*F5134","v":{"v":0,"d":"0.00"}}]
[]
[21,398,"1,3m Long letters to 'STOP' sign, etc.","No",2,null,{"$f":"E5136*F5136","v":{"v":0,"d":"0.00"}}]
[]
[21,399,"Disabled parking bay sign approximately 1,2m high","No",2,null,{"$f":"E5138*F5138","v":{"v":0,"d":"0.00"}}]
[]
[21,null,"LANDSCAPING (CPAP Work Group No. 154)","H1"]
[]
[21,null,"Excavation in all type of material not exceeding 2m deep below natural, reduced or made up ground level","H3"]
[]
[21,400,"Excavate for and form hole 500 x 500 x 500mm deep for trees, and fill with topsoil mixed with compost and fertilizer. (LI)","No",10,null,{"$f":"E5144*F5144","v":{"v":0,"d":"0.00"}}]
[]
[21,null,"Topsoil obtained from stockpiles on site, including spreading and levelling","H3"]
[]
[21,401,"Topsoil making up shortages in dressing ground and planters for an average thickness of 150mm","m3",49,null,{"$f":"E5148*F5148","v":{"v":0,"d":"0.00"}}]
[]
[21,null,"Grassing, Trees, etc","H3"]
[]
[21,null,"Supply and plant the following grass","H3"]
[]
[21,402,"Grass planting to level areas with Cynadon Dactylon continuous root planting described including all necessary fertiliser, weed killer, watering and rolling, mowing, etc. (LI)","m2",357,null,{"$f":"E5154*F5154","v":{"v":0,"d":"0.00"}}]
[]
[21,null,"Supply and plant the following plants","H3"]
[]
[21,403,"Lampranthus at the rate of five per square metre (LI)","m2",200,null,{"$f":"E5158*F5158","v":{"v":0,"d":"0.00"}}]
[]
[21,404,"Carex Evergold at the rate of five per square metre (LI)","m2",100,null,{"$f":"E5160*F5160","v":{"v":0,"d":"0.00"}}]
[]
[21,405,"Chondropetalum at the rate of three per square metre (LI)","m2",100,null,{"$f":"E5162*F5162","v":{"v":0,"d":"0.00"}}]
[]
[21,null,"Supply and plant the following shrubs and trees of the minimum height stated (holes elsewhere measured)","H3"]
[]
[21,406,"Heteropyxis Natalensis 2000mm high, in 60 litre bag (LI)","No",10,null,{"$f":"E5166*F5166","v":{"v":0,"d":"0.00"}}]
[]
[21,407,"Podocarpus Henkelii 2000mm high, in 60 litre bag (LI)","No",5,null,{"$f":"E5168*F5168","v":{"v":0,"d":"0.00"}}]
[]
[21,null,"Maintenance","H3"]
[]
[21,408,"Maintenance of grassed areas for a period of 12 months (total area approximately 500m²) including regularly cutting, weeding and irrigating as necessary (LI)","Item",1,null,{"$f":"E5172*F5172","v":{"v":0,"d":"0.00"}}]
[]
["Bill No. 21",null,"Carried to Final Summary",{"$nulls":3},{"$f":"SUM(G3770:G5173)","v":{"v":0,"d":"0.00"}}]
[]
[22,null,"BILL NO. 22","H1"]
[]
[22,null,"PROJECT ASSESSMENT SCHEME (PROVISIONAL)","H1"]
[]
[22,null,"PREAMBLES","H2"]
[]
[22,null,"The descriptions given in the various items below are not necessarily full and complete and reference must be made to the \"Standard Preambles To All Trades (Rev. 3) DOH 2009\", \"Supplementary Preambles\" and \"Supplementary Specifications\" to this contract for the full requirements of each scheduled item"]
[]
[22,null,"SUPPLEMENTARY PREAMBLE","H2"]
[]
[22,null,"Tenderer is advised to carefully price this section of the bills of quantities in conjunction with C1.2: Contract Data, C2.1: Pricing Assumptions and C3: Scope of Work incorporated in the tender documents for this tender  The profit and attendance priced herein under is inclusive of associated costs to the contractor for implementation. The profit and attendance % is to remain unchanged for the duration of contract - refer to C2.1 Pricing Assumptions"]
[]
[22,null,"TARGETED ENTERPRISE DEVELOPMENT CPG","H2"]
[]
[22,null,"Enterprise Development of Targeted Enterprise or JV Partners","H3"]
[]
[22,1,"Needs Analysis and Enterprise Development Plan per Targeted Enterprise","No",3,{"v":5000,"d":"5,000.00"},{"$f":"E5192*F5192","v":{"v":15000,"d":"15,000.00"}}]
[]
[22,2,"Monitoring and Interim reporting per Targeted Enterprise (Enterprise Development Co-ordinator and mentor)","PerQ",6,{"v":60000,"d":"60,000.00"},{"$f":"E5194*F5194","v":{"v":360000,"d":"360,000.00"}}]
[]
[22,3,"Project Completion report per Targeted Enterprise","No",3,{"v":5000,"d":"5,000.00"},{"$f":"E5196*F5196","v":{"v":15000,"d":"15,000.00"}}]
[]
[22,4,"Profit","%",null,{"v":390000,"d":"390,000.00"},{"$f":"E5198*F5198","v":{"v":0,"d":"0.00"}}]
[]
[22,5,"Attendance","%",null,{"v":390000,"d":"390,000.00"},{"$f":"E5200*F5200","v":{"v":0,"d":"0.00"}}]
[]
[22,null,"CONTRACT SKILLS DEVELOPMENT GOALS - CSDG","H2"]
[]
[22,null,"The following allowance will be subject to adjustment based on the notional cost (see Table 3) as per Government Gazette No. 48491 of 28 April 2023 as amended in line with the training opportunity agreed with the employer."]
[]
[22,6,"Minimum Contract Skills Development Goal (CSDG) (0.5% x \"Sub total A\" on the Final Summary)","%",{"$f":"0.5/100","v":{"v":0.005,"d":"0.50%"}},null,{"$f":"E5206*F5206","v":{"v":0,"d":"0.00"}}]
[]
[22,7,"Profit","%",null,null,{"$f":"E5208*F5208","v":{"v":0,"d":"0.00"}}]
[]
[22,8,"Attendance","%",null,null,{"$f":"E5210*F5210","v":{"v":0,"d":"0.00"}}]
[]
["Bill No. 22",null,"Carried to Final Summary",{"$nulls":3},{"$f":"SUM(G5186:G5211)","v":{"v":390000,"d":"390,000.00"}}]
[]
[23,1,"Preliminaries and General ","Page",18,null,{"$f":"'Bill No. 1'!F632","v":{"v":0,"d":"0.00"}}]
[]
[23,2,"Earthworks","Page",22,null,{"$f":"G98","v":{"v":0,"d":"0.00"}}]
[]
[23,3,"Piling","Page",25,null,{"$f":"G128","v":{"v":0,"d":"0.00"}}]
[]
[23,4,"Concrete, Formwork & Reinforcement","Page",33,null,{"$f":"G296","v":{"v":0,"d":"0.00"}}]
[]
[23,5,"Masonry","Page",37,null,{"$f":"G406","v":{"v":0,"d":"0.00"}}]
[]
[23,6,"Waterproofing","Page",39,null,{"$f":"G478","v":{"v":0,"d":"0.00"}}]
[]
[23,7,"Roof Covering ","Page",43,null,{"$f":"G520","v":{"v":0,"d":"0.00"}}]
[]
[23,8,"Carpentry and Joinery","Page",49,null,{"$f":"G624","v":{"v":0,"d":"0.00"}}]
[]
[23,9,"Ceilings, Partitions & Access Flooring","Page",53,null,{"$f":"G702","v":{"v":0,"d":"0.00"}}]
[]
[23,10,"Floor Coverings","Page",55,null,{"$f":"G740","v":{"v":0,"d":"0.00"}}]
[]
[23,11,"Ironmongery","Page",63,null,{"$f":"G980","v":{"v":0,"d":"0.00"}}]
[]
[23,12,"Structural Steel","Page",68,null,{"$f":"G1090","v":{"v":0,"d":"0.00"}}]
[]
[23,13,"Metalwork","Page",86,null,{"$f":"G1384","v":{"v":0,"d":"0.00"}}]
[]
[23,14,"Plastering","Page",90,null,{"$f":"G1480","v":{"v":0,"d":"0.00"}}]
[]
[23,15,"Tiling","Page",92,null,{"$f":"G1530","v":{"v":0,"d":"0.00"}}]
[]
[23,16,"Plumbing and Drainage","Page",107,null,{"$f":"G1956","v":{"v":0,"d":"0.00"}}]
[]
[23,17,"Electrical Work","Page",134,null,{"$f":"G2860","v":{"v":0,"d":"0.00"}}]
[]
[23,18,"Mechanical Work","Page",163,null,{"$f":"G3630","v":{"v":0,"d":"0.00"}}]
[]
[23,19,"Glazing","Page",164,null,{"$f":"G3656","v":{"v":0,"d":"0.00"}}]
[]
[23,20,"Paintwork","Page",167,null,{"$f":"G3760","v":{"v":0,"d":"0.00"}}]
[]
[23,21,"External Works","Page",215,null,{"$f":"G5174","v":{"v":0,"d":"0.00"}}]
[]
[23,null,"Sub Total (A)","ST",null,null,{"$f":"SUM(G5214:G5255)","v":{"v":0,"d":"0.00"}}]
[]
[23,22,"Project Assessment Scheme (Provisional) ","Page",217,null,{"$f":"G5212","v":{"v":390000,"d":"390,000.00"}}]
[]
[23,null,"Sub-Total","ST",null,null,{"$f":"G5256+G5258","v":{"v":390000,"d":"390,000.00"}}]
[]
[23,null,"Value Added Tax (15%)","TAX",15,null,{"$f":"G5260*0.15","v":{"v":58500,"d":"58,500.00"}}]
[]
[null,null,"Total Carried to Form of Tender",{"$nulls":3},{"$f":"G5260+G5262","v":{"v":448500,"d":"448,500.00"}}]